Workbook

Sheet portada
G3: Subsecretaría de Agricultura, Pesca y Alimentación.
G8: Subdirección General de Análisis, Coordinación y Estadística
G9: Servicio de Estadísticas Agrarias
C27: AVANCES DE SUPERFICIES Y PRODUCCIONES AGRÍCOLAS
C30: ESTIMACIONES DE ENERO
E40: 1. COMENTARIO
E42: 2. ÍNDICE
E44: 3. DISPONIBLE EN LA WEB DEL MAPA:
E45: http://www.mapa.es/
H68: FECHA: Madrid, 31/01/2026 | L68: =TODAY() -> 2026-04-21

Sheet índice
A3: ÍNDICE
A7: Resumen de cifras nacionales ....................................................................................................... páginas 13 y 14
A9: Análisis provincial y autonómico ................................................................................................... páginas 16 y 72
D11: página: | I11: página:
A14: trigo de invierno s/r/t | D14: 9 | F14: cebada 2c de primavera s/r/t | I14: 41
A16: trigo de invierno | D16: 10 | F16: cebada 2c de primavera | I16: 42
A18: trigo duro de invierno s/r/t | D18: 11 | F18: cebada 6c de primavera s/r/t | I18: 43
A20: trigo duro de invierno | D20: 12 | F20: cebada 6c de primavera | I20: 44
A22: trigo blando y semi de invierno s/r/t | D22: 13 | F22: cebada total s/r/t | I22: 45
A24: trigo blando y semi de invierno | D24: 14 | F24: cebada total | I24: 46
A26: trigo de primavera s/r/t | D26: 15 | F26: cebada 2 carreras s/r/t | I26: 47
A28: trigo de primavera | D28: 16 | F28: cebada 2 carreras | I28: 48
A30: trigo duro de primavera s/r/t | D30: 17 | F30: cebada 6 carreras s/r/t | I30: 49
A32: trigo duro de primavera | D32: 18 | F32: cebada 6 carreras | I32: 50
A34: trigo blando y semi de primavera s/r/t | D34: 19 | F34: avena s/r/t | I34: 51
A36: trigo blando y semi de primavera | D36: 20 | F36: avena | I36: 52
A38: trigo. resumen general s/r/t | D38: 21 | F38: mezclas de granos distintos del tranquillón s/r/t | I38: 53
A40: trigo. resumen general | D40: 22 | F40: mezclas de granos distintos del tranquillón | I40: 54
A42: trigo duro s/r/t | D42: 23 | F42: avena y otras mezclas de cereales de primavera distintos del tranquillón s/r/t | I42: 55
A44: trigo duro | D44: 24 | F44: avena y otras mezclas de cereales de primavera distintos del tranquillón | I44: 56
A46: trigo semiduro y blando s/r/t | D46: 25 | F46: maíz grano (no incluye forrajero ni dulce) s/r/t | I46: 57
A48: trigo semiduro y blando | D48: 26 | F48: maíz grano (no incluye forrajero ni dulce) | I48: 58
A50: centeno s/r/t | D50: 27 | F50: triticale s/r/t | I50: 59
A52: centeno | D52: 28 | F52: triticale | I52: 60
A54: tranquillón (mezcla de trigo y centeno) s/r/t | D54: 29 | F54: patata extratemprana s/r/t | I54: 61
A56: tranquillón (mezcla de trigo y centeno) | D56: 30 | F56: patata extratemprana | I56: 62
A58: centeno y tranquillón s/r/t | D58: 31 | F58: patata temprana s/r/t | I58: 63
A60: centeno y tranquillón | D60: 32 | F60: patata temprana | I60: 64
A62: cebada de invierno s/r/t | D62: 33 | F62: patata total s/r/t | I62: 65
A64: cebada de invierno | D64: 34 | F64: patata total | I64: 66
A66: cebada 2c de invierno s/r/t | D66: 35 | F66: remolacha azucarera (r. verano) s/r/t | I66: 67
A68: cebada 2c de invierno | D68: 36 | F68: remolacha azucarera (r. verano) | I68: 68
A70: cebada 6c de invierno s/r/t | D70: 37 | F70: remolacha azucarera s/r/t | I70: 69
A72: cebada 6c de invierno | D72: 38 | F72: remolacha azucarera | I72: 70
A74: cebada de primavera s/r/t | D74: 39 | F74: lechuga resumen general s/r/t | I74: 71
A76: cebada de primavera | D76: 40 | F76: lechuga resumen general | I76: 72
D80: página: | I80: página:
A81: lechuga en campo s/r/t | D81: 73 | F81: cebolla grano o valenciana | I81: 108
A83: lechuga en campo | D83: 74 | F83: otras cebollas s/r/t | I83: 109
A85: lechuga en invernadero s/r/t | D85: 75 | F85: otras cebollas | I85: 110
A87: lechuga en invernadero | D87: 76 | F87: cebolla.- resumen general s/r/t | I87: 111
A89: escarola s/r/t | D89: 77 | F89: cebolla.- resumen general | I89: 112
A91: escarola | D91: 78 | F91: zanahoria s/r/t | I91: 113
A93: espinaca s/r/t | D93: 79 | F93: zanahoria | I93: 114
A95: espinaca | D95: 80 | F95: guisantes verdes. en grano (sin vaina) s/r/t | I95: 115
A97: endivias s/r/t | D97: 81 | F97: guisantes verdes. en grano (sin vaina) | I97: 116
A99: endivias | D99: 82 | F99: habas verdes. en grano (sin vaina) s/r/t | I99: 117
A101: para dar hoja endivia s/r/t | D101: 83 | F101: habas verdes. en grano (sin vaina) | I101: 118
A103: para dar hoja endivia | D103: 84 | F103: otras setas s/r/t | I103: 119
A105: pepino s/r/t | D105: 85 | F105: otras setas | I105: 120
A107: pepino | D107: 86 | F107: naranja dulce s/r/t | I107: 121
A109: pepino en invernadero s/r/t | D109: 87 | F109: naranja dulce | I109: 122
A111: pepino en invernadero | D111: 88 | F111: naranja amargo s/r/t | I111: 123
A113: pepinillo s/r/t | D113: 89 | F113: naranja amargo | I113: 124
A115: pepinillo | D115: 90 | F115: satsuma s/r/t | I115: 125
A117: tomate de recolección 1-i al 31 - v s/r/t | D117: 91 | F117: satsuma | I117: 126
A119: tomate de recolección 1-i al 31 - v | D119: 92 | F119: clementinas s/r/t | I119: 127
A121: tomate.- resumen general s/r/t | D121: 93 | F121: clementinas | I121: 128
A123: tomate.- resumen general | D123: 94 | F123: otras mandarinas s/r/t | I123: 129
A125: alcachofa s/r/t | D125: 95 | F125: otras mandarinas | I125: 130
A127: alcachofa | D127: 96 | F127: total mandarino s/r/t | I127: 131
A129: brócoli s/r/t | D129: 97 | F129: total mandarino | I129: 132
A131: brócoli | D131: 98 | F131: limonero s/r/t | I131: 133
A133: coliflor s/r/t | D133: 99 | F133: limonero | I133: 134
A135: coliflor | D135: 100 | F135: limero s/r/t | I135: 135
A137: ajo s/r/t | D137: 101 | F137: limero | I137: 136
A139: ajo | D139: 102 | F139: pomelo s/r/t | I139: 137
A141: cebolla babosa s/r/t | D141: 103 | F141: pomelo | I141: 138
A143: cebolla babosa | D143: 104 | F143: aguacate s/r/t | I143: 139
A145: cebolla medio grano o liria s/r/t | D145: 105 | F145: aguacate | I145: 140
A147: cebolla medio grano o liria | D147: 106 | F147: viñedo de uva para vinificación s/r/t | I147: 141
A149: cebolla grano o valenciana s/r/t | D149: 107 | F149: viñedo de uva para vinificación | I149: 142
D153: página:
A154: uva vinificación destino drcf s/r/t | D154: 143
A156: uva vinificación destino drcf | D156: 144
A158: uva vinificación destino drvm s/r/t | D158: 145
A160: uva vinificación destino drvm | D160: 146
A162: total viñedo s/r/t | D162: 147
A164: total viñedo | D164: 148
A166: total viñedo destino drcf s/r/t | D166: 149
A168: total viñedo destino drcf | D168: 150
A170: total viñedo destino drvm s/r/t | D170: 151
A172: total viñedo destino drvm | D172: 152
A174: total vino s/r/t | D174: 153
A176: total vino | D176: 154
A178: total en mosto equivalente s/r/t | D178: 155
A180: total en mosto equivalente | D180: 156
A182: total producto vitivinicolas (vino + mosto) s/r/t | D182: 157
A184: total producto vitivinicolas (vino + mosto) | D184: 158
A186: olivar de aceituna de almazara s/r/t | D186: 159
A188: olivar de aceituna de almazara | D188: 160
A190: aceituna de almazara destino daad s/r/t | D190: 161
A192: aceituna de almazara destino daad | D192: 162
A194: aceituna de almazara destino dace s/r/t | D194: 163
A196: aceituna de almazara destino dace | D196: 164
A198: olivar de doble aptitud s/r/t | D198: 165
A200: olivar de doble aptitud | D200: 166
A202: aceituna doble aptitud destino daad s/r/t | D202: 167
A204: aceituna doble aptitud destino daad | D204: 168
A206: aceituna doble aptitud destino dace s/r/t | D206: 169
A208: aceituna doble aptitud destino dace | D208: 170
A210: total olivar s/r/t | D210: 171
A212: total olivar | D212: 172
A214: total olivar destino daad s/r/t | D214: 173
A216: total olivar destino daad | D216: 174
A218: total olivar destino dace s/r/t | D218: 175
A220: total olivar destino dace | D220: 176
A222: aceite de oliva total s/r/t | D222: 177

Sheet resumen nacional
A2: RESUMEN DE LOS AVANCES DE SUPERFICIES Y PRODUCCIONES AGRÍCOLAS | J2: TOTALES NACIONALES | M2: ENERO 2026 | O2: RESUMEN DE LOS AVANCES DE SUPERFICIES Y PRODUCCIONES AGRÍCOLAS | X2: TOTALES NACIONALES | AA2: ENERO 2026 | AC2: RESUMEN DE LOS AVANCES DE SUPERFICIES Y PRODUCCIONES AGRÍCOLAS | AL2: TOTALES NACIONALES | AO2: ENERO 2026 | AQ2: RESUMEN DE LOS AVANCES DE SUPERFICIES Y PRODUCCIONES AGRÍCOLAS | AZ2: TOTALES NACIONALES | BC2: ENERO 2026
D4: SUPERFICIES (Miles de Hectáreas) | J4: PRODUCCIONES (Miles de Toneladas) | R4: SUPERFICIES (Miles de Hectáreas) | X4: PRODUCCIONES (Miles de Toneladas) | AF4: SUPERFICIES (Miles de Hectáreas) | AL4: PRODUCCIONES (Miles de Toneladas) | AT4: SUPERFICIES (Miles de Hectáreas) | AZ4: PRODUCCIONES (Miles de Toneladas)
A5: CULTIVOS | E5: DEFINIT. | F5: PROVIS. | G5: AVANCE | H5: =G6 -> 2026 | K5: DEFINIT. | L5: PROVIS. | M5: AVANCE | N5: =M6 -> 2026 | O5: CULTIVOS | S5: DEFINIT. | T5: PROVIS. | U5: AVANCE | V5: =U6 -> 2026 | Y5: DEFINIT. | Z5: PROVIS. | AA5: AVANCE | AB5: =AA6 -> 2026 | AC5: CULTIVOS | AG5: DEFINIT. | AH5: PROVIS. | AI5: AVANCE | AJ5: =AI6 -> 2026 | AM5: DEFINIT. | AN5: PROVIS. | AO5: AVANCE | AP5: =AO6 -> 2026 | AQ5: CULTIVOS | AU5: DEFINIT. | AV5: DEFINIT. | AW5: AVANCE | AX5: 2025 | BA5: DEFINIT. | BB5: DEFINIT. | BC5: AVANCE | BD5: 2025
C6: TIPO SUPERFICIE(*) | D6: MES (1) | E6: =G6-2 -> 2024 | F6: =G6-1 -> 2025 | G6: 2026 | H6: =CONCATENATE(F6,"=100") -> 2025=100 | J6: MES (1) | K6: =M6-2 -> 2024 | L6: =M6-1 -> 2025 | M6: 2026 | N6: =CONCATENATE(L6,"=100") -> 2025=100 | Q6: TIPO SUPERFICIE(*) | R6: MES (1) | S6: =U6-2 -> 2024 | T6: =U6-1 -> 2025 | U6: 2026 | V6: =CONCATENATE(T6,"=100") -> 2025=100 | X6: MES (1) | Y6: =AA6-2 -> 2024 | Z6: =AA6-1 -> 2025 | AA6: 2026 | AB6: =CONCATENATE(Z6,"=100") -> 2025=100 | AE6: TIPO SUPERFICIE(*) | AF6: MES (1) | AG6: =AI6-2 -> 2024 | AH6: =AI6-1 -> 2025 | AI6: 2026 | AJ6: =CONCATENATE(AH6,"=100") -> 2025=100 | AL6: MES (1) | AM6: =AO6-2 -> 2024 | AN6: =AO6-1 -> 2025 | AO6: 2026 | AP6: =CONCATENATE(AN6,"=100") -> 2025=100 | AS6: TIPO SUPERFICIE(*) | AT6: MES (1) | AU6: 2023 | AV6: 2024 | AW6: 2025 | AX6: 2024=100 | AZ6: MES (1) | BA6: 2023 | BB6: 2024 | BC6: 2025 | BD6: 2024=100
H7: =IF(AND(F7>0,G7>0),G7*100/F7,"") ->  | N7: =IF(AND(L7>0,M7>0),M7*100/L7,"") -> 
A8: CEREALES | O8: HORTALIZAS | AC8: FRUTALES | AQ8: CEREALES | AX8: =IF(AND(AV8>0,AW8>0),AW8*100/AV8,"") ->  | BD8: =IF(AND(BB8>0,BC8>0),BC8*100/BB8,"") -> 
A9: trigo de invierno | C9: sembrada | D9: 1 | E9: 1938.458 | F9: 1992.02224 | G9: 1922.94579 | H9: =IF(AND(F9>0,G9>0),G9*100/F9,"") -> 96.53234544 | J9: 9 | K9: 7048.859 | L9: 8362.167 | O9: col.- resumen general | Q9: cultivada | R9: 11 | S9: 6.277 | T9: 6.48403 | X9: 11 | Y9: 198.912 | Z9: 192.873 | AC9: manzana sidra | AE9: recolectada | AF9: 11 | AG9: 8.06 | AH9: 8.068 | AL9: 11 | AM9: 70.453 | AN9: 93.119 | AQ9: maíz grano (no incluye forrajero ni dulce) | AS9: cosechada | AT9: 1 | AU9: 239.087 | AV9: 288.739 | AW9: 318.46364 | AX9: =IF(AND(AV9>0,AW9>0),AW9*100/AV9,"") -> 110.2946398 | AZ9: 1 | BA9: 2835.364 | BB9: 3542.481 | BC9: 3998.726 | BD9: =IF(AND(BB9>0,BC9>0),BC9*100/BB9,"") -> 112.8792504
A10: trigo duro de invierno | C10: sembrada | D10: 1 | E10: 235.83 | F10: 210.69331 | G10: 195.72885 | H10: 92.89751535 | J10: 9 | K10: 722.199 | L10: 649.768 | O10: espárrago | Q10: cosechada | R10: 7 | S10: 12.896 | T10: 12.52554 | X10: 7 | Y10: 56.487 | Z10: 62.696 | AC10: manzano mesa | AE10: recolectada | AF10: 12 | AG10: 17.433 | AH10: 16.972 | AL10: 12 | AM10: 474.629 | AN10: 469.464
A11: trigo blando y semi de invierno | C11: sembrada | D11: 1 | E11: 1702.628 | F11: 1781.32793 | G11: 1727.21693 | H11: 96.96232237 | J11: 9 | K11: 6326.66 | L11: 7712.399 | O11: apio | Q11: cultivada | R11: 11 | S11: 2.566 | T11: 2.04 | U11: 2.52918 | V11: =IF(AND(T11>0,U11>0),U11*100/T11,"") -> 123.9794118 | X11: 11 | Y11: 141.824 | Z11: 111.53 | AA11: 139.911 | AB11: =IF(AND(Z11>0,AA11>0),AA11*100/Z11,"") -> 125.4469649 | AC11: manzano total | AE11: recolectada | AF11: 12 | AG11: 25.493 | AH11: 25.04 | AL11: 12 | AM11: 545.082 | AN11: 562.583 | AQ11: HORTALIZAS
A12: trigo de primavera | C12: sembrada | D12: 1 | E12: 15.684 | F12: 11.93156 | G12: 12.42086 | H12: 104.1008887 | J12: 9 | K12: 48.648 | L12: 49.787 | O12: lechuga resumen general | Q12: cosechada | R12: 1 | S12: 31.654 | T12: 32.80848 | X12: 1 | Y12: 913.527 | Z12: 935.834 | AC12: manzano para consumo en fresco | AE12: recolectada | AF12: 12 | AG12: 15.548 | AH12: 15.112 | AL12: 12 | AM12: 435.119 | AN12: 411.316 | AQ12: lechuga resumen general | AS12: cosechada | AT12: 1 | AU12: 33.083 | AV12: 31.654 | AW12: 32.80848 | AX12: =IF(AND(AV12>0,AW12>0),AW12*100/AV12,"") -> 103.6471852 | AZ12: 1 | BA12: 863.406 | BB12: 913.527 | BC12: 935.834 | BD12: =IF(AND(BB12>0,BC12>0),BC12*100/BB12,"") -> 102.4418545
A13: trigo duro de primavera | C13: sembrada | D13: 1 | E13: 2.923 | F13: 2.22706 | G13: 1.7723 | H13: 79.58025379 | J13: 9 | K13: 6.419 | L13: 7.19 | O13: lechuga en campo | Q13: cosechada | R13: 1 | S13: 30.785 | T13: 31.83999 | X13: 1 | Y13: 890.799 | Z13: 908.798 | AC13: manzano para transformación | AE13: recolectada | AF13: 12 | AG13: 9.945 | AH13: 9.928 | AL13: 12 | AM13: 109.963 | AN13: 151.267 | AQ13: lechuga en campo | AS13: cosechada | AT13: 1 | AU13: 32.294 | AV13: 30.785 | AW13: 31.83999 | AX13: 103.4269612 | AZ13: 1 | BA13: 836.146 | BB13: 890.799 | BC13: 908.798 | BD13: 102.0205456
A14: trigo blando y semi de primavera | C14: sembrada | D14: 1 | E14: 12.761 | F14: 9.7045 | G14: 10.64856 | H14: 109.7280643 | J14: 9 | K14: 42.229 | L14: 42.595 | O14: lechuga en invernadero | Q14: cosechada | R14: 1 | S14: 0.869 | T14: 0.96848 | X14: 1 | Y14: 22.728 | Z14: 27.132 | AC14: pera total | AE14: recolectada | AF14: 12 | AG14: 15.997 | AH14: 15.703 | AL14: 12 | AM14: 222.023 | AN14: 261.503 | AQ14: lechuga en invernadero | AS14: cosechada | AT14: 1 | AU14: 0.789 | AV14: 0.869 | AW14: 0.96848 | AX14: 111.447641 | AZ14: 1 | BA14: 27.26 | BB14: 22.728 | BC14: 27.132 | BD14: 119.3769799
A15: trigo. resumen general | C15: sembrada | D15: 1 | E15: 1954.142 | F15: 2003.95382 | G15: 1935.36566 | H15: 96.57735825 | J15: 9 | K15: 7097.507 | L15: 8410.592 | O15: escarola | Q15: cosechada | R15: 1 | S15: 2.197 | T15: 1.846 | U15: 2.14752 | V15: 116.3336945 | X15: 1 | Y15: 54.857 | Z15: 54.857 | AA15: 58.503 | AB15: =IF(AND(Z15>0,AA15>0),AA15*100/Z15,"") -> 106.6463715 | AC15: peral para consumo en fresco | AE15: recolectada | AF15: 12 | AG15: 14.701 | AH15: 14.426 | AL15: 12 | AM15: 203.643 | AN15: 242.757 | AQ15: espinaca | AS15: cosechada | AT15: 1 | AU15: 4.825 | AV15: 4.785 | AW15: 4.95671 | AX15: 103.5885057 | AZ15: 1 | BA15: 82 | BB15: 89.817 | BC15: 78.278 | BD15: 87.15276618
A16: trigo duro | C16: sembrada | D16: 1 | E16: 238.753 | F16: 212.92037 | G16: 197.50115 | H16: 92.75822224 | J16: 9 | K16: 728.618 | L16: 656.958 | O16: espinaca | Q16: cosechada | R16: 1 | S16: 4.785 | T16: 4.95671 | X16: 1 | Y16: 89.817 | Z16: 78.278 | AC16: peral para transformación | AE16: recolectada | AF16: 12 | AG16: 1.296 | AH16: 1.277 | AL16: 12 | AM16: 18.38 | AN16: 18.746 | AQ16: endivias (7) (12) | AS16: cosechada | AT16: 1 | AU16: 25.8 | AV16: 30 | AW16: 32.145 | AX16: 107.15 | AZ16: 1 | BA16: 12.457 | BB16: 17.345 | BC16: 17.741 | BD16: 102.2830787
A17: trigo semiduro y blando | C17: sembrada | D17: 1 | E17: 1715.389 | F17: 1791.03245 | G17: 1737.8655 | H17: 97.03149153 | J17: 9 | K17: 6368.889 | L17: 7754.995 | O17: grelo | Q17: cultivada | R17: 11 | S17: 5.614 | T17: 5.591 | U17: 3.17374 | V17: 56.76515829 | X17: 11 | Y17: 64.233 | Z17: 63.90619048 | AA17: 22.28 | AB17: =IF(AND(Z17>0,AA17>0),AA17*100/Z17,"") -> 34.86360215 | AC17: albaricoquero | AE17: recolectada | AF17: 11 | AG17: 15.939 | AH17: 15.05 | AL17: 11 | AM17: 155.567 | AN17: 133.966 | AQ17: para dar hoja endivia (7) | AS17: cosechada | AT17: 1 | AU17: 1.24 | AV17: 2.1 | AW17: 3.7 | AX17: 176.1904762 | AZ17: 1 | BA17: 7.624 | BB17: 8.251 | BC17: 8.5 | BD17: 103.017816
A18: centeno | C18: sembrada | D18: 1 | E18: 97.259 | F18: 97.20809 | G18: 100.57016 | H18: 103.4586319 | J18: 9 | K18: 223.309 | L18: 255.823 | O18: endivias (7) (12) | Q18: cosechada | R18: 1 | S18: 30 | T18: 32.145 | X18: 1 | Y18: 17.345 | Z18: 17.741 | AC18: cerezo y guindo | AE18: recolectada | AF18: 11 | AG18: 25.721 | AH18: 25.096 | AL18: 11 | AM18: 121.429 | AN18: 124.754 | AQ18: alcachofa | AS18: cultivada | AT18: 1 | AU18: 12.792 | AV18: 11.878 | AW18: 13.17367 | AX18: 110.9081495 | AZ18: 1 | BA18: 182.584 | BB18: 175.608 | BC18: 197.638 | BD18: 112.5449866
A19: tranquillón (mezcla de trigo y centeno) | C19: sembrada | D19: 1 | E19: 37.577 | F19: 33.01688 | G19: 32.46027 | H19: 98.31416536 | J19: 9 | K19: 107.889 | L19: 85.201 | O19: para formar raíz endivia (7) | Q19: cosechada | R19: 8 | S19: 27.9 | T19: 28.445 | X19: 8 | Y19: 9.094 | Z19: 9.241 | AC19: melocotonero | AE19: recolectada | AF19: 11 | AG19: 25.215 | AH19: 24.588 | AL19: 11 | AM19: 552.173 | AN19: 586.214 | AQ19: brócoli | AS19: cultivada | AT19: 1 | AU19: 32.364 | AV19: 32.946 | AW19: 32.44428 | AX19: 98.47714442 | AZ19: 1 | BA19: 475.427 | BB19: 485.228 | BC19: 477.829 | BD19: 98.47514983
A20: centeno y tranquillón | C20: sembrada | D20: 1 | E20: 134.836 | F20: 130.22461 | G20: 133.02843 | H20: 102.1530646 | J20: 9 | K20: 331.198 | L20: 342.536 | O20: para dar hoja endivia (7) | Q20: cosechada | R20: 1 | S20: 2.1 | T20: 3.7 | X20: 1 | Y20: 8.251 | Z20: 8.5 | AC20: melocotonero para consumo en fresco | AE20: recolectada | AF20: 11 | AG20: 22.932 | AH20: 22.691 | AL20: 11 | AM20: 482.949 | AN20: 524.913 | AQ20: coliflor | AS20: cultivada | AT20: 1 | AU20: 6.841 | AV20: 7.82 | AW20: 7.16543 | AX20: 91.62953964 | AZ20: 1 | BA20: 153.109 | BB20: 178.82 | BC20: 166.834 | BD20: 93.29717034
A21: cebada de invierno | C21: sembrada | D21: 1 | E21: 2132.499 | F21: 2157.28691 | G21: 2165.56965 | H21: 100.3839424 | J21: 9 | K21: 6995.533 | L21: 8678.872 | O21: sandía | Q21: cosechada | R21: 11 | S21: 21.501 | T21: 23.07873 | X21: 11 | Y21: 1222.713 | Z21: 1315.023 | AC21: melocotonero para transformación | AE21: recolectada | AF21: 11 | AG21: 2.283 | AH21: 1.897 | AL21: 11 | AM21: 69.224 | AN21: 61.301
A22: cebada 2c de invierno | C22: sembrada | D22: 1 | E22: 1949.929 | F22: 1997.64031 | G22: 2009.93549 | H22: 100.6154852 | J22: 9 | K22: 6494.072 | L22: 8181.507 | O22: melón .- resumen general | Q22: cosechada | R22: 11 | S22: 16.709 | T22: 17.5253 | X22: 11 | Y22: 594.01 | Z22: 642.074 | AC22: nectarina | AE22: recolectada | AF22: 11 | AG22: 22.944 | AH22: 22.626 | AL22: 11 | AM22: 525.778 | AN22: 541.069 | AQ22: CÍTRICOS
A23: cebada 6c de invierno | C23: sembrada | D23: 1 | E23: 182.57 | F23: 159.64647 | G23: 155.63516 | H23: 97.48737946 | J23: 9 | K23: 501.461 | L23: 497.366 | O23: calabaza | Q23: cosechada | R23: 12 | S23: 6.495 | T23: 6.71546 | X23: 12 | Y23: 169.776 | Z23: 165.185 | AC23: nectarina para consumo en fresco | AE23: recolectada | AF23: 11 | AG23: 21.798 | AH23: 21.477 | AL23: 11 | AM23: 491.035 | AN23: 505.871 | AQ23: naranja dulce | AS23: recolectada | AT23: 1 | AU23: 132.732 | AV23: 133.304 | AW23: 132.547 | AX23: =IF(AND(AV23>0,AW23>0),AW23*100/AV23,"") -> 99.43212507 | AZ23: 1 | BA23: 2709.55 | BB23: 2897.832 | BC23: 2947.031 | BD23: =IF(AND(BB23>0,BC23>0),BC23*100/BB23,"") -> 101.6977865
A24: cebada de primavera | C24: sembrada | D24: 1 | E24: 131.766 | F24: 138.30047 | G24: 128.69993 | H24: 93.05820147 | J24: 9 | K24: 354.814 | L24: 520.518 | O24: calabacín | R24: 12 | S24: 11.1 | T24: 11.01943 | U24: 11.06527 | V24: 100.4159925 | X24: 12 | Y24: 600.994 | Z24: 632.797 | AA24: 632.843 | AB24: =IF(AND(Z24>0,AA24>0),AA24*100/Z24,"") -> 100.0072693 | AC24: nectarina para transformación | AE24: recolectada | AF24: 11 | AG24: 1.146 | AH24: 1.149 | AL24: 11 | AM24: 34.743 | AN24: 35.198 | AQ24: naranja amargo | AS24: recolectada | AT24: 1 | AU24: 0.293 | AV24: 0.298 | AW24: 0.286 | AX24: 95.97315436 | AZ24: 1 | BA24: 5.412 | BB24: 7.11 | BC24: 5.768 | BD24: 81.12517581
A25: cebada 2c de primavera | C25: sembrada | D25: 1 | E25: 130.984 | F25: 136.71403 | G25: 126.89839 | H25: 92.82031259 | J25: 9 | K25: 352.696 | L25: 514.095 | O25: calabacín en campo | Q25: cosechada | R25: 9 | S25: 2.389 | T25: 2.40255 | X25: 9 | Y25: 94.415 | Z25: 103.171 | AC25: melocotoneros planos (paraguayo) | AE25: recolectada | AF25: 11 | AG25: 11.405 | AH25: 11.534 | AL25: 11 | AM25: 280.522 | AN25: 275.405 | AQ25: satsuma | AS25: recolectada | AT25: 1 | AU25: 4.899 | AV25: 4.786 | AW25: 4.542 | AX25: 94.90179691 | AZ25: 1 | BA25: 87.24 | BB25: 103.209 | BC25: 90.984 | BD25: 88.15510275
A26: cebada 6c de primavera | C26: sembrada | D26: 1 | E26: 0.782 | F26: 1.58644 | G26: 1.80154 | H26: 113.5586596 | J26: 9 | K26: 2.118 | L26: 6.424 | O26: calabacín en invernadero | Q26: cultivada | R26: 12 | S26: 8.711 | T26: 8.61587 | U26: 8.65581 | V26: 100.4635632 | X26: 12 | Y26: 506.579 | Z26: 530.116 | AA26: 533.526 | AB26: =IF(AND(Z26>0,AA26>0),AA26*100/Z26,"") -> 100.6432554 | AC26: melocotonero planos (paraguayo) consumo en fresco | AE26: recolectada | AF26: 11 | AG26: 11.204 | AH26: 11.246 | AL26: 11 | AM26: 275.079 | AN26: 268.032 | AQ26: clementinas | AS26: recolectada | AT26: 1 | AU26: 49.202 | AV26: 48.432 | AW26: 47.245 | AX26: 97.54914106 | AZ26: 1 | BA26: 1056.173 | BB26: 851.956 | BC26: 873.833 | BD26: 102.5678556
A27: cebada total | C27: sembrada | D27: 1 | E27: 2264.265 | F27: 2297.44238 | G27: 2294.26959 | H27: 99.86189904 | J27: 9 | K27: 7350.347 | L27: 9199.502 | O27: pepino | R27: 1 | S27: 8.602 | T27: 9.25687 | U27: 9.715 | V27: 104.9490811 | X27: 11 | Y27: 757.641 | Z27: 846.745 | AB27: =IF(AND(Z27>0,AA27>0),AA27*100/Z27,"") ->  | AC27: melocotonero planos (paraguayo) transformación | AE27: recolectada | AF27: 11 | AG27: 0.201 | AH27: 0.288 | AL27: 11 | AM27: 5.443 | AN27: 7.373 | AQ27: otras mandarinas | AS27: recolectada | AT27: 1 | AU27: 34.092 | AV27: 35.032 | AW27: 36.099 | AX27: 103.0457867 | AZ27: 1 | BA27: 718.889 | BB27: 860.349 | BC27: 833.27 | BD27: 96.85255635
A28: cebada 2 carreras | C28: sembrada | D28: 1 | E28: 2080.913 | F28: 2134.35435 | G28: 2136.8339 | H28: 100.1161733 | J28: 9 | K28: 6846.768 | L28: 8695.601 | O28: pepino en campo | Q28: cosechada | R28: 10 | S28: 0.463 | T28: 0.47787 | X28: 10 | Y28: 13.828 | Z28: 15.7846 | AC28: nectarinas planas (platerina) | AE28: recolectada | AF28: 11 | AG28: 0.95 | AH28: 1.146 | AL28: 11 | AM28: 18.426 | AN28: 24.905 | AQ28: total mandarino | AT28: 1 | AU28: 88.193 | AV28: 88.25 | AW28: 87.886 | AX28: 99.58753541 | AZ28: 1 | BA28: 1862.302 | BB28: 1815.514 | BC28: 1798.087 | BD28: 99.04010655
A29: cebada 6 carreras | C29: sembrada | D29: 1 | E29: 183.352 | F29: 161.23291 | G29: 157.4357 | H29: 97.64489148 | J29: 9 | K29: 503.579 | L29: 503.9 | O29: pepino en invernadero | Q29: sembrada | R29: 1 | S29: 8.148 | T29: 8.523 | U29: 9.0867 | V29: 106.6138684 | X29: 11 | Y29: 743.813 | Z29: 830.996 | AC29: nectarinas planas (platerina) consumo en fresco | AE29: recolectada | AF29: 11 | AG29: 0.94 | AH29: 1.119 | AL29: 11 | AM29: 18.183 | AN29: 24.027 | AQ29: limonero | AS29: recolectada | AT29: 1 | AU29: 47.175 | AV29: 43.495 | AW29: 45.038 | AX29: 103.5475342 | AZ29: 1 | BA29: 1145.245 | BB29: 915.488 | BC29: 818.87 | BD29: 89.44628439
A30: avena | C30: sembrada | D30: 1 | E30: 514.058 | F30: 511.80526 | G30: 513.57406 | H30: 100.3456002 | J30: 9 | K30: 1144.585 | L30: 1317.041 | O30: pepinillo (7) | Q30: sembrada | R30: 1 | S30: 1.2 | T30: 1.3 | U30: 1.18 | V30: 90.76923077 | X30: 11 | Y30: 0.149 | Z30: 0.147 | AC30: nectarinas planas (platerina) transformación | AE30: recolectada | AF30: 11 | AG30: 0.01 | AH30: 0.027 | AL30: 11 | AM30: 0.243 | AN30: 0.878 | AQ30: limero | AS30: recolectada | AT30: 1 | AU30: 0.231 | AV30: 0.298 | AW30: 0.359 | AX30: 120.4697987 | AZ30: 1 | BA30: 3.627 | BB30: 4.025 | BC30: 4.617 | BD30: 114.7080745
A31: mezclas de granos distintos del tranquillón | C31: sembrada | D31: 1 | E31: 5.608 | F31: 4.68947 | G31: 7.53399 | H31: 160.657601 | J31: 9 | K31: 11.263 | L31: 16.497 | O31: berenjena | Q31: cultivada | R31: 12 | S31: 3.59 | T31: 3.55154 | U31: 3.65244 | V31: 102.8410211 | X31: 12 | Y31: 297.664 | Z31: 284.857 | AA31: 287.678 | AB31: =IF(AND(Z31>0,AA31>0),AA31*100/Z31,"") -> 100.9903215 | AC31: ciruelo | AE31: recolectada | AF31: 11 | AG31: 10.707 | AH31: 10.748 | AL31: 11 | AM31: 135.749 | AN31: 154.385 | AQ31: pomelo | AS31: recolectada | AT31: 1 | AU31: 2.735 | AV31: 2.626 | AW31: 2.933 | AX31: 111.6907845 | AZ31: 1 | BA31: 85.287 | BB31: 85.006 | BC31: 105.242 | BD31: 123.8053784
A32: avena y otras mezclas de cereales de primavera distintos del tranquillón | C32: sembrada | D32: 1 | E32: 519.666 | F32: 516.51419 | G32: 521.10805 | H32: 100.8893967 | J32: 9 | K32: 1155.848 | L32: 1328.434 | O32: tomate de recolección 1-i al 31 - v | Q32: cultivada | R32: 1 | S32: 9.174 | T32: 8.90591 | U32: 8.86778 | V32: 99.57185734 | X32: 1 | Y32: 788.061 | Z32: 768.275 | AA32: 783.107 | AB32: =IF(AND(Z32>0,AA32>0),AA32*100/Z32,"") -> 101.9305587 | AC32: higuera | AE32: recolectada | AF32: 11 | AG32: 12.777 | AH32: 12.951 | AL32: 11 | AM32: 55.417 | AN32: 67.365
A33: maíz grano (no incluye forrajero ni dulce) | C33: cosechada | D33: 1 | E33: 288.739 | F33: 318.46364 | J33: 1 | K33: 3542.481 | L33: 3998.726 | O33: tomate de recolección 1-vi al 30 - ix | Q33: cosechada | R33: 12 | S33: 41.206 | T33: 35.27562 | X33: 12 | Y33: 3350.114 | Z33: 2751.698 | AC33: granado | AE33: recolectada | AF33: 11 | AG33: 4.528 | AH33: 4.367 | AL33: 11 | AM33: 64.809 | AN33: 78.79 | AQ33: FRUTALES
A34: triticale | C34: sembrada | D34: 1 | E34: 248.621 | F34: 285.86827 | G34: 285.26115 | H34: 99.78762246 | J34: 9 | K34: 617.828 | L34: 860.09 | O34: tomate de recolección 1-x al 31-xii | Q34: cosechada | R34: 12 | S34: 4.964 | T34: 4.74023 | X34: 12 | Y34: 436.107 | Z34: 410.805 | AC34: aguacate | AE34: recolectada | AF34: 1 | AG34: 17.756 | AH34: 18.908 | AL34: 1 | AM34: 112.361 | AN34: 142.341 | AQ34: aguacate | AS34: recolectada | AT34: 1 | AU34: 16.177 | AV34: 17.609 | AW34: 18.88 | AX34: =IF(AND(AV34>0,AW34>0),AW34*100/AV34,"") -> 107.2178999 | AZ34: 1 | BA34: 86.801 | BB34: 112.361 | BC34: 142.341 | BD34: =IF(AND(BB34>0,BC34>0),BC34*100/BB34,"") -> 126.6818558
A35: sorgo | C35: cosechada | D35: 12 | E35: 6.442 | F35: 5.47457 | J35: 12 | K35: 27.192 | L35: 20.185 | O35: tomate.- resumen general | R35: 1 | S35: 55.292 | T35: 48.92494 | X35: 1 | Y35: 4574.282 | Z35: 3931.096 | AC35: platanera | AE35: recolectada | AF35: 11 | AG35: 8.468 | AH35: 8.339 | AL35: 11 | AM35: 421.321 | AN35: 421.142
A36: quinoa | C36: cosechada | D36: 10 | E36: 2.369 | F36: 1.57812 | J36: 10 | K36: 3.418 | L36: 2.726 | O36: tomate consumo en fresco | Q36: cosechada | R36: 12 | S36: 20.87 | T36: 20.33468 | X36: 12 | Y36: 1650.951 | Z36: 1619.321 | AC36: kiwi | AE36: recolectada | AF36: 12 | AG36: 1.487 | AH36: 1.5 | AL36: 12 | AM36: 29.644 | AN36: 30.573 | AQ36: VIÑEDO
A37: arroz indica | C37: cosechada | D37: 11 | E37: 35.586 | F37: 44.855 | J37: 11 | K37: 262.694 | L37: 385.136 | O37: tomate de industría (5) | Q37: cosechada | R37: 12 | S37: 34.422 | T37: 28.59927 | X37: 12 | Y37: 2923.331 | Z37: 2311.169 | AC37: mango | AE37: recolectada | AF37: 12 | AG37: 5.389 | AH37: 5.598 | AL37: 12 | AM37: 27.057 | AN37: 48.673 | AQ37: viñedo de uva para vinificación (9) | AS37: recolectada | AT37: 1 | AU37: 834.511 | AV37: 804.518 | AW37: 798.698 | AX37: =IF(AND(AV37>0,AW37>0),AW37*100/AV37,"") -> 99.27658548 | AZ37: 1 | BA37: 4474.368 | BB37: 5021.888 | BC37: 4482.594 | BD37: =IF(AND(BB37>0,BC37>0),BC37*100/BB37,"") -> 89.26113048
A38: arroz japónica | C38: cosechada | D38: 11 | E38: 50.332 | F38: 52.28071 | J38: 11 | K38: 349.108 | L38: 349.284 | O38: tomate en invernadero | Q38: cosechada | R38: 12 | S38: 16.612 | T38: 15.83883 | X38: 12 | Y38: 1501.84 | Z38: 1452.304 | AC38: caqui | AE38: recolectada | AF38: 12 | AG38: 14.725 | AH38: 14.873 | AL38: 12 | AM38: 240.429 | AN38: 329.64 | AQ38: uva vinificación destino DRCF | AZ38: 1 | BA38: 0.05 | BB38: 0.037 | BC38: 0.035 | BD38: 94.59459459
A39: arroz (cáscara) | C39: cosechada | D39: 11 | E39: 85.918 | F39: 97.13571 | J39: 11 | K39: 611.802 | L39: 734.42 | O39: pimiento (6) | R39: 12 | S39: 23.224 | T39: 22.46776 | X39: 12 | Y39: 1514.419 | Z39: 1512.395 | AC39: grosellero | AE39: recolectada | AF39: 9 | AG39: 0.009 | AH39: 0.008 | AL39: 9 | AM39: 0.031 | AN39: 0.032 | AQ39: uva vinificación destino DRVM | AZ39: 1 | BA39: 4470.547 | BB39: 5020.196 | BC39: 4480.589 | BD39: 89.25127624
O40: pimiento consumo en fresco | Q40: cosechada | R40: 11 | S40: 20.977 | T40: 18.90762 | X40: 11 | Y40: 1424.976 | Z40: 1363.524 | AC40: frambueso | AE40: recolectada | AF40: 9 | AG40: 1.665 | AH40: 1.816 | AL40: 9 | AM40: 30.231 | AN40: 33.199 | AQ40: total viñedo | AS40: recolectada | AT40: 1 | AU40: 850.377 | AV40: 819.99 | AW40: 813.54 | AX40: 99.21340504 | AZ40: 1 | BA40: 4822.757 | BB40: 5387.269 | BC40: 4824.648 | BD40: 89.55647101
A41: LEGUMINOSAS GRANO | O41: pimiento de conserva | Q41: cosechada | R41: 11 | S41: 2.247 | T41: 3.566 | X41: 11 | Y41: 89.443 | Z41: 149.003 | AC41: arándano | AE41: recolectada | AF41: 9 | AG41: 4.749 | AH41: 5.114 | AL41: 9 | AM41: 60.951 | AN41: 70.687 | AQ41: total viñedo destino DRCF | AX41: =IF(AND(AV41>0,AW41>0),AW41*100/AV41,"") ->  | AZ41: 1 | BA41: 124.406 | BB41: 174.843 | BC41: 147.926 | BD41: 84.60504567
A42: judías secas | C42: cosechada | D42: 12 | E42: 10.587 | F42: 10.96181 | J42: 12 | K42: 18.363 | L42: 25.352 | O42: pimiento en invernadero | Q42: cosechada | R42: 12 | S42: 15.674 | T42: 15.95165 | X42: 12 | Y42: 1216.206 | Z42: 1245.603 | AC42: almendro (cáscara) (8) | AE42: recolectada | AF42: 11 | AG42: 647.543 | AH42: 660.742 | AL42: 11 | AM42: 369.696 | AN42: 453.039 | AQ42: total viñedo destino DRDM | AZ42: 1 | BA42: 4480.03 | BB42: 5024.726 | BC42: 4480.589 | BD42: 89.1708125
A43: habas secas | C43: sembrada | D43: 11 | E43: 31.922 | F43: 31.6068 | G43: 30.60689 | H43: =IF(AND(F43>0,G43>0),G43*100/F43,"") -> 96.83640862 | J43: 9 | K43: 51.69 | L43: 39.081 | O43: alcachofa | Q43: cultivada | R43: 1 | S43: 11.878 | T43: 13.17367 | X43: 1 | Y43: 175.608 | Z43: 197.638 | AC43: nogal (cáscara) (8) | AE43: recolectada | AF43: 11 | AG43: 10.66 | AH43: 10.675 | AL43: 11 | AM43: 20.056 | AN43: 21.359 | AQ43: total vino | AZ43: 1 | BA43: 28495.885 | BB43: 30770.702 | BC43: 27564.183 | BD43: 89.57931152
A44: lentejas | C44: sembrada | D44: 11 | E44: 33.301 | F44: 32.61212 | G44: 37.43479 | H44: 114.7879684 | J44: 9 | K44: 26.256 | L44: 27.327 | O44: brócoli | Q44: cultivada | R44: 1 | S44: 32.946 | T44: 32.44428 | X44: 1 | Y44: 485.228 | Z44: 477.829 | AC44: avellano (cáscara) (8) | AE44: recolectada | AF44: 11 | AG44: 8.81 | AH44: 8.002 | AL44: 11 | AM44: 3.015 | AN44: 3.287 | AQ44: total en mosto equivalente | AZ44: 1 | BA44: 3900.933 | BB44: 6043.21 | BC44: 5010.597 | BD44: 82.91283937
A45: garbanzos | C45: cosechada | D45: 9 | E45: 78.6 | F45: 63.37802 | J45: 9 | K45: 82.652 | L45: 56.763 | O45: coliflor | Q45: cultivada | R45: 1 | S45: 7.82 | T45: 7.16543 | X45: 1 | Y45: 178.82 | Z45: 166.834 | AC45: castaño fruto | AE45: recolectada | AF45: 12 | AG45: 33.587 | AH45: 34.537 | AL45: 12 | AM45: 181.806 | AN45: 160.098 | AQ45: total producto vitivinicolas (vino + mosto) (11) | AZ45: 1 | BA45: 32396.818 | BB45: 36813.912 | BC45: 32574.78 | BD45: 88.48497275
A46: guisantes secos | C46: sembrada | D46: 11 | E46: 192.545 | F46: 184.55133 | G46: 187.53778 | H46: 101.6182219 | J46: 9 | K46: 259.593 | L46: 311.875 | O46: ajo | Q46: sembrada | R46: 1 | S46: 22.859 | T46: 23.997 | U46: 24.40426 | V46: 101.6971288 | X46: 8 | Y46: 245.697 | Z46: 237.784 | AC46: pistacho | AE46: recolectada | AF46: 11 | AG46: 34.437 | AH46: 38.72 | AL46: 11 | AM46: 24.201 | AN46: 34.18
A47: veza | C47: sembrada | D47: 11 | E47: 73.126 | F47: 76.64128 | G47: 80.00885 | H47: 104.3939376 | J47: 9 | K47: 78.494 | L47: 88.32 | O47: cebolla babosa | Q47: sembrada | R47: 1 | S47: 4.615 | T47: 3.95295 | U47: 4.10892 | V47: 103.9456608 | X47: 8 | Y47: 230.782 | Z47: 153.074 | AC47: algarrobo | AE47: recolectada | AF47: 11 | AG47: 35.754 | AH47: 35.301 | AL47: 11 | AM47: 29.06 | AN47: 35.018 | AQ47: OLIVAR
A48: altramuz dulce | C48: sembrada | D48: 11 | E48: 2.408 | F48: 2.99401 | G48: 2.95732 | H48: 98.77455319 | J48: 9 | K48: 2.066 | L48: 3.307 | O48: cebolla medio grano o liria | Q48: sembrada | R48: 1 | S48: 3.573 | T48: 3.214 | U48: 1.70808 | V48: 53.14499067 | X48: 10 | Y48: 199.294 | Z48: 176.911 | AQ48: olivar de aceituna de almazara | AS48: recolectada | AT48: 1 | AU48: 2139.945 | AV48: 2052.505 | AW48: 1968.056 | AX48: =IF(AND(AV48>0,AW48>0),AW48*100/AV48,"") -> 95.88556423 | AZ48: 1 | BA48: 4246.653 | BB48: 7021.422 | BC48: 6214.272 | BD48: =IF(AND(BB48>0,BC48>0),BC48*100/BB48,"") -> 88.50446533
A49: yeros | C49: sembrada | D49: 11 | E49: 90.482 | F49: 104.61965 | G49: 90.09686 | H49: 86.1184873 | J49: 9 | K49: 68.149 | L49: 82.066 | O49: cebolla grano o valenciana | Q49: sembrada | R49: 1 | S49: 8.974 | T49: 8.85257 | U49: 10.35127 | V49: 116.929547 | X49: 10 | Y49: 578.513 | Z49: 594.247 | AC49: VIÑEDO | AQ49: aceituna de almazara destino DAAD | AZ49: 1 | BA49: 7.307 | BB49: 1.012 | BC49: 0.109 | BD49: 10.77075099
O50: otras cebollas | Q50: sembrada | R50: 1 | S50: 7.971 | T50: 7.681 | U50: 7.18792 | V50: 93.58052337 | X50: 11 | Y50: 367.439 | Z50: 347.546 | AC50: viñedo de uva de mesa | AE50: recolectada | AF50: 11 | AG50: 14.08 | AH50: 14.078 | AL50: 11 | AM50: 363.989 | AN50: 341.439 | AQ50: aceituna de almazara destino DACE | AZ50: 1 | BA50: 4231.459 | BB50: 7018.878 | BC50: 6211.459 | BD50: 88.49646624
A51: TUBÉRCULOS | F51: =IF(AND(D51>0,E51>0),E51*100/D51,"") ->  | O51: cebolla.- resumen general | R51: 1 | S51: 25.04 | T51: 23.51919 | U51: 23.35519 | V51: 99.30269707 | X51: 11 | Y51: 1376.028 | Z51: 1271.271 | AC51: uva mesa destino DRCF | AL51: 11 | AM51: 174.806 | AN51: 147.891 | AQ51: olivar de doble aptitud | AS51: recolectada | AT51: 1 | AU51: 262.738 | AV51: 353.591 | AW51: 348.954 | AX51: 98.68859784 | AZ51: 1 | BA51: 563.672 | BB51: 1109.91 | BC51: 1017.173 | BD51: 91.64463785
A52: patata extratemprana | C52: cultivada | D52: 1 | E52: 2.123 | F52: 2.236 | G52: 2.28689 | H52: =IF(AND(F52>0,G52>0),G52*100/F52,"") -> 102.2759392 | J52: 1 | K52: 55.09 | L52: 57.285 | M52: 54.195 | N52: =IF(AND(L52>0,M52>0),M52*100/L52,"") -> 94.60591778 | O52: puerro | Q52: cultivada | R52: 12 | S52: 2.603 | T52: 2.603 | U52: 2.66347 | V52: 102.3230887 | X52: 12 | Y52: 66.322 | Z52: 66.322 | AA52: 69.489 | AB52: =IF(AND(Z52>0,AA52>0),AA52*100/Z52,"") -> 104.7751877 | AC52: uva mesa destino DRVM | AQ52: aceituna doble aptitud destino DAAD | AZ52: 1 | BA52: 166.974 | BB52: 370.657 | BC52: 201.558 | BD52: 54.37857642
A53: patata temprana | C53: sembrada | D53: 1 | E53: 13.434 | F53: 14.54264 | G53: 14.5129 | H53: =IF(AND(F53>0,G53>0),G53*100/F53,"") -> 99.79549793 | J53: 7 | K53: 451.814 | L53: 409.24511 | N53: =IF(AND(L53>0,M53>0),M53*100/L53,"") ->  | O53: zanahoria | Q53: cultivada | R53: 1 | S53: 7.491 | T53: 7.43617 | U53: 7.38387 | V53: 99.29668095 | X53: 1 | Y53: 393.741 | Z53: 356.204 | AA53: 390.485 | AB53: =IF(AND(Z53>0,AA53>0),AA53*100/Z53,"") -> 109.6239795 | AC53: viñedo de uva para vinificación (9) | AE53: recolectada | AF53: 1 | AG53: 804.518 | AH53: 798.698 | AL53: 1 | AM53: 5021.888 | AN53: 4482.594 | AQ53: aceituna doble aptitud destino DACE | AZ53: 1 | BA53: 396.501 | BB53: 739.146 | BC53: 815.192 | BD53: 110.2883598
A54: patata media estación | C54: cosechada | D54: 11 | E54: 27.69 | F54: 29.91246 | J54: 11 | K54: 778.467 | L54: 715.857 | O54: rábanos (7) | Q54: cultivada | R54: 12 | S54: 19.7 | T54: 20.688 | U54: 24.8 | V54: 119.8762568 | X54: 12 | Y54: 3.216 | Z54: 3.298 | AA54: 3.545 | AB54: =IF(AND(Z54>0,AA54>0),AA54*100/Z54,"") -> 107.4893875 | AC54: uva vinificación destino DRCF | AL54: 1 | AM54: 0.037 | AN54: 0.035 | AQ54: total olivar | AT54: 1 | AU54: 2515.48 | AV54: 2514.618 | AW54: 2426.701 | AX54: 96.5037632 | AZ54: 1 | BA54: 5101.009 | BB54: 8435.472 | BC54: 7551.391 | BD54: 89.51948391
A55: patata tardía | C55: cosechada | D55: 12 | E55: 17.712 | F55: 19.93322 | J55: 12 | K55: 685.8 | L55: 766.315 | O55: nabo | Q55: cultivada | R55: 12 | S55: 0.405 | T55: 0.277 | U55: 0.1934 | V55: 69.81949458 | X55: 12 | Y55: 8.011 | Z55: 5.204 | AA55: 4.55 | AB55: =IF(AND(Z55>0,AA55>0),AA55*100/Z55,"") -> 87.43274404 | AC55: uva vinificación destino DRVM | AL55: 1 | AM55: 5020.196 | AN55: 4480.589 | AQ55: total olivar destino DAAD | AZ55: 1 | BA55: 435.246 | BB55: 672.727 | BC55: 520.217 | BD55: 77.3295854
A56: patata total | D56: 12 | E56: 60.947 | F56: 66.66024 | J56: 12 | K56: 1971.171 | L56: 1947.962 | N56: =IF(AND(L56>0,M56>0),M56*100/L56,"") ->  | O56: judías verdes (con vaina) | Q56: cosechada | R56: 11 | S56: 5.971 | T56: 5.85961 | X56: 11 | Y56: 116.224 | Z56: 93.585 | AC56: viñedo de uva para pasificación (10) | AE56: recolectada | AF56: 11 | AG56: 1.392 | AH56: 0.764 | AL56: 11 | AM56: 1.392 | AN56: 0.615 | AQ56: total olivar destino DACE | AZ56: 1 | BA56: 4627.976 | BB56: 7761.004 | BC56: 7027.959 | BD56: 90.55476585
O57: guisantes verdes. en grano (sin vaina) | Q57: sembrada | R57: 1 | S57: 14.088 | T57: 14.34878 | U57: 13.33722 | V57: 92.95020204 | X57: 7 | Y57: 98 | Z57: 100.253 | AC57: total viñedo | AE57: recolectada | AF57: 1 | AG57: 819.99 | AH57: 813.54 | AL57: 1 | AM57: 5387.269 | AN57: 4824.648 | AQ57: aceite de oliva total | AZ57: 1 | BA57: 843.371 | BB57: 1401.354 | BC57: 1184.927 | BD57: 84.55586526
A58: CULTIVOS INDUSTRIALES | O58: habas verdes. en grano (sin vaina) | Q58: cultivada | R58: 1 | S58: 3.585 | T58: 3.69731 | U58: 3.04556 | V58: 82.37231933 | X58: 1 | Y58: 28.539 | Z58: 28.255 | AA58: 21.213 | AB58: =IF(AND(Z58>0,AA58>0),AA58*100/Z58,"") -> 75.07697753 | AC58: total viñedo destino DRCF | AL58: 1 | AM58: 174.843 | AN58: 147.926
A59: remolacha azucarera (r. verano) | C59: sembrada | D59: 1 | E59: 9.892 | F59: 6.02015 | G59: 5.99632 | H59: =IF(AND(F59>0,G59>0),G59*100/F59,"") -> 99.60416269 | J59: 9 | K59: 767.581 | L59: 426.009 | N59: =IF(AND(L59>0,M59>0),M59*100/L59,"") ->  | O59: fresa y fresón | Q59: sembrada | R59: 11 | S59: 6.997 | T59: 6.9816 | U59: 7.13308 | V59: 102.1697032 | X59: 8 | Y59: 323.541 | Z59: 321.104 | AC59: total viñedo destino DRDM | AL59: 1 | AM59: 5024.726 | AN59: 4480.589
A60: remolacha azucarera (r. invierno) | C60: cosechada | D60: 12 | E60: 35.784 | F60: 20.199 | J60: 12 | K60: 2754.655 | L60: 1853.117 | O60: fresas en campo | Q60: sembrada | R60: 11 | S60: 0.216 | T60: 0.13024 | U60: 0.13959 | V60: 107.1790541 | X60: 8 | Y60: 4.07 | Z60: 2.6195 | AC60: total vino | AL60: 1 | AM60: 30770.702 | AN60: 27564.183
A61: remolacha azucarera | D61: 12 | E61: 45.676 | F61: 26.19532 | J61: 12 | K61: 3522.236 | L61: 2279.126 | O61: fresas en invernadero | Q61: sembrada | R61: 11 | S61: 6.781 | T61: 6.85236 | U61: 6.99349 | V61: 102.0595824 | X61: 8 | Y61: 319.471 | Z61: 318.5295 | AC61: total en mosto equivalente | AL61: 1 | AM61: 6043.21 | AN61: 5010.597
A62: algodón ( bruto ) (2) | C62: cosechada | D62: 12 | E62: 51.076 | F62: 46.75341 | J62: 12 | K62: 112.348 | L62: 133.37 | O62: champiñon (7) | Q62: cultivada | R62: 12 | S62: 45.071 | T62: 45.361 | U62: 45.3 | V62: 99.86552325 | X62: 12 | Y62: 145.009 | Z62: 146.342 | AA62: 147.043 | AB62: =IF(AND(Z62>0,AA62>0),AA62*100/Z62,"") -> 100.4790149 | AC62: total producto vitivinicolas (vino + mosto) (11) | AL62: 1 | AM62: 36813.912 | AN62: 32574.78
A63: lino textil ( fibra ) | C63: cosechada | D63: 9 | E63: 0.02 | F63: 0.001 | J63: 9 | K63: 0.072 | L63: 0.003 | O63: otras setas (7) | Q63: cultivada | R63: 1 | S63: 9.221 | T63: 9.497 | U63: 9.468 | V63: 99.69464041 | X63: 1 | Y63: 16.89 | Z63: 17.252 | AA63: 18.872 | AB63: =IF(AND(Z63>0,AA63>0),AA63*100/Z63,"") -> 109.3902156
A64: cáñamo textil ( fibra ) | C64: cosechada | D64: 9 | E64: 0.032 | F64: 0.031 | J64: 9 | K64: 0.147 | L64: 0.174 | AC64: OLIVAR
A65: girasol | C65: cosechada | D65: 11 | E65: 738.725 | F65: 662.17258 | J65: 11 | K65: 832.702 | L65: 786.957 | O65: CÍTRICOS | AC65: olivar de aceituna de mesa | AE65: recolectada | AF65: 11 | AG65: 108.522 | AH65: 109.691 | AL65: 11 | AM65: 304.14 | AN65: 319.946
A66: soja | C66: cosechada | D66: 11 | E66: 3.112 | F66: 2.76351 | J66: 11 | K66: 10.724 | L66: 8.76 | O66: naranja dulce | Q66: en producción | R66: 1 | S66: 134.719 | T66: 132.947 | X66: 1 | Y66: 2897.832 | Z66: 2947.031 | AC66: aceituna de mesa destino DAAD | AL66: 11 | AM66: 301.058 | AN66: 318.55
A67: colza y nabo de invierno | C67: sembrada | D67: 11 | E67: 98.429 | F67: 102.24282 | G67: 85.85751 | H67: 83.97412161 | J67: 8 | K67: 225.676 | L67: 268.228 | O67: naranja amargo | Q67: en producción | R67: 1 | S67: 0.301 | T67: 0.289 | X67: 1 | Y67: 7.11 | Z67: 5.768 | AC67: aceituna de mesa destino DACE | AL67: 11 | AM67: 2.98 | AN67: 1.308
A68: colza de invierno | C68: sembrada | D68: 11 | E68: 98.429 | F68: 101.98844 | G68: 85.58613 | H68: 83.91748124 | J68: 8 | K68: 225.676 | L68: 267.463 | O68: satsuma | Q68: recolectada | R68: 1 | S68: 4.786 | T68: 4.542 | X68: 1 | Y68: 103.209 | Z68: 90.984 | AC68: olivar de aceituna de almazara | AE68: recolectada | AF68: 1 | AG68: 2052.505 | AH68: 1968.056 | AL68: 1 | AM68: 7021.422 | AN68: 6214.272
A69: nabo de invierno | C69: sembrada | D69: 11 | F69: 0.25438 | G69: 0.00138 | H69: 0.5424954792 | J69: 8 | L69: 0.764 | O69: clementinas | Q69: recolectada | R69: 1 | S69: 48.432 | T69: 47.245 | X69: 1 | Y69: 851.956 | Z69: 873.833 | AC69: aceituna de almazara destino DAAD | AL69: 1 | AM69: 1.012 | AN69: 0.109
A70: colza y nabo de primavera | C70: sembrada | D70: 11 | E70: 0.005 | F70: 0.005 | G70: 0.005 | H70: 100 | J70: 8 | O70: otras mandarinas | Q70: en producción | R70: 1 | S70: 35.184 | T70: 36.203 | X70: 1 | Y70: 860.349 | Z70: 833.27 | AC70: aceituna de almazara destino DACE | AL70: 1 | AM70: 7018.878 | AN70: 6211.459
A71: colza de primavera | C71: sembrada | D71: 11 | E71: 0.005 | F71: 0.005 | G71: 0.005 | H71: 100 | J71: 8 | O71: total mandarino | R71: 1 | S71: 88.25 | T71: 87.886 | X71: 1 | Y71: 1815.514 | Z71: 1798.087 | AC71: olivar de doble aptitud | AE71: recolectada | AF71: 1 | AG71: 353.591 | AH71: 348.954 | AL71: 1 | AM71: 1109.91 | AN71: 1017.173
A72: nabo de primavera | C72: sembrada | D72: 11 | J72: 8 | O72: limonero | Q72: recolectada | R72: 1 | S72: 43.495 | T72: 45.038 | X72: 1 | Y72: 915.488 | Z72: 818.87 | AC72: aceituna doble aptitud destino DAAD | AL72: 1 | AM72: 370.657 | AN72: 201.558
A73: colza y nabo | C73: sembrada | D73: 11 | E73: 98.434 | F73: 102.25382 | G73: 85.75751 | H73: 83.8672922 | J73: 8 | K73: 225.682 | L73: 268.228 | O73: limero | Q73: recolectada | R73: 1 | S73: 0.298 | T73: 0.359 | X73: 1 | Y73: 4.025 | Z73: 4.617 | AC73: aceituna doble aptitud destino DACE | AL73: 1 | AM73: 739.146 | AN73: 815.192
A74: colza | C74: sembrada | D74: 11 | E74: 98.434 | F74: 101.99344 | G74: 85.48613 | H74: 83.81532185 | J74: 8 | K74: 225.682 | L74: 267.463 | O74: pomelo | Q74: en producción | R74: 1 | S74: 2.696 | T74: 2.954 | X74: 1 | Y74: 85.006 | Z74: 105.242 | AC74: total olivar | AF74: 1 | AG74: 2514.618 | AH74: 2426.701 | AL74: 1 | AM74: 8435.472 | AN74: 7551.391
A75: nabo | C75: sembrada | D75: 11 | F75: 0.26038 | G75: 0.00138 | H75: =IF(AND(F75>0,G75>0),G75*100/F75,"") -> 0.5299946232 | J75: 8 | L75: 0.764 | N75: =IF(AND(L75>0,M75>0),M75*100/L75,"") ->  | AC75: total olivar destino DAAD | AL75: 1 | AM75: 672.727 | AN75: 520.217
A76: pimiento para pimentón | C76: cosechada | D76: 10 | E76: 1.96 | F76: 1.793 | J76: 10 | K76: 6.625 | L76: 7.611 | O76: (1) Mes al que corresponde la última estimación | AC76: total olivar destino DACE | AL76: 1 | AM76: 7761.004 | AN76: 7027.959
A77: tabaco (3) | C77: cosechada | D77: 11 | E77: 6.182 | F77: 6.5 | J77: 11 | K77: 19.409 | L77: 20.769 | O77: (2) Producción bruta para fibra | AC77: aceite de oliva total | AL77: 1 | AM77: 1401.354 | AN77: 1184.927
O78: (3) Tabaco seco no fermentado
A79: CULTIVOS FORRAJEROS (4) | O79: (4) Producción en verde
A80: cereal de invierno para forraje | C80: sembrada | D80: 12 | E80: 274.225 | F80: 255.63229 | G80: 237.67307 | H80: =IF(AND(F80>0,G80>0),G80*100/F80,"") -> 92.97458862 | J80: 9 | K80: 3417.639 | L80: 3490.997 | N80: =IF(AND(L80>0,M80>0),M80*100/L80,"") ->  | O80: (5) Incluido en el tomate "de verano" (rec. 1-vi/30-ix)
A81: maíz forrajero | C81: cosechada | D81: 11 | E81: 116.057 | F81: 132.31563 | J81: 11 | K81: 4164.135 | L81: 4941.403 | O81: (6) Incluye el de conserva
A82: ballico | C82: sembrada | D82: 12 | E82: 119.715 | F82: 119.27479 | G82: 103.54925 | H82: 86.81570515 | J82: 9 | K82: 2647.184 | L82: 2652.821 | O82: (7) La superficie se expresa en miles de áreas | V82: =IF(AND(T82>0,U82>0),U82*100/T82,"") ->  | AB82: =IF(AND(Z82>0,AA82>0),AA82*100/Z82,"") -> 
A83: festuca | C83: sembrada | D83: 12 | E83: 11.569 | F83: 19.00894 | G83: 18.47858 | H83: 97.20994437 | J83: 9 | K83: 434.844 | L83: 532.037 | O83: (8) Los datos se dan con cáscara, no en grano. Coeficientes de conversión, según variedades: Almendra y Nuez: 3´3 - 4 , Avellana: 2 - 2´3
A84: alfalfa | C84: sembrada | D84: 12 | E84: 199.927 | F84: 210.89775 | G84: 213.91755 | H84: 101.4318787 | J84: 9 | K84: 7908.462 | L84: 7734.42 | O84: (9) Datos de ccaa de uva de vinificación producida.
A85: trébol | C85: sembrada | D85: 12 | E85: 2.253 | F85: 2.87801 | G85: 2.82942 | H85: 98.31168064 | J85: 9 | K85: 36.975 | L85: 38.115 | O85: (10) Producción de uva, no de pasa
A86: esparceta | C86: sembrada | D86: 12 | E86: 19.582 | F86: 31.24625 | G86: 32.52806 | H86: 104.1022843 | J86: 9 | K86: 233.156 | L86: 307.901 | O86: (11) Producción total de Vino y Mosto en miles de Hectolitros. Incluye a los pequeños productores (autoconsumo) y los mostos concentrados convertidos a mosto natural,
A87: veza para forraje | C87: sembrada | D87: 12 | E87: 150.609 | F87: 174.27583 | G87: 171.64415 | H87: 98.48993403 | J87: 9 | K87: 2565.13 | L87: 3086.592 | O87: con coeficiente 3´5
O88: (12) La superficie de endivia indica la superficie de raíz de endivia mientras que la producción de endivia recoge la endivia de hoja por lo que no tienen que estar ligadas.
O89: Nota: En leñosos, la producción total puede diferir en algunos casos del sumatorio de secano y regadío, al incluirse la producción estimada de árboles diseminados.
N209: =IF(AND(L209>0,M209>0),M209*100/L209,"") -> 

Sheet Tri0rno-SRT
A1: AVANCES DE SUPERFICIE Y PRODUCCIÓN
A2: TRIGO DE INVIERNO S/R/T | K2: 2026 ENERO
A3: SUPERFICIE SEMBRADA(*)
A4: PROVINCIAS | B4: SUPERFICIES (HA) | E4: SUPERFICIES (HA) | H4: SUPERFICIES (HA) | L4: PRODUCCIONES (1000 TM) | O4: PRODUCCIONES (1000 TM) | R4: PRODUCCIONES (1000 TM)
A5: Y | B5: SECANO | E5: REGADIO | H5: TOTAL | L5: SECANO | O5: REGADIO | R5: TOTAL
A6: CC-AA | B6: =J6-2 -> 2024 | C6: =J6-1 -> 2025 | D6: =J6 -> 2026 | E6: =J6-2 -> 2024 | F6: =J6-1 -> 2025 | G6: =J6 -> 2026 | H6: =J6-2 -> 2024 | I6: =J6-1 -> 2025 | J6: 2026 | L6: =T6-2 -> 2024 | M6: =T6-1 -> 2025 | N6: =T6 -> 2026 | O6: =T6-2 -> 2024 | P6: =T6-1 -> 2025 | Q6: =T6 -> 2026 | R6: =T6-2 -> 2024 | S6: =T6-1 -> 2025 | T6: 2026
B7: DEFINITIVO | C7: PROVISIONAL | E7: DEFINITIVO | F7: PROVISIONAL | H7: DEFINITIVO | I7: PROVISIONAL | L7: DEFINITIVO | M7: PROVISIONAL | O7: DEFINITIVO | P7: PROVISIONAL | R7: DEFINITIVO | S7: PROVISIONAL
A10: 15 Coruña (La) | B10: 1016 | C10: 1873.48 | D10: 1323.36 | H10: 1016 | I10: 1873.48 | J10: 1323.36 | L10: 2.337 | M10: 8.214 | R10: 2.336 | S10: 8.214
A11: 27 Lugo | B11: 1962 | C11: 2806.4 | D11: 2243.41 | H11: 1962 | I11: 2806.4 | J11: 2243.41 | L11: 4.316 | M11: 7.869 | R11: 4.316 | S11: 7.869
A12: 32 Orense | B12: 5136 | C12: 5370.44 | D12: 5088.6 | H12: 5136 | I12: 5370.44 | J12: 5088.6 | L12: 15.408 | M12: 17.32 | R12: 15.408 | S12: 17.32
A13: 36 Pontevedra | B13: 175 | C13: 333.44 | D13: 315.85 | H13: 175 | I13: 333.44 | J13: 315.85 | L13: 0.394 | M13: 1.362 | R13: 0.394 | S13: 1.362
A14: GALICIA | B14: 8289 | C14: 10383.76 | D14: 8971.22 | H14: 8289 | I14: 10383.76 | J14: 8971.22 | L14: 22.455 | M14: 34.765 | R14: 22.454 | S14: 34.765
A16: 33 P. DE ASTURIAS | C16: 61 | D16: 65 | I16: 61 | J16: 65 | M16: 0.11 | S16: 0.11
A18: 39 CANTABRIA | B18: 733 | C18: 740 | D18: 750 | E18: 115 | F18: 115 | G18: 135 | H18: 848 | I18: 855 | J18: 885 | L18: 1.613 | M18: 1.484 | O18: 0.518 | P18: 0.46 | R18: 2.131 | S18: 1.944
A20: 01 Alava | B20: 19717 | C20: 17217 | D20: 18000 | H20: 19717 | I20: 17217 | J20: 18000 | L20: 138.019 | M20: 103.302 | R20: 138.019 | S20: 103.302
A21: 20 Guipúzcoa | B21: 1 | H21: 1 | L21: 0.006 | R21: 0.006
A22: 48 Vizcaya
A23: PAIS VASCO | B23: 19718 | C23: 17217 | D23: 18000 | H23: 19718 | I23: 17217 | J23: 18000 | L23: 138.025 | M23: 103.302 | R23: 138.025 | S23: 103.302
A25: 31 NAVARRA | B25: 62667 | C25: 67327 | D25: 67869 | E25: 15153 | F25: 13911 | G25: 14031 | H25: 77820 | I25: 81238 | J25: 81900 | L25: 325.055 | M25: 341.647 | O25: 107.966 | P25: 81.895 | R25: 433.002 | S25: 423.542
A27: 26 LA RIOJA | B27: 17354 | C27: 16294 | D27: 16158 | E27: 7444 | F27: 6818 | G27: 6902 | H27: 24798 | I27: 23112 | J27: 23060 | L27: 46.717 | M27: 100.065 | O27: 32.009 | P27: 43.157 | R27: 78.726 | S27: 143.222
A29: 22 Huesca | B29: 61855 | C29: 56123.17 | D29: 59050 | E29: 24310 | F29: 19051.95 | G29: 18600 | H29: 86165 | I29: 75175.12 | J29: 77650 | L29: 206.401 | M29: 244.316 | O29: 139.057 | P29: 112.633 | R29: 345.437 | S29: 356.949
A30: 44 Teruel | B30: 43212 | C30: 34637 | D30: 35896 | E30: 4081 | F30: 3302 | G30: 3526 | H30: 47293 | I30: 37939 | J30: 39422 | L30: 30.387 | M30: 84.437 | O30: 12.367 | P30: 13.902 | R30: 42.744 | S30: 98.339
A31: 50 Zaragoza | B31: 80053 | C31: 68211 | D31: 79426.81 | E31: 31459 | F31: 29195.01 | G31: 28531.37 | H31: 111512 | I31: 97406.01 | J31: 107958.18 | L31: 89.844 | M31: 214.521 | O31: 157.791 | P31: 168.747 | R31: 247.633 | S31: 383.267
A32: ARAGON | B32: 185120 | C32: 158971.17 | D32: 174372.81 | E32: 59850 | F32: 51548.96 | G32: 50657.37 | H32: 244970 | I32: 210520.13 | J32: 225030.18 | L32: 326.632 | M32: 543.274 | O32: 309.215 | P32: 295.282 | R32: 635.814 | S32: 838.555
A34: 08 Barcelona | B34: 21430 | C34: 20918 | D34: 21442 | E34: 370 | F34: 558 | G34: 604 | H34: 21800 | I34: 21476 | J34: 22046 | L34: 48.26 | M34: 99.541 | O34: 2.017 | P34: 3.279 | R34: 50.278 | S34: 102.82
A35: 17 Girona | B35: 10050 | C35: 9307 | D35: 8118 | E35: 2693 | F35: 4291 | G35: 4399 | H35: 12743 | I35: 13598 | J35: 12517 | L35: 23.899 | M35: 40.927 | O35: 9.986 | P35: 20.563 | R35: 33.882 | S35: 61.49
A36: 25 Lleida | B36: 41616 | C36: 32573 | D36: 34523 | E36: 20748 | F36: 15848 | G36: 15593 | H36: 62364 | I36: 48421 | J36: 50116 | L36: 83.274 | M36: 130.292 | O36: 123.451 | P36: 118.851 | R36: 206.706 | S36: 249.143
A37: 43 Tarragona | B37: 6868 | C37: 6432 | D37: 6670 | E37: 56 | F37: 69 | G37: 62 | H37: 6924 | I37: 6501 | J37: 6732 | L37: 8.194 | M37: 27.975 | O37: 0.12 | P37: 0.331 | R37: 8.314 | S37: 28.306
A38: CATALUÑA | B38: 79964 | C38: 69230 | D38: 70753 | E38: 23867 | F38: 20766 | G38: 20658 | H38: 103831 | I38: 89996 | J38: 91411 | L38: 163.627 | M38: 298.735 | O38: 135.574 | P38: 143.024 | R38: 299.18 | S38: 441.759
A40: 07 BALEARES | B40: 3733 | C40: 3707 | D40: 3840 | H40: 3733 | I40: 3707 | J40: 3840 | L40: 5.189 | M40: 5.252 | R40: 5.189 | S40: 5.252
A42: 05 Avila | B42: 28655 | C42: 34781 | D42: 34530 | E42: 2332 | F42: 1593 | G42: 1750 | H42: 30987 | I42: 36374 | J42: 36280 | L42: 54.616 | M42: 124.892 | O42: 8.37 | P42: 8.08 | R42: 62.998 | S42: 132.972
A43: 09 Burgos | B43: 179988 | C43: 191795 | D43: 183669.33 | E43: 5941 | F43: 6516 | G43: 6232.33 | H43: 185929 | I43: 198311 | J43: 189901.67 | L43: 965.096 | M43: 1019.414 | O43: 42.318 | P43: 46.114 | R43: 1007.404 | S43: 1065.528
A44: 24 León | B44: 24023 | C44: 34896 | D44: 32005 | E44: 12194 | F44: 17325 | G44: 18020 | H44: 36217 | I44: 52221 | J44: 50025 | L44: 83.576 | M44: 130.858 | O44: 79.822 | P44: 114.285 | R44: 163.4 | S44: 245.143
A45: 34 Palencia | B45: 97617 | C45: 111413 | D45: 103584 | E45: 22666 | F45: 23102 | G45: 21631 | H45: 120283 | I45: 134515 | J45: 125215 | L45: 434.786 | M45: 566.423 | O45: 141.391 | P45: 142.291 | R45: 576.149 | S45: 708.714
A46: 37 Salamanca | B46: 61057 | C46: 62014 | D46: 60025 | E46: 7312 | F46: 7991 | G46: 7010 | H46: 68369 | I46: 70005 | J46: 67035 | L46: 207.594 | M46: 260.14 | O46: 42.41 | P46: 46.341 | R46: 249.992 | S46: 306.481
A47: 40 Segovia | B47: 60209 | C47: 75609 | D47: 77045 | E47: 2882 | F47: 3742 | H47: 63091 | I47: 79351 | J47: 77045 | L47: 169.247 | M47: 306.795 | O47: 14.355 | P47: 19.017 | R47: 183.594 | S47: 325.812
A48: 42 Soria | B48: 83858 | C48: 101958 | D48: 80000 | E48: 3858 | F48: 4928 | G48: 4000 | H48: 87716 | I48: 106886 | J48: 84000 | L48: 319.247 | M48: 378.568 | O48: 19.282 | P48: 25.616 | R48: 338.518 | S48: 404.184
A49: 47 Valladolid | B49: 101400 | C49: 102163 | D49: 102025 | E49: 20313 | F49: 21588 | G49: 21560 | H49: 121713 | I49: 123751 | J49: 123585 | L49: 414.625 | M49: 542.981 | O49: 135.325 | P49: 157.287 | R49: 549.945 | S49: 700.268
A50: 49 Zamora | B50: 48769 | C50: 60592 | D50: 54531 | E50: 9027 | F50: 9547 | G50: 8554 | H50: 57796 | I50: 70139 | J50: 63085 | L50: 160.352 | M50: 237.887 | O50: 46.354 | P50: 66.829 | R50: 206.696 | S50: 304.716
A51: CASTILLA Y LEON | B51: 685576 | C51: 775221 | D51: 727414.33 | E51: 86525 | F51: 96332 | G51: 88757.33 | H51: 772101 | I51: 871553 | J51: 816171.67 | L51: 2809.139 | M51: 3567.958 | O51: 529.627 | P51: 625.86 | R51: 3338.696 | S51: 4193.818
A53: 28 MADRID | B53: 17311 | C53: 17036 | D53: 17028 | E53: 2020 | F53: 1639 | G53: 1639 | H53: 19331 | I53: 18675 | J53: 18667 | L53: 49.418 | M53: 54.287 | O53: 9.124 | P53: 7.804 | R53: 58.541 | S53: 62.091
A55: 02 Albacete | B55: 42857 | C55: 41559 | D55: 43000 | E55: 11871 | F55: 12572 | G55: 12750 | H55: 54728 | I55: 54131 | J55: 55750 | L55: 42.145 | M55: 94.547 | O55: 85.946 | P55: 96.176 | R55: 128.081 | S55: 190.723
A56: 13 Ciudad Real | B56: 41209 | C56: 39743 | D56: 38700 | E56: 7795 | F56: 8407 | G56: 8870 | H56: 49004 | I56: 48150 | J56: 47570 | L56: 90.454 | M56: 135.015 | O56: 40.363 | P56: 46.151 | R56: 130.821 | S56: 181.166
A57: 16 Cuenca | B57: 47334 | C57: 57675 | D57: 48520 | E57: 3113 | F57: 3400 | G57: 3789 | H57: 50447 | I57: 61075 | J57: 52309 | L57: 132.358 | M57: 175.85 | O57: 15.853 | P57: 17.307 | R57: 148.223 | S57: 193.157
A58: 19 Guadalajara | B58: 66442 | C58: 65952 | D58: 65952 | E58: 2056 | F58: 2037 | G58: 2037 | H58: 68498 | I58: 67989 | J58: 67989 | L58: 230.502 | M58: 250.51 | O58: 12.183 | P58: 11.191 | R58: 242.655 | S58: 261.701
A59: 45 Toledo | B59: 48552 | C59: 55205 | D59: 55205 | E59: 4070 | F59: 5728 | G59: 5728 | H59: 52622 | I59: 60933 | J59: 60933 | L59: 121.137 | M59: 139.979 | O59: 18.677 | P59: 27.494 | R59: 139.793 | S59: 167.473
A60: CASTILLA-MANCHA | B60: 246394 | C60: 260134 | D60: 251377 | E60: 28905 | F60: 32144 | G60: 33174 | H60: 275299 | I60: 292278 | J60: 284551 | L60: 616.596 | M60: 795.901 | O60: 173.022 | P60: 198.319 | R60: 789.573 | S60: 994.22
A62: 03 Alicante | B62: 855 | C62: 1171 | D62: 1067 | E62: 430 | F62: 390 | G62: 356 | H62: 1285 | I62: 1561 | J62: 1423 | L62: 0.205 | M62: 2.128 | O62: 0.735 | P62: 2.044 | R62: 0.94 | S62: 4.172
A63: 12 Castellón | B63: 579 | C63: 674 | D63: 746 | E63: 17 | F63: 17 | G63: 35 | H63: 596 | I63: 691 | J63: 781 | L63: 0.087 | M63: 1.445 | O63: 0.082 | P63: 0.082 | R63: 0.169 | S63: 1.527
A64: 46 Valencia | B64: 2483 | C64: 2213 | D64: 2647 | E64: 238 | F64: 37 | G64: 48 | H64: 2721 | I64: 2250 | J64: 2695 | L64: 1.072 | M64: 6.418 | O64: 0.98 | P64: 0.162 | R64: 2.052 | S64: 6.58
A65: C. VALENCIANA | B65: 3917 | C65: 4058 | D65: 4460 | E65: 685 | F65: 444 | G65: 439 | H65: 4602 | I65: 4502 | J65: 4899 | L65: 1.364 | M65: 9.991 | O65: 1.797 | P65: 2.288 | R65: 3.161 | S65: 12.279
A67: 30 R. DE MURCIA | B67: 6341 | C67: 6425 | D67: 7923 | E67: 694 | F67: 602 | G67: 1030 | H67: 7035 | I67: 7027 | J67: 8953 | L67: 2.455 | M67: 0.433 | O67: 2.404 | P67: 3.741 | R67: 4.858 | S67: 4.174
A69: 06 Badajoz | B69: 65907 | C69: 66166 | D69: 62510 | E69: 11381 | F69: 11388 | G69: 11115 | H69: 77288 | I69: 77554 | J69: 73625 | L69: 205.753 | M69: 179.024 | O69: 46.526 | P69: 40.27 | R69: 252.281 | S69: 219.294
A70: 10 Cáceres | B70: 2507 | C70: 2036 | D70: 2180 | E70: 1230 | F70: 1543 | G70: 1520 | H70: 3737 | I70: 3579 | J70: 3700 | L70: 5.245 | M70: 4.347 | O70: 3.426 | P70: 4.252 | R70: 8.671 | S70: 8.599
A71: EXTREMADURA | B71: 68414 | C71: 68202 | D71: 64690 | E71: 12611 | F71: 12931 | G71: 12635 | H71: 81025 | I71: 81133 | J71: 77325 | L71: 210.998 | M71: 183.371 | O71: 49.952 | P71: 44.522 | R71: 260.952 | S71: 227.893
A73: 04 Almería | B73: 1849 | C73: 1626 | D73: 1635 | E73: 94 | F73: 24 | G73: 25 | H73: 1943 | I73: 1650 | J73: 1660 | L73: 0.016 | M73: 4.127 | O73: 0.083 | P73: 0.076 | R73: 0.099 | S73: 4.203
A74: 11 Cádiz | B74: 51345 | C74: 45692.96 | D74: 43630.06 | E74: 5887 | F74: 4522.39 | G74: 4521.66 | H74: 57232 | I74: 50215.35 | J74: 48151.72 | L74: 145.166 | M74: 130.55 | O74: 20.681 | P74: 13.312 | R74: 165.82 | S74: 143.862
A75: 14 Córdoba | B75: 50225 | C75: 48080 | D75: 48080 | E75: 9951 | F75: 8790 | G75: 8790 | H75: 60176 | I75: 56870 | J75: 56870 | L75: 181.061 | M75: 144.24 | O75: 35.346 | P75: 26.37 | R75: 216.426 | S75: 170.61
A76: 18 Granada | B76: 8151 | C76: 8854 | D76: 8776 | E76: 1494 | F76: 1492 | G76: 1499 | H76: 9645 | I76: 10346 | J76: 10275 | L76: 11.488 | M76: 18.542 | O76: 5.807 | P76: 7.115 | R76: 17.292 | S76: 25.657
A77: 21 Huelva | B77: 12860 | C77: 13085 | D77: 13085 | E77: 966 | F77: 885 | G77: 885 | H77: 13826 | I77: 13970 | J77: 13970 | L77: 45.324 | M77: 46.802 | O77: 3.982 | P77: 3.928 | R77: 49.3 | S77: 50.73
A78: 23 Jaén | B78: 5595 | C78: 4765 | D78: 4768 | E78: 1877 | F78: 2057 | G78: 2057 | H78: 7472 | I78: 6822 | J78: 6825 | L78: 17.445 | M78: 13.901 | O78: 7.508 | P78: 8.166 | R78: 24.952 | S78: 22.067
A79: 29 Málaga | B79: 13303 | C79: 14555 | D79: 14569 | E79: 1675 | F79: 1670 | G79: 1670 | H79: 14978 | I79: 16225 | J79: 16239 | L79: 31.901 | M79: 32.287 | O79: 7.8 | P79: 9.682 | R79: 39.702 | S79: 41.969
A80: 41 Sevilla | B80: 106130 | C80: 105050 | D80: 90000 | E80: 23430 | F80: 18390 | G80: 15000 | H80: 129560 | I80: 123440 | J80: 105000 | L80: 371.349 | M80: 342.305 | O80: 93.369 | P80: 73.606 | R80: 464.734 | S80: 415.911
A81: ANDALUCIA | B81: 249458 | C81: 241707.96 | D81: 224543.06 | E81: 45374 | F81: 37830.39 | G81: 34447.66 | H81: 294832 | I81: 279538.35 | J81: 258990.72 | L81: 803.75 | M81: 732.754 | O81: 174.576 | P81: 142.255 | R81: 978.325 | S81: 875.009
A83: 35 Palmas (Las) | B83: 88 | C83: 88 | D83: 88 | E83: 1 | F83: 1 | G83: 1 | H83: 89 | I83: 89 | J83: 89 | L83: 0.088 | M83: 0.088 | O83: 0.001 | P83: 0.001 | R83: 0.089 | S83: 0.089
A84: 38 S. C. Tenerife | B84: 114 | C84: 114 | D84: 114 | E84: 23 | F84: 23 | G84: 23 | H84: 137 | I84: 137 | J84: 137 | L84: 0.108 | M84: 0.108 | O84: 0.035 | P84: 0.035 | R84: 0.143 | S84: 0.143
A85: CANARIAS | B85: 202 | C85: 202 | D85: 202 | E85: 24 | F85: 24 | G85: 24 | H85: 226 | I85: 226 | J85: 226 | L85: 0.196 | M85: 0.196 | O85: 0.036 | P85: 0.036 | R85: 0.232 | S85: 0.232
A88: ESPAÑA | B88: 3310382 | C88: 1716916.89 | D88: 1658416.42 | E88: 283267 | F88: 275105.35 | G88: 264529.36 | H88: 1938458 | I88: 1992022.24 | J88: 1922945.79 | L88: 5523.229 | M88: 6773.525 | O88: 1525.82 | P88: 1588.643 | R88: 7048.859 | S88: 8362.167
B96: 221 | C96: 231 | E96: 221 | F96: 231 | H96: 221 | I96: 231

Sheet Tri0rno
A1: AVANCES DE SUPERFICIE Y PRODUCCIÓN
A2: TRIGO DE INVIERNO | J2: 2026 ENERO
A3: SUPERFICIE SEMBRADA(*)
A4: PROVINCIAS | C4: SUPERFICIES (HA) | H4: PRODUCCIONES (1000 TM)
A5: Y
A6: CC-AA | C6: =E6-2 -> 2024 | D6: =E6-1 -> 2025 | E6: 2026 | F6: =E6 -> 2026 | H6: =J6-2 -> 2024 | I6: =J6-1 -> 2025 | J6: 2026 | K6: =J6 -> 2026
C7: DEFINITIVO | D7: PROVISIONAL | H7: DEFINITIVO | I7: PROVISIONAL
F8: =CONCATENATE(D6,"=100") -> 2025=100 | K8: =CONCATENATE(I6,"=100") -> 2025=100
A10: 15 A Coruña | C10: 1016 | D10: 1873.48 | E10: 1323.36 | H10: 2.336 | I10: 8.214
A11: 27 Lugo | C11: 1962 | D11: 2806.4 | E11: 2243.41 | H11: 4.316 | I11: 7.869
A12: 32 Ourense | C12: 5136 | D12: 5370.44 | E12: 5088.6 | H12: 15.408 | I12: 17.32
A13: 36 Pontevedra | C13: 175 | D13: 333.44 | E13: 315.85 | H13: 0.394 | I13: 1.362
A14: GALICIA | C14: 8289 | D14: 10383.76 | E14: 8971.22 | F14: 86.39664245 | H14: 22.454 | I14: 34.765
A16: 33 P. DE ASTURIAS | D16: 61 | E16: 65 | F16: 106.557377 | I16: 0.11
A18: 39 CANTABRIA | C18: 848 | D18: 855 | E18: 885 | F18: 103.5087719 | H18: 2.131 | I18: 1.944
A20: 1 Álava | C20: 19717 | D20: 17217 | E20: 18000 | H20: 138.019 | I20: 103.302
A21: 20 Guipúzcoa | C21: 1 | H21: 0.006
A22: 48 Vizcaya
A23: PAIS VASCO | C23: 19718 | D23: 17217 | E23: 18000 | F23: 104.5478306 | H23: 138.025 | I23: 103.302
A25: 31 NAVARRA | C25: 77820 | D25: 81238 | E25: 81900 | F25: 100.8148896 | H25: 433.002 | I25: 423.542
A27: 26 LA RIOJA | C27: 24798 | D27: 23112 | E27: 23060 | F27: 99.77500865 | H27: 78.726 | I27: 143.222
A29: 22 Huesca | C29: 86165 | D29: 75175.12 | E29: 77650 | H29: 345.437 | I29: 356.949
A30: 44 Teruel | C30: 47293 | D30: 37939 | E30: 39422 | H30: 42.744 | I30: 98.339
A31: 50 Zaragoza | C31: 111512 | D31: 97406.01 | E31: 107958.18 | H31: 247.633 | I31: 383.267
A32: ARAGÓN | C32: 244970 | D32: 210520.13 | E32: 225030.18 | F32: 106.8924763 | H32: 635.814 | I32: 838.555
A34: 8 Barcelona | C34: 21800 | D34: 21476 | E34: 22046 | H34: 50.278 | I34: 102.82
A35: 17 Girona | C35: 12743 | D35: 13598 | E35: 12517 | H35: 33.882 | I35: 61.49
A36: 25 Lleida | C36: 62364 | D36: 48421 | E36: 50116 | H36: 206.706 | I36: 249.143
A37: 43 Tarragona | C37: 6924 | D37: 6501 | E37: 6732 | H37: 8.314 | I37: 28.306
A38: CATALUÑA | C38: 103831 | D38: 89996 | E38: 91411 | F38: 101.5722921 | H38: 299.18 | I38: 441.759
A40: 7 BALEARES | C40: 3733 | D40: 3707 | E40: 3840 | F40: 103.5878069 | H40: 5.189 | I40: 5.252
A42: 5 Ávila | C42: 30987 | D42: 36374 | E42: 36280 | H42: 62.998 | I42: 132.972
A43: 9 Burgos | C43: 185929 | D43: 198311 | E43: 189901.67 | H43: 1007.404 | I43: 1065.528
A44: 24 León | C44: 36217 | D44: 52221 | E44: 50025 | H44: 163.4 | I44: 245.143
A45: 34 Palencia | C45: 120283 | D45: 134515 | E45: 125215 | H45: 576.149 | I45: 708.714
A46: 37 Salamanca | C46: 68369 | D46: 70005 | E46: 67035 | H46: 249.992 | I46: 306.481
A47: 40 Segovia | C47: 63091 | D47: 79351 | E47: 77045 | H47: 183.594 | I47: 325.812
A48: 42 Soria | C48: 87716 | D48: 106886 | E48: 84000 | H48: 338.518 | I48: 404.184
A49: 47 Valladolid | C49: 121713 | D49: 123751 | E49: 123585 | H49: 549.945 | I49: 700.268
A50: 49 Zamora | C50: 57796 | D50: 70139 | E50: 63085 | H50: 206.696 | I50: 304.716
A51: CASTILLA Y LEÓN | C51: 772101 | D51: 871553 | E51: 816171.67 | F51: 93.64567272 | H51: 3338.696 | I51: 4193.818
A53: 28 MADRID | C53: 19331 | D53: 18675 | E53: 18667 | F53: 99.95716198 | H53: 58.541 | I53: 62.091
A55: 2 Albacete | C55: 54728 | D55: 54131 | E55: 55750 | H55: 128.081 | I55: 190.723
A56: 13 Ciudad Real | C56: 49004 | D56: 48150 | E56: 47570 | H56: 130.821 | I56: 181.166
A57: 16 Cuenca | C57: 50447 | D57: 61075 | E57: 52309 | H57: 148.223 | I57: 193.157
A58: 19 Guadalajara | C58: 68498 | D58: 67989 | E58: 67989 | H58: 242.655 | I58: 261.701
A59: 45 Toledo | C59: 52622 | D59: 60933 | E59: 60933 | H59: 139.793 | I59: 167.473
A60: CASTILLA-MANCHA | C60: 275299 | D60: 292278 | E60: 284551 | F60: 97.35628409 | H60: 789.573 | I60: 994.22
A62: 3 Alicante | C62: 1285 | D62: 1561 | E62: 1423 | H62: 0.94 | I62: 4.172
A63: 12 Castellón | C63: 596 | D63: 691 | E63: 781 | H63: 0.169 | I63: 1.527
A64: 46 Valencia | C64: 2721 | D64: 2250 | E64: 2695 | H64: 2.052 | I64: 6.58
A65: C. VALENCIANA | C65: 4602 | D65: 4502 | E65: 4899 | F65: 108.818303 | H65: 3.161 | I65: 12.279
A67: 30 R. DE MURCIA | C67: 7035 | D67: 7027 | E67: 8953 | F67: 127.408567 | H67: 4.858 | I67: 4.174
A69: 6 Badajoz | C69: 77288 | D69: 77554 | E69: 73625 | H69: 252.281 | I69: 219.294
A70: 10 Cáceres | C70: 3737 | D70: 3579 | E70: 3700 | H70: 8.671 | I70: 8.599
A71: EXTREMADURA | C71: 81025 | D71: 81133 | E71: 77325 | F71: 95.30647209 | H71: 260.952 | I71: 227.893
A73: 4 Almería | C73: 1943 | D73: 1650 | E73: 1660 | H73: 0.099 | I73: 4.203
A74: 11 Cádiz | C74: 57232 | D74: 50215.35 | E74: 48151.72 | H74: 165.82 | I74: 143.862
A75: 14 Córdoba | C75: 60176 | D75: 56870 | E75: 56870 | H75: 216.426 | I75: 170.61
A76: 18 Granada | C76: 9645 | D76: 10346 | E76: 10275 | H76: 17.292 | I76: 25.657
A77: 21 Huelva | C77: 13826 | D77: 13970 | E77: 13970 | H77: 49.3 | I77: 50.73
A78: 23 Jaén | C78: 7472 | D78: 6822 | E78: 6825 | H78: 24.952 | I78: 22.067
A79: 29 Málaga | C79: 14978 | D79: 16225 | E79: 16239 | H79: 39.702 | I79: 41.969
A80: 41 Sevilla | C80: 129560 | D80: 123440 | E80: 105000 | H80: 464.734 | I80: 415.911
A81: ANDALUCÍA | C81: 294832 | D81: 279538.35 | E81: 258990.72 | F81: 92.64944148 | H81: 978.325 | I81: 875.009
A83: 35 Palmas (Las) | C83: 89 | D83: 89 | E83: 89 | H83: 0.089 | I83: 0.089
A84: 38 S. C. Tenerife | C84: 137 | D84: 137 | E84: 137 | H84: 0.143 | I84: 0.143
A85: CANARIAS | C85: 226 | D85: 226 | E85: 226 | F85: 100 | H85: 0.232 | I85: 0.232
A88: ESPAÑA | C88: 1938458 | D88: 1992022.24 | E88: 1922945.79 | F88: 96.53234544 | H88: 7048.859 | I88: 8362.167
A91: (*)Tipo de Superficie de mes/año solicitado

Sheet Tri1rno-SRT
A1: AVANCES DE SUPERFICIE Y PRODUCCIÓN
A2: TRIGO DURO DE INVIERNO S/R/T | K2: 2026 ENERO
A3: SUPERFICIE SEMBRADA(*)
A4: PROVINCIAS | B4: SUPERFICIES (HA) | E4: SUPERFICIES (HA) | H4: SUPERFICIES (HA) | L4: PRODUCCIONES (1000 TM) | O4: PRODUCCIONES (1000 TM) | R4: PRODUCCIONES (1000 TM)
A5: Y | B5: SECANO | E5: REGADIO | H5: TOTAL | L5: SECANO | O5: REGADIO | R5: TOTAL
A6: CC-AA | B6: =J6-2 -> 2024 | C6: =J6-1 -> 2025 | D6: =J6 -> 2026 | E6: =J6-2 -> 2024 | F6: =J6-1 -> 2025 | G6: =J6 -> 2026 | H6: =J6-2 -> 2024 | I6: =J6-1 -> 2025 | J6: 2026 | L6: =T6-2 -> 2024 | M6: =T6-1 -> 2025 | N6: =T6 -> 2026 | O6: =T6-2 -> 2024 | P6: =T6-1 -> 2025 | Q6: =T6 -> 2026 | R6: =T6-2 -> 2024 | S6: =T6-1 -> 2025 | T6: 2026
B7: DEFINITIVO | C7: PROVISIONAL | E7: DEFINITIVO | F7: PROVISIONAL | H7: DEFINITIVO | I7: PROVISIONAL | L7: DEFINITIVO | M7: PROVISIONAL | O7: DEFINITIVO | P7: PROVISIONAL | R7: DEFINITIVO | S7: PROVISIONAL
A10: 15 Coruña (La) | B10: 8 | H10: 8 | L10: 0.018 | R10: 0.018
A11: 27 Lugo | B11: 130 | H11: 130 | L11: 0.286 | R11: 0.286
A12: 32 Orense | B12: 8 | H12: 8 | L12: 0.024 | R12: 0.024
A13: 36 Pontevedra | B13: 3 | H13: 3 | L13: 0.007 | R13: 0.007
A14: GALICIA | B14: 149 | H14: 149 | L14: 0.335 | R14: 0.335
A16: 33 P. DE ASTURIAS
A18: 39 CANTABRIA
A20: 01 Alava
A21: 20 Guipúzcoa
A22: 48 Vizcaya
A23: PAIS VASCO
A25: 31 NAVARRA | B25: 783 | C25: 816 | D25: 816 | E25: 510 | F25: 491 | G25: 491 | H25: 1293 | I25: 1307 | J25: 1307 | L25: 0.851 | M25: 2.038 | O25: 3.399 | P25: 2.687 | R25: 4.25 | S25: 4.725
A27: 26 LA RIOJA | D27: 8 | F27: 10 | G27: 2 | I27: 10 | J27: 10 | P27: 0.045 | S27: 0.045
A29: 22 Huesca | B29: 863 | C29: 656.64 | D29: 650 | E29: 713 | F29: 450.06 | G29: 400 | H29: 1576 | I29: 1106.7 | J29: 1050 | L29: 1.821 | M29: 2.482 | O29: 3.065 | P29: 2.696 | R29: 4.886 | S29: 5.178
A30: 44 Teruel | B30: 1074 | C30: 652 | D30: 685 | E30: 93 | F30: 53 | G30: 57 | H30: 1167 | I30: 705 | J30: 742 | L30: 0.315 | M30: 1.174 | O30: 0.221 | P30: 0.182 | R30: 0.536 | S30: 1.356
A31: 50 Zaragoza | B31: 34303 | C31: 27697.5 | D31: 28720.57 | E31: 13300 | F31: 13336.11 | G31: 12048.87 | H31: 47603 | I31: 41033.61 | J31: 40769.44 | L31: 31.182 | M31: 66.889 | O31: 66.553 | P31: 74.989 | R31: 97.735 | S31: 141.878
A32: ARAGON | B32: 36240 | C32: 29006.14 | D32: 30055.57 | E32: 14106 | F32: 13839.17 | G32: 12505.87 | H32: 50346 | I32: 42845.31 | J32: 42561.44 | L32: 33.318 | M32: 70.545 | O32: 69.839 | P32: 77.867 | R32: 103.157 | S32: 148.412
A34: 08 Barcelona | B34: 11 | C34: 36 | D34: 23 | F34: 2 | G34: 4 | H34: 11 | I34: 38 | J34: 27 | L34: 0.025 | M34: 0.174 | P34: 0.014 | R34: 0.025 | S34: 0.188
A35: 17 Girona | B35: 8 | C35: 16 | D35: 16 | E35: 12 | F35: 14 | G35: 14 | H35: 20 | I35: 30 | J35: 30 | L35: 0.015 | M35: 0.064 | O35: 0.035 | P35: 0.06 | R35: 0.05 | S35: 0.124
A36: 25 Lleida | B36: 28 | C36: 23 | D36: 23 | E36: 30 | F36: 18 | G36: 18 | H36: 58 | I36: 41 | J36: 41 | L36: 0.047 | M36: 0.092 | O36: 0.148 | P36: 0.126 | R36: 0.195 | S36: 0.218
A37: 43 Tarragona | B37: 7 | C37: 13 | D37: 11 | E37: 1 | F37: 1 | G37: 1 | H37: 8 | I37: 14 | J37: 12 | L37: 0.003 | M37: 0.032 | O37: 0.004 | P37: 0.005 | R37: 0.007 | S37: 0.037
A38: CATALUÑA | B38: 54 | C38: 88 | D38: 73 | E38: 43 | F38: 35 | G38: 37 | H38: 97 | I38: 123 | J38: 110 | L38: 0.09 | M38: 0.362 | O38: 0.187 | P38: 0.205 | R38: 0.277 | S38: 0.567
A40: 07 BALEARES | B40: 39 | C40: 37 | D40: 40 | H40: 39 | I40: 37 | J40: 40 | L40: 0.054 | M40: 0.052 | R40: 0.054 | S40: 0.052
A42: 05 Avila | B42: 17 | C42: 33 | D42: 30 | H42: 17 | I42: 33 | J42: 30 | L42: 0.015 | M42: 0.077 | R42: 0.015 | S42: 0.077
A43: 09 Burgos | B43: 329 | C43: 301 | D43: 296.67 | E43: 117 | F43: 56 | G43: 94.67 | H43: 446 | I43: 357 | J43: 391.33 | L43: 1.394 | M43: 1.24 | O43: 0.759 | P43: 0.364 | R43: 2.153 | S43: 1.604
A44: 24 León | B44: 2 | C44: 3 | D44: 5 | E44: 9 | F44: 23 | G44: 20 | H44: 11 | I44: 26 | J44: 25 | L44: 0.006 | M44: 0.009 | O44: 0.05 | P44: 0.092 | R44: 0.056 | S44: 0.101
A45: 34 Palencia | B45: 25 | C45: 4 | D45: 4 | E45: 5 | F45: 15 | G45: 14 | H45: 30 | I45: 19 | J45: 18 | L45: 0.082 | M45: 0.02 | O45: 0.033 | P45: 0.075 | R45: 0.115 | S45: 0.095
A46: 37 Salamanca | B46: 54 | C46: 15 | D46: 25 | E46: 1 | F46: 11 | G46: 10 | H46: 55 | I46: 26 | J46: 35 | L46: 0.173 | M46: 0.054 | O46: 0.005 | P46: 0.057 | R46: 0.178 | S46: 0.111
A47: 40 Segovia | B47: 52 | C47: 43 | D47: 45 | E47: 9 | H47: 61 | I47: 43 | J47: 45 | L47: 0.136 | M47: 0.148 | O47: 0.032 | R47: 0.168 | S47: 0.148
A48: 42 Soria | B48: 15 | C48: 2 | E48: 23 | H48: 38 | I48: 2 | L48: 0.047 | M48: 0.005 | O48: 0.106 | R48: 0.153 | S48: 0.005
A49: 47 Valladolid | B49: 17 | C49: 25 | D49: 25 | E49: 188 | F49: 62 | G49: 60 | H49: 205 | I49: 87 | J49: 85 | L49: 0.066 | M49: 0.118 | O49: 0.949 | P49: 0.427 | R49: 1.015 | S49: 0.545
A50: 49 Zamora | B50: 32 | C50: 41 | D50: 36 | E50: 7 | F50: 5 | G50: 4 | H50: 39 | I50: 46 | J50: 40 | L50: 0.098 | M50: 0.103 | O50: 0.033 | P50: 0.035 | R50: 0.131 | S50: 0.138
A51: CASTILLA Y LEON | B51: 543 | C51: 467 | D51: 466.67 | E51: 359 | F51: 172 | G51: 202.67 | H51: 902 | I51: 639 | J51: 669.33 | L51: 2.017 | M51: 1.774 | O51: 1.967 | P51: 1.05 | R51: 3.984 | S51: 2.824
A53: 28 MADRID | B53: 69 | C53: 72 | D53: 72 | E53: 127 | F53: 95 | G53: 95 | H53: 196 | I53: 167 | J53: 167 | L53: 0.079 | M53: 0.324 | O53: 0.508 | P53: 0.325 | R53: 0.587 | S53: 0.649
A55: 02 Albacete | B55: 227 | C55: 162 | D55: 172 | E55: 1221 | F55: 619 | G55: 637.5 | H55: 1448 | I55: 781 | J55: 809.5 | L55: 0.22 | M55: 0.36 | O55: 8.73 | P55: 4.7 | R55: 8.95 | S55: 5.06
A56: 13 Ciudad Real | B56: 73 | C56: 93 | D56: 100 | E56: 141 | F56: 97 | G56: 100 | H56: 214 | I56: 190 | J56: 200 | L56: 0.08 | M56: 0.205 | O56: 0.564 | P56: 0.446 | R56: 0.644 | S56: 0.651
A57: 16 Cuenca | B57: 328 | C57: 366 | D57: 360 | E57: 63 | F57: 80 | G57: 187 | H57: 391 | I57: 446 | J57: 547 | L57: 0.788 | M57: 1.06 | O57: 0.31 | P57: 0.377 | R57: 1.098 | S57: 1.437
A58: 19 Guadalajara | B58: 200 | C58: 180 | D58: 180 | E58: 29 | F58: 26 | G58: 26 | H58: 229 | I58: 206 | J58: 206 | L58: 0.27 | M58: 0.576 | O58: 0.117 | P58: 0.13 | R58: 0.387 | S58: 0.706
A59: 45 Toledo | B59: 877 | C59: 900 | D59: 900 | E59: 115 | F59: 154 | G59: 154 | H59: 992 | I59: 1054 | J59: 1054 | L59: 1.929 | M59: 3.15 | O59: 0.483 | P59: 0.739 | R59: 2.412 | S59: 3.889
A60: CASTILLA-MANCHA | B60: 1705 | C60: 1701 | D60: 1712 | E60: 1569 | F60: 976 | G60: 1104.5 | H60: 3274 | I60: 2677 | J60: 2816.5 | L60: 3.287 | M60: 5.351 | O60: 10.204 | P60: 6.392 | R60: 13.491 | S60: 11.743
A62: 03 Alicante | B62: 65 | C62: 78 | D62: 71 | E62: 40 | F62: 25 | G62: 24 | H62: 105 | I62: 103 | J62: 95 | L62: 0.017 | M62: 0.165 | O62: 0.082 | P62: 0.068 | R62: 0.099 | S62: 0.233
A63: 12 Castellón | B63: 24 | C63: 24 | D63: 26 | H63: 24 | I63: 24 | J63: 26 | L63: 0.003 | M63: 0.047 | R63: 0.003 | S63: 0.047
A64: 46 Valencia | B64: 59 | C64: 90 | D64: 132 | E64: 1 | G64: 1 | H64: 60 | I64: 90 | J64: 133 | L64: 0.012 | M64: 0.261 | O64: 0.005 | R64: 0.017 | S64: 0.261
A65: C. VALENCIANA | B65: 148 | C65: 192 | D65: 229 | E65: 41 | F65: 25 | G65: 25 | H65: 189 | I65: 217 | J65: 254 | L65: 0.032 | M65: 0.473 | O65: 0.087 | P65: 0.068 | R65: 0.119 | S65: 0.541
A67: 30 R. DE MURCIA | B67: 90 | C67: 101 | D67: 267 | E67: 95 | F67: 76 | G67: 10 | H67: 185 | I67: 177 | J67: 277 | L67: 0.019 | M67: 0.023 | O67: 0.314 | P67: 0.251 | R67: 0.333 | S67: 0.274
A69: 06 Badajoz | B69: 2342 | C69: 2818 | D69: 2660 | E69: 763 | F69: 754 | G69: 665 | H69: 3105 | I69: 3572 | J69: 3325 | L69: 6.557 | M69: 9.282 | O69: 2.809 | P69: 3.228 | R69: 9.366 | S69: 12.51
A70: 10 Cáceres | B70: 177 | C70: 180 | D70: 180 | E70: 15 | F70: 17 | G70: 20 | H70: 192 | I70: 197 | J70: 200 | L70: 0.291 | M70: 0.416 | O70: 0.032 | P70: 0.051 | R70: 0.324 | S70: 0.467
A71: EXTREMADURA | B71: 2519 | C71: 2998 | D71: 2840 | E71: 778 | F71: 771 | G71: 685 | H71: 3297 | I71: 3769 | J71: 3525 | L71: 6.848 | M71: 9.698 | O71: 2.841 | P71: 3.279 | R71: 9.69 | S71: 12.977
A73: 04 Almería | B73: 86 | C73: 72 | D73: 75 | E73: 29 | F73: 4 | G73: 5 | H73: 115 | I73: 76 | J73: 80 | M73: 0.143 | P73: 0.012 | S73: 0.155
A74: 11 Cádiz | B74: 42270 | C74: 34813.58 | D74: 32947.6 | E74: 4240 | F74: 3185.42 | G74: 3181.98 | H74: 46510 | I74: 37999 | J74: 36129.58 | L74: 129.285 | M74: 87.034 | O74: 14.222 | P74: 7.964 | R74: 143.507 | S74: 94.998
A75: 14 Córdoba | B75: 29065 | C75: 27750 | D75: 27750 | E75: 7873 | F75: 6400 | G75: 6400 | H75: 36938 | I75: 34150 | J75: 34150 | L75: 101.728 | M75: 83.25 | O75: 27.556 | P75: 19.2 | R75: 129.283 | S75: 102.45
A76: 18 Granada | B76: 1039 | C76: 1344 | D76: 1278 | E76: 678 | F76: 645 | G76: 661 | H76: 1717 | I76: 1989 | J76: 1939 | L76: 1.682 | M76: 3.099 | O76: 3.302 | P76: 3.077 | R76: 4.984 | S76: 6.176
A77: 21 Huelva | B77: 8700 | C77: 8980 | D77: 8980 | E77: 619 | F77: 610 | G77: 610 | H77: 9319 | I77: 9590 | J77: 9590 | L77: 29.925 | M77: 31.779 | O77: 2.655 | P77: 2.745 | R77: 32.58 | S77: 34.524
A78: 23 Jaén | B78: 3293 | C78: 2796 | D78: 2794 | E78: 1675 | F78: 1901 | G78: 1899 | H78: 4968 | I78: 4697 | J78: 4693 | L78: 10.538 | M78: 8.388 | O78: 6.7 | P78: 7.604 | R78: 17.238 | S78: 15.992
A79: 29 Málaga | B79: 8844 | C79: 9123 | D79: 9130 | E79: 1362 | F79: 1281 | G79: 1280 | H79: 10206 | I79: 10404 | J79: 10410 | L79: 22.11 | M79: 18.164 | O79: 6.47 | P79: 7.776 | R79: 28.58 | S79: 25.94
A80: 41 Sevilla | B80: 53480 | C80: 50740 | D80: 40000 | E80: 12610 | F80: 9080 | G80: 7000 | H80: 66090 | I80: 59820 | J80: 47000 | L80: 181.832 | M80: 152.22 | O80: 47.918 | P80: 34.504 | R80: 229.75 | S80: 186.724
A81: ANDALUCIA | B81: 146777 | C81: 135618.58 | D81: 122954.6 | E81: 29086 | F81: 23106.42 | G81: 21036.98 | H81: 175863 | I81: 158725 | J81: 143991.58 | L81: 477.1 | M81: 384.077 | O81: 108.823 | P81: 82.882 | R81: 585.922 | S81: 466.959
A83: 35 Palmas (Las)
A84: 38 S. C. Tenerife
A85: CANARIAS
A88: ESPAÑA | B88: 378232 | C88: 171096.72 | D88: 159533.84 | E88: 46714 | F88: 39596.59 | G88: 36195.02 | H88: 235830 | I88: 210693.31 | J88: 195728.85 | L88: 524.03 | M88: 474.717 | O88: 198.169 | P88: 175.051 | R88: 722.199 | S88: 649.768
B96: 221 | C96: 231 | E96: 221 | F96: 231 | H96: 221 | I96: 231

Sheet Tri1rno
A1: AVANCES DE SUPERFICIE Y PRODUCCIÓN
A2: TRIGO DURO DE INVIERNO | J2: 2026 ENERO
A3: SUPERFICIE SEMBRADA(*)
A4: PROVINCIAS | C4: SUPERFICIES (HA) | H4: PRODUCCIONES (1000 TM)
A5: Y
A6: CC-AA | C6: =E6-2 -> 2024 | D6: =E6-1 -> 2025 | E6: 2026 | F6: =E6 -> 2026 | H6: =J6-2 -> 2024 | I6: =J6-1 -> 2025 | J6: 2026 | K6: =J6 -> 2026
C7: DEFINITIVO | D7: PROVISIONAL | H7: DEFINITIVO | I7: PROVISIONAL
F8: =CONCATENATE(D6,"=100") -> 2025=100 | K8: =CONCATENATE(I6,"=100") -> 2025=100
A10: 15 A Coruña | C10: 8 | H10: 0.018
A11: 27 Lugo | C11: 130 | H11: 0.286
A12: 32 Ourense | C12: 8 | H12: 0.024
A13: 36 Pontevedra | C13: 3 | H13: 0.007
A14: GALICIA | C14: 149 | H14: 0.335
A16: 33 P. DE ASTURIAS
A18: 39 CANTABRIA
A20: 1 Álava
A21: 20 Guipúzcoa
A22: 48 Vizcaya
A23: PAIS VASCO
A25: 31 NAVARRA | C25: 1293 | D25: 1307 | E25: 1307 | F25: 100 | H25: 4.25 | I25: 4.725
A27: 26 LA RIOJA | D27: 10 | E27: 10 | F27: 100 | I27: 0.045
A29: 22 Huesca | C29: 1576 | D29: 1106.7 | E29: 1050 | H29: 4.886 | I29: 5.178
A30: 44 Teruel | C30: 1167 | D30: 705 | E30: 742 | H30: 0.536 | I30: 1.356
A31: 50 Zaragoza | C31: 47603 | D31: 41033.61 | E31: 40769.44 | H31: 97.735 | I31: 141.878
A32: ARAGÓN | C32: 50346 | D32: 42845.31 | E32: 42561.44 | F32: 99.33745374 | H32: 103.157 | I32: 148.412
A34: 8 Barcelona | C34: 11 | D34: 38 | E34: 27 | H34: 0.025 | I34: 0.188
A35: 17 Girona | C35: 20 | D35: 30 | E35: 30 | H35: 0.05 | I35: 0.124
A36: 25 Lleida | C36: 58 | D36: 41 | E36: 41 | H36: 0.195 | I36: 0.218
A37: 43 Tarragona | C37: 8 | D37: 14 | E37: 12 | H37: 0.007 | I37: 0.037
A38: CATALUÑA | C38: 97 | D38: 123 | E38: 110 | F38: 89.43089431 | H38: 0.277 | I38: 0.567
A40: 7 BALEARES | C40: 39 | D40: 37 | E40: 40 | F40: 108.1081081 | H40: 0.054 | I40: 0.052
A42: 5 Ávila | C42: 17 | D42: 33 | E42: 30 | H42: 0.015 | I42: 0.077
A43: 9 Burgos | C43: 446 | D43: 357 | E43: 391.33 | H43: 2.153 | I43: 1.604
A44: 24 León | C44: 11 | D44: 26 | E44: 25 | H44: 0.056 | I44: 0.101
A45: 34 Palencia | C45: 30 | D45: 19 | E45: 18 | H45: 0.115 | I45: 0.095
A46: 37 Salamanca | C46: 55 | D46: 26 | E46: 35 | H46: 0.178 | I46: 0.111
A47: 40 Segovia | C47: 61 | D47: 43 | E47: 45 | H47: 0.168 | I47: 0.148
A48: 42 Soria | C48: 38 | D48: 2 | H48: 0.153 | I48: 0.005
A49: 47 Valladolid | C49: 205 | D49: 87 | E49: 85 | H49: 1.015 | I49: 0.545
A50: 49 Zamora | C50: 39 | D50: 46 | E50: 40 | H50: 0.131 | I50: 0.138
A51: CASTILLA Y LEÓN | C51: 902 | D51: 639 | E51: 669.33 | F51: 104.7464789 | H51: 3.984 | I51: 2.824
A53: 28 MADRID | C53: 196 | D53: 167 | E53: 167 | F53: 100 | H53: 0.587 | I53: 0.649
A55: 2 Albacete | C55: 1448 | D55: 781 | E55: 809.5 | H55: 8.95 | I55: 5.06
A56: 13 Ciudad Real | C56: 214 | D56: 190 | E56: 200 | H56: 0.644 | I56: 0.651
A57: 16 Cuenca | C57: 391 | D57: 446 | E57: 547 | H57: 1.098 | I57: 1.437
A58: 19 Guadalajara | C58: 229 | D58: 206 | E58: 206 | H58: 0.387 | I58: 0.706
A59: 45 Toledo | C59: 992 | D59: 1054 | E59: 1054 | H59: 2.412 | I59: 3.889
A60: CASTILLA-MANCHA | C60: 3274 | D60: 2677 | E60: 2816.5 | F60: 105.2110572 | H60: 13.491 | I60: 11.743
A62: 3 Alicante | C62: 105 | D62: 103 | E62: 95 | H62: 0.099 | I62: 0.233
A63: 12 Castellón | C63: 24 | D63: 24 | E63: 26 | H63: 0.003 | I63: 0.047
A64: 46 Valencia | C64: 60 | D64: 90 | E64: 133 | H64: 0.017 | I64: 0.261
A65: C. VALENCIANA | C65: 189 | D65: 217 | E65: 254 | F65: 117.0506912 | H65: 0.119 | I65: 0.541
A67: 30 R. DE MURCIA | C67: 185 | D67: 177 | E67: 277 | F67: 156.4971751 | H67: 0.333 | I67: 0.274
A69: 6 Badajoz | C69: 3105 | D69: 3572 | E69: 3325 | H69: 9.366 | I69: 12.51
A70: 10 Cáceres | C70: 192 | D70: 197 | E70: 200 | H70: 0.324 | I70: 0.467
A71: EXTREMADURA | C71: 3297 | D71: 3769 | E71: 3525 | F71: 93.52613425 | H71: 9.69 | I71: 12.977
A73: 4 Almería | C73: 115 | D73: 76 | E73: 80 | I73: 0.155
A74: 11 Cádiz | C74: 46510 | D74: 37999 | E74: 36129.58 | H74: 143.507 | I74: 94.998
A75: 14 Córdoba | C75: 36938 | D75: 34150 | E75: 34150 | H75: 129.283 | I75: 102.45
A76: 18 Granada | C76: 1717 | D76: 1989 | E76: 1939 | H76: 4.984 | I76: 6.176
A77: 21 Huelva | C77: 9319 | D77: 9590 | E77: 9590 | H77: 32.58 | I77: 34.524
A78: 23 Jaén | C78: 4968 | D78: 4697 | E78: 4693 | H78: 17.238 | I78: 15.992
A79: 29 Málaga | C79: 10206 | D79: 10404 | E79: 10410 | H79: 28.58 | I79: 25.94
A80: 41 Sevilla | C80: 66090 | D80: 59820 | E80: 47000 | H80: 229.75 | I80: 186.724
A81: ANDALUCÍA | C81: 175863 | D81: 158725 | E81: 143991.58 | F81: 90.71764372 | H81: 585.922 | I81: 466.959
A83: 35 Palmas (Las)
A84: 38 S. C. Tenerife
A85: CANARIAS
A88: ESPAÑA | C88: 235830 | D88: 210693.31 | E88: 195728.85 | F88: 92.89751535 | H88: 722.199 | I88: 649.768
A91: (*)Tipo de Superficie de mes/año solicitado

Sheet Tri2rno-SRT
A1: AVANCES DE SUPERFICIE Y PRODUCCIÓN
A2: TRIGO BLANDO Y SEMI DE INVIERNO S/R/T | K2: 2026 ENERO
A3: SUPERFICIE SEMBRADA(*)
A4: PROVINCIAS | B4: SUPERFICIES (HA) | E4: SUPERFICIES (HA) | H4: SUPERFICIES (HA) | L4: PRODUCCIONES (1000 TM) | O4: PRODUCCIONES (1000 TM) | R4: PRODUCCIONES (1000 TM)
A5: Y | B5: SECANO | E5: REGADIO | H5: TOTAL | L5: SECANO | O5: REGADIO | R5: TOTAL
A6: CC-AA | B6: =J6-2 -> 2024 | C6: =J6-1 -> 2025 | D6: =J6 -> 2026 | E6: =J6-2 -> 2024 | F6: =J6-1 -> 2025 | G6: =J6 -> 2026 | H6: =J6-2 -> 2024 | I6: =J6-1 -> 2025 | J6: 2026 | L6: =T6-2 -> 2024 | M6: =T6-1 -> 2025 | N6: =T6 -> 2026 | O6: =T6-2 -> 2024 | P6: =T6-1 -> 2025 | Q6: =T6 -> 2026 | R6: =T6-2 -> 2024 | S6: =T6-1 -> 2025 | T6: 2026
B7: DEFINITIVO | C7: PROVISIONAL | E7: DEFINITIVO | F7: PROVISIONAL | H7: DEFINITIVO | I7: PROVISIONAL | L7: DEFINITIVO | M7: PROVISIONAL | O7: DEFINITIVO | P7: PROVISIONAL | R7: DEFINITIVO | S7: PROVISIONAL
A10: 15 Coruña (La) | B10: 1008 | C10: 1873.48 | D10: 1323.36 | H10: 1008 | I10: 1873.48 | J10: 1323.36 | L10: 2.318 | M10: 8.214 | R10: 2.318 | S10: 8.214
A11: 27 Lugo | B11: 1832 | C11: 2806.4 | D11: 2243.41 | H11: 1832 | I11: 2806.4 | J11: 2243.41 | L11: 4.03 | M11: 7.869 | R11: 4.03 | S11: 7.869
A12: 32 Orense | B12: 5128 | C12: 5370.44 | D12: 5088.6 | H12: 5128 | I12: 5370.44 | J12: 5088.6 | L12: 15.384 | M12: 17.32 | R12: 15.384 | S12: 17.32
A13: 36 Pontevedra | B13: 172 | C13: 333.44 | D13: 315.85 | H13: 172 | I13: 333.44 | J13: 315.85 | L13: 0.387 | M13: 1.362 | R13: 0.387 | S13: 1.362
A14: GALICIA | B14: 8140 | C14: 10383.76 | D14: 8971.22 | H14: 8140 | I14: 10383.76 | J14: 8971.22 | L14: 22.119 | M14: 34.765 | R14: 22.119 | S14: 34.765
A16: 33 P. DE ASTURIAS | C16: 61 | D16: 65 | I16: 61 | J16: 65 | M16: 0.11 | S16: 0.11
A18: 39 CANTABRIA | B18: 733 | C18: 740 | D18: 750 | E18: 115 | F18: 115 | G18: 135 | H18: 848 | I18: 855 | J18: 885 | L18: 1.613 | M18: 1.484 | O18: 0.518 | P18: 0.46 | R18: 2.131 | S18: 1.944
A20: 01 Alava | B20: 19717 | C20: 17217 | D20: 18000 | H20: 19717 | I20: 17217 | J20: 18000 | L20: 138.019 | M20: 103.302 | R20: 138.019 | S20: 103.302
A21: 20 Guipúzcoa | B21: 1 | H21: 1 | L21: 0.006 | R21: 0.006
A22: 48 Vizcaya
A23: PAIS VASCO | B23: 19718 | C23: 17217 | D23: 18000 | H23: 19718 | I23: 17217 | J23: 18000 | L23: 138.025 | M23: 103.302 | R23: 138.025 | S23: 103.302
A25: 31 NAVARRA | B25: 61884 | C25: 66511 | D25: 67053 | E25: 14643 | F25: 13420 | G25: 13540 | H25: 76527 | I25: 79931 | J25: 80593 | L25: 324.186 | M25: 339.609 | O25: 104.566 | P25: 79.208 | R25: 428.752 | S25: 418.817
A27: 26 LA RIOJA | B27: 17354 | C27: 16294 | D27: 16150 | E27: 7444 | F27: 6808 | G27: 6900 | H27: 24798 | I27: 23102 | J27: 23050 | L27: 46.717 | M27: 100.065 | O27: 32.009 | P27: 43.112 | R27: 78.726 | S27: 143.177
A29: 22 Huesca | B29: 60992 | C29: 55466.53 | D29: 58400 | E29: 23597 | F29: 18601.89 | G29: 18200 | H29: 84589 | I29: 74068.42 | J29: 76600 | L29: 204.567 | M29: 241.834 | O29: 135.984 | P29: 109.937 | R29: 340.551 | S29: 351.771
A30: 44 Teruel | B30: 42138 | C30: 33985 | D30: 35211 | E30: 3988 | F30: 3249 | G30: 3469 | H30: 46126 | I30: 37234 | J30: 38680 | L30: 30.061 | M30: 83.263 | O30: 12.147 | P30: 13.72 | R30: 42.208 | S30: 96.983
A31: 50 Zaragoza | B31: 45750 | C31: 40513.5 | D31: 50706.24 | E31: 18159 | F31: 15858.9 | G31: 16482.5 | H31: 63909 | I31: 56372.4 | J31: 67188.74 | L31: 58.674 | M31: 147.631 | O31: 91.224 | P31: 93.758 | R31: 149.898 | S31: 241.389
A32: ARAGON | B32: 148880 | C32: 129965.03 | D32: 144317.24 | E32: 45744 | F32: 37709.79 | G32: 38151.5 | H32: 194624 | I32: 167674.82 | J32: 182468.74 | L32: 293.302 | M32: 472.728 | O32: 239.355 | P32: 217.415 | R32: 532.657 | S32: 690.143
A34: 08 Barcelona | B34: 21419 | C34: 20882 | D34: 21419 | E34: 370 | F34: 556 | G34: 600 | H34: 21789 | I34: 21438 | J34: 22019 | L34: 48.236 | M34: 99.367 | O34: 2.017 | P34: 3.265 | R34: 50.253 | S34: 102.632
A35: 17 Girona | B35: 10042 | C35: 9291 | D35: 8102 | E35: 2681 | F35: 4277 | G35: 4385 | H35: 12723 | I35: 13568 | J35: 12487 | L35: 23.88 | M35: 40.863 | O35: 9.952 | P35: 20.503 | R35: 33.832 | S35: 61.366
A36: 25 Lleida | B36: 41588 | C36: 32550 | D36: 34500 | E36: 20718 | F36: 15830 | G36: 15575 | H36: 62306 | I36: 48380 | J36: 50075 | L36: 83.218 | M36: 130.2 | O36: 123.293 | P36: 118.725 | R36: 206.511 | S36: 248.925
A37: 43 Tarragona | B37: 6861 | C37: 6418 | D37: 6659 | E37: 55 | F37: 68 | G37: 61 | H37: 6916 | I37: 6486 | J37: 6720 | L37: 8.192 | M37: 27.943 | O37: 0.115 | P37: 0.326 | R37: 8.307 | S37: 28.269
A38: CATALUÑA | B38: 79910 | C38: 69141 | D38: 70680 | E38: 23824 | F38: 20731 | G38: 20621 | H38: 103734 | I38: 89872 | J38: 91301 | L38: 163.526 | M38: 298.373 | O38: 135.377 | P38: 142.819 | R38: 298.903 | S38: 441.192
A40: 07 BALEARES | B40: 3694 | C40: 3670 | D40: 3800 | H40: 3694 | I40: 3670 | J40: 3800 | L40: 5.135 | M40: 5.2 | R40: 5.135 | S40: 5.2
A42: 05 Avila | B42: 28638 | C42: 34748 | D42: 34500 | E42: 2332 | F42: 1593 | G42: 1750 | H42: 30970 | I42: 36341 | J42: 36250 | L42: 54.613 | M42: 124.815 | O42: 8.37 | P42: 8.08 | R42: 62.983 | S42: 132.895
A43: 09 Burgos | B43: 179659 | C43: 191494 | D43: 183372.67 | E43: 5824 | F43: 6460 | G43: 6137.67 | H43: 185483 | I43: 197954 | J43: 189510.33 | L43: 963.691 | M43: 1018.174 | O43: 41.56 | P43: 45.75 | R43: 1005.251 | S43: 1063.924
A44: 24 León | B44: 24021 | C44: 34893 | D44: 32000 | E44: 12185 | F44: 17302 | G44: 18000 | H44: 36206 | I44: 52195 | J44: 50000 | L44: 83.569 | M44: 130.849 | O44: 79.775 | P44: 114.193 | R44: 163.344 | S44: 245.042
A45: 34 Palencia | B45: 97592 | C45: 111409 | D45: 103580 | E45: 22661 | F45: 23087 | G45: 21617 | H45: 120253 | I45: 134496 | J45: 125197 | L45: 434.675 | M45: 566.403 | O45: 141.359 | P45: 142.216 | R45: 576.034 | S45: 708.619
A46: 37 Salamanca | B46: 61003 | C46: 61999 | D46: 60000 | E46: 7311 | F46: 7980 | G46: 7000 | H46: 68314 | I46: 69979 | J46: 67000 | L46: 207.41 | M46: 260.086 | O46: 42.404 | P46: 46.284 | R46: 249.814 | S46: 306.37
A47: 40 Segovia | B47: 60157 | C47: 75566 | D47: 77000 | E47: 2873 | F47: 3742 | H47: 63030 | I47: 79308 | J47: 77000 | L47: 169.101 | M47: 306.647 | O47: 14.325 | P47: 19.017 | R47: 183.426 | S47: 325.664
A48: 42 Soria | B48: 83843 | C48: 101956 | D48: 80000 | E48: 3835 | F48: 4928 | G48: 4000 | H48: 87678 | I48: 106884 | J48: 84000 | L48: 319.19 | M48: 378.563 | O48: 19.175 | P48: 25.616 | R48: 338.365 | S48: 404.179
A49: 47 Valladolid | B49: 101383 | C49: 102138 | D49: 102000 | E49: 20125 | F49: 21526 | G49: 21500 | H49: 121508 | I49: 123664 | J49: 123500 | L49: 414.555 | M49: 542.863 | O49: 134.375 | P49: 156.86 | R49: 548.93 | S49: 699.723
A50: 49 Zamora | B50: 48737 | C50: 60551 | D50: 54495 | E50: 9020 | F50: 9542 | G50: 8550 | H50: 57757 | I50: 70093 | J50: 63045 | L50: 160.247 | M50: 237.784 | O50: 46.318 | P50: 66.794 | R50: 206.565 | S50: 304.578
A51: CASTILLA Y LEON | B51: 685033 | C51: 774754 | D51: 726947.67 | E51: 86166 | F51: 96160 | G51: 88554.67 | H51: 771199 | I51: 870914 | J51: 815502.33 | L51: 2807.051 | M51: 3566.184 | O51: 527.661 | P51: 624.81 | R51: 3334.712 | S51: 4190.994
A53: 28 MADRID | B53: 17242 | C53: 16964 | D53: 16956 | E53: 1893 | F53: 1544 | G53: 1544 | H53: 19135 | I53: 18508 | J53: 18500 | L53: 49.337 | M53: 53.963 | O53: 8.617 | P53: 7.479 | R53: 57.954 | S53: 61.442
A55: 02 Albacete | B55: 42630 | C55: 41397 | D55: 42828 | E55: 10650 | F55: 11953 | G55: 12112.5 | H55: 53280 | I55: 53350 | J55: 54940.5 | L55: 41.918 | M55: 94.187 | O55: 77.213 | P55: 91.476 | R55: 119.131 | S55: 185.663
A56: 13 Ciudad Real | B56: 41136 | C56: 39650 | D56: 38600 | E56: 7654 | F56: 8310 | G56: 8770 | H56: 48790 | I56: 47960 | J56: 47370 | L56: 90.376 | M56: 134.81 | O56: 39.801 | P56: 45.705 | R56: 130.177 | S56: 180.515
A57: 16 Cuenca | B57: 47006 | C57: 57309 | D57: 48160 | E57: 3050 | F57: 3320 | G57: 3602 | H57: 50056 | I57: 60629 | J57: 51762 | L57: 131.582 | M57: 174.79 | O57: 15.543 | P57: 16.93 | R57: 147.125 | S57: 191.72
A58: 19 Guadalajara | B58: 66242 | C58: 65772 | D58: 65772 | E58: 2027 | F58: 2011 | G58: 2011 | H58: 68269 | I58: 67783 | J58: 67783 | L58: 230.202 | M58: 249.934 | O58: 12.066 | P58: 11.061 | R58: 242.268 | S58: 260.995
A59: 45 Toledo | B59: 47675 | C59: 54305 | D59: 54305 | E59: 3955 | F59: 5574 | G59: 5574 | H59: 51630 | I59: 59879 | J59: 59879 | L59: 119.188 | M59: 136.829 | O59: 18.193 | P59: 26.755 | R59: 137.381 | S59: 163.584
A60: CASTILLA-MANCHA | B60: 244689 | C60: 258433 | D60: 249665 | E60: 27336 | F60: 31168 | G60: 32069.5 | H60: 272025 | I60: 289601 | J60: 281734.5 | L60: 613.266 | M60: 790.55 | O60: 162.816 | P60: 191.927 | R60: 776.082 | S60: 982.477
A62: 03 Alicante | B62: 790 | C62: 1093 | D62: 996 | E62: 390 | F62: 365 | G62: 332 | H62: 1180 | I62: 1458 | J62: 1328 | L62: 0.188 | M62: 1.963 | O62: 0.653 | P62: 1.976 | R62: 0.841 | S62: 3.939
A63: 12 Castellón | B63: 555 | C63: 650 | D63: 720 | E63: 17 | F63: 17 | G63: 35 | H63: 572 | I63: 667 | J63: 755 | L63: 0.084 | M63: 1.398 | O63: 0.082 | P63: 0.082 | R63: 0.166 | S63: 1.48
A64: 46 Valencia | B64: 2424 | C64: 2123 | D64: 2515 | E64: 237 | F64: 37 | G64: 47 | H64: 2661 | I64: 2160 | J64: 2562 | L64: 1.06 | M64: 6.157 | O64: 0.975 | P64: 0.162 | R64: 2.035 | S64: 6.319
A65: C. VALENCIANA | B65: 3769 | C65: 3866 | D65: 4231 | E65: 644 | F65: 419 | G65: 414 | H65: 4413 | I65: 4285 | J65: 4645 | L65: 1.332 | M65: 9.518 | O65: 1.71 | P65: 2.22 | R65: 3.042 | S65: 11.738
A67: 30 R. DE MURCIA | B67: 6251 | C67: 6324 | D67: 7656 | E67: 599 | F67: 526 | G67: 1020 | H67: 6850 | I67: 6850 | J67: 8676 | L67: 2.434 | M67: 0.41 | O67: 2.091 | P67: 3.49 | R67: 4.525 | S67: 3.9
A69: 06 Badajoz | B69: 63565 | C69: 63348 | D69: 59850 | E69: 10618 | F69: 10634 | G69: 10450 | H69: 74183 | I69: 73982 | J69: 70300 | L69: 199.201 | M69: 169.742 | O69: 43.714 | P69: 37.042 | R69: 242.915 | S69: 206.784
A70: 10 Cáceres | B70: 2330 | C70: 1856 | D70: 2000 | E70: 1215 | F70: 1526 | G70: 1500 | H70: 3545 | I70: 3382 | J70: 3500 | L70: 4.953 | M70: 3.931 | O70: 3.393 | P70: 4.201 | R70: 8.347 | S70: 8.132
A71: EXTREMADURA | B71: 65895 | C71: 65204 | D71: 61850 | E71: 11833 | F71: 12160 | G71: 11950 | H71: 77728 | I71: 77364 | J71: 73800 | L71: 204.154 | M71: 173.673 | O71: 47.107 | P71: 41.243 | R71: 251.262 | S71: 214.916
A73: 04 Almería | B73: 1763 | C73: 1554 | D73: 1560 | E73: 65 | F73: 20 | G73: 20 | H73: 1828 | I73: 1574 | J73: 1580 | L73: 0.016 | M73: 3.984 | O73: 0.083 | P73: 0.064 | R73: 0.099 | S73: 4.048
A74: 11 Cádiz | B74: 9075 | C74: 10879.38 | D74: 10682.46 | E74: 1647 | F74: 1336.97 | G74: 1339.68 | H74: 10722 | I74: 12216.35 | J74: 12022.14 | L74: 15.855 | M74: 43.516 | O74: 6.458 | P74: 5.348 | R74: 22.313 | S74: 48.864
A75: 14 Córdoba | B75: 21160 | C75: 20330 | D75: 20330 | E75: 2078 | F75: 2390 | G75: 2390 | H75: 23238 | I75: 22720 | J75: 22720 | L75: 79.35 | M75: 60.99 | O75: 7.793 | P75: 7.17 | R75: 87.143 | S75: 68.16
A76: 18 Granada | B76: 7112 | C76: 7510 | D76: 7498 | E76: 816 | F76: 847 | G76: 838 | H76: 7928 | I76: 8357 | J76: 8336 | L76: 9.803 | M76: 15.443 | O76: 2.504 | P76: 4.039 | R76: 12.308 | S76: 19.481
A77: 21 Huelva | B77: 4160 | C77: 4105 | D77: 4105 | E77: 347 | F77: 275 | G77: 275 | H77: 4507 | I77: 4380 | J77: 4380 | L77: 15.392 | M77: 15.023 | O77: 1.328 | P77: 1.183 | R77: 16.72 | S77: 16.206
A78: 23 Jaén | B78: 2302 | C78: 1969 | D78: 1974 | E78: 202 | F78: 156 | G78: 158 | H78: 2504 | I78: 2125 | J78: 2132 | L78: 6.906 | M78: 5.513 | O78: 0.808 | P78: 0.562 | R78: 7.714 | S78: 6.075
A79: 29 Málaga | B79: 4459 | C79: 5432 | D79: 5439 | E79: 313 | F79: 389 | G79: 390 | H79: 4772 | I79: 5821 | J79: 5829 | L79: 9.792 | M79: 14.123 | O79: 1.33 | P79: 1.906 | R79: 11.122 | S79: 16.029
A80: 41 Sevilla | B80: 52650 | C80: 54310 | D80: 50000 | E80: 10820 | F80: 9310 | G80: 8000 | H80: 63470 | I80: 63620 | J80: 58000 | L80: 189.54 | M80: 190.085 | O80: 45.444 | P80: 39.102 | R80: 234.984 | S80: 229.187
A81: ANDALUCIA | B81: 102681 | C81: 106089.38 | D81: 101588.46 | E81: 16288 | F81: 14723.97 | G81: 13410.68 | H81: 118969 | I81: 120813.35 | J81: 114999.14 | L81: 326.654 | M81: 348.677 | O81: 65.748 | P81: 59.374 | R81: 392.403 | S81: 408.05
A83: 35 Palmas (Las) | B83: 88 | C83: 88 | D83: 88 | E83: 1 | F83: 1 | G83: 1 | H83: 89 | I83: 89 | J83: 89 | L83: 0.088 | M83: 0.088 | O83: 0.001 | P83: 0.001 | R83: 0.089 | S83: 0.089
A84: 38 S. C. Tenerife | B84: 114 | C84: 114 | D84: 114 | E84: 23 | F84: 23 | G84: 23 | H84: 137 | I84: 137 | J84: 137 | L84: 0.108 | M84: 0.108 | O84: 0.035 | P84: 0.035 | R84: 0.143 | S84: 0.143
A85: CANARIAS | B85: 202 | C85: 202 | D85: 202 | E85: 24 | F85: 24 | G85: 24 | H85: 226 | I85: 226 | J85: 226 | L85: 0.196 | M85: 0.196 | O85: 0.036 | P85: 0.036 | R85: 0.232 | S85: 0.232
A88: ESPAÑA | B88: 2932150 | C88: 1545819.17 | D88: 1498882.59 | E88: 236553 | F88: 235508.76 | G88: 228334.35 | H88: 1702628 | I88: 1781327.93 | J88: 1727216.93 | L88: 4999.047 | M88: 6298.807 | O88: 1327.611 | P88: 1413.593 | R88: 6326.66 | S88: 7712.399
B96: 221 | C96: 231 | E96: 221 | F96: 231 | H96: 221 | I96: 231

Sheet Tri2rno
A1: AVANCES DE SUPERFICIE Y PRODUCCIÓN
A2: TRIGO BLANDO Y SEMI DE INVIERNO | J2: 2026 ENERO
A3: SUPERFICIE SEMBRADA(*)
A4: PROVINCIAS | C4: SUPERFICIES (HA) | H4: PRODUCCIONES (1000 TM)
A5: Y
A6: CC-AA | C6: =E6-2 -> 2024 | D6: =E6-1 -> 2025 | E6: 2026 | F6: =E6 -> 2026 | H6: =J6-2 -> 2024 | I6: =J6-1 -> 2025 | J6: 2026 | K6: =J6 -> 2026
C7: DEFINITIVO | D7: PROVISIONAL | H7: DEFINITIVO | I7: PROVISIONAL
F8: =CONCATENATE(D6,"=100") -> 2025=100 | K8: =CONCATENATE(I6,"=100") -> 2025=100
A10: 15 A Coruña | C10: 1008 | D10: 1873.48 | E10: 1323.36 | H10: 2.318 | I10: 8.214
A11: 27 Lugo | C11: 1832 | D11: 2806.4 | E11: 2243.41 | H11: 4.03 | I11: 7.869
A12: 32 Ourense | C12: 5128 | D12: 5370.44 | E12: 5088.6 | H12: 15.384 | I12: 17.32
A13: 36 Pontevedra | C13: 172 | D13: 333.44 | E13: 315.85 | H13: 0.387 | I13: 1.362
A14: GALICIA | C14: 8140 | D14: 10383.76 | E14: 8971.22 | F14: 86.39664245 | H14: 22.119 | I14: 34.765
A16: 33 P. DE ASTURIAS | D16: 61 | E16: 65 | F16: 106.557377 | I16: 0.11
A18: 39 CANTABRIA | C18: 848 | D18: 855 | E18: 885 | F18: 103.5087719 | H18: 2.131 | I18: 1.944
A20: 1 Álava | C20: 19717 | D20: 17217 | E20: 18000 | H20: 138.019 | I20: 103.302
A21: 20 Guipúzcoa | C21: 1 | H21: 0.006
A22: 48 Vizcaya
A23: PAIS VASCO | C23: 19718 | D23: 17217 | E23: 18000 | F23: 104.5478306 | H23: 138.025 | I23: 103.302
A25: 31 NAVARRA | C25: 76527 | D25: 79931 | E25: 80593 | F25: 100.8282143 | H25: 428.752 | I25: 418.817
A27: 26 LA RIOJA | C27: 24798 | D27: 23102 | E27: 23050 | F27: 99.77491126 | H27: 78.726 | I27: 143.177
A29: 22 Huesca | C29: 84589 | D29: 74068.42 | E29: 76600 | H29: 340.551 | I29: 351.771
A30: 44 Teruel | C30: 46126 | D30: 37234 | E30: 38680 | H30: 42.208 | I30: 96.983
A31: 50 Zaragoza | C31: 63909 | D31: 56372.4 | E31: 67188.74 | H31: 149.898 | I31: 241.389
A32: ARAGÓN | C32: 194624 | D32: 167674.82 | E32: 182468.74 | F32: 108.8229825 | H32: 532.657 | I32: 690.143
A34: 8 Barcelona | C34: 21789 | D34: 21438 | E34: 22019 | H34: 50.253 | I34: 102.632
A35: 17 Girona | C35: 12723 | D35: 13568 | E35: 12487 | H35: 33.832 | I35: 61.366
A36: 25 Lleida | C36: 62306 | D36: 48380 | E36: 50075 | H36: 206.511 | I36: 248.925
A37: 43 Tarragona | C37: 6916 | D37: 6486 | E37: 6720 | H37: 8.307 | I37: 28.269
A38: CATALUÑA | C38: 103734 | D38: 89872 | E38: 91301 | F38: 101.5900392 | H38: 298.903 | I38: 441.192
A40: 7 BALEARES | C40: 3694 | D40: 3670 | E40: 3800 | F40: 103.5422343 | H40: 5.135 | I40: 5.2
A42: 5 Ávila | C42: 30970 | D42: 36341 | E42: 36250 | H42: 62.983 | I42: 132.895
A43: 9 Burgos | C43: 185483 | D43: 197954 | E43: 189510.33 | H43: 1005.251 | I43: 1063.924
A44: 24 León | C44: 36206 | D44: 52195 | E44: 50000 | H44: 163.344 | I44: 245.042
A45: 34 Palencia | C45: 120253 | D45: 134496 | E45: 125197 | H45: 576.034 | I45: 708.619
A46: 37 Salamanca | C46: 68314 | D46: 69979 | E46: 67000 | H46: 249.814 | I46: 306.37
A47: 40 Segovia | C47: 63030 | D47: 79308 | E47: 77000 | H47: 183.426 | I47: 325.664
A48: 42 Soria | C48: 87678 | D48: 106884 | E48: 84000 | H48: 338.365 | I48: 404.179
A49: 47 Valladolid | C49: 121508 | D49: 123664 | E49: 123500 | H49: 548.93 | I49: 699.723
A50: 49 Zamora | C50: 57757 | D50: 70093 | E50: 63045 | H50: 206.565 | I50: 304.578
A51: CASTILLA Y LEÓN | C51: 771199 | D51: 870914 | E51: 815502.33 | F51: 93.63752678 | H51: 3334.712 | I51: 4190.994
A53: 28 MADRID | C53: 19135 | D53: 18508 | E53: 18500 | F53: 99.95677545 | H53: 57.954 | I53: 61.442
A55: 2 Albacete | C55: 53280 | D55: 53350 | E55: 54940.5 | H55: 119.131 | I55: 185.663
A56: 13 Ciudad Real | C56: 48790 | D56: 47960 | E56: 47370 | H56: 130.177 | I56: 180.515
A57: 16 Cuenca | C57: 50056 | D57: 60629 | E57: 51762 | H57: 147.125 | I57: 191.72
A58: 19 Guadalajara | C58: 68269 | D58: 67783 | E58: 67783 | H58: 242.268 | I58: 260.995
A59: 45 Toledo | C59: 51630 | D59: 59879 | E59: 59879 | H59: 137.381 | I59: 163.584
A60: CASTILLA-MANCHA | C60: 272025 | D60: 289601 | E60: 281734.5 | F60: 97.28367651 | H60: 776.082 | I60: 982.477
A62: 3 Alicante | C62: 1180 | D62: 1458 | E62: 1328 | H62: 0.841 | I62: 3.939
A63: 12 Castellón | C63: 572 | D63: 667 | E63: 755 | H63: 0.166 | I63: 1.48
A64: 46 Valencia | C64: 2661 | D64: 2160 | E64: 2562 | H64: 2.035 | I64: 6.319
A65: C. VALENCIANA | C65: 4413 | D65: 4285 | E65: 4645 | F65: 108.4014002 | H65: 3.042 | I65: 11.738
A67: 30 R. DE MURCIA | C67: 6850 | D67: 6850 | E67: 8676 | F67: 126.6569343 | H67: 4.525 | I67: 3.9
A69: 6 Badajoz | C69: 74183 | D69: 73982 | E69: 70300 | H69: 242.915 | I69: 206.784
A70: 10 Cáceres | C70: 3545 | D70: 3382 | E70: 3500 | H70: 8.347 | I70: 8.132
A71: EXTREMADURA | C71: 77728 | D71: 77364 | E71: 73800 | F71: 95.39320614 | H71: 251.262 | I71: 214.916
A73: 4 Almería | C73: 1828 | D73: 1574 | E73: 1580 | H73: 0.099 | I73: 4.048
A74: 11 Cádiz | C74: 10722 | D74: 12216.35 | E74: 12022.14 | H74: 22.313 | I74: 48.864
A75: 14 Córdoba | C75: 23238 | D75: 22720 | E75: 22720 | H75: 87.143 | I75: 68.16
A76: 18 Granada | C76: 7928 | D76: 8357 | E76: 8336 | H76: 12.308 | I76: 19.481
A77: 21 Huelva | C77: 4507 | D77: 4380 | E77: 4380 | H77: 16.72 | I77: 16.206
A78: 23 Jaén | C78: 2504 | D78: 2125 | E78: 2132 | H78: 7.714 | I78: 6.075
A79: 29 Málaga | C79: 4772 | D79: 5821 | E79: 5829 | H79: 11.122 | I79: 16.029
A80: 41 Sevilla | C80: 63470 | D80: 63620 | E80: 58000 | H80: 234.984 | I80: 229.187
A81: ANDALUCÍA | C81: 118969 | D81: 120813.35 | E81: 114999.14 | F81: 95.1874441 | H81: 392.403 | I81: 408.05
A83: 35 Palmas (Las) | C83: 89 | D83: 89 | E83: 89 | H83: 0.089 | I83: 0.089
A84: 38 S. C. Tenerife | C84: 137 | D84: 137 | E84: 137 | H84: 0.143 | I84: 0.143
A85: CANARIAS | C85: 226 | D85: 226 | E85: 226 | F85: 100 | H85: 0.232 | I85: 0.232
A88: ESPAÑA | C88: 1702628 | D88: 1781327.93 | E88: 1727216.93 | F88: 96.96232237 | H88: 6326.66 | I88: 7712.399
A91: (*)Tipo de Superficie de mes/año solicitado

Sheet Tri3era-SRT
A1: AVANCES DE SUPERFICIE Y PRODUCCIÓN
A2: TRIGO DE PRIMAVERA S/R/T | K2: 2026 ENERO
A3: SUPERFICIE SEMBRADA(*)
A4: PROVINCIAS | B4: SUPERFICIES (HA) | E4: SUPERFICIES (HA) | H4: SUPERFICIES (HA) | L4: PRODUCCIONES (1000 TM) | O4: PRODUCCIONES (1000 TM) | R4: PRODUCCIONES (1000 TM)
A5: Y | B5: SECANO | E5: REGADIO | H5: TOTAL | L5: SECANO | O5: REGADIO | R5: TOTAL
A6: CC-AA | B6: =J6-2 -> 2024 | C6: =J6-1 -> 2025 | D6: =J6 -> 2026 | E6: =J6-2 -> 2024 | F6: =J6-1 -> 2025 | G6: =J6 -> 2026 | H6: =J6-2 -> 2024 | I6: =J6-1 -> 2025 | J6: 2026 | L6: =T6-2 -> 2024 | M6: =T6-1 -> 2025 | N6: =T6 -> 2026 | O6: =T6-2 -> 2024 | P6: =T6-1 -> 2025 | Q6: =T6 -> 2026 | R6: =T6-2 -> 2024 | S6: =T6-1 -> 2025 | T6: 2026
B7: DEFINITIVO | C7: PROVISIONAL | E7: DEFINITIVO | F7: PROVISIONAL | H7: DEFINITIVO | I7: PROVISIONAL | L7: DEFINITIVO | M7: PROVISIONAL | O7: DEFINITIVO | P7: PROVISIONAL | R7: DEFINITIVO | S7: PROVISIONAL
A10: 15 Coruña (La) | B10: 733 | C10: 263.53 | D10: 186.75 | H10: 733 | I10: 263.53 | J10: 186.75 | L10: 1.686 | M10: 1.155 | R10: 1.686 | S10: 1.155
A11: 27 Lugo | B11: 1308 | C11: 456.29 | D11: 354.27 | H11: 1308 | I11: 456.29 | J11: 354.27 | L11: 2.878 | M11: 1.112 | R11: 2.877 | S11: 1.112
A12: 32 Orense | B12: 3404 | C12: 757.72 | D12: 810.35 | H12: 3404 | I12: 757.72 | J12: 810.35 | L12: 9.872 | M12: 2.414 | R12: 9.872 | S12: 2.414
A13: 36 Pontevedra | B13: 113 | C13: 50.78 | D13: 48.67 | H13: 113 | I13: 50.78 | J13: 48.67 | L13: 0.254 | M13: 0.018 | R13: 0.254 | S13: 0.018
A14: GALICIA | B14: 5558 | C14: 1528.32 | D14: 1400.04 | H14: 5558 | I14: 1528.32 | J14: 1400.04 | L14: 14.69 | M14: 4.699 | R14: 14.689 | S14: 4.699
A16: 33 P. DE ASTURIAS
A18: 39 CANTABRIA
A20: 01 Alava
A21: 20 Guipúzcoa
A22: 48 Vizcaya
A23: PAIS VASCO
A25: 31 NAVARRA
A27: 26 LA RIOJA
A29: 22 Huesca | B29: 1290 | C29: 1169.08 | D29: 1240 | E29: 520 | F29: 403.94 | G29: 500 | H29: 1810 | I29: 1573.02 | J29: 1740 | L29: 4.08 | M29: 5.077 | O29: 2.807 | P29: 2.389 | R29: 6.886 | S29: 7.466
A30: 44 Teruel | C30: 686 | D30: 733 | F30: 68 | G30: 72 | I30: 754 | J30: 805 | M30: 1.673 | P30: 0.285 | S30: 1.958
A31: 50 Zaragoza | B31: 2739 | C31: 2284.57 | D31: 2855.19 | E31: 1071 | F31: 1216.65 | G31: 1025.63 | H31: 3810 | I31: 3501.22 | J31: 3880.82 | L31: 2.497 | M31: 6.485 | O31: 4.825 | P31: 7.032 | R31: 7.323 | S31: 13.518
A32: ARAGON | B32: 4029 | C32: 4139.65 | D32: 4828.19 | E32: 1591 | F32: 1688.59 | G32: 1597.63 | H32: 5620 | I32: 5828.24 | J32: 6425.82 | L32: 6.577 | M32: 13.235 | O32: 7.632 | P32: 9.706 | R32: 14.209 | S32: 22.942
A34: 08 Barcelona
A35: 17 Girona
A36: 25 Lleida
A37: 43 Tarragona
A38: CATALUÑA
A40: 07 BALEARES | B40: 1244 | C40: 1243 | D40: 1210 | H40: 1244 | I40: 1243 | J40: 1210 | L40: 1.729 | M40: 1.718 | R40: 1.729 | S40: 1.718
A42: 05 Avila
A43: 09 Burgos
A44: 24 León
A45: 34 Palencia
A46: 37 Salamanca
A47: 40 Segovia
A48: 42 Soria
A49: 47 Valladolid
A50: 49 Zamora
A51: CASTILLA Y LEON
A53: 28 MADRID | B53: 911 | C53: 897 | D53: 896 | E53: 107 | F53: 86 | G53: 86 | H53: 1018 | I53: 983 | J53: 982 | L53: 2.643 | M53: 2.857 | O53: 0.483 | P53: 0.411 | R53: 3.127 | S53: 3.268
A55: 02 Albacete | E55: 2095 | F55: 2200 | G55: 2250 | H55: 2095 | I55: 2200 | J55: 2250 | O55: 14.854 | P55: 16.83 | R55: 14.853 | S55: 16.83
A56: 13 Ciudad Real
A57: 16 Cuenca
A58: 19 Guadalajara
A59: 45 Toledo
A60: CASTILLA-MANCHA | E60: 2095 | F60: 2200 | G60: 2250 | H60: 2095 | I60: 2200 | J60: 2250 | O60: 14.854 | P60: 16.83 | R60: 14.853 | S60: 16.83
A62: 03 Alicante
A63: 12 Castellón | B63: 145 | C63: 145 | D63: 145 | E63: 4 | F63: 4 | G63: 8 | H63: 149 | I63: 149 | J63: 153 | L63: 0.022 | M63: 0.311 | O63: 0.019 | P63: 0.019 | R63: 0.041 | S63: 0.33
A64: 46 Valencia
A65: C. VALENCIANA | B65: 145 | C65: 145 | D65: 145 | E65: 4 | F65: 4 | G65: 8 | H65: 149 | I65: 149 | J65: 153 | L65: 0.022 | M65: 0.311 | O65: 0.019 | P65: 0.019 | R65: 0.041 | S65: 0.33
A67: 30 R. DE MURCIA
A69: 06 Badajoz
A70: 10 Cáceres
A71: EXTREMADURA
A73: 04 Almería
A74: 11 Cádiz
A75: 14 Córdoba
A76: 18 Granada
A77: 21 Huelva
A78: 23 Jaén
A79: 29 Málaga
A80: 41 Sevilla
A81: ANDALUCIA
A83: 35 Palmas (Las)
A84: 38 S. C. Tenerife
A85: CANARIAS
A88: ESPAÑA | B88: 23774 | C88: 7952.97 | D88: 8479.23 | E88: 3797 | F88: 3978.59 | G88: 3941.63 | H88: 15684 | I88: 11931.56 | J88: 12420.86 | L88: 25.661 | M88: 22.82 | O88: 22.988 | P88: 26.966 | R88: 48.648 | S88: 49.787
B96: 221 | C96: 231 | E96: 221 | F96: 231 | H96: 221 | I96: 231

Sheet Tri3era
A1: AVANCES DE SUPERFICIE Y PRODUCCIÓN
A2: TRIGO DE PRIMAVERA | J2: 2026 ENERO
A3: SUPERFICIE SEMBRADA(*)
A4: PROVINCIAS | C4: SUPERFICIES (HA) | H4: PRODUCCIONES (1000 TM)
A5: Y
A6: CC-AA | C6: =E6-2 -> 2024 | D6: =E6-1 -> 2025 | E6: 2026 | F6: =E6 -> 2026 | H6: =J6-2 -> 2024 | I6: =J6-1 -> 2025 | J6: 2026 | K6: =J6 -> 2026
C7: DEFINITIVO | D7: PROVISIONAL | H7: DEFINITIVO | I7: PROVISIONAL
F8: =CONCATENATE(D6,"=100") -> 2025=100 | K8: =CONCATENATE(I6,"=100") -> 2025=100
A10: 15 A Coruña | C10: 733 | D10: 263.53 | E10: 186.75 | H10: 1.686 | I10: 1.155
A11: 27 Lugo | C11: 1308 | D11: 456.29 | E11: 354.27 | H11: 2.877 | I11: 1.112
A12: 32 Ourense | C12: 3404 | D12: 757.72 | E12: 810.35 | H12: 9.872 | I12: 2.414
A13: 36 Pontevedra | C13: 113 | D13: 50.78 | E13: 48.67 | H13: 0.254 | I13: 0.018
A14: GALICIA | C14: 5558 | D14: 1528.32 | E14: 1400.04 | F14: 91.60646985 | H14: 14.689 | I14: 4.699
A16: 33 P. DE ASTURIAS
A18: 39 CANTABRIA
A20: 1 Álava
A21: 20 Guipúzcoa
A22: 48 Vizcaya
A23: PAIS VASCO
A25: 31 NAVARRA
A27: 26 LA RIOJA
A29: 22 Huesca | C29: 1810 | D29: 1573.02 | E29: 1740 | H29: 6.886 | I29: 7.466
A30: 44 Teruel | D30: 754 | E30: 805 | I30: 1.958
A31: 50 Zaragoza | C31: 3810 | D31: 3501.22 | E31: 3880.82 | H31: 7.323 | I31: 13.518
A32: ARAGÓN | C32: 5620 | D32: 5828.24 | E32: 6425.82 | F32: 110.2531811 | H32: 14.209 | I32: 22.942
A34: 8 Barcelona
A35: 17 Girona
A36: 25 Lleida
A37: 43 Tarragona
A38: CATALUÑA
A40: 7 BALEARES | C40: 1244 | D40: 1243 | E40: 1210 | F40: 97.34513274 | H40: 1.729 | I40: 1.718
A42: 5 Ávila
A43: 9 Burgos
A44: 24 León
A45: 34 Palencia
A46: 37 Salamanca
A47: 40 Segovia
A48: 42 Soria
A49: 47 Valladolid
A50: 49 Zamora
A51: CASTILLA Y LEÓN
A53: 28 MADRID | C53: 1018 | D53: 983 | E53: 982 | F53: 99.8982706 | H53: 3.127 | I53: 3.268
A55: 2 Albacete | C55: 2095 | D55: 2200 | E55: 2250 | H55: 14.853 | I55: 16.83
A56: 13 Ciudad Real
A57: 16 Cuenca
A58: 19 Guadalajara
A59: 45 Toledo
A60: CASTILLA-MANCHA | C60: 2095 | D60: 2200 | E60: 2250 | F60: 102.2727273 | H60: 14.853 | I60: 16.83
A62: 3 Alicante
A63: 12 Castellón | C63: 149 | D63: 149 | E63: 153 | H63: 0.041 | I63: 0.33
A64: 46 Valencia
A65: C. VALENCIANA | C65: 149 | D65: 149 | E65: 153 | F65: 102.6845638 | H65: 0.041 | I65: 0.33
A67: 30 R. DE MURCIA
A69: 6 Badajoz
A70: 10 Cáceres
A71: EXTREMADURA
A73: 4 Almería
A74: 11 Cádiz
A75: 14 Córdoba
A76: 18 Granada
A77: 21 Huelva
A78: 23 Jaén
A79: 29 Málaga
A80: 41 Sevilla
A81: ANDALUCÍA
A83: 35 Palmas (Las)
A84: 38 S. C. Tenerife
A85: CANARIAS
A88: ESPAÑA | C88: 15684 | D88: 11931.56 | E88: 12420.86 | F88: 104.1008887 | H88: 48.648 | I88: 49.787
A91: (*)Tipo de Superficie de mes/año solicitado

Sheet Tri4era-SRT
A1: AVANCES DE SUPERFICIE Y PRODUCCIÓN
A2: TRIGO DURO DE PRIMAVERA S/R/T | K2: 2026 ENERO
A3: SUPERFICIE SEMBRADA(*)
A4: PROVINCIAS | B4: SUPERFICIES (HA) | E4: SUPERFICIES (HA) | H4: SUPERFICIES (HA) | L4: PRODUCCIONES (1000 TM) | O4: PRODUCCIONES (1000 TM) | R4: PRODUCCIONES (1000 TM)
A5: Y | B5: SECANO | E5: REGADIO | H5: TOTAL | L5: SECANO | O5: REGADIO | R5: TOTAL
A6: CC-AA | B6: =J6-2 -> 2024 | C6: =J6-1 -> 2025 | D6: =J6 -> 2026 | E6: =J6-2 -> 2024 | F6: =J6-1 -> 2025 | G6: =J6 -> 2026 | H6: =J6-2 -> 2024 | I6: =J6-1 -> 2025 | J6: 2026 | L6: =T6-2 -> 2024 | M6: =T6-1 -> 2025 | N6: =T6 -> 2026 | O6: =T6-2 -> 2024 | P6: =T6-1 -> 2025 | Q6: =T6 -> 2026 | R6: =T6-2 -> 2024 | S6: =T6-1 -> 2025 | T6: 2026
B7: DEFINITIVO | C7: PROVISIONAL | E7: DEFINITIVO | F7: PROVISIONAL | H7: DEFINITIVO | I7: PROVISIONAL | L7: DEFINITIVO | M7: PROVISIONAL | O7: DEFINITIVO | P7: PROVISIONAL | R7: DEFINITIVO | S7: PROVISIONAL
A10: 15 Coruña (La) | B10: 4 | C10: 8.04 | D10: 6.28 | H10: 4 | I10: 8.04 | J10: 6.28 | L10: 0.009 | M10: 0.016 | R10: 0.009 | S10: 0.016
A11: 27 Lugo | B11: 86 | C11: 73.61 | D11: 48.37 | H11: 86 | I11: 73.61 | J11: 48.37 | L11: 0.189 | M11: 0.149 | R11: 0.189 | S11: 0.149
A12: 32 Orense | C12: 25.4 | D12: 116.47 | I12: 25.4 | J12: 116.47 | M12: 0.052 | S12: 0.052
A13: 36 Pontevedra | C13: 5.32 | D13: 5.62 | I13: 5.32 | J13: 5.62 | M13: 0.009 | S13: 0.009
A14: GALICIA | B14: 90 | C14: 112.37 | D14: 176.74 | H14: 90 | I14: 112.37 | J14: 176.74 | L14: 0.198 | M14: 0.226 | R14: 0.198 | S14: 0.226
A16: 33 P. DE ASTURIAS
A18: 39 CANTABRIA
A20: 01 Alava
A21: 20 Guipúzcoa
A22: 48 Vizcaya
A23: PAIS VASCO
A25: 31 NAVARRA
A27: 26 LA RIOJA
A29: 22 Huesca | B29: 45 | C29: 34.96 | D29: 40 | E29: 38 | F29: 23.3 | G29: 50 | H29: 83 | I29: 58.26 | J29: 90 | L29: 0.085 | M29: 0.132 | O29: 0.134 | P29: 0.14 | R29: 0.219 | S29: 0.272
A30: 44 Teruel | C30: 13 | D30: 14 | F30: 2 | G30: 1 | I30: 15 | J30: 15 | M30: 0.024 | P30: 0.007 | S30: 0.031
A31: 50 Zaragoza | B31: 1805 | C31: 1457.76 | D31: 1032.43 | E31: 700 | F31: 555.67 | G31: 433.13 | H31: 2505 | I31: 2013.43 | J31: 1465.56 | L31: 1.437 | M31: 3.472 | O31: 3.007 | P31: 3.125 | R31: 4.445 | S31: 6.597
A32: ARAGON | B32: 1850 | C32: 1505.72 | D32: 1086.43 | E32: 738 | F32: 580.97 | G32: 484.13 | H32: 2588 | I32: 2086.69 | J32: 1570.56 | L32: 1.522 | M32: 3.628 | O32: 3.141 | P32: 3.272 | R32: 4.664 | S32: 6.9
A34: 08 Barcelona
A35: 17 Girona
A36: 25 Lleida
A37: 43 Tarragona
A38: CATALUÑA
A40: 07 BALEARES | B40: 13 | C40: 13 | D40: 10 | H40: 13 | I40: 13 | J40: 10 | L40: 0.018 | M40: 0.018 | R40: 0.018 | S40: 0.018
A42: 05 Avila
A43: 09 Burgos
A44: 24 León
A45: 34 Palencia
A46: 37 Salamanca
A47: 40 Segovia
A48: 42 Soria
A49: 47 Valladolid
A50: 49 Zamora
A51: CASTILLA Y LEON
A53: 28 MADRID | B53: 4 | C53: 4 | D53: 4 | E53: 7 | F53: 5 | G53: 5 | H53: 11 | I53: 9 | J53: 9 | L53: 0.005 | M53: 0.017 | O53: 0.028 | P53: 0.017 | R53: 0.033 | S53: 0.034
A55: 02 Albacete | E55: 215 | H55: 215 | O55: 1.505 | R55: 1.505
A56: 13 Ciudad Real
A57: 16 Cuenca
A58: 19 Guadalajara
A59: 45 Toledo
A60: CASTILLA-MANCHA | E60: 215 | H60: 215 | O60: 1.505 | R60: 1.505
A62: 03 Alicante
A63: 12 Castellón | B63: 6 | C63: 6 | D63: 6 | H63: 6 | I63: 6 | J63: 6 | L63: 0.001 | M63: 0.012 | R63: 0.001 | S63: 0.012
A64: 46 Valencia
A65: C. VALENCIANA | B65: 6 | C65: 6 | D65: 6 | H65: 6 | I65: 6 | J65: 6 | L65: 0.001 | M65: 0.012 | R65: 0.001 | S65: 0.012
A67: 30 R. DE MURCIA
A69: 06 Badajoz
A70: 10 Cáceres
A71: EXTREMADURA
A73: 04 Almería
A74: 11 Cádiz
A75: 14 Córdoba
A76: 18 Granada
A77: 21 Huelva
A78: 23 Jaén
A79: 29 Málaga
A80: 41 Sevilla
A81: ANDALUCIA
A83: 35 Palmas (Las)
A84: 38 S. C. Tenerife
A85: CANARIAS
A88: ESPAÑA | B88: 3926 | C88: 1641.09 | D88: 1283.17 | E88: 960 | F88: 585.97 | G88: 489.13 | H88: 2923 | I88: 2227.06 | J88: 1772.3 | L88: 1.744 | M88: 3.901 | O88: 4.674 | P88: 3.289 | R88: 6.419 | S88: 7.19
B96: 221 | C96: 231 | E96: 221 | F96: 231 | H96: 221 | I96: 231

Sheet Tri4era
A1: AVANCES DE SUPERFICIE Y PRODUCCIÓN
A2: TRIGO DURO DE PRIMAVERA | J2: 2026 ENERO
A3: SUPERFICIE SEMBRADA(*)
A4: PROVINCIAS | C4: SUPERFICIES (HA) | H4: PRODUCCIONES (1000 TM)
A5: Y
A6: CC-AA | C6: =E6-2 -> 2024 | D6: =E6-1 -> 2025 | E6: 2026 | F6: =E6 -> 2026 | H6: =J6-2 -> 2024 | I6: =J6-1 -> 2025 | J6: 2026 | K6: =J6 -> 2026
C7: DEFINITIVO | D7: PROVISIONAL | H7: DEFINITIVO | I7: PROVISIONAL
F8: =CONCATENATE(D6,"=100") -> 2025=100 | K8: =CONCATENATE(I6,"=100") -> 2025=100
A10: 15 A Coruña | C10: 4 | D10: 8.04 | E10: 6.28 | H10: 0.009 | I10: 0.016
A11: 27 Lugo | C11: 86 | D11: 73.61 | E11: 48.37 | H11: 0.189 | I11: 0.149
A12: 32 Ourense | D12: 25.4 | E12: 116.47 | I12: 0.052
A13: 36 Pontevedra | D13: 5.32 | E13: 5.62 | I13: 0.009
A14: GALICIA | C14: 90 | D14: 112.37 | E14: 176.74 | F14: 157.2839726 | H14: 0.198 | I14: 0.226
A16: 33 P. DE ASTURIAS
A18: 39 CANTABRIA
A20: 1 Álava
A21: 20 Guipúzcoa
A22: 48 Vizcaya
A23: PAIS VASCO
A25: 31 NAVARRA
A27: 26 LA RIOJA
A29: 22 Huesca | C29: 83 | D29: 58.26 | E29: 90 | H29: 0.219 | I29: 0.272
A30: 44 Teruel | D30: 15 | E30: 15 | I30: 0.031
A31: 50 Zaragoza | C31: 2505 | D31: 2013.43 | E31: 1465.56 | H31: 4.445 | I31: 6.597
A32: ARAGÓN | C32: 2588 | D32: 2086.69 | E32: 1570.56 | F32: 75.26561205 | H32: 4.664 | I32: 6.9
A34: 8 Barcelona
A35: 17 Girona
A36: 25 Lleida
A37: 43 Tarragona
A38: CATALUÑA
A40: 7 BALEARES | C40: 13 | D40: 13 | E40: 10 | F40: 76.92307692 | H40: 0.018 | I40: 0.018
A42: 5 Ávila
A43: 9 Burgos
A44: 24 León
A45: 34 Palencia
A46: 37 Salamanca
A47: 40 Segovia
A48: 42 Soria
A49: 47 Valladolid
A50: 49 Zamora
A51: CASTILLA Y LEÓN
A53: 28 MADRID | C53: 11 | D53: 9 | E53: 9 | F53: 100 | H53: 0.033 | I53: 0.034
A55: 2 Albacete | C55: 215 | H55: 1.505
A56: 13 Ciudad Real
A57: 16 Cuenca
A58: 19 Guadalajara
A59: 45 Toledo
A60: CASTILLA-MANCHA | C60: 215 | H60: 1.505
A62: 3 Alicante
A63: 12 Castellón | C63: 6 | D63: 6 | E63: 6 | H63: 0.001 | I63: 0.012
A64: 46 Valencia
A65: C. VALENCIANA | C65: 6 | D65: 6 | E65: 6 | F65: 100 | H65: 0.001 | I65: 0.012
A67: 30 R. DE MURCIA
A69: 6 Badajoz
A70: 10 Cáceres
A71: EXTREMADURA
A73: 4 Almería
A74: 11 Cádiz
A75: 14 Córdoba
A76: 18 Granada
A77: 21 Huelva
A78: 23 Jaén
A79: 29 Málaga
A80: 41 Sevilla
A81: ANDALUCÍA
A83: 35 Palmas (Las)
A84: 38 S. C. Tenerife
A85: CANARIAS
A88: ESPAÑA | C88: 2923 | D88: 2227.06 | E88: 1772.3 | F88: 79.58025379 | H88: 6.419 | I88: 7.19
A91: (*)Tipo de Superficie de mes/año solicitado

Sheet Tri5era-SRT
A1: AVANCES DE SUPERFICIE Y PRODUCCIÓN
A2: TRIGO BLANDO Y SEMI DE PRIMAVERA S/R/T | K2: 2026 ENERO
A3: SUPERFICIE SEMBRADA(*)
A4: PROVINCIAS | B4: SUPERFICIES (HA) | E4: SUPERFICIES (HA) | H4: SUPERFICIES (HA) | L4: PRODUCCIONES (1000 TM) | O4: PRODUCCIONES (1000 TM) | R4: PRODUCCIONES (1000 TM)
A5: Y | B5: SECANO | E5: REGADIO | H5: TOTAL | L5: SECANO | O5: REGADIO | R5: TOTAL
A6: CC-AA | B6: =J6-2 -> 2024 | C6: =J6-1 -> 2025 | D6: =J6 -> 2026 | E6: =J6-2 -> 2024 | F6: =J6-1 -> 2025 | G6: =J6 -> 2026 | H6: =J6-2 -> 2024 | I6: =J6-1 -> 2025 | J6: 2026 | L6: =T6-2 -> 2024 | M6: =T6-1 -> 2025 | N6: =T6 -> 2026 | O6: =T6-2 -> 2024 | P6: =T6-1 -> 2025 | Q6: =T6 -> 2026 | R6: =T6-2 -> 2024 | S6: =T6-1 -> 2025 | T6: 2026
B7: DEFINITIVO | C7: PROVISIONAL | E7: DEFINITIVO | F7: PROVISIONAL | H7: DEFINITIVO | I7: PROVISIONAL | L7: DEFINITIVO | M7: PROVISIONAL | O7: DEFINITIVO | P7: PROVISIONAL | R7: DEFINITIVO | S7: PROVISIONAL
A10: 15 Coruña (La) | B10: 729 | C10: 255.49 | D10: 180.47 | H10: 729 | I10: 255.49 | J10: 180.47 | L10: 1.677 | M10: 1.138 | R10: 1.677 | S10: 1.138
A11: 27 Lugo | B11: 1222 | C11: 382.68 | D11: 305.9 | H11: 1222 | I11: 382.68 | J11: 305.9 | L11: 2.688 | M11: 0.962 | R11: 2.688 | S11: 0.962
A12: 32 Orense | B12: 3404 | C12: 732.32 | D12: 693.88 | H12: 3404 | I12: 732.32 | J12: 693.88 | L12: 9.872 | M12: 2.362 | R12: 9.872 | S12: 2.362
A13: 36 Pontevedra | B13: 113 | C13: 45.46 | D13: 43.05 | H13: 113 | I13: 45.46 | J13: 43.05 | L13: 0.254 | M13: 0.009 | R13: 0.254 | S13: 0.009
A14: GALICIA | B14: 5468 | C14: 1415.95 | D14: 1223.3 | H14: 5468 | I14: 1415.95 | J14: 1223.3 | L14: 14.491 | M14: 4.471 | R14: 14.491 | S14: 4.471
A16: 33 P. DE ASTURIAS
A18: 39 CANTABRIA
A20: 01 Alava
A21: 20 Guipúzcoa
A22: 48 Vizcaya
A23: PAIS VASCO
A25: 31 NAVARRA
A27: 26 LA RIOJA
A29: 22 Huesca | B29: 1245 | C29: 1134.13 | D29: 1200 | E29: 482 | F29: 380.63 | G29: 450 | H29: 1727 | I29: 1514.76 | J29: 1650 | L29: 3.994 | M29: 4.945 | O29: 2.673 | P29: 2.25 | R29: 6.667 | S29: 7.194
A30: 44 Teruel | C30: 673 | D30: 719 | F30: 66 | G30: 71 | I30: 739 | J30: 790 | M30: 1.649 | P30: 0.278 | S30: 1.927
A31: 50 Zaragoza | B31: 934 | C31: 826.81 | D31: 1822.76 | E31: 371 | F31: 660.98 | G31: 592.5 | H31: 1305 | I31: 1487.79 | J31: 2415.26 | L31: 1.06 | M31: 3.013 | O31: 1.818 | P31: 3.908 | R31: 2.878 | S31: 6.921
A32: ARAGON | B32: 2179 | C32: 2633.94 | D32: 3741.76 | E32: 853 | F32: 1107.61 | G32: 1113.5 | H32: 3032 | I32: 3741.55 | J32: 4855.26 | L32: 5.054 | M32: 9.607 | O32: 4.491 | P32: 6.436 | R32: 9.545 | S32: 16.042
A34: 08 Barcelona
A35: 17 Girona
A36: 25 Lleida
A37: 43 Tarragona
A38: CATALUÑA
A40: 07 BALEARES | B40: 1231 | C40: 1230 | D40: 1200 | H40: 1231 | I40: 1230 | J40: 1200 | L40: 1.711 | M40: 1.7 | R40: 1.711 | S40: 1.7
A42: 05 Avila
A43: 09 Burgos
A44: 24 León
A45: 34 Palencia
A46: 37 Salamanca
A47: 40 Segovia
A48: 42 Soria
A49: 47 Valladolid
A50: 49 Zamora
A51: CASTILLA Y LEON
A53: 28 MADRID | B53: 907 | C53: 893 | D53: 892 | E53: 100 | F53: 81 | G53: 81 | H53: 1007 | I53: 974 | J53: 973 | L53: 2.638 | M53: 2.84 | O53: 0.455 | P53: 0.394 | R53: 3.094 | S53: 3.234
A55: 02 Albacete | E55: 1880 | F55: 2200 | G55: 2250 | H55: 1880 | I55: 2200 | J55: 2250 | O55: 13.348 | P55: 16.83 | R55: 13.348 | S55: 16.83
A56: 13 Ciudad Real
A57: 16 Cuenca
A58: 19 Guadalajara
A59: 45 Toledo
A60: CASTILLA-MANCHA | E60: 1880 | F60: 2200 | G60: 2250 | H60: 1880 | I60: 2200 | J60: 2250 | O60: 13.348 | P60: 16.83 | R60: 13.348 | S60: 16.83
A62: 03 Alicante
A63: 12 Castellón | B63: 139 | C63: 139 | D63: 139 | E63: 4 | F63: 4 | G63: 8 | H63: 143 | I63: 143 | J63: 147 | L63: 0.021 | M63: 0.299 | O63: 0.019 | P63: 0.019 | R63: 0.04 | S63: 0.318
A64: 46 Valencia
A65: C. VALENCIANA | B65: 139 | C65: 139 | D65: 139 | E65: 4 | F65: 4 | G65: 8 | H65: 143 | I65: 143 | J65: 147 | L65: 0.021 | M65: 0.299 | O65: 0.019 | P65: 0.019 | R65: 0.04 | S65: 0.318
A67: 30 R. DE MURCIA
A69: 06 Badajoz
A70: 10 Cáceres
A71: EXTREMADURA
A73: 04 Almería
A74: 11 Cádiz
A75: 14 Córdoba
A76: 18 Granada
A77: 21 Huelva
A78: 23 Jaén
A79: 29 Málaga
A80: 41 Sevilla
A81: ANDALUCIA
A83: 35 Palmas (Las)
A84: 38 S. C. Tenerife
A85: CANARIAS
A88: ESPAÑA | B88: 19848 | C88: 6311.89 | D88: 7196.06 | E88: 2837 | F88: 3392.61 | G88: 3452.5 | H88: 12761 | I88: 9704.5 | J88: 10648.56 | L88: 23.915 | M88: 18.917 | O88: 18.313 | P88: 23.679 | R88: 42.229 | S88: 42.595
B96: 221 | C96: 231 | E96: 221 | F96: 231 | H96: 221 | I96: 231

Sheet Tri5era
A1: AVANCES DE SUPERFICIE Y PRODUCCIÓN
A2: TRIGO BLANDO Y SEMI DE PRIMAVERA | J2: 2026 ENERO
A3: SUPERFICIE SEMBRADA(*)
A4: PROVINCIAS | C4: SUPERFICIES (HA) | H4: PRODUCCIONES (1000 TM)
A5: Y
A6: CC-AA | C6: =E6-2 -> 2024 | D6: =E6-1 -> 2025 | E6: 2026 | F6: =E6 -> 2026 | H6: =J6-2 -> 2024 | I6: =J6-1 -> 2025 | J6: 2026 | K6: =J6 -> 2026
C7: DEFINITIVO | D7: PROVISIONAL | H7: DEFINITIVO | I7: PROVISIONAL
F8: =CONCATENATE(D6,"=100") -> 2025=100 | K8: =CONCATENATE(I6,"=100") -> 2025=100
A10: 15 A Coruña | C10: 729 | D10: 255.49 | E10: 180.47 | H10: 1.677 | I10: 1.138
A11: 27 Lugo | C11: 1222 | D11: 382.68 | E11: 305.9 | H11: 2.688 | I11: 0.962
A12: 32 Ourense | C12: 3404 | D12: 732.32 | E12: 693.88 | H12: 9.872 | I12: 2.362
A13: 36 Pontevedra | C13: 113 | D13: 45.46 | E13: 43.05 | H13: 0.254 | I13: 0.009
A14: GALICIA | C14: 5468 | D14: 1415.95 | E14: 1223.3 | F14: 86.39429358 | H14: 14.491 | I14: 4.471
A16: 33 P. DE ASTURIAS
A18: 39 CANTABRIA
A20: 1 Álava
A21: 20 Guipúzcoa
A22: 48 Vizcaya
A23: PAIS VASCO
A25: 31 NAVARRA
A27: 26 LA RIOJA
A29: 22 Huesca | C29: 1727 | D29: 1514.76 | E29: 1650 | H29: 6.667 | I29: 7.194
A30: 44 Teruel | D30: 739 | E30: 790 | I30: 1.927
A31: 50 Zaragoza | C31: 1305 | D31: 1487.79 | E31: 2415.26 | H31: 2.878 | I31: 6.921
A32: ARAGÓN | C32: 3032 | D32: 3741.55 | E32: 4855.26 | F32: 129.7660061 | H32: 9.545 | I32: 16.042
A34: 8 Barcelona
A35: 17 Girona
A36: 25 Lleida
A37: 43 Tarragona
A38: CATALUÑA
A40: 7 BALEARES | C40: 1231 | D40: 1230 | E40: 1200 | F40: 97.56097561 | H40: 1.711 | I40: 1.7
A42: 5 Ávila
A43: 9 Burgos
A44: 24 León
A45: 34 Palencia
A46: 37 Salamanca
A47: 40 Segovia
A48: 42 Soria
A49: 47 Valladolid
A50: 49 Zamora
A51: CASTILLA Y LEÓN
A53: 28 MADRID | C53: 1007 | D53: 974 | E53: 973 | F53: 99.8973306 | H53: 3.094 | I53: 3.234
A55: 2 Albacete | C55: 1880 | D55: 2200 | E55: 2250 | H55: 13.348 | I55: 16.83
A56: 13 Ciudad Real
A57: 16 Cuenca
A58: 19 Guadalajara
A59: 45 Toledo
A60: CASTILLA-MANCHA | C60: 1880 | D60: 2200 | E60: 2250 | F60: 102.2727273 | H60: 13.348 | I60: 16.83
A62: 3 Alicante
A63: 12 Castellón | C63: 143 | D63: 143 | E63: 147 | H63: 0.04 | I63: 0.318
A64: 46 Valencia
A65: C. VALENCIANA | C65: 143 | D65: 143 | E65: 147 | F65: 102.7972028 | H65: 0.04 | I65: 0.318
A67: 30 R. DE MURCIA
A69: 6 Badajoz
A70: 10 Cáceres
A71: EXTREMADURA
A73: 4 Almería
A74: 11 Cádiz
A75: 14 Córdoba
A76: 18 Granada
A77: 21 Huelva
A78: 23 Jaén
A79: 29 Málaga
A80: 41 Sevilla
A81: ANDALUCÍA
A83: 35 Palmas (Las)
A84: 38 S. C. Tenerife
A85: CANARIAS
A88: ESPAÑA | C88: 12761 | D88: 9704.5 | E88: 10648.56 | F88: 109.7280643 | H88: 42.229 | I88: 42.595
A91: (*)Tipo de Superficie de mes/año solicitado

Sheet Tri6ral-SRT
A1: AVANCES DE SUPERFICIE Y PRODUCCIÓN
A2: TRIGO. RESUMEN GENERAL S/R/T | K2: 2026 ENERO
A3: SUPERFICIE SEMBRADA(*)
A4: PROVINCIAS | B4: SUPERFICIES (HA) | E4: SUPERFICIES (HA) | H4: SUPERFICIES (HA) | L4: PRODUCCIONES (1000 TM) | O4: PRODUCCIONES (1000 TM) | R4: PRODUCCIONES (1000 TM)
A5: Y | B5: SECANO | E5: REGADIO | H5: TOTAL | L5: SECANO | O5: REGADIO | R5: TOTAL
A6: CC-AA | B6: =J6-2 -> 2024 | C6: =J6-1 -> 2025 | D6: =J6 -> 2026 | E6: =J6-2 -> 2024 | F6: =J6-1 -> 2025 | G6: =J6 -> 2026 | H6: =J6-2 -> 2024 | I6: =J6-1 -> 2025 | J6: 2026 | L6: =T6-2 -> 2024 | M6: =T6-1 -> 2025 | N6: =T6 -> 2026 | O6: =T6-2 -> 2024 | P6: =T6-1 -> 2025 | Q6: =T6 -> 2026 | R6: =T6-2 -> 2024 | S6: =T6-1 -> 2025 | T6: 2026
B7: DEFINITIVO | C7: PROVISIONAL | E7: DEFINITIVO | F7: PROVISIONAL | H7: DEFINITIVO | I7: PROVISIONAL | L7: DEFINITIVO | M7: PROVISIONAL | O7: DEFINITIVO | P7: PROVISIONAL | R7: DEFINITIVO | S7: PROVISIONAL
A10: 15 Coruña (La) | B10: 1749 | C10: 2137.01 | D10: 1510.11 | H10: 1749 | I10: 2137.01 | J10: 1510.11 | L10: 4.023 | M10: 9.369 | R10: 4.022 | S10: 9.369
A11: 27 Lugo | B11: 3270 | C11: 3262.7 | D11: 2597.68 | H11: 3270 | I11: 3262.7 | J11: 2597.68 | L11: 7.194 | M11: 8.981 | R11: 7.193 | S11: 8.981
A12: 32 Orense | B12: 8540 | C12: 6128.17 | D12: 5898.95 | H12: 8540 | I12: 6128.17 | J12: 5898.95 | L12: 25.278 | M12: 19.734 | R12: 25.28 | S12: 19.734
A13: 36 Pontevedra | B13: 288 | C13: 384.22 | D13: 364.53 | H13: 288 | I13: 384.22 | J13: 364.53 | L13: 0.648 | M13: 0.018 | R13: 0.648 | S13: 0.018
A14: GALICIA | B14: 13847 | C14: 11912.1 | D14: 10371.27 | H14: 13847 | I14: 11912.1 | J14: 10371.27 | L14: 37.143 | M14: 38.102 | R14: 37.143 | S14: 38.102
A16: 33 P. DE ASTURIAS | C16: 61 | D16: 65 | I16: 61 | J16: 65 | M16: 0.11 | S16: 0.11
A18: 39 CANTABRIA | B18: 733 | C18: 740 | D18: 750 | E18: 115 | F18: 115 | G18: 135 | H18: 848 | I18: 855 | J18: 885 | L18: 1.613 | M18: 1.484 | O18: 0.518 | P18: 0.46 | R18: 2.131 | S18: 1.944
A20: 01 Alava | B20: 19717 | C20: 17217 | D20: 18000 | H20: 19717 | I20: 17217 | J20: 18000 | L20: 138.019 | M20: 103.302 | R20: 138.019 | S20: 103.302
A21: 20 Guipúzcoa | B21: 1 | H21: 1 | L21: 0.006 | R21: 0.006
A22: 48 Vizcaya
A23: PAIS VASCO | B23: 19718 | C23: 17217 | D23: 18000 | H23: 19718 | I23: 17217 | J23: 18000 | L23: 138.025 | M23: 103.302 | R23: 138.025 | S23: 103.302
A25: 31 NAVARRA | B25: 62667 | C25: 67327 | D25: 67869 | E25: 15153 | F25: 13911 | G25: 14031 | H25: 77820 | I25: 81238 | J25: 81900 | L25: 325.055 | M25: 341.647 | O25: 107.966 | P25: 81.895 | R25: 433.002 | S25: 423.542
A27: 26 LA RIOJA | B27: 17354 | C27: 16294 | D27: 16158 | E27: 7444 | F27: 6818 | G27: 6902 | H27: 24798 | I27: 23112 | J27: 23060 | L27: 46.717 | M27: 100.065 | O27: 32.009 | P27: 43.157 | R27: 78.726 | S27: 143.222
A29: 22 Huesca | B29: 63145 | C29: 57292.25 | D29: 60290 | E29: 24830 | F29: 19455.89 | G29: 19100 | H29: 87975 | I29: 76748.14 | J29: 79390 | L29: 210.474 | M29: 249.393 | O29: 141.861 | P29: 115.022 | R29: 352.323 | S29: 364.415
A30: 44 Teruel | B30: 43212 | C30: 35323 | D30: 36629 | E30: 4081 | F30: 3370 | G30: 3598 | H30: 47293 | I30: 38693 | J30: 40227 | L30: 30.387 | M30: 86.11 | O30: 12.367 | P30: 14.187 | R30: 42.744 | S30: 100.297
A31: 50 Zaragoza | B31: 82792 | C31: 70495.57 | D31: 82282 | E31: 32530 | F31: 30411.66 | G31: 29557 | H31: 115322 | I31: 100907.23 | J31: 111839 | L31: 92.322 | M31: 221.006 | O31: 162.613 | P31: 175.779 | R31: 254.956 | S31: 396.785
A32: ARAGON | B32: 189149 | C32: 163110.82 | D32: 179201 | E32: 61441 | F32: 53237.55 | G32: 52255 | H32: 250590 | I32: 216348.37 | J32: 231456 | L32: 333.183 | M32: 556.509 | O32: 316.841 | P32: 304.988 | R32: 650.023 | S32: 861.497
A34: 08 Barcelona | B34: 21430 | C34: 20918 | D34: 21442 | E34: 370 | F34: 558 | G34: 604 | H34: 21800 | I34: 21476 | J34: 22046 | L34: 48.26 | M34: 99.541 | O34: 2.017 | P34: 3.279 | R34: 50.278 | S34: 102.82
A35: 17 Girona | B35: 10050 | C35: 9307 | D35: 8118 | E35: 2693 | F35: 4291 | G35: 4399 | H35: 12743 | I35: 13598 | J35: 12517 | L35: 23.899 | M35: 40.927 | O35: 9.986 | P35: 20.563 | R35: 33.882 | S35: 61.49
A36: 25 Lleida | B36: 41616 | C36: 32573 | D36: 34523 | E36: 20748 | F36: 15848 | G36: 15593 | H36: 62364 | I36: 48421 | J36: 50116 | L36: 83.274 | M36: 130.292 | O36: 123.451 | P36: 118.851 | R36: 206.706 | S36: 249.143
A37: 43 Tarragona | B37: 6868 | C37: 6432 | D37: 6670 | E37: 56 | F37: 69 | G37: 61 | H37: 6924 | I37: 6501 | J37: 6731 | L37: 8.194 | M37: 27.975 | O37: 0.12 | P37: 0.331 | R37: 8.314 | S37: 28.306
A38: CATALUÑA | B38: 79964 | C38: 69230 | D38: 70753 | E38: 23867 | F38: 20766 | G38: 20657 | H38: 103831 | I38: 89996 | J38: 91410 | L38: 163.627 | M38: 298.735 | O38: 135.574 | P38: 143.024 | R38: 299.18 | S38: 441.759
A40: 07 BALEARES | B40: 4977 | C40: 4950 | D40: 5050 | H40: 4977 | I40: 4950 | J40: 5050 | L40: 6.918 | M40: 6.97 | R40: 6.918 | S40: 6.97
A42: 05 Avila | B42: 28655 | C42: 34781 | D42: 34530 | E42: 2332 | F42: 1593 | G42: 1750 | H42: 30987 | I42: 36374 | J42: 36280 | L42: 54.616 | M42: 124.892 | O42: 8.37 | P42: 8.08 | R42: 62.998 | S42: 132.972
A43: 09 Burgos | B43: 179988 | C43: 191795 | D43: 183669.33 | E43: 5941 | F43: 6516 | G43: 6232.33 | H43: 185929 | I43: 198311 | J43: 189901.67 | L43: 965.096 | M43: 1019.414 | O43: 42.318 | P43: 46.114 | R43: 1007.404 | S43: 1065.528
A44: 24 León | B44: 24023 | C44: 34896 | D44: 32005 | E44: 12194 | F44: 17325 | G44: 18020 | H44: 36217 | I44: 52221 | J44: 50025 | L44: 83.576 | M44: 130.858 | O44: 79.822 | P44: 114.285 | R44: 163.4 | S44: 245.143
A45: 34 Palencia | B45: 97617 | C45: 111413 | D45: 103584 | E45: 22666 | F45: 23102 | G45: 21631 | H45: 120283 | I45: 134515 | J45: 125215 | L45: 434.786 | M45: 566.423 | O45: 141.391 | P45: 142.291 | R45: 576.149 | S45: 708.714
A46: 37 Salamanca | B46: 61057 | C46: 62014 | D46: 60025 | E46: 7312 | F46: 7991 | G46: 7010 | H46: 68369 | I46: 70005 | J46: 67035 | L46: 207.594 | M46: 260.14 | O46: 42.41 | P46: 46.341 | R46: 249.992 | S46: 306.481
A47: 40 Segovia | B47: 60209 | C47: 75609 | D47: 77045 | E47: 2882 | F47: 3742 | H47: 63091 | I47: 79351 | J47: 77045 | L47: 169.247 | M47: 306.795 | O47: 14.355 | P47: 19.017 | R47: 183.594 | S47: 325.812
A48: 42 Soria | B48: 83858 | C48: 101958 | D48: 80000 | E48: 3858 | F48: 4928 | G48: 4000 | H48: 87716 | I48: 106886 | J48: 84000 | L48: 319.247 | M48: 378.568 | O48: 19.282 | P48: 25.616 | R48: 338.518 | S48: 404.184
A49: 47 Valladolid | B49: 101400 | C49: 102163 | D49: 102025 | E49: 20313 | F49: 21588 | G49: 21560 | H49: 121713 | I49: 123751 | J49: 123585 | L49: 414.625 | M49: 542.981 | O49: 135.325 | P49: 157.287 | R49: 549.945 | S49: 700.268
A50: 49 Zamora | B50: 48769 | C50: 60592 | D50: 54531 | E50: 9027 | F50: 9547 | G50: 8554 | H50: 57796 | I50: 70139 | J50: 63085 | L50: 160.352 | M50: 237.887 | O50: 46.354 | P50: 66.829 | R50: 206.696 | S50: 304.716
A51: CASTILLA Y LEON | B51: 685576 | C51: 775221 | D51: 727414.33 | E51: 86525 | F51: 96332 | G51: 88757.33 | H51: 772101 | I51: 871553 | J51: 816171.67 | L51: 2809.139 | M51: 3567.958 | O51: 529.627 | P51: 625.86 | R51: 3338.696 | S51: 4193.818
A53: 28 MADRID | B53: 18222 | C53: 17933 | D53: 17924 | E53: 2127 | F53: 1725 | G53: 1725 | H53: 20349 | I53: 19658 | J53: 19649 | L53: 52.062 | M53: 57.144 | O53: 9.608 | P53: 8.215 | R53: 61.668 | S53: 65.359
A55: 02 Albacete | B55: 42857 | C55: 41559 | D55: 43000 | E55: 13966 | F55: 14772 | G55: 15000 | H55: 56823 | I55: 56331 | J55: 58000 | L55: 42.145 | M55: 94.547 | O55: 100.807 | P55: 113.006 | R55: 142.934 | S55: 207.553
A56: 13 Ciudad Real | B56: 41209 | C56: 39743 | D56: 38700 | E56: 7795 | F56: 8407 | G56: 8870 | H56: 49004 | I56: 48150 | J56: 47570 | L56: 90.454 | M56: 135.015 | O56: 40.363 | P56: 46.151 | R56: 130.821 | S56: 181.166
A57: 16 Cuenca | B57: 47334 | C57: 57675 | D57: 48520 | E57: 3113 | F57: 3400 | G57: 3789 | H57: 50447 | I57: 61075 | J57: 52309 | L57: 132.358 | M57: 175.85 | O57: 15.853 | P57: 17.307 | R57: 148.223 | S57: 193.157
A58: 19 Guadalajara | B58: 66442 | C58: 65952 | D58: 65952 | E58: 2056 | F58: 2037 | G58: 2037 | H58: 68498 | I58: 67989 | J58: 67989 | L58: 230.502 | M58: 250.51 | O58: 12.183 | P58: 11.191 | R58: 242.655 | S58: 261.701
A59: 45 Toledo | B59: 48552 | C59: 55205 | D59: 55205 | E59: 4070 | F59: 5728 | G59: 5728 | H59: 52622 | I59: 60933 | J59: 60933 | L59: 121.137 | M59: 139.979 | O59: 18.677 | P59: 27.494 | R59: 139.793 | S59: 167.473
A60: CASTILLA-MANCHA | B60: 246394 | C60: 260134 | D60: 251377 | E60: 31000 | F60: 34344 | G60: 35424 | H60: 277394 | I60: 294478 | J60: 286801 | L60: 616.596 | M60: 795.901 | O60: 187.883 | P60: 215.149 | R60: 804.426 | S60: 1011.05
A62: 03 Alicante | B62: 855 | C62: 1171 | D62: 1067 | E62: 430 | F62: 390 | G62: 356 | H62: 1285 | I62: 1561 | J62: 1423 | L62: 0.205 | M62: 2.128 | O62: 0.735 | P62: 2.044 | R62: 0.94 | S62: 4.172
A63: 12 Castellón | B63: 724 | C63: 819 | D63: 891 | E63: 21 | F63: 21 | G63: 43 | H63: 745 | I63: 840 | J63: 934 | L63: 0.109 | M63: 1.756 | O63: 0.101 | P63: 0.101 | R63: 0.21 | S63: 1.857
A64: 46 Valencia | B64: 2483 | C64: 2213 | D64: 2647 | E64: 238 | F64: 37 | G64: 48 | H64: 2721 | I64: 2250 | J64: 2695 | L64: 1.072 | M64: 6.418 | O64: 0.98 | P64: 0.162 | R64: 2.052 | S64: 6.58
A65: C. VALENCIANA | B65: 4062 | C65: 4203 | D65: 4605 | E65: 689 | F65: 448 | G65: 447 | H65: 4751 | I65: 4651 | J65: 5052 | L65: 1.386 | M65: 10.302 | O65: 1.816 | P65: 2.307 | R65: 3.202 | S65: 12.609
A67: 30 R. DE MURCIA | B67: 6341 | C67: 6425 | D67: 7923 | E67: 694 | F67: 602 | G67: 1030 | H67: 7035 | I67: 7027 | J67: 8953 | L67: 2.455 | M67: 0.433 | O67: 2.404 | P67: 3.741 | R67: 4.858 | S67: 4.174
A69: 06 Badajoz | B69: 65907 | C69: 66166 | D69: 62510 | E69: 11381 | F69: 11388 | G69: 11115 | H69: 77288 | I69: 77554 | J69: 73625 | L69: 205.753 | M69: 179.024 | O69: 46.526 | P69: 40.27 | R69: 252.281 | S69: 219.294
A70: 10 Cáceres | B70: 2507 | C70: 2036 | D70: 2180 | E70: 1230 | F70: 1543 | G70: 1520 | H70: 3737 | I70: 3579 | J70: 3700 | L70: 5.245 | M70: 4.347 | O70: 3.426 | P70: 4.252 | R70: 8.671 | S70: 8.599
A71: EXTREMADURA | B71: 68414 | C71: 68202 | D71: 64690 | E71: 12611 | F71: 12931 | G71: 12635 | H71: 81025 | I71: 81133 | J71: 77325 | L71: 210.998 | M71: 183.371 | O71: 49.952 | P71: 44.522 | R71: 260.952 | S71: 227.893
A73: 04 Almería | B73: 1849 | C73: 1626 | D73: 1635 | E73: 94 | F73: 24 | G73: 25 | H73: 1943 | I73: 1650 | J73: 1660 | L73: 0.016 | M73: 4.127 | O73: 0.083 | P73: 0.076 | R73: 0.099 | S73: 4.203
A74: 11 Cádiz | B74: 51345 | C74: 45692.96 | D74: 43630.06 | E74: 5887 | F74: 4522.39 | G74: 4521.66 | H74: 57232 | I74: 50215.35 | J74: 48151.72 | L74: 145.166 | M74: 130.55 | O74: 20.681 | P74: 13.312 | R74: 165.82 | S74: 143.862
A75: 14 Córdoba | B75: 50225 | C75: 48080 | D75: 48080 | E75: 9951 | F75: 8790 | G75: 8790 | H75: 60176 | I75: 56870 | J75: 56870 | L75: 181.061 | M75: 144.24 | O75: 35.346 | P75: 26.37 | R75: 216.426 | S75: 170.61
A76: 18 Granada | B76: 8151 | C76: 8854 | D76: 8776 | E76: 1494 | F76: 1492 | G76: 1499 | H76: 9645 | I76: 10346 | J76: 10275 | L76: 11.488 | M76: 18.542 | O76: 5.807 | P76: 7.115 | R76: 17.292 | S76: 25.657
A77: 21 Huelva | B77: 12860 | C77: 13085 | D77: 13085 | E77: 966 | F77: 885 | G77: 885 | H77: 13826 | I77: 13970 | J77: 13970 | L77: 45.324 | M77: 46.802 | O77: 3.982 | P77: 3.928 | R77: 49.3 | S77: 50.73
A78: 23 Jaén | B78: 5595 | C78: 4765 | D78: 4768 | E78: 1877 | F78: 2057 | G78: 2057 | H78: 7472 | I78: 6822 | J78: 6825 | L78: 17.445 | M78: 13.901 | O78: 7.508 | P78: 8.166 | R78: 24.952 | S78: 22.067
A79: 29 Málaga | B79: 13303 | C79: 14555 | D79: 14569 | E79: 1675 | F79: 1670 | G79: 1670 | H79: 14978 | I79: 16225 | J79: 16239 | L79: 31.901 | M79: 32.287 | O79: 7.8 | P79: 9.682 | R79: 39.702 | S79: 41.969
A80: 41 Sevilla | B80: 106130 | C80: 105050 | D80: 90000 | E80: 23430 | F80: 18390 | G80: 15000 | H80: 129560 | I80: 123440 | J80: 105000 | L80: 371.349 | M80: 342.305 | O80: 93.369 | P80: 73.606 | R80: 464.734 | S80: 415.911
A81: ANDALUCIA | B81: 249458 | C81: 241707.96 | D81: 224543.06 | E81: 45374 | F81: 37830.39 | G81: 34447.66 | H81: 294832 | I81: 279538.35 | J81: 258990.72 | L81: 803.75 | M81: 732.754 | O81: 174.576 | P81: 142.255 | R81: 978.325 | S81: 875.009
A83: 35 Palmas (Las) | B83: 88 | C83: 88 | D83: 88 | E83: 1 | F83: 1 | G83: 1 | H83: 89 | I83: 89 | J83: 89 | L83: 0.088 | M83: 0.088 | O83: 0.001 | P83: 0.001 | R83: 0.089 | S83: 0.089
A84: 38 S. C. Tenerife | B84: 114 | C84: 114 | D84: 114 | E84: 23 | F84: 23 | G84: 23 | H84: 137 | I84: 137 | J84: 137 | L84: 0.108 | M84: 0.108 | O84: 0.035 | P84: 0.035 | R84: 0.143 | S84: 0.143
A85: CANARIAS | B85: 202 | C85: 202 | D85: 202 | E85: 24 | F85: 24 | G85: 24 | H85: 226 | I85: 226 | J85: 226 | L85: 0.196 | M85: 0.196 | O85: 0.036 | P85: 0.036 | R85: 0.232 | S85: 0.232
A88: ESPAÑA | B88: 3334156 | C88: 1724869.88 | D88: 1666895.66 | E88: 287064 | F88: 279083.94 | G88: 268469.99 | H88: 1954142 | I88: 2003953.82 | J88: 1935365.66 | L88: 5548.863 | M88: 6794.983 | O88: 1548.81 | P88: 1615.609 | R88: 7097.507 | S88: 8410.592
B96: 221 | C96: 231 | E96: 221 | F96: 231 | H96: 221 | I96: 231

Sheet Tri6ral
A1: AVANCES DE SUPERFICIE Y PRODUCCIÓN
A2: TRIGO. RESUMEN GENERAL | J2: 2026 ENERO
A3: SUPERFICIE SEMBRADA(*)
A4: PROVINCIAS | C4: SUPERFICIES (HA) | H4: PRODUCCIONES (1000 TM)
A5: Y
A6: CC-AA | C6: =E6-2 -> 2024 | D6: =E6-1 -> 2025 | E6: 2026 | F6: =E6 -> 2026 | H6: =J6-2 -> 2024 | I6: =J6-1 -> 2025 | J6: 2026 | K6: =J6 -> 2026
C7: DEFINITIVO | D7: PROVISIONAL | H7: DEFINITIVO | I7: PROVISIONAL
F8: =CONCATENATE(D6,"=100") -> 2025=100 | K8: =CONCATENATE(I6,"=100") -> 2025=100
A10: 15 A Coruña | C10: 1749 | D10: 2137.01 | E10: 1510.11 | H10: 4.022 | I10: 9.369
A11: 27 Lugo | C11: 3270 | D11: 3262.7 | E11: 2597.68 | H11: 7.193 | I11: 8.981
A12: 32 Ourense | C12: 8540 | D12: 6128.17 | E12: 5898.95 | H12: 25.28 | I12: 19.734
A13: 36 Pontevedra | C13: 288 | D13: 384.22 | E13: 364.53 | H13: 0.648 | I13: 0.018
A14: GALICIA | C14: 13847 | D14: 11912.1 | E14: 10371.27 | F14: 87.06500113 | H14: 37.143 | I14: 38.102
A16: 33 P. DE ASTURIAS | D16: 61 | E16: 65 | F16: 106.557377 | I16: 0.11
A18: 39 CANTABRIA | C18: 848 | D18: 855 | E18: 885 | F18: 103.5087719 | H18: 2.131 | I18: 1.944
A20: 1 Álava | C20: 19717 | D20: 17217 | E20: 18000 | H20: 138.019 | I20: 103.302
A21: 20 Guipúzcoa | C21: 1 | H21: 0.006
A22: 48 Vizcaya
A23: PAIS VASCO | C23: 19718 | D23: 17217 | E23: 18000 | F23: 104.5478306 | H23: 138.025 | I23: 103.302
A25: 31 NAVARRA | C25: 77820 | D25: 81238 | E25: 81900 | F25: 100.8148896 | H25: 433.002 | I25: 423.542
A27: 26 LA RIOJA | C27: 24798 | D27: 23112 | E27: 23060 | F27: 99.77500865 | H27: 78.726 | I27: 143.222
A29: 22 Huesca | C29: 87975 | D29: 76748.14 | E29: 79390 | H29: 352.323 | I29: 364.415
A30: 44 Teruel | C30: 47293 | D30: 38693 | E30: 40227 | H30: 42.744 | I30: 100.297
A31: 50 Zaragoza | C31: 115322 | D31: 100907.23 | E31: 111839 | H31: 254.956 | I31: 396.785
A32: ARAGÓN | C32: 250590 | D32: 216348.37 | E32: 231456 | F32: 106.9830108 | H32: 650.023 | I32: 861.497
A34: 8 Barcelona | C34: 21800 | D34: 21476 | E34: 22046 | H34: 50.278 | I34: 102.82
A35: 17 Girona | C35: 12743 | D35: 13598 | E35: 12517 | H35: 33.882 | I35: 61.49
A36: 25 Lleida | C36: 62364 | D36: 48421 | E36: 50116 | H36: 206.706 | I36: 249.143
A37: 43 Tarragona | C37: 6924 | D37: 6501 | E37: 6731 | H37: 8.314 | I37: 28.306
A38: CATALUÑA | C38: 103831 | D38: 89996 | E38: 91410 | F38: 101.5711809 | H38: 299.18 | I38: 441.759
A40: 7 BALEARES | C40: 4977 | D40: 4950 | E40: 5050 | F40: 102.020202 | H40: 6.918 | I40: 6.97
A42: 5 Ávila | C42: 30987 | D42: 36374 | E42: 36280 | H42: 62.998 | I42: 132.972
A43: 9 Burgos | C43: 185929 | D43: 198311 | E43: 189901.67 | H43: 1007.404 | I43: 1065.528
A44: 24 León | C44: 36217 | D44: 52221 | E44: 50025 | H44: 163.4 | I44: 245.143
A45: 34 Palencia | C45: 120283 | D45: 134515 | E45: 125215 | H45: 576.149 | I45: 708.714
A46: 37 Salamanca | C46: 68369 | D46: 70005 | E46: 67035 | H46: 249.992 | I46: 306.481
A47: 40 Segovia | C47: 63091 | D47: 79351 | E47: 77045 | H47: 183.594 | I47: 325.812
A48: 42 Soria | C48: 87716 | D48: 106886 | E48: 84000 | H48: 338.518 | I48: 404.184
A49: 47 Valladolid | C49: 121713 | D49: 123751 | E49: 123585 | H49: 549.945 | I49: 700.268
A50: 49 Zamora | C50: 57796 | D50: 70139 | E50: 63085 | H50: 206.696 | I50: 304.716
A51: CASTILLA Y LEÓN | C51: 772101 | D51: 871553 | E51: 816171.67 | F51: 93.64567272 | H51: 3338.696 | I51: 4193.818
A53: 28 MADRID | C53: 20349 | D53: 19658 | E53: 19649 | F53: 99.95421711 | H53: 61.668 | I53: 65.359
A55: 2 Albacete | C55: 56823 | D55: 56331 | E55: 58000 | H55: 142.934 | I55: 207.553
A56: 13 Ciudad Real | C56: 49004 | D56: 48150 | E56: 47570 | H56: 130.821 | I56: 181.166
A57: 16 Cuenca | C57: 50447 | D57: 61075 | E57: 52309 | H57: 148.223 | I57: 193.157
A58: 19 Guadalajara | C58: 68498 | D58: 67989 | E58: 67989 | H58: 242.655 | I58: 261.701
A59: 45 Toledo | C59: 52622 | D59: 60933 | E59: 60933 | H59: 139.793 | I59: 167.473
A60: CASTILLA-MANCHA | C60: 277394 | D60: 294478 | E60: 286801 | F60: 97.39301408 | H60: 804.426 | I60: 1011.05
A62: 3 Alicante | C62: 1285 | D62: 1561 | E62: 1423 | H62: 0.94 | I62: 4.172
A63: 12 Castellón | C63: 745 | D63: 840 | E63: 934 | H63: 0.21 | I63: 1.857
A64: 46 Valencia | C64: 2721 | D64: 2250 | E64: 2695 | H64: 2.052 | I64: 6.58
A65: C. VALENCIANA | C65: 4751 | D65: 4651 | E65: 5052 | F65: 108.6218018 | H65: 3.202 | I65: 12.609
A67: 30 R. DE MURCIA | C67: 7035 | D67: 7027 | E67: 8953 | F67: 127.408567 | H67: 4.858 | I67: 4.174
A69: 6 Badajoz | C69: 77288 | D69: 77554 | E69: 73625 | H69: 252.281 | I69: 219.294
A70: 10 Cáceres | C70: 3737 | D70: 3579 | E70: 3700 | H70: 8.671 | I70: 8.599
A71: EXTREMADURA | C71: 81025 | D71: 81133 | E71: 77325 | F71: 95.30647209 | H71: 260.952 | I71: 227.893
A73: 4 Almería | C73: 1943 | D73: 1650 | E73: 1660 | H73: 0.099 | I73: 4.203
A74: 11 Cádiz | C74: 57232 | D74: 50215.35 | E74: 48151.72 | H74: 165.82 | I74: 143.862
A75: 14 Córdoba | C75: 60176 | D75: 56870 | E75: 56870 | H75: 216.426 | I75: 170.61
A76: 18 Granada | C76: 9645 | D76: 10346 | E76: 10275 | H76: 17.292 | I76: 25.657
A77: 21 Huelva | C77: 13826 | D77: 13970 | E77: 13970 | H77: 49.3 | I77: 50.73
A78: 23 Jaén | C78: 7472 | D78: 6822 | E78: 6825 | H78: 24.952 | I78: 22.067
A79: 29 Málaga | C79: 14978 | D79: 16225 | E79: 16239 | H79: 39.702 | I79: 41.969
A80: 41 Sevilla | C80: 129560 | D80: 123440 | E80: 105000 | H80: 464.734 | I80: 415.911
A81: ANDALUCÍA | C81: 294832 | D81: 279538.35 | E81: 258990.72 | F81: 92.64944148 | H81: 978.325 | I81: 875.009
A83: 35 Palmas (Las) | C83: 89 | D83: 89 | E83: 89 | H83: 0.089 | I83: 0.089
A84: 38 S. C. Tenerife | C84: 137 | D84: 137 | E84: 137 | H84: 0.143 | I84: 0.143
A85: CANARIAS | C85: 226 | D85: 226 | E85: 226 | F85: 100 | H85: 0.232 | I85: 0.232
A88: ESPAÑA | C88: 1954142 | D88: 2003953.82 | E88: 1935365.66 | F88: 96.57735825 | H88: 7097.507 | I88: 8410.592
A91: (*)Tipo de Superficie de mes/año solicitado

Sheet Tri7uro-SRT
A1: AVANCES DE SUPERFICIE Y PRODUCCIÓN
A2: TRIGO DURO S/R/T | K2: 2026 ENERO
A3: SUPERFICIE SEMBRADA(*)
A4: PROVINCIAS | B4: SUPERFICIES (HA) | E4: SUPERFICIES (HA) | H4: SUPERFICIES (HA) | L4: PRODUCCIONES (1000 TM) | O4: PRODUCCIONES (1000 TM) | R4: PRODUCCIONES (1000 TM)
A5: Y | B5: SECANO | E5: REGADIO | H5: TOTAL | L5: SECANO | O5: REGADIO | R5: TOTAL
A6: CC-AA | B6: =J6-2 -> 2024 | C6: =J6-1 -> 2025 | D6: =J6 -> 2026 | E6: =J6-2 -> 2024 | F6: =J6-1 -> 2025 | G6: =J6 -> 2026 | H6: =J6-2 -> 2024 | I6: =J6-1 -> 2025 | J6: 2026 | L6: =T6-2 -> 2024 | M6: =T6-1 -> 2025 | N6: =T6 -> 2026 | O6: =T6-2 -> 2024 | P6: =T6-1 -> 2025 | Q6: =T6 -> 2026 | R6: =T6-2 -> 2024 | S6: =T6-1 -> 2025 | T6: 2026
B7: DEFINITIVO | C7: PROVISIONAL | E7: DEFINITIVO | F7: PROVISIONAL | H7: DEFINITIVO | I7: PROVISIONAL | L7: DEFINITIVO | M7: PROVISIONAL | O7: DEFINITIVO | P7: PROVISIONAL | R7: DEFINITIVO | S7: PROVISIONAL
A10: 15 Coruña (La) | B10: 12 | C10: 8.04 | D10: 6.28 | H10: 12 | I10: 8.04 | J10: 6.28 | L10: 0.028 | M10: 0.016 | R10: 0.027 | S10: 0.016
A11: 27 Lugo | B11: 216 | C11: 73.61 | D11: 48.37 | H11: 216 | I11: 73.61 | J11: 48.37 | L11: 0.475 | M11: 0.149 | R11: 0.475 | S11: 0.149
A12: 32 Orense | B12: 8 | C12: 25.4 | D12: 116.47 | H12: 8 | I12: 25.4 | J12: 116.47 | L12: 0.024 | M12: 0.052 | R12: 0.024 | S12: 0.052
A13: 36 Pontevedra | B13: 3 | C13: 5.32 | D13: 5.62 | H13: 3 | I13: 5.32 | J13: 5.62 | L13: 0.007 | M13: 0.009 | R13: 0.007 | S13: 0.009
A14: GALICIA | B14: 239 | C14: 112.37 | D14: 176.74 | H14: 239 | I14: 112.37 | J14: 176.74 | L14: 0.534 | M14: 0.226 | R14: 0.533 | S14: 0.226
A16: 33 P. DE ASTURIAS
A18: 39 CANTABRIA
A20: 01 Alava
A21: 20 Guipúzcoa
A22: 48 Vizcaya
A23: PAIS VASCO
A25: 31 NAVARRA | B25: 783 | C25: 816 | D25: 816 | E25: 510 | F25: 491 | G25: 491 | H25: 1293 | I25: 1307 | J25: 1307 | L25: 0.851 | M25: 2.038 | O25: 3.399 | P25: 2.687 | R25: 4.25 | S25: 4.725
A27: 26 LA RIOJA | D27: 8 | F27: 10 | G27: 2 | I27: 10 | J27: 10 | P27: 0.045 | S27: 0.045
A29: 22 Huesca | B29: 908 | C29: 691.6 | D29: 690 | E29: 751 | F29: 473.37 | G29: 450 | H29: 1659 | I29: 1164.96 | J29: 1140 | L29: 1.906 | M29: 2.614 | O29: 3.199 | P29: 2.835 | R29: 5.105 | S29: 5.45
A30: 44 Teruel | B30: 1074 | C30: 665 | D30: 699 | E30: 93 | F30: 55 | G30: 58 | H30: 1167 | I30: 720 | J30: 757 | L30: 0.315 | M30: 1.198 | O30: 0.221 | P30: 0.189 | R30: 0.536 | S30: 1.387
A31: 50 Zaragoza | B31: 36108 | C31: 29155.26 | D31: 29753 | E31: 14000 | F31: 13891.78 | G31: 12482 | H31: 50108 | I31: 43047.04 | J31: 42235 | L31: 32.627 | M31: 70.362 | O31: 69.557 | P31: 78.113 | R31: 102.18 | S31: 148.475
A32: ARAGON | B32: 38090 | C32: 30511.86 | D32: 31142 | E32: 14844 | F32: 14420.15 | G32: 12990 | H32: 52934 | I32: 44932 | J32: 44132 | L32: 34.848 | M32: 74.174 | O32: 72.977 | P32: 81.137 | R32: 107.821 | S32: 155.312
A34: 08 Barcelona | B34: 11 | C34: 36 | D34: 23 | F34: 2 | G34: 4 | H34: 11 | I34: 38 | J34: 27 | L34: 0.025 | M34: 0.174 | P34: 0.014 | R34: 0.025 | S34: 0.188
A35: 17 Girona | B35: 8 | C35: 16 | D35: 16 | E35: 12 | F35: 14 | G35: 14 | H35: 20 | I35: 30 | J35: 30 | L35: 0.015 | M35: 0.064 | O35: 0.035 | P35: 0.06 | R35: 0.05 | S35: 0.124
A36: 25 Lleida | B36: 28 | C36: 23 | D36: 23 | E36: 30 | F36: 18 | G36: 18 | H36: 58 | I36: 41 | J36: 41 | L36: 0.047 | M36: 0.092 | O36: 0.148 | P36: 0.126 | R36: 0.195 | S36: 0.218
A37: 43 Tarragona | B37: 7 | C37: 13 | D37: 11 | E37: 1 | F37: 1 | G37: 1 | H37: 8 | I37: 14 | J37: 12 | L37: 0.003 | M37: 0.032 | O37: 0.004 | P37: 0.005 | R37: 0.007 | S37: 0.037
A38: CATALUÑA | B38: 54 | C38: 88 | D38: 73 | E38: 43 | F38: 35 | G38: 37 | H38: 97 | I38: 123 | J38: 110 | L38: 0.09 | M38: 0.362 | O38: 0.187 | P38: 0.205 | R38: 0.277 | S38: 0.567
A40: 07 BALEARES | B40: 52 | C40: 50 | D40: 50 | H40: 52 | I40: 50 | J40: 50 | L40: 0.072 | M40: 0.07 | R40: 0.072 | S40: 0.07
A42: 05 Avila | B42: 17 | C42: 33 | D42: 30 | H42: 17 | I42: 33 | J42: 30 | L42: 0.015 | M42: 0.077 | R42: 0.015 | S42: 0.077
A43: 09 Burgos | B43: 329 | C43: 301 | D43: 296.67 | E43: 117 | F43: 56 | G43: 94.67 | H43: 446 | I43: 357 | J43: 391.33 | L43: 1.394 | M43: 1.24 | O43: 0.759 | P43: 0.364 | R43: 2.153 | S43: 1.604
A44: 24 León | B44: 2 | C44: 3 | D44: 5 | E44: 9 | F44: 23 | G44: 20 | H44: 11 | I44: 26 | J44: 25 | L44: 0.006 | M44: 0.009 | O44: 0.05 | P44: 0.092 | R44: 0.056 | S44: 0.101
A45: 34 Palencia | B45: 25 | C45: 4 | D45: 4 | E45: 5 | F45: 15 | G45: 14 | H45: 30 | I45: 19 | J45: 18 | L45: 0.082 | M45: 0.02 | O45: 0.033 | P45: 0.075 | R45: 0.115 | S45: 0.095
A46: 37 Salamanca | B46: 54 | C46: 15 | D46: 25 | E46: 1 | F46: 11 | G46: 10 | H46: 55 | I46: 26 | J46: 35 | L46: 0.173 | M46: 0.054 | O46: 0.005 | P46: 0.057 | R46: 0.178 | S46: 0.111
A47: 40 Segovia | B47: 52 | C47: 43 | D47: 45 | E47: 9 | H47: 61 | I47: 43 | J47: 45 | L47: 0.136 | M47: 0.148 | O47: 0.032 | R47: 0.168 | S47: 0.148
A48: 42 Soria | B48: 15 | C48: 2 | E48: 23 | H48: 38 | I48: 2 | L48: 0.047 | M48: 0.005 | O48: 0.106 | R48: 0.153 | S48: 0.005
A49: 47 Valladolid | B49: 17 | C49: 25 | D49: 25 | E49: 188 | F49: 62 | G49: 60 | H49: 205 | I49: 87 | J49: 85 | L49: 0.066 | M49: 0.118 | O49: 0.949 | P49: 0.427 | R49: 1.015 | S49: 0.545
A50: 49 Zamora | B50: 32 | C50: 41 | D50: 36 | E50: 7 | F50: 5 | G50: 4 | H50: 39 | I50: 46 | J50: 40 | L50: 0.098 | M50: 0.103 | O50: 0.033 | P50: 0.035 | R50: 0.131 | S50: 0.138
A51: CASTILLA Y LEON | B51: 543 | C51: 467 | D51: 466.67 | E51: 359 | F51: 172 | G51: 202.67 | H51: 902 | I51: 639 | J51: 669.33 | L51: 2.017 | M51: 1.774 | O51: 1.967 | P51: 1.05 | R51: 3.984 | S51: 2.824
A53: 28 MADRID | B53: 73 | C53: 76 | D53: 76 | E53: 134 | F53: 100 | G53: 100 | H53: 207 | I53: 176 | J53: 176 | L53: 0.084 | M53: 0.341 | O53: 0.536 | P53: 0.342 | R53: 0.62 | S53: 0.683
A55: 02 Albacete | B55: 227 | C55: 162 | D55: 172 | E55: 1436 | F55: 619 | G55: 637.5 | H55: 1663 | I55: 781 | J55: 809.5 | L55: 0.22 | M55: 0.36 | O55: 10.236 | P55: 4.7 | R55: 10.455 | S55: 5.06
A56: 13 Ciudad Real | B56: 73 | C56: 93 | D56: 100 | E56: 141 | F56: 97 | G56: 100 | H56: 214 | I56: 190 | J56: 200 | L56: 0.08 | M56: 0.205 | O56: 0.564 | P56: 0.446 | R56: 0.644 | S56: 0.651
A57: 16 Cuenca | B57: 328 | C57: 366 | D57: 360 | E57: 63 | F57: 80 | G57: 187 | H57: 391 | I57: 446 | J57: 547 | L57: 0.788 | M57: 1.06 | O57: 0.31 | P57: 0.377 | R57: 1.098 | S57: 1.437
A58: 19 Guadalajara | B58: 200 | C58: 180 | D58: 180 | E58: 29 | F58: 26 | G58: 26 | H58: 229 | I58: 206 | J58: 206 | L58: 0.27 | M58: 0.576 | O58: 0.117 | P58: 0.13 | R58: 0.387 | S58: 0.706
A59: 45 Toledo | B59: 877 | C59: 900 | D59: 900 | E59: 115 | F59: 154 | G59: 154 | H59: 992 | I59: 1054 | J59: 1054 | L59: 1.929 | M59: 3.15 | O59: 0.483 | P59: 0.739 | R59: 2.412 | S59: 3.889
A60: CASTILLA-MANCHA | B60: 1705 | C60: 1701 | D60: 1712 | E60: 1784 | F60: 976 | G60: 1104.5 | H60: 3489 | I60: 2677 | J60: 2816.5 | L60: 3.287 | M60: 5.351 | O60: 11.71 | P60: 6.392 | R60: 14.996 | S60: 11.743
A62: 03 Alicante | B62: 65 | C62: 78 | D62: 71 | E62: 40 | F62: 25 | G62: 24 | H62: 105 | I62: 103 | J62: 95 | L62: 0.017 | M62: 0.165 | O62: 0.082 | P62: 0.068 | R62: 0.099 | S62: 0.233
A63: 12 Castellón | B63: 30 | C63: 30 | D63: 32 | H63: 30 | I63: 30 | J63: 32 | L63: 0.004 | M63: 0.059 | R63: 0.004 | S63: 0.059
A64: 46 Valencia | B64: 59 | C64: 90 | D64: 132 | E64: 1 | G64: 1 | H64: 60 | I64: 90 | J64: 133 | L64: 0.012 | M64: 0.261 | O64: 0.005 | R64: 0.017 | S64: 0.261
A65: C. VALENCIANA | B65: 154 | C65: 198 | D65: 235 | E65: 41 | F65: 25 | G65: 25 | H65: 195 | I65: 223 | J65: 260 | L65: 0.033 | M65: 0.485 | O65: 0.087 | P65: 0.068 | R65: 0.12 | S65: 0.553
A67: 30 R. DE MURCIA | B67: 90 | C67: 101 | D67: 267 | E67: 95 | F67: 76 | G67: 10 | H67: 185 | I67: 177 | J67: 277 | L67: 0.019 | M67: 0.023 | O67: 0.314 | P67: 0.251 | R67: 0.333 | S67: 0.274
A69: 06 Badajoz | B69: 2342 | C69: 2818 | D69: 2660 | E69: 763 | F69: 754 | G69: 665 | H69: 3105 | I69: 3572 | J69: 3325 | L69: 6.557 | M69: 9.282 | O69: 2.809 | P69: 3.228 | R69: 9.366 | S69: 12.51
A70: 10 Cáceres | B70: 177 | C70: 180 | D70: 180 | E70: 15 | F70: 17 | G70: 20 | H70: 192 | I70: 197 | J70: 200 | L70: 0.291 | M70: 0.416 | O70: 0.032 | P70: 0.051 | R70: 0.324 | S70: 0.467
A71: EXTREMADURA | B71: 2519 | C71: 2998 | D71: 2840 | E71: 778 | F71: 771 | G71: 685 | H71: 3297 | I71: 3769 | J71: 3525 | L71: 6.848 | M71: 9.698 | O71: 2.841 | P71: 3.279 | R71: 9.69 | S71: 12.977
A73: 04 Almería | B73: 86 | C73: 72 | D73: 75 | E73: 29 | F73: 4 | G73: 5 | H73: 115 | I73: 76 | J73: 80 | M73: 0.143 | P73: 0.012 | S73: 0.155
A74: 11 Cádiz | B74: 42270 | C74: 34813.58 | D74: 32947.6 | E74: 4240 | F74: 3185.42 | G74: 3181.98 | H74: 46510 | I74: 37999 | J74: 36129.58 | L74: 129.285 | M74: 87.034 | O74: 14.222 | P74: 7.964 | R74: 143.507 | S74: 94.998
A75: 14 Córdoba | B75: 29065 | C75: 27750 | D75: 27750 | E75: 7873 | F75: 6400 | G75: 6400 | H75: 36938 | I75: 34150 | J75: 34150 | L75: 101.728 | M75: 83.25 | O75: 27.556 | P75: 19.2 | R75: 129.283 | S75: 102.45
A76: 18 Granada | B76: 1039 | C76: 1344 | D76: 1278 | E76: 678 | F76: 645 | G76: 661 | H76: 1717 | I76: 1989 | J76: 1939 | L76: 1.682 | M76: 3.099 | O76: 3.302 | P76: 3.077 | R76: 4.984 | S76: 6.176
A77: 21 Huelva | B77: 8700 | C77: 8980 | D77: 8980 | E77: 619 | F77: 610 | G77: 610 | H77: 9319 | I77: 9590 | J77: 9590 | L77: 29.925 | M77: 31.779 | O77: 2.655 | P77: 2.745 | R77: 32.58 | S77: 34.524
A78: 23 Jaén | B78: 3293 | C78: 2796 | D78: 2794 | E78: 1675 | F78: 1901 | G78: 1899 | H78: 4968 | I78: 4697 | J78: 4693 | L78: 10.538 | M78: 8.388 | O78: 6.7 | P78: 7.604 | R78: 17.238 | S78: 15.992
A79: 29 Málaga | B79: 8844 | C79: 9123 | D79: 9130 | E79: 1362 | F79: 1281 | G79: 1280 | H79: 10206 | I79: 10404 | J79: 10410 | L79: 22.11 | M79: 18.164 | O79: 6.47 | P79: 7.776 | R79: 28.58 | S79: 25.94
A80: 41 Sevilla | B80: 53480 | C80: 50740 | D80: 40000 | E80: 12610 | F80: 9080 | G80: 7000 | H80: 66090 | I80: 59820 | J80: 47000 | L80: 181.832 | M80: 152.22 | O80: 47.918 | P80: 34.504 | R80: 229.75 | S80: 186.724
A81: ANDALUCIA | B81: 146777 | C81: 135618.58 | D81: 122954.6 | E81: 29086 | F81: 23106.42 | G81: 21036.98 | H81: 175863 | I81: 158725 | J81: 143991.58 | L81: 477.1 | M81: 384.077 | O81: 108.823 | P81: 82.882 | R81: 585.922 | S81: 466.959
A83: 35 Palmas (Las)
A84: 38 S. C. Tenerife
A85: CANARIAS
A88: ESPAÑA | B88: 382158 | C88: 172737.81 | D88: 160817.01 | E88: 47674 | F88: 40182.57 | G88: 36684.15 | H88: 238753 | I88: 212920.37 | J88: 197501.15 | L88: 525.783 | M88: 478.619 | O88: 202.841 | P88: 178.338 | R88: 728.618 | S88: 656.958
B96: 221 | C96: 231 | E96: 221 | F96: 231 | H96: 221 | I96: 231

Sheet Tri7uro
A1: AVANCES DE SUPERFICIE Y PRODUCCIÓN
A2: TRIGO DURO | J2: 2026 ENERO
A3: SUPERFICIE SEMBRADA(*)
A4: PROVINCIAS | C4: SUPERFICIES (HA) | H4: PRODUCCIONES (1000 TM)
A5: Y
A6: CC-AA | C6: =E6-2 -> 2024 | D6: =E6-1 -> 2025 | E6: 2026 | F6: =E6 -> 2026 | H6: =J6-2 -> 2024 | I6: =J6-1 -> 2025 | J6: 2026 | K6: =J6 -> 2026
C7: DEFINITIVO | D7: PROVISIONAL | H7: DEFINITIVO | I7: PROVISIONAL
F8: =CONCATENATE(D6,"=100") -> 2025=100 | K8: =CONCATENATE(I6,"=100") -> 2025=100
A10: 15 A Coruña | C10: 12 | D10: 8.04 | E10: 6.28 | H10: 0.027 | I10: 0.016
A11: 27 Lugo | C11: 216 | D11: 73.61 | E11: 48.37 | H11: 0.475 | I11: 0.149
A12: 32 Ourense | C12: 8 | D12: 25.4 | E12: 116.47 | H12: 0.024 | I12: 0.052
A13: 36 Pontevedra | C13: 3 | D13: 5.32 | E13: 5.62 | H13: 0.007 | I13: 0.009
A14: GALICIA | C14: 239 | D14: 112.37 | E14: 176.74 | F14: 157.2839726 | H14: 0.533 | I14: 0.226
A16: 33 P. DE ASTURIAS
A18: 39 CANTABRIA
A20: 1 Álava
A21: 20 Guipúzcoa
A22: 48 Vizcaya
A23: PAIS VASCO
A25: 31 NAVARRA | C25: 1293 | D25: 1307 | E25: 1307 | F25: 100 | H25: 4.25 | I25: 4.725
A27: 26 LA RIOJA | D27: 10 | E27: 10 | F27: 100 | I27: 0.045
A29: 22 Huesca | C29: 1659 | D29: 1164.96 | E29: 1140 | H29: 5.105 | I29: 5.45
A30: 44 Teruel | C30: 1167 | D30: 720 | E30: 757 | H30: 0.536 | I30: 1.387
A31: 50 Zaragoza | C31: 50108 | D31: 43047.04 | E31: 42235 | H31: 102.18 | I31: 148.475
A32: ARAGÓN | C32: 52934 | D32: 44932 | E32: 44132 | F32: 98.21953174 | H32: 107.821 | I32: 155.312
A34: 8 Barcelona | C34: 11 | D34: 38 | E34: 27 | H34: 0.025 | I34: 0.188
A35: 17 Girona | C35: 20 | D35: 30 | E35: 30 | H35: 0.05 | I35: 0.124
A36: 25 Lleida | C36: 58 | D36: 41 | E36: 41 | H36: 0.195 | I36: 0.218
A37: 43 Tarragona | C37: 8 | D37: 14 | E37: 12 | H37: 0.007 | I37: 0.037
A38: CATALUÑA | C38: 97 | D38: 123 | E38: 110 | F38: 89.43089431 | H38: 0.277 | I38: 0.567
A40: 7 BALEARES | C40: 52 | D40: 50 | E40: 50 | F40: 100 | H40: 0.072 | I40: 0.07
A42: 5 Ávila | C42: 17 | D42: 33 | E42: 30 | H42: 0.015 | I42: 0.077
A43: 9 Burgos | C43: 446 | D43: 357 | E43: 391.33 | H43: 2.153 | I43: 1.604
A44: 24 León | C44: 11 | D44: 26 | E44: 25 | H44: 0.056 | I44: 0.101
A45: 34 Palencia | C45: 30 | D45: 19 | E45: 18 | H45: 0.115 | I45: 0.095
A46: 37 Salamanca | C46: 55 | D46: 26 | E46: 35 | H46: 0.178 | I46: 0.111
A47: 40 Segovia | C47: 61 | D47: 43 | E47: 45 | H47: 0.168 | I47: 0.148
A48: 42 Soria | C48: 38 | D48: 2 | H48: 0.153 | I48: 0.005
A49: 47 Valladolid | C49: 205 | D49: 87 | E49: 85 | H49: 1.015 | I49: 0.545
A50: 49 Zamora | C50: 39 | D50: 46 | E50: 40 | H50: 0.131 | I50: 0.138
A51: CASTILLA Y LEÓN | C51: 902 | D51: 639 | E51: 669.33 | F51: 104.7464789 | H51: 3.984 | I51: 2.824
A53: 28 MADRID | C53: 207 | D53: 176 | E53: 176 | F53: 100 | H53: 0.62 | I53: 0.683
A55: 2 Albacete | C55: 1663 | D55: 781 | E55: 809.5 | H55: 10.455 | I55: 5.06
A56: 13 Ciudad Real | C56: 214 | D56: 190 | E56: 200 | H56: 0.644 | I56: 0.651
A57: 16 Cuenca | C57: 391 | D57: 446 | E57: 547 | H57: 1.098 | I57: 1.437
A58: 19 Guadalajara | C58: 229 | D58: 206 | E58: 206 | H58: 0.387 | I58: 0.706
A59: 45 Toledo | C59: 992 | D59: 1054 | E59: 1054 | H59: 2.412 | I59: 3.889
A60: CASTILLA-MANCHA | C60: 3489 | D60: 2677 | E60: 2816.5 | F60: 105.2110572 | H60: 14.996 | I60: 11.743
A62: 3 Alicante | C62: 105 | D62: 103 | E62: 95 | H62: 0.099 | I62: 0.233
A63: 12 Castellón | C63: 30 | D63: 30 | E63: 32 | H63: 0.004 | I63: 0.059
A64: 46 Valencia | C64: 60 | D64: 90 | E64: 133 | H64: 0.017 | I64: 0.261
A65: C. VALENCIANA | C65: 195 | D65: 223 | E65: 260 | F65: 116.5919283 | H65: 0.12 | I65: 0.553
A67: 30 R. DE MURCIA | C67: 185 | D67: 177 | E67: 277 | F67: 156.4971751 | H67: 0.333 | I67: 0.274
A69: 6 Badajoz | C69: 3105 | D69: 3572 | E69: 3325 | H69: 9.366 | I69: 12.51
A70: 10 Cáceres | C70: 192 | D70: 197 | E70: 200 | H70: 0.324 | I70: 0.467
A71: EXTREMADURA | C71: 3297 | D71: 3769 | E71: 3525 | F71: 93.52613425 | H71: 9.69 | I71: 12.977
A73: 4 Almería | C73: 115 | D73: 76 | E73: 80 | I73: 0.155
A74: 11 Cádiz | C74: 46510 | D74: 37999 | E74: 36129.58 | H74: 143.507 | I74: 94.998
A75: 14 Córdoba | C75: 36938 | D75: 34150 | E75: 34150 | H75: 129.283 | I75: 102.45
A76: 18 Granada | C76: 1717 | D76: 1989 | E76: 1939 | H76: 4.984 | I76: 6.176
A77: 21 Huelva | C77: 9319 | D77: 9590 | E77: 9590 | H77: 32.58 | I77: 34.524
A78: 23 Jaén | C78: 4968 | D78: 4697 | E78: 4693 | H78: 17.238 | I78: 15.992
A79: 29 Málaga | C79: 10206 | D79: 10404 | E79: 10410 | H79: 28.58 | I79: 25.94
A80: 41 Sevilla | C80: 66090 | D80: 59820 | E80: 47000 | H80: 229.75 | I80: 186.724
A81: ANDALUCÍA | C81: 175863 | D81: 158725 | E81: 143991.58 | F81: 90.71764372 | H81: 585.922 | I81: 466.959
A83: 35 Palmas (Las)
A84: 38 S. C. Tenerife
A85: CANARIAS
A88: ESPAÑA | C88: 238753 | D88: 212920.37 | E88: 197501.15 | F88: 92.75822224 | H88: 728.618 | I88: 656.958
A91: (*)Tipo de Superficie de mes/año solicitado

Sheet Tri8ndo-SRT
A1: AVANCES DE SUPERFICIE Y PRODUCCIÓN
A2: TRIGO SEMIDURO Y BLANDO S/R/T | K2: 2026 ENERO
A3: SUPERFICIE SEMBRADA(*)
A4: PROVINCIAS | B4: SUPERFICIES (HA) | E4: SUPERFICIES (HA) | H4: SUPERFICIES (HA) | L4: PRODUCCIONES (1000 TM) | O4: PRODUCCIONES (1000 TM) | R4: PRODUCCIONES (1000 TM)
A5: Y | B5: SECANO | E5: REGADIO | H5: TOTAL | L5: SECANO | O5: REGADIO | R5: TOTAL
A6: CC-AA | B6: =J6-2 -> 2024 | C6: =J6-1 -> 2025 | D6: =J6 -> 2026 | E6: =J6-2 -> 2024 | F6: =J6-1 -> 2025 | G6: =J6 -> 2026 | H6: =J6-2 -> 2024 | I6: =J6-1 -> 2025 | J6: 2026 | L6: =T6-2 -> 2024 | M6: =T6-1 -> 2025 | N6: =T6 -> 2026 | O6: =T6-2 -> 2024 | P6: =T6-1 -> 2025 | Q6: =T6 -> 2026 | R6: =T6-2 -> 2024 | S6: =T6-1 -> 2025 | T6: 2026
B7: DEFINITIVO | C7: PROVISIONAL | E7: DEFINITIVO | F7: PROVISIONAL | H7: DEFINITIVO | I7: PROVISIONAL | L7: DEFINITIVO | M7: PROVISIONAL | O7: DEFINITIVO | P7: PROVISIONAL | R7: DEFINITIVO | S7: PROVISIONAL
A10: 15 Coruña (La) | B10: 1737 | C10: 2128.97 | D10: 1503.83 | H10: 1737 | I10: 2128.97 | J10: 1503.83 | L10: 3.995 | M10: 9.352 | R10: 3.995 | S10: 9.352
A11: 27 Lugo | B11: 3054 | C11: 3189.09 | D11: 2549.31 | H11: 3054 | I11: 3189.09 | J11: 2549.31 | L11: 6.719 | M11: 8.831 | R11: 6.718 | S11: 8.831
A12: 32 Orense | B12: 8532 | C12: 6102.77 | D12: 5782.48 | H12: 8532 | I12: 6102.77 | J12: 5782.48 | L12: 25.255 | M12: 19.682 | R12: 25.256 | S12: 19.682
A13: 36 Pontevedra | B13: 285 | C13: 378.9 | D13: 358.91 | H13: 285 | I13: 378.9 | J13: 358.91 | L13: 0.641 | M13: 1.371 | R13: 0.641 | S13: 1.371
A14: GALICIA | B14: 13608 | C14: 11799.73 | D14: 10194.53 | H14: 13608 | I14: 11799.73 | J14: 10194.53 | L14: 36.61 | M14: 39.236 | R14: 36.61 | S14: 39.236
A16: 33 P. DE ASTURIAS | C16: 61 | D16: 65 | I16: 61 | J16: 65 | M16: 0.11 | S16: 0.11
A18: 39 CANTABRIA | B18: 733 | C18: 740 | D18: 750 | E18: 115 | F18: 115 | G18: 135 | H18: 848 | I18: 855 | J18: 885 | L18: 1.613 | M18: 1.484 | O18: 0.518 | P18: 0.46 | R18: 2.131 | S18: 1.944
A20: 01 Alava | B20: 19717 | C20: 17217 | D20: 18000 | H20: 19717 | I20: 17217 | J20: 18000 | L20: 138.019 | M20: 103.302 | R20: 138.019 | S20: 103.302
A21: 20 Guipúzcoa | B21: 1 | H21: 1 | L21: 0.006 | R21: 0.006
A22: 48 Vizcaya
A23: PAIS VASCO | B23: 19718 | C23: 17217 | D23: 18000 | H23: 19718 | I23: 17217 | J23: 18000 | L23: 138.025 | M23: 103.302 | R23: 138.025 | S23: 103.302
A25: 31 NAVARRA | B25: 61884 | C25: 66511 | D25: 67053 | E25: 14643 | F25: 13420 | G25: 13540 | H25: 76527 | I25: 79931 | J25: 80593 | L25: 324.186 | M25: 339.609 | O25: 104.566 | P25: 79.208 | R25: 428.752 | S25: 418.817
A27: 26 LA RIOJA | B27: 17354 | C27: 16294 | D27: 16150 | E27: 7444 | F27: 6808 | G27: 6900 | H27: 24798 | I27: 23102 | J27: 23050 | L27: 46.717 | M27: 100.065 | O27: 32.009 | P27: 43.112 | R27: 78.726 | S27: 143.177
A29: 22 Huesca | B29: 62237 | C29: 56600.66 | D29: 59600 | E29: 24079 | F29: 18982.53 | G29: 18650 | H29: 86316 | I29: 75583.18 | J29: 78250 | L29: 208.572 | M29: 246.779 | O29: 138.647 | P29: 112.187 | R29: 347.218 | S29: 358.966
A30: 44 Teruel | B30: 42138 | C30: 34658 | D30: 35930 | E30: 3988 | F30: 3315 | G30: 3540 | H30: 46126 | I30: 37973 | J30: 39470 | L30: 30.061 | M30: 84.912 | O30: 12.147 | P30: 13.998 | R30: 42.208 | S30: 98.91
A31: 50 Zaragoza | B31: 46684 | C31: 41340.31 | D31: 52529 | E31: 18530 | F31: 16519.88 | G31: 17075 | H31: 65214 | I31: 57860.19 | J31: 69604 | L31: 59.747 | M31: 150.644 | O31: 93.049 | P31: 97.666 | R31: 152.776 | S31: 248.31
A32: ARAGON | B32: 151059 | C32: 132598.97 | D32: 148059 | E32: 46597 | F32: 38817.41 | G32: 39265 | H32: 197656 | I32: 171416.37 | J32: 187324 | L32: 298.38 | M32: 482.335 | O32: 243.843 | P32: 223.851 | R32: 542.202 | S32: 706.186
A34: 08 Barcelona | B34: 21419 | C34: 20882 | D34: 21419 | E34: 370 | F34: 556 | G34: 600 | H34: 21789 | I34: 21438 | J34: 22019 | L34: 48.236 | M34: 99.367 | O34: 2.017 | P34: 3.265 | R34: 50.253 | S34: 102.632
A35: 17 Girona | B35: 10042 | C35: 9291 | D35: 8102 | E35: 2681 | F35: 4277 | G35: 4385 | H35: 12723 | I35: 13568 | J35: 12487 | L35: 23.88 | M35: 40.863 | O35: 9.952 | P35: 20.503 | R35: 33.832 | S35: 61.366
A36: 25 Lleida | B36: 41588 | C36: 32550 | D36: 34500 | E36: 20718 | F36: 15830 | G36: 15575 | H36: 62306 | I36: 48380 | J36: 50075 | L36: 83.218 | M36: 130.2 | O36: 123.293 | P36: 118.725 | R36: 206.511 | S36: 248.925
A37: 43 Tarragona | B37: 6861 | C37: 6418 | D37: 6659 | E37: 55 | F37: 68 | G37: 61 | H37: 6916 | I37: 6486 | J37: 6720 | L37: 8.192 | M37: 27.943 | O37: 0.115 | P37: 0.326 | R37: 8.307 | S37: 28.269
A38: CATALUÑA | B38: 79910 | C38: 69141 | D38: 70680 | E38: 23824 | F38: 20731 | G38: 20621 | H38: 103734 | I38: 89872 | J38: 91301 | L38: 163.526 | M38: 298.373 | O38: 135.377 | P38: 142.819 | R38: 298.903 | S38: 441.192
A40: 07 BALEARES | B40: 4925 | C40: 4900 | D40: 5000 | H40: 4925 | I40: 4900 | J40: 5000 | L40: 6.846 | M40: 6.9 | R40: 6.846 | S40: 6.9
A42: 05 Avila | B42: 28638 | C42: 34748 | D42: 34500 | E42: 2332 | F42: 1593 | G42: 1750 | H42: 30970 | I42: 36341 | J42: 36250 | L42: 54.613 | M42: 124.815 | O42: 8.37 | P42: 8.08 | R42: 62.983 | S42: 132.895
A43: 09 Burgos | B43: 179659 | C43: 191494 | D43: 183372.67 | E43: 5824 | F43: 6460 | G43: 6137.67 | H43: 185483 | I43: 197954 | J43: 189510.33 | L43: 963.691 | M43: 1018.174 | O43: 41.56 | P43: 45.75 | R43: 1005.251 | S43: 1063.924
A44: 24 León | B44: 24021 | C44: 34893 | D44: 32000 | E44: 12185 | F44: 17302 | G44: 18000 | H44: 36206 | I44: 52195 | J44: 50000 | L44: 83.569 | M44: 130.849 | O44: 79.775 | P44: 114.193 | R44: 163.344 | S44: 245.042
A45: 34 Palencia | B45: 97592 | C45: 111409 | D45: 103580 | E45: 22661 | F45: 23087 | G45: 21617 | H45: 120253 | I45: 134496 | J45: 125197 | L45: 434.675 | M45: 566.403 | O45: 141.359 | P45: 142.216 | R45: 576.034 | S45: 708.619
A46: 37 Salamanca | B46: 61003 | C46: 61999 | D46: 60000 | E46: 7311 | F46: 7980 | G46: 7000 | H46: 68314 | I46: 69979 | J46: 67000 | L46: 207.41 | M46: 260.086 | O46: 42.404 | P46: 46.284 | R46: 249.814 | S46: 306.37
A47: 40 Segovia | B47: 60157 | C47: 75566 | D47: 77000 | E47: 2873 | F47: 3742 | H47: 63030 | I47: 79308 | J47: 77000 | L47: 169.101 | M47: 306.647 | O47: 14.325 | P47: 19.017 | R47: 183.426 | S47: 325.664
A48: 42 Soria | B48: 83843 | C48: 101956 | D48: 80000 | E48: 3835 | F48: 4928 | G48: 4000 | H48: 87678 | I48: 106884 | J48: 84000 | L48: 319.19 | M48: 378.563 | O48: 19.175 | P48: 25.616 | R48: 338.365 | S48: 404.179
A49: 47 Valladolid | B49: 101383 | C49: 102138 | D49: 102000 | E49: 20125 | F49: 21526 | G49: 21500 | H49: 121508 | I49: 123664 | J49: 123500 | L49: 414.555 | M49: 542.863 | O49: 134.375 | P49: 156.86 | R49: 548.93 | S49: 699.723
A50: 49 Zamora | B50: 48737 | C50: 60551 | D50: 54495 | E50: 9020 | F50: 9542 | G50: 8550 | H50: 57757 | I50: 70093 | J50: 63045 | L50: 160.247 | M50: 237.784 | O50: 46.318 | P50: 66.794 | R50: 206.565 | S50: 304.578
A51: CASTILLA Y LEON | B51: 685033 | C51: 774754 | D51: 726947.67 | E51: 86166 | F51: 96160 | G51: 88554.67 | H51: 771199 | I51: 870914 | J51: 815502.33 | L51: 2807.051 | M51: 3566.184 | O51: 527.661 | P51: 624.81 | R51: 3334.712 | S51: 4190.994
A53: 28 MADRID | B53: 18149 | C53: 17857 | D53: 17848 | E53: 1993 | F53: 1625 | G53: 1625 | H53: 20142 | I53: 19482 | J53: 19473 | L53: 51.975 | M53: 56.803 | O53: 9.072 | P53: 7.873 | R53: 61.048 | S53: 64.676
A55: 02 Albacete | B55: 42630 | C55: 41397 | D55: 42828 | E55: 12530 | F55: 14153 | G55: 14362.5 | H55: 55160 | I55: 55550 | J55: 57190.5 | L55: 41.918 | M55: 94.187 | O55: 90.567 | P55: 108.306 | R55: 132.479 | S55: 202.493
A56: 13 Ciudad Real | B56: 41136 | C56: 39650 | D56: 38600 | E56: 7654 | F56: 8310 | G56: 8770 | H56: 48790 | I56: 47960 | J56: 47370 | L56: 90.376 | M56: 134.81 | O56: 39.801 | P56: 45.705 | R56: 130.177 | S56: 180.515
A57: 16 Cuenca | B57: 47006 | C57: 57309 | D57: 48160 | E57: 3050 | F57: 3320 | G57: 3602 | H57: 50056 | I57: 60629 | J57: 51762 | L57: 131.582 | M57: 174.79 | O57: 15.543 | P57: 16.93 | R57: 147.125 | S57: 191.72
A58: 19 Guadalajara | B58: 66242 | C58: 65772 | D58: 65772 | E58: 2027 | F58: 2011 | G58: 2011 | H58: 68269 | I58: 67783 | J58: 67783 | L58: 230.202 | M58: 249.934 | O58: 12.066 | P58: 11.061 | R58: 242.268 | S58: 260.995
A59: 45 Toledo | B59: 47675 | C59: 54305 | D59: 54305 | E59: 3955 | F59: 5574 | G59: 5574 | H59: 51630 | I59: 59879 | J59: 59879 | L59: 119.188 | M59: 136.829 | O59: 18.193 | P59: 26.755 | R59: 137.381 | S59: 163.584
A60: CASTILLA-MANCHA | B60: 244689 | C60: 258433 | D60: 249665 | E60: 29216 | F60: 33368 | G60: 34319.5 | H60: 273905 | I60: 291801 | J60: 283984.5 | L60: 613.266 | M60: 790.55 | O60: 176.17 | P60: 208.757 | R60: 789.43 | S60: 999.307
A62: 03 Alicante | B62: 790 | C62: 1093 | D62: 996 | E62: 390 | F62: 365 | G62: 332 | H62: 1180 | I62: 1458 | J62: 1328 | L62: 0.188 | M62: 1.963 | O62: 0.653 | P62: 1.976 | R62: 0.841 | S62: 3.939
A63: 12 Castellón | B63: 694 | C63: 789 | D63: 859 | E63: 21 | F63: 21 | G63: 43 | H63: 715 | I63: 810 | J63: 902 | L63: 0.105 | M63: 1.697 | O63: 0.101 | P63: 0.101 | R63: 0.206 | S63: 1.798
A64: 46 Valencia | B64: 2424 | C64: 2123 | D64: 2515 | E64: 237 | F64: 37 | G64: 47 | H64: 2661 | I64: 2160 | J64: 2562 | L64: 1.06 | M64: 6.157 | O64: 0.975 | P64: 0.162 | R64: 2.035 | S64: 6.319
A65: C. VALENCIANA | B65: 3908 | C65: 4005 | D65: 4370 | E65: 648 | F65: 423 | G65: 422 | H65: 4556 | I65: 4428 | J65: 4792 | L65: 1.353 | M65: 9.817 | O65: 1.729 | P65: 2.239 | R65: 3.082 | S65: 12.056
A67: 30 R. DE MURCIA | B67: 6251 | C67: 6324 | D67: 7656 | E67: 599 | F67: 526 | G67: 1020 | H67: 6850 | I67: 6850 | J67: 8676 | L67: 2.434 | M67: 0.41 | O67: 2.091 | P67: 3.49 | R67: 4.525 | S67: 3.9
A69: 06 Badajoz | B69: 63565 | C69: 63348 | D69: 59850 | E69: 10618 | F69: 10634 | G69: 10450 | H69: 74183 | I69: 73982 | J69: 70300 | L69: 199.201 | M69: 169.742 | O69: 43.714 | P69: 37.042 | R69: 242.915 | S69: 206.784
A70: 10 Cáceres | B70: 2330 | C70: 1856 | D70: 2000 | E70: 1215 | F70: 1526 | G70: 1500 | H70: 3545 | I70: 3382 | J70: 3500 | L70: 4.953 | M70: 3.931 | O70: 3.393 | P70: 4.201 | R70: 8.347 | S70: 8.132
A71: EXTREMADURA | B71: 65895 | C71: 65204 | D71: 61850 | E71: 11833 | F71: 12160 | G71: 11950 | H71: 77728 | I71: 77364 | J71: 73800 | L71: 204.154 | M71: 173.673 | O71: 47.107 | P71: 41.243 | R71: 251.262 | S71: 214.916
A73: 04 Almería | B73: 1763 | C73: 1554 | D73: 1560 | E73: 65 | F73: 20 | G73: 20 | H73: 1828 | I73: 1574 | J73: 1580 | L73: 0.016 | M73: 3.984 | O73: 0.083 | P73: 0.064 | R73: 0.099 | S73: 4.048
A74: 11 Cádiz | B74: 9075 | C74: 10879.38 | D74: 10682.46 | E74: 1647 | F74: 1336.97 | G74: 1339.68 | H74: 10722 | I74: 12216.35 | J74: 12022.14 | L74: 15.855 | M74: 43.516 | O74: 6.458 | P74: 5.348 | R74: 22.313 | S74: 48.864
A75: 14 Córdoba | B75: 21160 | C75: 20330 | D75: 20330 | E75: 2078 | F75: 2390 | G75: 2390 | H75: 23238 | I75: 22720 | J75: 22720 | L75: 79.35 | M75: 60.99 | O75: 7.793 | P75: 7.17 | R75: 87.143 | S75: 68.16
A76: 18 Granada | B76: 7112 | C76: 7510 | D76: 7498 | E76: 816 | F76: 847 | G76: 838 | H76: 7928 | I76: 8357 | J76: 8336 | L76: 9.803 | M76: 15.443 | O76: 2.504 | P76: 4.039 | R76: 12.308 | S76: 19.481
A77: 21 Huelva | B77: 4160 | C77: 4105 | D77: 4105 | E77: 347 | F77: 275 | G77: 275 | H77: 4507 | I77: 4380 | J77: 4380 | L77: 15.392 | M77: 15.023 | O77: 1.328 | P77: 1.183 | R77: 16.72 | S77: 16.206
A78: 23 Jaén | B78: 2302 | C78: 1969 | D78: 1974 | E78: 202 | F78: 156 | G78: 158 | H78: 2504 | I78: 2125 | J78: 2132 | L78: 6.906 | M78: 5.513 | O78: 0.808 | P78: 0.562 | R78: 7.714 | S78: 6.075
A79: 29 Málaga | B79: 4459 | C79: 5432 | D79: 5439 | E79: 313 | F79: 389 | G79: 390 | H79: 4772 | I79: 5821 | J79: 5829 | L79: 9.792 | M79: 14.123 | O79: 1.33 | P79: 1.906 | R79: 11.122 | S79: 16.029
A80: 41 Sevilla | B80: 52650 | C80: 54310 | D80: 50000 | E80: 10820 | F80: 9310 | G80: 8000 | H80: 63470 | I80: 63620 | J80: 58000 | L80: 189.54 | M80: 190.085 | O80: 45.444 | P80: 39.102 | R80: 234.984 | S80: 229.187
A81: ANDALUCIA | B81: 102681 | C81: 106089.38 | D81: 101588.46 | E81: 16288 | F81: 14723.97 | G81: 13410.68 | H81: 118969 | I81: 120813.35 | J81: 114999.14 | L81: 326.654 | M81: 348.677 | O81: 65.748 | P81: 59.374 | R81: 392.403 | S81: 408.05
A83: 35 Palmas (Las) | B83: 88 | C83: 88 | D83: 88 | E83: 1 | F83: 1 | G83: 1 | H83: 89 | I83: 89 | J83: 89 | L83: 0.088 | M83: 0.088 | O83: 0.001 | P83: 0.001 | R83: 0.089 | S83: 0.089
A84: 38 S. C. Tenerife | B84: 114 | C84: 114 | D84: 114 | E84: 23 | F84: 23 | G84: 23 | H84: 137 | I84: 137 | J84: 137 | L84: 0.108 | M84: 0.108 | O84: 0.035 | P84: 0.035 | R84: 0.143 | S84: 0.143
A85: CANARIAS | B85: 202 | C85: 202 | D85: 202 | E85: 24 | F85: 24 | G85: 24 | H85: 226 | I85: 226 | J85: 226 | L85: 0.196 | M85: 0.196 | O85: 0.036 | P85: 0.036 | R85: 0.232 | S85: 0.232
A88: ESPAÑA | B88: 2951998 | C88: 1552131.08 | D88: 1506078.66 | E88: 239390 | F88: 238901.38 | G88: 231786.85 | H88: 1715389 | I88: 1791032.45 | J88: 1737865.5 | L88: 5022.986 | M88: 6317.724 | O88: 1345.927 | P88: 1437.272 | R88: 6368.889 | S88: 7754.995
B96: 221 | C96: 231 | E96: 221 | F96: 231 | H96: 221 | I96: 231

Sheet Tri8ndo
A1: AVANCES DE SUPERFICIE Y PRODUCCIÓN
A2: TRIGO SEMIDURO Y BLANDO | J2: 2026 ENERO
A3: SUPERFICIE SEMBRADA(*)
A4: PROVINCIAS | C4: SUPERFICIES (HA) | H4: PRODUCCIONES (1000 TM)
A5: Y
A6: CC-AA | C6: =E6-2 -> 2024 | D6: =E6-1 -> 2025 | E6: 2026 | F6: =E6 -> 2026 | H6: =J6-2 -> 2024 | I6: =J6-1 -> 2025 | J6: 2026 | K6: =J6 -> 2026
C7: DEFINITIVO | D7: PROVISIONAL | H7: DEFINITIVO | I7: PROVISIONAL
F8: =CONCATENATE(D6,"=100") -> 2025=100 | K8: =CONCATENATE(I6,"=100") -> 2025=100
A10: 15 A Coruña | C10: 1737 | D10: 2128.97 | E10: 1503.83 | H10: 3.995 | I10: 9.352
A11: 27 Lugo | C11: 3054 | D11: 3189.09 | E11: 2549.31 | H11: 6.718 | I11: 8.831
A12: 32 Ourense | C12: 8532 | D12: 6102.77 | E12: 5782.48 | H12: 25.256 | I12: 19.682
A13: 36 Pontevedra | C13: 285 | D13: 378.9 | E13: 358.91 | H13: 0.641 | I13: 1.371
A14: GALICIA | C14: 13608 | D14: 11799.73 | E14: 10194.53 | F14: 86.3962989 | H14: 36.61 | I14: 39.236
A16: 33 P. DE ASTURIAS | D16: 61 | E16: 65 | F16: 106.557377 | I16: 0.11
A18: 39 CANTABRIA | C18: 848 | D18: 855 | E18: 885 | F18: 103.5087719 | H18: 2.131 | I18: 1.944
A20: 1 Álava | C20: 19717 | D20: 17217 | E20: 18000 | H20: 138.019 | I20: 103.302
A21: 20 Guipúzcoa | C21: 1 | H21: 0.006
A22: 48 Vizcaya
A23: PAIS VASCO | C23: 19718 | D23: 17217 | E23: 18000 | F23: 104.5478306 | H23: 138.025 | I23: 103.302
A25: 31 NAVARRA | C25: 76527 | D25: 79931 | E25: 80593 | F25: 100.8282143 | H25: 428.752 | I25: 418.817
A27: 26 LA RIOJA | C27: 24798 | D27: 23102 | E27: 23050 | F27: 99.77491126 | H27: 78.726 | I27: 143.177
A29: 22 Huesca | C29: 86316 | D29: 75583.18 | E29: 78250 | H29: 347.218 | I29: 358.966
A30: 44 Teruel | C30: 46126 | D30: 37973 | E30: 39470 | H30: 42.208 | I30: 98.91
A31: 50 Zaragoza | C31: 65214 | D31: 57860.19 | E31: 69604 | H31: 152.776 | I31: 248.31
A32: ARAGÓN | C32: 197656 | D32: 171416.37 | E32: 187324 | F32: 109.2801113 | H32: 542.202 | I32: 706.186
A34: 8 Barcelona | C34: 21789 | D34: 21438 | E34: 22019 | H34: 50.253 | I34: 102.632
A35: 17 Girona | C35: 12723 | D35: 13568 | E35: 12487 | H35: 33.832 | I35: 61.366
A36: 25 Lleida | C36: 62306 | D36: 48380 | E36: 50075 | H36: 206.511 | I36: 248.925
A37: 43 Tarragona | C37: 6916 | D37: 6486 | E37: 6720 | H37: 8.307 | I37: 28.269
A38: CATALUÑA | C38: 103734 | D38: 89872 | E38: 91301 | F38: 101.5900392 | H38: 298.903 | I38: 441.192
A40: 7 BALEARES | C40: 4925 | D40: 4900 | E40: 5000 | F40: 102.0408163 | H40: 6.846 | I40: 6.9
A42: 5 Ávila | C42: 30970 | D42: 36341 | E42: 36250 | H42: 62.983 | I42: 132.895
A43: 9 Burgos | C43: 185483 | D43: 197954 | E43: 189510.33 | H43: 1005.251 | I43: 1063.924
A44: 24 León | C44: 36206 | D44: 52195 | E44: 50000 | H44: 163.344 | I44: 245.042
A45: 34 Palencia | C45: 120253 | D45: 134496 | E45: 125197 | H45: 576.034 | I45: 708.619
A46: 37 Salamanca | C46: 68314 | D46: 69979 | E46: 67000 | H46: 249.814 | I46: 306.37
A47: 40 Segovia | C47: 63030 | D47: 79308 | E47: 77000 | H47: 183.426 | I47: 325.664
A48: 42 Soria | C48: 87678 | D48: 106884 | E48: 84000 | H48: 338.365 | I48: 404.179
A49: 47 Valladolid | C49: 121508 | D49: 123664 | E49: 123500 | H49: 548.93 | I49: 699.723
A50: 49 Zamora | C50: 57757 | D50: 70093 | E50: 63045 | H50: 206.565 | I50: 304.578
A51: CASTILLA Y LEÓN | C51: 771199 | D51: 870914 | E51: 815502.33 | F51: 93.63752678 | H51: 3334.712 | I51: 4190.994
A53: 28 MADRID | C53: 20142 | D53: 19482 | E53: 19473 | F53: 99.95380351 | H53: 61.048 | I53: 64.676
A55: 2 Albacete | C55: 55160 | D55: 55550 | E55: 57190.5 | H55: 132.479 | I55: 202.493
A56: 13 Ciudad Real | C56: 48790 | D56: 47960 | E56: 47370 | H56: 130.177 | I56: 180.515
A57: 16 Cuenca | C57: 50056 | D57: 60629 | E57: 51762 | H57: 147.125 | I57: 191.72
A58: 19 Guadalajara | C58: 68269 | D58: 67783 | E58: 67783 | H58: 242.268 | I58: 260.995
A59: 45 Toledo | C59: 51630 | D59: 59879 | E59: 59879 | H59: 137.381 | I59: 163.584
A60: CASTILLA-MANCHA | C60: 273905 | D60: 291801 | E60: 283984.5 | F60: 97.32129088 | H60: 789.43 | I60: 999.307
A62: 3 Alicante | C62: 1180 | D62: 1458 | E62: 1328 | H62: 0.841 | I62: 3.939
A63: 12 Castellón | C63: 715 | D63: 810 | E63: 902 | H63: 0.206 | I63: 1.798
A64: 46 Valencia | C64: 2661 | D64: 2160 | E64: 2562 | H64: 2.035 | I64: 6.319
A65: C. VALENCIANA | C65: 4556 | D65: 4428 | E65: 4792 | F65: 108.2204155 | H65: 3.082 | I65: 12.056
A67: 30 R. DE MURCIA | C67: 6850 | D67: 6850 | E67: 8676 | F67: 126.6569343 | H67: 4.525 | I67: 3.9
A69: 6 Badajoz | C69: 74183 | D69: 73982 | E69: 70300 | H69: 242.915 | I69: 206.784
A70: 10 Cáceres | C70: 3545 | D70: 3382 | E70: 3500 | H70: 8.347 | I70: 8.132
A71: EXTREMADURA | C71: 77728 | D71: 77364 | E71: 73800 | F71: 95.39320614 | H71: 251.262 | I71: 214.916
A73: 4 Almería | C73: 1828 | D73: 1574 | E73: 1580 | H73: 0.099 | I73: 4.048
A74: 11 Cádiz | C74: 10722 | D74: 12216.35 | E74: 12022.14 | H74: 22.313 | I74: 48.864
A75: 14 Córdoba | C75: 23238 | D75: 22720 | E75: 22720 | H75: 87.143 | I75: 68.16
A76: 18 Granada | C76: 7928 | D76: 8357 | E76: 8336 | H76: 12.308 | I76: 19.481
A77: 21 Huelva | C77: 4507 | D77: 4380 | E77: 4380 | H77: 16.72 | I77: 16.206
A78: 23 Jaén | C78: 2504 | D78: 2125 | E78: 2132 | H78: 7.714 | I78: 6.075
A79: 29 Málaga | C79: 4772 | D79: 5821 | E79: 5829 | H79: 11.122 | I79: 16.029
A80: 41 Sevilla | C80: 63470 | D80: 63620 | E80: 58000 | H80: 234.984 | I80: 229.187
A81: ANDALUCÍA | C81: 118969 | D81: 120813.35 | E81: 114999.14 | F81: 95.1874441 | H81: 392.403 | I81: 408.05
A83: 35 Palmas (Las) | C83: 89 | D83: 89 | E83: 89 | H83: 0.089 | I83: 0.089
A84: 38 S. C. Tenerife | C84: 137 | D84: 137 | E84: 137 | H84: 0.143 | I84: 0.143
A85: CANARIAS | C85: 226 | D85: 226 | E85: 226 | F85: 100 | H85: 0.232 | I85: 0.232
A88: ESPAÑA | C88: 1715389 | D88: 1791032.45 | E88: 1737865.5 | F88: 97.03149153 | H88: 6368.889 | I88: 7754.995
A91: (*)Tipo de Superficie de mes/año solicitado

Sheet Cen9eno-SRT
A1: AVANCES DE SUPERFICIE Y PRODUCCIÓN
A2: CENTENO S/R/T | K2: 2026 ENERO
A3: SUPERFICIE SEMBRADA(*)
A4: PROVINCIAS | B4: SUPERFICIES (HA) | E4: SUPERFICIES (HA) | H4: SUPERFICIES (HA) | L4: PRODUCCIONES (1000 TM) | O4: PRODUCCIONES (1000 TM) | R4: PRODUCCIONES (1000 TM)
A5: Y | B5: SECANO | E5: REGADIO | H5: TOTAL | L5: SECANO | O5: REGADIO | R5: TOTAL
A6: CC-AA | B6: =J6-2 -> 2024 | C6: =J6-1 -> 2025 | D6: =J6 -> 2026 | E6: =J6-2 -> 2024 | F6: =J6-1 -> 2025 | G6: =J6 -> 2026 | H6: =J6-2 -> 2024 | I6: =J6-1 -> 2025 | J6: 2026 | L6: =T6-2 -> 2024 | M6: =T6-1 -> 2025 | N6: =T6 -> 2026 | O6: =T6-2 -> 2024 | P6: =T6-1 -> 2025 | Q6: =T6 -> 2026 | R6: =T6-2 -> 2024 | S6: =T6-1 -> 2025 | T6: 2026
B7: DEFINITIVO | C7: PROVISIONAL | E7: DEFINITIVO | F7: PROVISIONAL | H7: DEFINITIVO | I7: PROVISIONAL | L7: DEFINITIVO | M7: PROVISIONAL | O7: DEFINITIVO | P7: PROVISIONAL | R7: DEFINITIVO | S7: PROVISIONAL
A10: 15 Coruña (La) | B10: 112 | C10: 106.08 | D10: 77.56 | H10: 112 | I10: 106.08 | J10: 77.56 | L10: 0.367 | M10: 0.24 | R10: 0.367 | S10: 0.24
A11: 27 Lugo | B11: 417 | C11: 464.04 | D11: 239.82 | H11: 417 | I11: 464.04 | J11: 239.82 | L11: 1.422 | M11: 1.434 | R11: 1.423 | S11: 1.434
A12: 32 Orense | B12: 3585 | C12: 2950.59 | D12: 2743.76 | H12: 3585 | I12: 2950.59 | J12: 2743.76 | L12: 13.766 | M12: 8.748 | R12: 13.767 | S12: 8.748
A13: 36 Pontevedra | B13: 40 | C13: 15.3 | D13: 21.79 | H13: 40 | I13: 15.3 | J13: 21.79 | L13: 0.176 | M13: 0.058 | R13: 0.176 | S13: 0.058
A14: GALICIA | B14: 4154 | C14: 3536.01 | D14: 3082.93 | H14: 4154 | I14: 3536.01 | J14: 3082.93 | L14: 15.731 | M14: 10.48 | R14: 15.733 | S14: 10.48
A16: 33 P. DE ASTURIAS
A18: 39 CANTABRIA | B18: 30 | C18: 33 | D18: 29 | H18: 30 | I18: 33 | J18: 29 | L18: 0.028 | M18: 0.032 | R18: 0.028 | S18: 0.032
A20: 01 Alava | B20: 271 | C20: 262 | D20: 260 | H20: 271 | I20: 262 | J20: 260 | L20: 1.626 | M20: 1.31 | R20: 1.626 | S20: 1.31
A21: 20 Guipúzcoa
A22: 48 Vizcaya
A23: PAIS VASCO | B23: 271 | C23: 262 | D23: 260 | H23: 271 | I23: 262 | J23: 260 | L23: 1.626 | M23: 1.31 | R23: 1.626 | S23: 1.31
A25: 31 NAVARRA | B25: 159 | C25: 199 | D25: 200 | E25: 33 | F25: 45 | G25: 46 | H25: 192 | I25: 244 | J25: 246 | L25: 0.21 | M25: 0.388 | O25: 0.072 | P25: 0.139 | R25: 0.282 | S25: 0.527
A27: 26 LA RIOJA | B27: 148 | C27: 119 | D27: 135 | E27: 69 | F27: 10 | G27: 5 | H27: 217 | I27: 129 | J27: 140 | L27: 0.176 | M27: 0.3 | O27: 0.214 | P27: 0.03 | R27: 0.39 | S27: 0.33
A29: 22 Huesca | B29: 285 | C29: 115.9 | D29: 120 | E29: 40 | F29: 155.8 | G29: 160 | H29: 325 | I29: 271.7 | J29: 280 | L29: 0.339 | M29: 0.424 | O29: 0.129 | P29: 0.653 | R29: 0.468 | S29: 1.077
A30: 44 Teruel | B30: 3503 | C30: 3629 | D30: 6320 | E30: 166 | F30: 203 | G30: 213 | H30: 3669 | I30: 3832 | J30: 6533 | L30: 2.652 | M30: 8.22 | O30: 0.449 | P30: 0.647 | R30: 3.101 | S30: 8.867
A31: 50 Zaragoza | B31: 4071 | C31: 2817.71 | D31: 5330 | E31: 115 | F31: 63.44 | G31: 12 | H31: 4186 | I31: 2881.15 | J31: 5342 | L31: 5.745 | M31: 3.316 | O31: 0.494 | P31: 0.243 | R31: 6.238 | S31: 3.56
A32: ARAGON | B32: 7859 | C32: 6562.61 | D32: 11770 | E32: 321 | F32: 422.24 | G32: 385 | H32: 8180 | I32: 6984.85 | J32: 12155 | L32: 8.736 | M32: 11.96 | O32: 1.072 | P32: 1.543 | R32: 9.807 | S32: 13.504
A34: 08 Barcelona | B34: 146 | C34: 209 | D34: 61 | F34: 1 | G34: 5 | H34: 146 | I34: 210 | J34: 66 | L34: 0.199 | M34: 0.69 | P34: 0.004 | R34: 0.199 | S34: 0.694
A35: 17 Girona | B35: 209 | C35: 166 | D35: 744 | E35: 49 | F35: 78 | G35: 231 | H35: 258 | I35: 244 | J35: 975 | L35: 0.561 | M35: 0.364 | O35: 0.186 | P35: 0.255 | R35: 0.747 | S35: 0.619
A36: 25 Lleida | B36: 375 | C36: 610 | D36: 590 | E36: 270 | F36: 235 | G36: 245 | H36: 645 | I36: 845 | J36: 835 | L36: 0.785 | M36: 1.83 | O36: 1.279 | P36: 1.786 | R36: 2.064 | S36: 3.616
A37: 43 Tarragona | B37: 38 | C37: 96 | D37: 96 | E37: 11 | F37: 15 | G37: 7 | H37: 49 | I37: 111 | J37: 103 | L37: 0.019 | M37: 0.192 | O37: 0.01 | P37: 0.04 | R37: 0.029 | S37: 0.232
A38: CATALUÑA | B38: 768 | C38: 1081 | D38: 1491 | E38: 330 | F38: 329 | G38: 488 | H38: 1098 | I38: 1410 | J38: 1979 | L38: 1.564 | M38: 3.076 | O38: 1.475 | P38: 2.085 | R38: 3.039 | S38: 5.161
A40: 07 BALEARES | B40: 3 | C40: 3 | D40: 10 | H40: 3 | I40: 3 | J40: 10 | L40: 0.002 | M40: 0.003 | R40: 0.002 | S40: 0.003
A42: 05 Avila | B42: 8183 | C42: 8978 | D42: 8950 | E42: 76 | F42: 37 | G42: 40 | H42: 8259 | I42: 9015 | J42: 8990 | L42: 10.139 | M42: 20.156 | O42: 0.187 | P42: 0.147 | R42: 10.326 | S42: 20.303
A43: 09 Burgos | B43: 3535 | C43: 2927 | D43: 3123 | E43: 322 | F43: 332 | G43: 289 | H43: 3857 | I43: 3259 | J43: 3412 | L43: 11.425 | M43: 10.871 | O43: 1.55 | P43: 1.583 | R43: 12.975 | S43: 12.454
A44: 24 León | B44: 8647 | C44: 8839 | D44: 9000 | E44: 1376 | F44: 1270 | G44: 1000 | H44: 10023 | I44: 10109 | J44: 10000 | L44: 23.347 | M44: 24.042 | O44: 4.266 | P44: 4.115 | R44: 27.613 | S44: 28.157
A45: 34 Palencia | B45: 14049 | C45: 11285 | D45: 10163 | E45: 532 | F45: 609 | G45: 554 | H45: 14581 | I45: 11894 | J45: 10717 | L45: 42.793 | M45: 25.278 | O45: 2.169 | P45: 1.885 | R45: 44.962 | S45: 27.163
A46: 37 Salamanca | B46: 4444 | C46: 5094 | D46: 4000 | E46: 257 | F46: 361 | G46: 250 | H46: 4701 | I46: 5455 | J46: 4250 | L46: 11.554 | M46: 15.282 | O46: 0.977 | P46: 1.372 | R46: 12.531 | S46: 16.654
A47: 40 Segovia | B47: 5751 | C47: 8616 | D47: 10500 | E47: 361 | F47: 357 | H47: 6112 | I47: 8973 | J47: 10500 | L47: 8.627 | M47: 29.829 | O47: 1.372 | P47: 1.607 | R47: 9.999 | S47: 31.436
A48: 42 Soria | B48: 11502 | C48: 9505 | D48: 9000 | E48: 221 | F48: 187 | G48: 150 | H48: 11723 | I48: 9692 | J48: 9150 | L48: 23.004 | M48: 23.763 | O48: 0.774 | P48: 0.655 | R48: 23.778 | S48: 24.418
A49: 47 Valladolid | B49: 6126 | C49: 5953 | D49: 6000 | E49: 1033 | F49: 1011 | G49: 1000 | H49: 7159 | I49: 6964 | J49: 7000 | L49: 16.902 | M49: 20.02 | O49: 4.713 | P49: 4.7 | R49: 21.615 | S49: 24.72
A50: 49 Zamora | B50: 2359 | C50: 5964 | D50: 5368 | E50: 481 | F50: 367 | G50: 330 | H50: 2840 | I50: 6331 | J50: 5698 | L50: 5.499 | M50: 12.328 | O50: 1.84 | P50: 1.288 | R50: 7.339 | S50: 13.616
A51: CASTILLA Y LEON | B51: 64596 | C51: 67161 | D51: 66104 | E51: 4659 | F51: 4531 | G51: 3613 | H51: 69255 | I51: 71692 | J51: 69717 | L51: 153.29 | M51: 181.569 | O51: 17.848 | P51: 17.352 | R51: 171.138 | S51: 198.921
A53: 28 MADRID | B53: 625 | C53: 726 | D53: 726 | E53: 28 | H53: 653 | I53: 726 | J53: 726 | L53: 0.561 | M53: 0.82 | O53: 0.091 | R53: 0.653 | S53: 0.82
A55: 02 Albacete | B55: 990 | C55: 1020 | D55: 1100 | E55: 37 | F55: 92 | G55: 90 | H55: 1027 | I55: 1112 | J55: 1190 | L55: 0.751 | M55: 1.428 | O55: 0.189 | P55: 0.483 | R55: 0.94 | S55: 1.911
A56: 13 Ciudad Real | B56: 1259 | C56: 1100 | D56: 1250 | E56: 166 | F56: 100 | G56: 150 | H56: 1425 | I56: 1200 | J56: 1400 | L56: 2.014 | M56: 1.87 | O56: 0.481 | P56: 0.3 | R56: 2.495 | S56: 2.17
A57: 16 Cuenca | B57: 410 | C57: 358 | D57: 475 | E57: 17 | F57: 23 | G57: 24 | H57: 427 | I57: 381 | J57: 499 | L57: 0.95 | M57: 0.896 | O57: 0.065 | P57: 0.1 | R57: 1.015 | S57: 0.996
A58: 19 Guadalajara | B58: 2108 | C58: 2108 | D58: 1740 | E58: 15 | F58: 15 | G58: 4 | H58: 2123 | I58: 2123 | J58: 1744 | L58: 5.902 | M58: 5.273 | O58: 0.053 | P58: 0.057 | R58: 5.955 | S58: 5.33
A59: 45 Toledo | B59: 6810 | C59: 5837 | D59: 5837 | E59: 122 | F59: 110 | G59: 110 | H59: 6932 | I59: 5947 | J59: 5947 | L59: 8.853 | M59: 11.267 | O59: 0.403 | P59: 0.363 | R59: 9.256 | S59: 11.63
A60: CASTILLA-MANCHA | B60: 11577 | C60: 10423 | D60: 10402 | E60: 357 | F60: 340 | G60: 378 | H60: 11934 | I60: 10763 | J60: 10780 | L60: 18.47 | M60: 20.734 | O60: 1.191 | P60: 1.303 | R60: 19.661 | S60: 22.037
A62: 03 Alicante | B62: 11 | C62: 10 | D62: 8 | E62: 2 | F62: 2 | G62: 2 | H62: 13 | I62: 12 | J62: 10 | L62: 0.001 | M62: 0.007 | O62: 0.003 | P62: 0.003 | R62: 0.004 | S62: 0.01
A63: 12 Castellón | B63: 290 | C63: 363 | D63: 363 | H63: 290 | I63: 363 | J63: 363 | L63: 0.036 | M63: 0.454 | R63: 0.036 | S63: 0.454
A64: 46 Valencia | B64: 56 | C64: 44 | D64: 49 | E64: 1 | F64: 36 | G64: 40 | H64: 57 | I64: 80 | J64: 89 | L64: 0.045 | M64: 0.109 | O64: 0.005 | P64: 0.148 | R64: 0.05 | S64: 0.257
A65: C. VALENCIANA | B65: 357 | C65: 417 | D65: 420 | E65: 3 | F65: 38 | G65: 42 | H65: 360 | I65: 455 | J65: 462 | L65: 0.082 | M65: 0.57 | O65: 0.008 | P65: 0.151 | R65: 0.09 | S65: 0.721
A67: 30 R. DE MURCIA | B67: 51 | C67: 51 | D67: 39 | E67: 1 | F67: 1 | G67: 1 | H67: 52 | I67: 52 | J67: 40 | L67: 0.046 | M67: 0.049 | O67: 0.002 | P67: 0.001 | R67: 0.048 | S67: 0.05
A69: 06 Badajoz | B69: 34 | C69: 33 | D69: 38 | E69: 13 | G69: 10 | H69: 47 | I69: 33 | J69: 48 | L69: 0.042 | M69: 0.04 | O69: 0.022 | R69: 0.064 | S69: 0.04
A70: 10 Cáceres | B70: 27 | C70: 13 | D70: 30 | E70: 21 | F70: 32 | G70: 20 | H70: 48 | I70: 45 | J70: 50 | L70: 0.031 | M70: 0.012 | O70: 0.032 | P70: 0.038 | R70: 0.063 | S70: 0.05
A71: EXTREMADURA | B71: 61 | C71: 46 | D71: 68 | E71: 34 | F71: 32 | G71: 30 | H71: 95 | I71: 78 | J71: 98 | L71: 0.073 | M71: 0.052 | O71: 0.054 | P71: 0.038 | R71: 0.127 | S71: 0.09
A73: 04 Almería | B73: 138 | C73: 117 | D73: 120 | E73: 1 | H73: 139 | I73: 117 | J73: 120 | M73: 0.295 | S73: 0.295
A74: 11 Cádiz | B74: 5 | C74: 28.23 | D74: 28.23 | H74: 5 | I74: 28.23 | J74: 28.23 | L74: 0.01 | M74: 0.011 | R74: 0.01 | S74: 0.011
A75: 14 Córdoba | B75: 265 | C75: 292 | D75: 292 | F75: 13 | G75: 13 | H75: 265 | I75: 305 | J75: 305 | L75: 0.53 | M75: 0.73 | P75: 0.033 | R75: 0.53 | S75: 0.763
A76: 18 Granada | B76: 252 | C76: 302 | D76: 304 | E76: 7 | F76: 8 | G76: 8 | H76: 259 | I76: 310 | J76: 312 | L76: 0.036 | M76: 0.57 | O76: 0.016 | P76: 0.02 | R76: 0.052 | S76: 0.59
A77: 21 Huelva | B77: 2 | C77: 2 | D77: 2 | H77: 2 | I77: 2 | J77: 2 | L77: 0.003 | M77: 0.003 | R77: 0.003 | S77: 0.003
A78: 23 Jaén
A79: 29 Málaga | C79: 1 | D79: 1 | I79: 1 | J79: 1 | M79: 0.003 | S79: 0.003
A80: 41 Sevilla | B80: 11 | C80: 53 | D80: 53 | E80: 2 | F80: 7 | G80: 7 | H80: 13 | I80: 60 | J80: 60 | L80: 0.029 | M80: 0.138 | O80: 0.006 | P80: 0.022 | R80: 0.035 | S80: 0.16
A81: ANDALUCIA | B81: 673 | C81: 795.23 | D81: 800.23 | E81: 10 | F81: 28 | G81: 28 | H81: 683 | I81: 823.23 | J81: 828.23 | L81: 0.608 | M81: 1.75 | O81: 0.022 | P81: 0.075 | R81: 0.63 | S81: 1.825
A83: 35 Palmas (Las) | B83: 16 | C83: 16 | D83: 16 | E83: 1 | F83: 1 | G83: 1 | H83: 17 | I83: 17 | J83: 17 | L83: 0.009 | M83: 0.009 | O83: 0.003 | P83: 0.003 | R83: 0.012 | S83: 0.012
A84: 38 S. C. Tenerife | B84: 63 | E84: 2 | H84: 65 | L84: 0.041 | O84: 0.002 | R84: 0.043
A85: CANARIAS | B85: 79 | C85: 16 | D85: 16 | E85: 3 | F85: 1 | G85: 1 | H85: 82 | I85: 17 | J85: 17 | L85: 0.05 | M85: 0.009 | O85: 0.005 | P85: 0.003 | R85: 0.055 | S85: 0.012
A88: ESPAÑA | B88: 182822 | C88: 91430.85 | D88: 95553.16 | E88: 5848 | F88: 5777.24 | G88: 5017 | H88: 97259 | I88: 97208.09 | J88: 100570.16 | L88: 201.253 | M88: 233.102 | O88: 22.054 | P88: 22.72 | R88: 223.309 | S88: 255.823
B96: 221 | C96: 231 | E96: 221 | F96: 231 | H96: 221 | I96: 231

Sheet Cen9eno
A1: AVANCES DE SUPERFICIE Y PRODUCCIÓN
A2: CENTENO | J2: 2026 ENERO
A3: SUPERFICIE SEMBRADA(*)
A4: PROVINCIAS | C4: SUPERFICIES (HA) | H4: PRODUCCIONES (1000 TM)
A5: Y
A6: CC-AA | C6: =E6-2 -> 2024 | D6: =E6-1 -> 2025 | E6: 2026 | F6: =E6 -> 2026 | H6: =J6-2 -> 2024 | I6: =J6-1 -> 2025 | J6: 2026 | K6: =J6 -> 2026
C7: DEFINITIVO | D7: PROVISIONAL | H7: DEFINITIVO | I7: PROVISIONAL
F8: =CONCATENATE(D6,"=100") -> 2025=100 | K8: =CONCATENATE(I6,"=100") -> 2025=100
A10: 15 A Coruña | C10: 112 | D10: 106.08 | E10: 77.56 | H10: 0.367 | I10: 0.24
A11: 27 Lugo | C11: 417 | D11: 464.04 | E11: 239.82 | H11: 1.423 | I11: 1.434
A12: 32 Ourense | C12: 3585 | D12: 2950.59 | E12: 2743.76 | H12: 13.767 | I12: 8.748
A13: 36 Pontevedra | C13: 40 | D13: 15.3 | E13: 21.79 | H13: 0.176 | I13: 0.058
A14: GALICIA | C14: 4154 | D14: 3536.01 | E14: 3082.93 | F14: 87.18668782 | H14: 15.733 | I14: 10.48
A16: 33 P. DE ASTURIAS
A18: 39 CANTABRIA | C18: 30 | D18: 33 | E18: 29 | F18: 87.87878788 | H18: 0.028 | I18: 0.032
A20: 1 Álava | C20: 271 | D20: 262 | E20: 260 | H20: 1.626 | I20: 1.31
A21: 20 Guipúzcoa
A22: 48 Vizcaya
A23: PAIS VASCO | C23: 271 | D23: 262 | E23: 260 | F23: 99.23664122 | H23: 1.626 | I23: 1.31
A25: 31 NAVARRA | C25: 192 | D25: 244 | E25: 246 | F25: 100.8196721 | H25: 0.282 | I25: 0.527
A27: 26 LA RIOJA | C27: 217 | D27: 129 | E27: 140 | F27: 108.5271318 | H27: 0.39 | I27: 0.33
A29: 22 Huesca | C29: 325 | D29: 271.7 | E29: 280 | H29: 0.468 | I29: 1.077
A30: 44 Teruel | C30: 3669 | D30: 3832 | E30: 6533 | H30: 3.101 | I30: 8.867
A31: 50 Zaragoza | C31: 4186 | D31: 2881.15 | E31: 5342 | H31: 6.238 | I31: 3.56
A32: ARAGÓN | C32: 8180 | D32: 6984.85 | E32: 12155 | F32: 174.019485 | H32: 9.807 | I32: 13.504
A34: 8 Barcelona | C34: 146 | D34: 210 | E34: 66 | H34: 0.199 | I34: 0.694
A35: 17 Girona | C35: 258 | D35: 244 | E35: 975 | H35: 0.747 | I35: 0.619
A36: 25 Lleida | C36: 645 | D36: 845 | E36: 835 | H36: 2.064 | I36: 3.616
A37: 43 Tarragona | C37: 49 | D37: 111 | E37: 103 | H37: 0.029 | I37: 0.232
A38: CATALUÑA | C38: 1098 | D38: 1410 | E38: 1979 | F38: 140.3546099 | H38: 3.039 | I38: 5.161
A40: 7 BALEARES | C40: 3 | D40: 3 | E40: 10 | F40: 333.3333333 | H40: 0.002 | I40: 0.003
A42: 5 Ávila | C42: 8259 | D42: 9015 | E42: 8990 | H42: 10.326 | I42: 20.303
A43: 9 Burgos | C43: 3857 | D43: 3259 | E43: 3412 | H43: 12.975 | I43: 12.454
A44: 24 León | C44: 10023 | D44: 10109 | E44: 10000 | H44: 27.613 | I44: 28.157
A45: 34 Palencia | C45: 14581 | D45: 11894 | E45: 10717 | H45: 44.962 | I45: 27.163
A46: 37 Salamanca | C46: 4701 | D46: 5455 | E46: 4250 | H46: 12.531 | I46: 16.654
A47: 40 Segovia | C47: 6112 | D47: 8973 | E47: 10500 | H47: 9.999 | I47: 31.436
A48: 42 Soria | C48: 11723 | D48: 9692 | E48: 9150 | H48: 23.778 | I48: 24.418
A49: 47 Valladolid | C49: 7159 | D49: 6964 | E49: 7000 | H49: 21.615 | I49: 24.72
A50: 49 Zamora | C50: 2840 | D50: 6331 | E50: 5698 | H50: 7.339 | I50: 13.616
A51: CASTILLA Y LEÓN | C51: 69255 | D51: 71692 | E51: 69717 | F51: 97.24515985 | H51: 171.138 | I51: 198.921
A53: 28 MADRID | C53: 653 | D53: 726 | E53: 726 | F53: 100 | H53: 0.653 | I53: 0.82
A55: 2 Albacete | C55: 1027 | D55: 1112 | E55: 1190 | H55: 0.94 | I55: 1.911
A56: 13 Ciudad Real | C56: 1425 | D56: 1200 | E56: 1400 | H56: 2.495 | I56: 2.17
A57: 16 Cuenca | C57: 427 | D57: 381 | E57: 499 | H57: 1.015 | I57: 0.996
A58: 19 Guadalajara | C58: 2123 | D58: 2123 | E58: 1744 | H58: 5.955 | I58: 5.33
A59: 45 Toledo | C59: 6932 | D59: 5947 | E59: 5947 | H59: 9.256 | I59: 11.63
A60: CASTILLA-MANCHA | C60: 11934 | D60: 10763 | E60: 10780 | F60: 100.1579485 | H60: 19.661 | I60: 22.037
A62: 3 Alicante | C62: 13 | D62: 12 | E62: 10 | H62: 0.004 | I62: 0.01
A63: 12 Castellón | C63: 290 | D63: 363 | E63: 363 | H63: 0.036 | I63: 0.454
A64: 46 Valencia | C64: 57 | D64: 80 | E64: 89 | H64: 0.05 | I64: 0.257
A65: C. VALENCIANA | C65: 360 | D65: 455 | E65: 462 | F65: 101.5384615 | H65: 0.09 | I65: 0.721
A67: 30 R. DE MURCIA | C67: 52 | D67: 52 | E67: 40 | F67: 76.92307692 | H67: 0.048 | I67: 0.05
A69: 6 Badajoz | C69: 47 | D69: 33 | E69: 48 | H69: 0.064 | I69: 0.04
A70: 10 Cáceres | C70: 48 | D70: 45 | E70: 50 | H70: 0.063 | I70: 0.05
A71: EXTREMADURA | C71: 95 | D71: 78 | E71: 98 | F71: 125.6410256 | H71: 0.127 | I71: 0.09
A73: 4 Almería | C73: 139 | D73: 117 | E73: 120 | I73: 0.295
A74: 11 Cádiz | C74: 5 | D74: 28.23 | E74: 28.23 | H74: 0.01 | I74: 0.011
A75: 14 Córdoba | C75: 265 | D75: 305 | E75: 305 | H75: 0.53 | I75: 0.763
A76: 18 Granada | C76: 259 | D76: 310 | E76: 312 | H76: 0.052 | I76: 0.59
A77: 21 Huelva | C77: 2 | D77: 2 | E77: 2 | H77: 0.003 | I77: 0.003
A78: 23 Jaén
A79: 29 Málaga | D79: 1 | E79: 1 | I79: 0.003
A80: 41 Sevilla | C80: 13 | D80: 60 | E80: 60 | H80: 0.035 | I80: 0.16
A81: ANDALUCÍA | C81: 683 | D81: 823.23 | E81: 828.23 | F81: 100.6073637 | H81: 0.63 | I81: 1.825
A83: 35 Palmas (Las) | C83: 17 | D83: 17 | E83: 17 | H83: 0.012 | I83: 0.012
A84: 38 S. C. Tenerife | C84: 65 | H84: 0.043
A85: CANARIAS | C85: 82 | D85: 17 | E85: 17 | F85: 100 | H85: 0.055 | I85: 0.012
A88: ESPAÑA | C88: 97259 | D88: 97208.09 | E88: 100570.16 | F88: 103.4586319 | H88: 223.309 | I88: 255.823
A91: (*)Tipo de Superficie de mes/año solicitado

Sheet Tra10no)-SRT
A1: AVANCES DE SUPERFICIE Y PRODUCCIÓN
A2: TRANQUILLÓN (MEZCLA DE TRIGO Y CENTENO) S/R/T | K2: 2026 ENERO
A3: SUPERFICIE SEMBRADA(*)
A4: PROVINCIAS | B4: SUPERFICIES (HA) | E4: SUPERFICIES (HA) | H4: SUPERFICIES (HA) | L4: PRODUCCIONES (1000 TM) | O4: PRODUCCIONES (1000 TM) | R4: PRODUCCIONES (1000 TM)
A5: Y | B5: SECANO | E5: REGADIO | H5: TOTAL | L5: SECANO | O5: REGADIO | R5: TOTAL
A6: CC-AA | B6: =J6-2 -> 2024 | C6: =J6-1 -> 2025 | D6: =J6 -> 2026 | E6: =J6-2 -> 2024 | F6: =J6-1 -> 2025 | G6: =J6 -> 2026 | H6: =J6-2 -> 2024 | I6: =J6-1 -> 2025 | J6: 2026 | L6: =T6-2 -> 2024 | M6: =T6-1 -> 2025 | N6: =T6 -> 2026 | O6: =T6-2 -> 2024 | P6: =T6-1 -> 2025 | Q6: =T6 -> 2026 | R6: =T6-2 -> 2024 | S6: =T6-1 -> 2025 | T6: 2026
B7: DEFINITIVO | C7: PROVISIONAL | E7: DEFINITIVO | F7: PROVISIONAL | H7: DEFINITIVO | I7: PROVISIONAL | L7: DEFINITIVO | M7: PROVISIONAL | O7: DEFINITIVO | P7: PROVISIONAL | R7: DEFINITIVO | S7: PROVISIONAL
A10: 15 Coruña (La)
A11: 27 Lugo | C11: 5.04 | D11: 6.2 | I11: 5.04 | J11: 6.2 | M11: 0.015 | S11: 0.015
A12: 32 Orense
A13: 36 Pontevedra
A14: GALICIA | C14: 5.04 | D14: 6.2 | I14: 5.04 | J14: 6.2 | M14: 0.015 | S14: 0.015
A16: 33 P. DE ASTURIAS
A18: 39 CANTABRIA
A20: 01 Alava
A21: 20 Guipúzcoa
A22: 48 Vizcaya
A23: PAIS VASCO
A25: 31 NAVARRA
A27: 26 LA RIOJA
A29: 22 Huesca | E29: 11 | H29: 11 | O29: 0.028 | R29: 0.028
A30: 44 Teruel | B30: 5 | C30: 19 | D30: 19 | H30: 5 | I30: 19 | J30: 19 | L30: 0.005 | M30: 0.049 | R30: 0.005 | S30: 0.049
A31: 50 Zaragoza
A32: ARAGON | B32: 5 | C32: 19 | D32: 19 | E32: 11 | H32: 16 | I32: 19 | J32: 19 | L32: 0.005 | M32: 0.049 | O32: 0.028 | R32: 0.033 | S32: 0.049
A34: 08 Barcelona | C34: 1 | D34: 5 | I34: 1 | J34: 5 | M34: 0.001 | S34: 0.001
A35: 17 Girona | B35: 55 | E35: 14 | H35: 69 | L35: 0.165 | O35: 0.049 | R35: 0.214
A36: 25 Lleida
A37: 43 Tarragona
A38: CATALUÑA | B38: 55 | C38: 1 | D38: 5 | E38: 14 | H38: 69 | I38: 1 | J38: 5 | L38: 0.165 | M38: 0.001 | O38: 0.049 | R38: 0.214 | S38: 0.001
A40: 07 BALEARES | B40: 3 | C40: 2 | H40: 3 | I40: 2 | L40: 0.003 | M40: 0.002 | R40: 0.003 | S40: 0.002
A42: 05 Avila
A43: 09 Burgos
A44: 24 León
A45: 34 Palencia
A46: 37 Salamanca
A47: 40 Segovia
A48: 42 Soria
A49: 47 Valladolid
A50: 49 Zamora
A51: CASTILLA Y LEON
A53: 28 MADRID | B53: 16 | C53: 6 | D53: 6 | H53: 16 | I53: 6 | J53: 6 | L53: 0.021 | M53: 0.008 | R53: 0.021 | S53: 0.008
A55: 02 Albacete | B55: 294 | C55: 315 | D55: 300 | E55: 70 | H55: 364 | I55: 315 | J55: 300 | L55: 0.193 | M55: 0.394 | O55: 0.336 | R55: 0.529 | S55: 0.394
A56: 13 Ciudad Real | B56: 5469 | C56: 5223 | D56: 5750 | E56: 415 | F56: 353 | G56: 380 | H56: 5884 | I56: 5576 | J56: 6130 | L56: 10.938 | M56: 11.491 | O56: 1.919 | P56: 1.659 | R56: 12.857 | S56: 13.15
A57: 16 Cuenca | B57: 22 | C57: 17 | D57: 34 | H57: 22 | I57: 17 | J57: 34 | L57: 0.053 | M57: 0.042 | R57: 0.053 | S57: 0.042
A58: 19 Guadalajara | B58: 2 | C58: 2 | H58: 2 | I58: 2 | L58: 0.002 | M58: 0.006 | R58: 0.002 | S58: 0.006
A59: 45 Toledo | B59: 921 | C59: 760 | D59: 760 | E59: 35 | F59: 46 | G59: 46 | H59: 956 | I59: 806 | J59: 806 | L59: 1.013 | M59: 2.204 | O59: 0.126 | P59: 0.166 | R59: 1.139 | S59: 2.37
A60: CASTILLA-MANCHA | B60: 6708 | C60: 6317 | D60: 6844 | E60: 520 | F60: 399 | G60: 426 | H60: 7228 | I60: 6716 | J60: 7270 | L60: 12.199 | M60: 14.137 | O60: 2.381 | P60: 1.825 | R60: 14.58 | S60: 15.962
A62: 03 Alicante
A63: 12 Castellón
A64: 46 Valencia
A65: C. VALENCIANA
A67: 30 R. DE MURCIA
A69: 06 Badajoz | B69: 3560 | C69: 3679 | D69: 3468 | E69: 55 | F69: 53 | G69: 48 | H69: 3615 | I69: 3732 | J69: 3516 | L69: 7.128 | M69: 7.358 | O69: 0.146 | P69: 0.138 | R69: 7.274 | S69: 7.496
A70: 10 Cáceres | B70: 79 | C70: 135 | D70: 150 | E70: 44 | F70: 46 | G70: 50 | H70: 123 | I70: 181 | J70: 200 | L70: 0.121 | M70: 0.203 | O70: 0.09 | P70: 0.092 | R70: 0.211 | S70: 0.295
A71: EXTREMADURA | B71: 3639 | C71: 3814 | D71: 3618 | E71: 99 | F71: 99 | G71: 98 | H71: 3738 | I71: 3913 | J71: 3716 | L71: 7.249 | M71: 7.561 | O71: 0.236 | P71: 0.23 | R71: 7.485 | S71: 7.791
A73: 04 Almería
A74: 11 Cádiz | B74: 2636 | C74: 2546.95 | D74: 1642 | E74: 233 | F74: 213.89 | G74: 212.07 | H74: 2869 | I74: 2760.84 | J74: 1854.07 | L74: 2.636 | M74: 2.547 | O74: 0.303 | P74: 0.278 | R74: 2.939 | S74: 2.825
A75: 14 Córdoba | B75: 21928 | C75: 18300 | D75: 18300 | E75: 552 | F75: 600 | G75: 600 | H75: 22480 | I75: 18900 | J75: 18900 | L75: 76.748 | M75: 54.9 | O75: 1.932 | P75: 1.8 | R75: 78.68 | S75: 56.7
A76: 18 Granada | C76: 28 | D76: 28 | I76: 28 | J76: 28 | M76: 0.042 | S76: 0.042
A77: 21 Huelva | B77: 132 | C77: 140 | D77: 140 | H77: 132 | I77: 140 | J77: 140 | L77: 0.436 | M77: 0.476 | R77: 0.436 | S77: 0.476
A78: 23 Jaén | B78: 71 | C78: 176 | D78: 176 | H78: 71 | I78: 176 | J78: 176 | L78: 0.128 | M78: 0.317 | R78: 0.128 | S78: 0.317
A79: 29 Málaga | B79: 50 | C79: 73 | D79: 64 | E79: 13 | F79: 21 | G79: 20 | H79: 63 | I79: 94 | J79: 84 | L79: 0.1 | M79: 0.161 | O79: 0.046 | P79: 0.074 | R79: 0.146 | S79: 0.235
A80: 41 Sevilla | B80: 830 | C80: 225 | D80: 225 | E80: 60 | F80: 30 | G80: 30 | H80: 890 | I80: 255 | J80: 255 | L80: 2.988 | M80: 0.675 | O80: 0.234 | P80: 0.102 | R80: 3.222 | S80: 0.777
A81: ANDALUCIA | B81: 25647 | C81: 21488.95 | D81: 20575 | E81: 858 | F81: 864.89 | G81: 862.07 | H81: 26505 | I81: 22353.84 | J81: 21437.07 | L81: 83.036 | M81: 59.118 | O81: 2.515 | P81: 2.254 | R81: 85.551 | S81: 61.372
A83: 35 Palmas (Las) | B83: 1 | C83: 1 | D83: 1 | H83: 1 | I83: 1 | J83: 1 | L83: 0.001 | M83: 0.001 | R83: 0.001 | S83: 0.001
A84: 38 S. C. Tenerife | B84: 1 | H84: 1 | L84: 0.001 | R84: 0.001
A85: CANARIAS | B85: 2 | C85: 1 | D85: 1 | H85: 2 | I85: 1 | J85: 1 | L85: 0.002 | M85: 0.001 | R85: 0.002 | S85: 0.001
A88: ESPAÑA | B88: 72150 | C88: 31653.99 | D88: 31074.2 | E88: 1502 | F88: 1362.89 | G88: 1386.07 | H88: 37577 | I88: 33016.88 | J88: 32460.27 | L88: 102.68 | M88: 80.892 | O88: 5.209 | P88: 4.309 | R88: 107.889 | S88: 85.201
B96: 221 | C96: 231 | E96: 221 | F96: 231 | H96: 221 | I96: 231

Sheet Tra10no)
A1: AVANCES DE SUPERFICIE Y PRODUCCIÓN
A2: TRANQUILLÓN (MEZCLA DE TRIGO Y CENTENO) | J2: 2026 ENERO
A3: SUPERFICIE SEMBRADA(*)
A4: PROVINCIAS | C4: SUPERFICIES (HA) | H4: PRODUCCIONES (1000 TM)
A5: Y
A6: CC-AA | C6: =E6-2 -> 2024 | D6: =E6-1 -> 2025 | E6: 2026 | F6: =E6 -> 2026 | H6: =J6-2 -> 2024 | I6: =J6-1 -> 2025 | J6: 2026 | K6: =J6 -> 2026
C7: DEFINITIVO | D7: PROVISIONAL | H7: DEFINITIVO | I7: PROVISIONAL
F8: =CONCATENATE(D6,"=100") -> 2025=100 | K8: =CONCATENATE(I6,"=100") -> 2025=100
A10: 15 A Coruña
A11: 27 Lugo | D11: 5.04 | E11: 6.2 | I11: 0.015
A12: 32 Ourense
A13: 36 Pontevedra
A14: GALICIA | D14: 5.04 | E14: 6.2 | F14: 123.015873 | I14: 0.015
A16: 33 P. DE ASTURIAS
A18: 39 CANTABRIA
A20: 1 Álava
A21: 20 Guipúzcoa
A22: 48 Vizcaya
A23: PAIS VASCO
A25: 31 NAVARRA
A27: 26 LA RIOJA
A29: 22 Huesca | C29: 11 | H29: 0.028
A30: 44 Teruel | C30: 5 | D30: 19 | E30: 19 | H30: 0.005 | I30: 0.049
A31: 50 Zaragoza
A32: ARAGÓN | C32: 16 | D32: 19 | E32: 19 | F32: 100 | H32: 0.033 | I32: 0.049
A34: 8 Barcelona | D34: 1 | E34: 5 | I34: 0.001
A35: 17 Girona | C35: 69 | H35: 0.214
A36: 25 Lleida
A37: 43 Tarragona
A38: CATALUÑA | C38: 69 | D38: 1 | E38: 5 | F38: 500 | H38: 0.214 | I38: 0.001
A40: 7 BALEARES | C40: 3 | D40: 2 | H40: 0.003 | I40: 0.002
A42: 5 Ávila
A43: 9 Burgos
A44: 24 León
A45: 34 Palencia
A46: 37 Salamanca
A47: 40 Segovia
A48: 42 Soria
A49: 47 Valladolid
A50: 49 Zamora
A51: CASTILLA Y LEÓN
A53: 28 MADRID | C53: 16 | D53: 6 | E53: 6 | F53: 100 | H53: 0.021 | I53: 0.008
A55: 2 Albacete | C55: 364 | D55: 315 | E55: 300 | H55: 0.529 | I55: 0.394
A56: 13 Ciudad Real | C56: 5884 | D56: 5576 | E56: 6130 | H56: 12.857 | I56: 13.15
A57: 16 Cuenca | C57: 22 | D57: 17 | E57: 34 | H57: 0.053 | I57: 0.042
A58: 19 Guadalajara | C58: 2 | D58: 2 | H58: 0.002 | I58: 0.006
A59: 45 Toledo | C59: 956 | D59: 806 | E59: 806 | H59: 1.139 | I59: 2.37
A60: CASTILLA-MANCHA | C60: 7228 | D60: 6716 | E60: 7270 | F60: 108.2489577 | H60: 14.58 | I60: 15.962
A62: 3 Alicante
A63: 12 Castellón
A64: 46 Valencia
A65: C. VALENCIANA
A67: 30 R. DE MURCIA
A69: 6 Badajoz | C69: 3615 | D69: 3732 | E69: 3516 | H69: 7.274 | I69: 7.496
A70: 10 Cáceres | C70: 123 | D70: 181 | E70: 200 | H70: 0.211 | I70: 0.295
A71: EXTREMADURA | C71: 3738 | D71: 3913 | E71: 3716 | F71: 94.96549962 | H71: 7.485 | I71: 7.791
A73: 4 Almería
A74: 11 Cádiz | C74: 2869 | D74: 2760.84 | E74: 1854.07 | H74: 2.939 | I74: 2.825
A75: 14 Córdoba | C75: 22480 | D75: 18900 | E75: 18900 | H75: 78.68 | I75: 56.7
A76: 18 Granada | D76: 28 | E76: 28 | I76: 0.042
A77: 21 Huelva | C77: 132 | D77: 140 | E77: 140 | H77: 0.436 | I77: 0.476
A78: 23 Jaén | C78: 71 | D78: 176 | E78: 176 | H78: 0.128 | I78: 0.317
A79: 29 Málaga | C79: 63 | D79: 94 | E79: 84 | H79: 0.146 | I79: 0.235
A80: 41 Sevilla | C80: 890 | D80: 255 | E80: 255 | H80: 3.222 | I80: 0.777
A81: ANDALUCÍA | C81: 26505 | D81: 22353.84 | E81: 21437.07 | F81: 95.89882544 | H81: 85.551 | I81: 61.372
A83: 35 Palmas (Las) | C83: 1 | D83: 1 | E83: 1 | H83: 0.001 | I83: 0.001
A84: 38 S. C. Tenerife | C84: 1 | H84: 0.001
A85: CANARIAS | C85: 2 | D85: 1 | E85: 1 | F85: 100 | H85: 0.002 | I85: 0.001
A88: ESPAÑA | C88: 37577 | D88: 33016.88 | E88: 32460.27 | F88: 98.31416536 | H88: 107.889 | I88: 85.201
A91: (*)Tipo de Superficie de mes/año solicitado

Sheet Cen11lón-SRT
A1: AVANCES DE SUPERFICIE Y PRODUCCIÓN
A2: CENTENO Y TRANQUILLÓN S/R/T | K2: 2026 ENERO
A3: SUPERFICIE SEMBRADA(*)
A4: PROVINCIAS | B4: SUPERFICIES (HA) | E4: SUPERFICIES (HA) | H4: SUPERFICIES (HA) | L4: PRODUCCIONES (1000 TM) | O4: PRODUCCIONES (1000 TM) | R4: PRODUCCIONES (1000 TM)
A5: Y | B5: SECANO | E5: REGADIO | H5: TOTAL | L5: SECANO | O5: REGADIO | R5: TOTAL
A6: CC-AA | B6: =J6-2 -> 2024 | C6: =J6-1 -> 2025 | D6: =J6 -> 2026 | E6: =J6-2 -> 2024 | F6: =J6-1 -> 2025 | G6: =J6 -> 2026 | H6: =J6-2 -> 2024 | I6: =J6-1 -> 2025 | J6: 2026 | L6: =T6-2 -> 2024 | M6: =T6-1 -> 2025 | N6: =T6 -> 2026 | O6: =T6-2 -> 2024 | P6: =T6-1 -> 2025 | Q6: =T6 -> 2026 | R6: =T6-2 -> 2024 | S6: =T6-1 -> 2025 | T6: 2026
B7: DEFINITIVO | C7: PROVISIONAL | E7: DEFINITIVO | F7: PROVISIONAL | H7: DEFINITIVO | I7: PROVISIONAL | L7: DEFINITIVO | M7: PROVISIONAL | O7: DEFINITIVO | P7: PROVISIONAL | R7: DEFINITIVO | S7: PROVISIONAL
A10: 15 Coruña (La) | B10: 112 | C10: 106.08 | D10: 77.56 | H10: 112 | I10: 106.08 | J10: 77.56 | L10: 0.367 | M10: 0.222 | R10: 0.367 | S10: 0.222
A11: 27 Lugo | B11: 417 | C11: 468.72 | D11: 246.02 | H11: 417 | I11: 468.72 | J11: 246.02 | L11: 1.422 | M11: 2.35 | R11: 1.423 | S11: 2.35
A12: 32 Orense | B12: 3585 | C12: 2950.59 | D12: 2743.76 | H12: 3585 | I12: 2950.59 | J12: 2743.76 | L12: 13.766 | M12: 8.748 | R12: 13.767 | S12: 8.748
A13: 36 Pontevedra | B13: 40 | C13: 15.3 | D13: 21.79 | H13: 40 | I13: 15.3 | J13: 21.79 | L13: 0.176 | M13: 0.058 | R13: 0.176 | S13: 0.058
A14: GALICIA | B14: 4154 | C14: 3540.69 | D14: 3089.13 | H14: 4154 | I14: 3540.69 | J14: 3089.13 | L14: 15.731 | M14: 11.378 | R14: 15.733 | S14: 11.378
A16: 33 P. DE ASTURIAS
A18: 39 CANTABRIA | B18: 30 | C18: 33 | D18: 29 | H18: 30 | I18: 33 | J18: 29 | L18: 0.028 | M18: 0.032 | R18: 0.028 | S18: 0.032
A20: 01 Alava | B20: 271 | C20: 262 | D20: 260 | H20: 271 | I20: 262 | J20: 260 | L20: 1.626 | M20: 1.31 | R20: 1.626 | S20: 1.31
A21: 20 Guipúzcoa
A22: 48 Vizcaya
A23: PAIS VASCO | B23: 271 | C23: 262 | D23: 260 | H23: 271 | I23: 262 | J23: 260 | L23: 1.626 | M23: 1.31 | R23: 1.626 | S23: 1.31
A25: 31 NAVARRA | B25: 159 | C25: 199 | D25: 200 | E25: 33 | F25: 45 | G25: 46 | H25: 192 | I25: 244 | J25: 246 | L25: 0.21 | M25: 0.388 | O25: 0.072 | P25: 0.139 | R25: 0.282 | S25: 0.527
A27: 26 LA RIOJA | B27: 148 | C27: 119 | D27: 135 | E27: 69 | F27: 10 | G27: 5 | H27: 217 | I27: 129 | J27: 140 | L27: 0.176 | M27: 0.3 | O27: 0.214 | P27: 0.03 | R27: 0.39 | S27: 0.33
A29: 22 Huesca | B29: 285 | C29: 115.9 | D29: 120 | E29: 51 | F29: 155.8 | G29: 160 | H29: 336 | I29: 271.7 | J29: 280 | L29: 0.339 | M29: 0.424 | O29: 0.157 | P29: 0.653 | R29: 0.496 | S29: 1.077
A30: 44 Teruel | B30: 3508 | C30: 3648 | D30: 6339 | E30: 166 | F30: 203 | G30: 213 | H30: 3674 | I30: 3851 | J30: 6552 | L30: 2.657 | M30: 8.269 | O30: 0.449 | P30: 0.647 | R30: 3.106 | S30: 8.916
A31: 50 Zaragoza | B31: 4071 | C31: 2817.71 | D31: 5330 | E31: 115 | F31: 63.44 | G31: 12 | H31: 4186 | I31: 2881.15 | J31: 5342 | L31: 5.745 | M31: 3.316 | O31: 0.494 | P31: 0.243 | R31: 6.238 | S31: 3.56
A32: ARAGON | B32: 7864 | C32: 6581.61 | D32: 11789 | E32: 332 | F32: 422.24 | G32: 385 | H32: 8196 | I32: 7003.85 | J32: 12174 | L32: 8.741 | M32: 12.009 | O32: 1.1 | P32: 1.543 | R32: 9.84 | S32: 13.553
A34: 08 Barcelona | B34: 146 | C34: 210 | D34: 65 | F34: 1 | G34: 5 | H34: 146 | I34: 211 | J34: 70 | L34: 0.199 | M34: 0.691 | P34: 0.004 | R34: 0.199 | S34: 0.695
A35: 17 Girona | B35: 264 | C35: 166 | D35: 744 | E35: 63 | F35: 78 | G35: 231 | H35: 327 | I35: 244 | J35: 975 | L35: 0.726 | M35: 0.364 | O35: 0.235 | P35: 0.255 | R35: 0.961 | S35: 0.619
A36: 25 Lleida | B36: 375 | C36: 610 | D36: 590 | E36: 270 | F36: 235 | G36: 245 | H36: 645 | I36: 845 | J36: 835 | L36: 0.785 | M36: 1.83 | O36: 1.279 | P36: 1.786 | R36: 2.064 | S36: 3.616
A37: 43 Tarragona | B37: 38 | C37: 96 | D37: 96 | E37: 11 | F37: 15 | G37: 7 | H37: 49 | I37: 111 | J37: 103 | L37: 0.019 | M37: 0.192 | O37: 0.01 | P37: 0.04 | R37: 0.029 | S37: 0.232
A38: CATALUÑA | B38: 823 | C38: 1082 | D38: 1495 | E38: 344 | F38: 329 | G38: 488 | H38: 1167 | I38: 1411 | J38: 1983 | L38: 1.729 | M38: 3.077 | O38: 1.524 | P38: 2.085 | R38: 3.253 | S38: 5.162
A40: 07 BALEARES | B40: 6 | C40: 5 | D40: 10 | H40: 6 | I40: 5 | J40: 10 | L40: 0.005 | M40: 0.005 | R40: 0.005 | S40: 0.005
A42: 05 Avila | B42: 8183 | C42: 8978 | D42: 8950 | E42: 76 | F42: 37 | G42: 40 | H42: 8259 | I42: 9015 | J42: 8990 | L42: 10.139 | M42: 20.156 | O42: 0.187 | P42: 0.147 | R42: 10.326 | S42: 20.303
A43: 09 Burgos | B43: 3535 | C43: 2927 | D43: 3123 | E43: 322 | F43: 332 | G43: 289 | H43: 3857 | I43: 3259 | J43: 3412 | L43: 11.425 | M43: 10.871 | O43: 1.55 | P43: 1.583 | R43: 12.975 | S43: 12.454
A44: 24 León | B44: 8647 | C44: 8839 | D44: 9000 | E44: 1376 | F44: 1270 | G44: 1000 | H44: 10023 | I44: 10109 | J44: 10000 | L44: 23.347 | M44: 24.042 | O44: 4.266 | P44: 4.115 | R44: 27.613 | S44: 28.157
A45: 34 Palencia | B45: 14049 | C45: 11285 | D45: 10163 | E45: 532 | F45: 609 | G45: 554 | H45: 14581 | I45: 11894 | J45: 10717 | L45: 42.793 | M45: 25.278 | O45: 2.169 | P45: 1.885 | R45: 44.962 | S45: 27.163
A46: 37 Salamanca | B46: 4444 | C46: 5094 | D46: 4000 | E46: 257 | F46: 361 | G46: 250 | H46: 4701 | I46: 5455 | J46: 4250 | L46: 11.554 | M46: 15.282 | O46: 0.977 | P46: 1.372 | R46: 12.531 | S46: 16.654
A47: 40 Segovia | B47: 5751 | C47: 8616 | D47: 10500 | E47: 361 | F47: 357 | H47: 6112 | I47: 8973 | J47: 10500 | L47: 8.627 | M47: 29.829 | O47: 1.372 | P47: 1.607 | R47: 9.999 | S47: 31.436
A48: 42 Soria | B48: 11502 | C48: 9505 | D48: 9000 | E48: 221 | F48: 187 | G48: 150 | H48: 11723 | I48: 9692 | J48: 9150 | L48: 23.004 | M48: 23.763 | O48: 0.774 | P48: 0.655 | R48: 23.778 | S48: 24.418
A49: 47 Valladolid | B49: 6126 | C49: 5953 | D49: 6000 | E49: 1033 | F49: 1011 | G49: 1000 | H49: 7159 | I49: 6964 | J49: 7000 | L49: 16.902 | M49: 20.02 | O49: 4.713 | P49: 4.7 | R49: 21.615 | S49: 24.72
A50: 49 Zamora | B50: 2359 | C50: 5964 | D50: 5368 | E50: 481 | F50: 367 | G50: 330 | H50: 2840 | I50: 6331 | J50: 5698 | L50: 5.499 | M50: 12.328 | O50: 1.84 | P50: 1.288 | R50: 7.339 | S50: 13.616
A51: CASTILLA Y LEON | B51: 64596 | C51: 67161 | D51: 66104 | E51: 4659 | F51: 4531 | G51: 3613 | H51: 69255 | I51: 71692 | J51: 69717 | L51: 153.29 | M51: 181.569 | O51: 17.848 | P51: 17.352 | R51: 171.138 | S51: 198.921
A53: 28 MADRID | B53: 641 | C53: 732 | D53: 732 | E53: 28 | H53: 669 | I53: 732 | J53: 732 | L53: 0.582 | M53: 0.828 | O53: 0.091 | R53: 0.674 | S53: 0.828
A55: 02 Albacete | B55: 1284 | C55: 1335 | D55: 1400 | E55: 107 | F55: 92 | G55: 90 | H55: 1391 | I55: 1427 | J55: 1490 | L55: 0.943 | M55: 1.822 | O55: 0.525 | P55: 0.483 | R55: 1.469 | S55: 2.305
A56: 13 Ciudad Real | B56: 6728 | C56: 6323 | D56: 7000 | E56: 581 | F56: 453 | G56: 530 | H56: 7309 | I56: 6776 | J56: 7530 | L56: 12.951 | M56: 13.361 | O56: 2.401 | P56: 1.959 | R56: 15.352 | S56: 15.32
A57: 16 Cuenca | B57: 432 | C57: 375 | D57: 509 | E57: 17 | F57: 23 | G57: 24 | H57: 449 | I57: 398 | J57: 533 | L57: 1.003 | M57: 0.938 | O57: 0.065 | P57: 0.1 | R57: 1.068 | S57: 1.038
A58: 19 Guadalajara | B58: 2110 | C58: 2110 | D58: 1740 | E58: 15 | F58: 15 | G58: 4 | H58: 2125 | I58: 2125 | J58: 1744 | L58: 5.906 | M58: 5.908 | O58: 0.053 | P58: 0.057 | R58: 5.957 | S58: 5.965
A59: 45 Toledo | B59: 7731 | C59: 6597 | D59: 6597 | E59: 157 | F59: 156 | G59: 156 | H59: 7888 | I59: 6753 | J59: 6753 | L59: 9.865 | M59: 13.471 | O59: 0.529 | P59: 0.529 | R59: 10.395 | S59: 14
A60: CASTILLA-MANCHA | B60: 18285 | C60: 16740 | D60: 17246 | E60: 877 | F60: 739 | G60: 804 | H60: 19162 | I60: 17479 | J60: 18050 | L60: 30.668 | M60: 35.5 | O60: 3.573 | P60: 3.128 | R60: 34.241 | S60: 38.628
A62: 03 Alicante | B62: 11 | C62: 10 | D62: 8 | E62: 2 | F62: 2 | G62: 2 | H62: 13 | I62: 12 | J62: 10 | L62: 0.001 | M62: 0.007 | O62: 0.003 | P62: 0.003 | R62: 0.004 | S62: 0.01
A63: 12 Castellón | B63: 290 | C63: 363 | D63: 363 | H63: 290 | I63: 363 | J63: 363 | L63: 0.036 | M63: 0.454 | R63: 0.036 | S63: 0.454
A64: 46 Valencia | B64: 56 | C64: 44 | D64: 49 | E64: 1 | F64: 36 | G64: 40 | H64: 57 | I64: 80 | J64: 89 | L64: 0.045 | M64: 0.109 | O64: 0.005 | P64: 0.148 | R64: 0.05 | S64: 0.257
A65: C. VALENCIANA | B65: 357 | C65: 417 | D65: 420 | E65: 3 | F65: 38 | G65: 42 | H65: 360 | I65: 455 | J65: 462 | L65: 0.082 | M65: 0.57 | O65: 0.008 | P65: 0.151 | R65: 0.09 | S65: 0.721
A67: 30 R. DE MURCIA | B67: 51 | C67: 51 | D67: 39 | E67: 1 | F67: 1 | G67: 1 | H67: 52 | I67: 52 | J67: 40 | L67: 0.046 | M67: 0.049 | O67: 0.002 | P67: 0.001 | R67: 0.048 | S67: 0.05
A69: 06 Badajoz | B69: 3594 | C69: 3712 | D69: 3506 | E69: 68 | F69: 53 | G69: 57 | H69: 3662 | I69: 3765 | J69: 3563 | L69: 7.171 | M69: 7.398 | O69: 0.168 | P69: 0.138 | R69: 7.338 | S69: 7.536
A70: 10 Cáceres | B70: 106 | C70: 148 | D70: 180 | E70: 65 | F70: 78 | G70: 70 | H70: 171 | I70: 226 | J70: 250 | L70: 0.152 | M70: 0.215 | O70: 0.122 | P70: 0.13 | R70: 0.274 | S70: 0.345
A71: EXTREMADURA | B71: 3700 | C71: 3860 | D71: 3686 | E71: 133 | F71: 131 | G71: 127 | H71: 3833 | I71: 3991 | J71: 3813 | L71: 7.323 | M71: 7.613 | O71: 0.29 | P71: 0.268 | R71: 7.612 | S71: 7.881
A73: 04 Almería | B73: 138 | C73: 117 | D73: 120 | E73: 1 | H73: 139 | I73: 117 | J73: 120 | M73: 0.295 | S73: 0.295
A74: 11 Cádiz | B74: 2641 | C74: 2575.18 | D74: 1670.23 | E74: 233 | F74: 213.89 | G74: 212.07 | H74: 2874 | I74: 2789.07 | J74: 1882.3 | L74: 2.646 | M74: 2.558 | O74: 0.303 | P74: 0.278 | R74: 2.949 | S74: 2.836
A75: 14 Córdoba | B75: 22193 | C75: 18592 | D75: 18592 | E75: 552 | F75: 613 | G75: 613 | H75: 22745 | I75: 19205 | J75: 19205 | L75: 77.276 | M75: 55.63 | O75: 1.932 | P75: 1.833 | R75: 79.21 | S75: 57.463
A76: 18 Granada | B76: 252 | C76: 330 | D76: 332 | E76: 7 | F76: 8 | G76: 8 | H76: 259 | I76: 338 | J76: 340 | L76: 0.036 | M76: 0.612 | O76: 0.016 | P76: 0.02 | R76: 0.052 | S76: 0.632
A77: 21 Huelva | B77: 134 | C77: 142 | D77: 142 | H77: 134 | I77: 142 | J77: 142 | L77: 0.439 | M77: 0.479 | R77: 0.439 | S77: 0.479
A78: 23 Jaén | B78: 71 | C78: 176 | D78: 176 | H78: 71 | I78: 176 | J78: 176 | L78: 0.128 | M78: 0.317 | R78: 0.128 | S78: 0.317
A79: 29 Málaga | B79: 50 | C79: 74 | D79: 65 | E79: 13 | F79: 21 | G79: 20 | H79: 63 | I79: 95 | J79: 85 | L79: 0.1 | M79: 0.164 | O79: 0.046 | P79: 0.074 | R79: 0.146 | S79: 0.238
A80: 41 Sevilla | B80: 841 | C80: 278 | D80: 278 | E80: 62 | F80: 37 | G80: 37 | H80: 903 | I80: 315 | J80: 315 | L80: 3.017 | M80: 0.813 | O80: 0.24 | P80: 0.124 | R80: 3.257 | S80: 0.937
A81: ANDALUCIA | B81: 26320 | C81: 22284.18 | D81: 21375.23 | E81: 868 | F81: 892.89 | G81: 890.07 | H81: 27188 | I81: 23177.07 | J81: 22265.3 | L81: 83.642 | M81: 60.868 | O81: 2.537 | P81: 2.329 | R81: 86.181 | S81: 63.197
A83: 35 Palmas (Las) | B83: 17 | C83: 17 | D83: 17 | E83: 1 | F83: 1 | G83: 1 | H83: 18 | I83: 18 | J83: 18 | L83: 0.01 | M83: 0.01 | O83: 0.003 | P83: 0.003 | R83: 0.013 | S83: 0.013
A84: 38 S. C. Tenerife | B84: 64 | E84: 2 | H84: 66 | L84: 0.042 | O84: 0.002 | R84: 0.044
A85: CANARIAS | B85: 81 | C85: 17 | D85: 17 | E85: 3 | F85: 1 | G85: 1 | H85: 84 | I85: 18 | J85: 18 | L85: 0.052 | M85: 0.01 | O85: 0.005 | P85: 0.003 | R85: 0.057 | S85: 0.013
A88: ESPAÑA | B88: 254972 | C88: 123084.48 | D88: 126626.36 | E88: 7350 | F88: 7140.13 | G88: 6402.07 | H88: 134836 | I88: 130224.61 | J88: 133028.43 | L88: 303.931 | M88: 315.506 | O88: 27.264 | P88: 27.029 | R88: 331.198 | S88: 342.536
B96: 221 | C96: 231 | E96: 221 | F96: 231 | H96: 221 | I96: 231

Sheet Cen11lón
A1: AVANCES DE SUPERFICIE Y PRODUCCIÓN
A2: CENTENO Y TRANQUILLÓN | J2: 2026 ENERO
A3: SUPERFICIE SEMBRADA(*)
A4: PROVINCIAS | C4: SUPERFICIES (HA) | H4: PRODUCCIONES (1000 TM)
A5: Y
A6: CC-AA | C6: =E6-2 -> 2024 | D6: =E6-1 -> 2025 | E6: 2026 | F6: =E6 -> 2026 | H6: =J6-2 -> 2024 | I6: =J6-1 -> 2025 | J6: 2026 | K6: =J6 -> 2026
C7: DEFINITIVO | D7: PROVISIONAL | H7: DEFINITIVO | I7: PROVISIONAL
F8: =CONCATENATE(D6,"=100") -> 2025=100 | K8: =CONCATENATE(I6,"=100") -> 2025=100
A10: 15 A Coruña | C10: 112 | D10: 106.08 | E10: 77.56 | H10: 0.367 | I10: 0.222
A11: 27 Lugo | C11: 417 | D11: 468.72 | E11: 246.02 | H11: 1.423 | I11: 2.35
A12: 32 Ourense | C12: 3585 | D12: 2950.59 | E12: 2743.76 | H12: 13.767 | I12: 8.748
A13: 36 Pontevedra | C13: 40 | D13: 15.3 | E13: 21.79 | H13: 0.176 | I13: 0.058
A14: GALICIA | C14: 4154 | D14: 3540.69 | E14: 3089.13 | F14: 87.24655364 | H14: 15.733 | I14: 11.378
A16: 33 P. DE ASTURIAS
A18: 39 CANTABRIA | C18: 30 | D18: 33 | E18: 29 | F18: 87.87878788 | H18: 0.028 | I18: 0.032
A20: 1 Álava | C20: 271 | D20: 262 | E20: 260 | H20: 1.626 | I20: 1.31
A21: 20 Guipúzcoa
A22: 48 Vizcaya
A23: PAIS VASCO | C23: 271 | D23: 262 | E23: 260 | F23: 99.23664122 | H23: 1.626 | I23: 1.31
A25: 31 NAVARRA | C25: 192 | D25: 244 | E25: 246 | F25: 100.8196721 | H25: 0.282 | I25: 0.527
A27: 26 LA RIOJA | C27: 217 | D27: 129 | E27: 140 | F27: 108.5271318 | H27: 0.39 | I27: 0.33
A29: 22 Huesca | C29: 336 | D29: 271.7 | E29: 280 | H29: 0.496 | I29: 1.077
A30: 44 Teruel | C30: 3674 | D30: 3851 | E30: 6552 | H30: 3.106 | I30: 8.916
A31: 50 Zaragoza | C31: 4186 | D31: 2881.15 | E31: 5342 | H31: 6.238 | I31: 3.56
A32: ARAGÓN | C32: 8196 | D32: 7003.85 | E32: 12174 | F32: 173.8186854 | H32: 9.84 | I32: 13.553
A34: 8 Barcelona | C34: 146 | D34: 211 | E34: 70 | H34: 0.199 | I34: 0.695
A35: 17 Girona | C35: 327 | D35: 244 | E35: 975 | H35: 0.961 | I35: 0.619
A36: 25 Lleida | C36: 645 | D36: 845 | E36: 835 | H36: 2.064 | I36: 3.616
A37: 43 Tarragona | C37: 49 | D37: 111 | E37: 103 | H37: 0.029 | I37: 0.232
A38: CATALUÑA | C38: 1167 | D38: 1411 | E38: 1983 | F38: 140.5386251 | H38: 3.253 | I38: 5.162
A40: 7 BALEARES | C40: 6 | D40: 5 | E40: 10 | F40: 200 | H40: 0.005 | I40: 0.005
A42: 5 Ávila | C42: 8259 | D42: 9015 | E42: 8990 | H42: 10.326 | I42: 20.303
A43: 9 Burgos | C43: 3857 | D43: 3259 | E43: 3412 | H43: 12.975 | I43: 12.454
A44: 24 León | C44: 10023 | D44: 10109 | E44: 10000 | H44: 27.613 | I44: 28.157
A45: 34 Palencia | C45: 14581 | D45: 11894 | E45: 10717 | H45: 44.962 | I45: 27.163
A46: 37 Salamanca | C46: 4701 | D46: 5455 | E46: 4250 | H46: 12.531 | I46: 16.654
A47: 40 Segovia | C47: 6112 | D47: 8973 | E47: 10500 | H47: 9.999 | I47: 31.436
A48: 42 Soria | C48: 11723 | D48: 9692 | E48: 9150 | H48: 23.778 | I48: 24.418
A49: 47 Valladolid | C49: 7159 | D49: 6964 | E49: 7000 | H49: 21.615 | I49: 24.72
A50: 49 Zamora | C50: 2840 | D50: 6331 | E50: 5698 | H50: 7.339 | I50: 13.616
A51: CASTILLA Y LEÓN | C51: 69255 | D51: 71692 | E51: 69717 | F51: 97.24515985 | H51: 171.138 | I51: 198.921
A53: 28 MADRID | C53: 669 | D53: 732 | E53: 732 | F53: 100 | H53: 0.674 | I53: 0.828
A55: 2 Albacete | C55: 1391 | D55: 1427 | E55: 1490 | H55: 1.469 | I55: 2.305
A56: 13 Ciudad Real | C56: 7309 | D56: 6776 | E56: 7530 | H56: 15.352 | I56: 15.32
A57: 16 Cuenca | C57: 449 | D57: 398 | E57: 533 | H57: 1.068 | I57: 1.038
A58: 19 Guadalajara | C58: 2125 | D58: 2125 | E58: 1744 | H58: 5.957 | I58: 5.965
A59: 45 Toledo | C59: 7888 | D59: 6753 | E59: 6753 | H59: 10.395 | I59: 14
A60: CASTILLA-MANCHA | C60: 19162 | D60: 17479 | E60: 18050 | F60: 103.2667773 | H60: 34.241 | I60: 38.628
A62: 3 Alicante | C62: 13 | D62: 12 | E62: 10 | H62: 0.004 | I62: 0.01
A63: 12 Castellón | C63: 290 | D63: 363 | E63: 363 | H63: 0.036 | I63: 0.454
A64: 46 Valencia | C64: 57 | D64: 80 | E64: 89 | H64: 0.05 | I64: 0.257
A65: C. VALENCIANA | C65: 360 | D65: 455 | E65: 462 | F65: 101.5384615 | H65: 0.09 | I65: 0.721
A67: 30 R. DE MURCIA | C67: 52 | D67: 52 | E67: 40 | F67: 76.92307692 | H67: 0.048 | I67: 0.05
A69: 6 Badajoz | C69: 3662 | D69: 3765 | E69: 3563 | H69: 7.338 | I69: 7.536
A70: 10 Cáceres | C70: 171 | D70: 226 | E70: 250 | H70: 0.274 | I70: 0.345
A71: EXTREMADURA | C71: 3833 | D71: 3991 | E71: 3813 | F71: 95.53996492 | H71: 7.612 | I71: 7.881
A73: 4 Almería | C73: 139 | D73: 117 | E73: 120 | I73: 0.295
A74: 11 Cádiz | C74: 2874 | D74: 2789.07 | E74: 1882.3 | H74: 2.949 | I74: 2.836
A75: 14 Córdoba | C75: 22745 | D75: 19205 | E75: 19205 | H75: 79.21 | I75: 57.463
A76: 18 Granada | C76: 259 | D76: 338 | E76: 340 | H76: 0.052 | I76: 0.632
A77: 21 Huelva | C77: 134 | D77: 142 | E77: 142 | H77: 0.439 | I77: 0.479
A78: 23 Jaén | C78: 71 | D78: 176 | E78: 176 | H78: 0.128 | I78: 0.317
A79: 29 Málaga | C79: 63 | D79: 95 | E79: 85 | H79: 0.146 | I79: 0.238
A80: 41 Sevilla | C80: 903 | D80: 315 | E80: 315 | H80: 3.257 | I80: 0.937
A81: ANDALUCÍA | C81: 27188 | D81: 23177.07 | E81: 22265.3 | F81: 96.06606875 | H81: 86.181 | I81: 63.197
A83: 35 Palmas (Las) | C83: 18 | D83: 18 | E83: 18 | H83: 0.013 | I83: 0.013
A84: 38 S. C. Tenerife | C84: 66 | H84: 0.044
A85: CANARIAS | C85: 84 | D85: 18 | E85: 18 | F85: 100 | H85: 0.057 | I85: 0.013
A88: ESPAÑA | C88: 134836 | D88: 130224.61 | E88: 133028.43 | F88: 102.1530646 | H88: 331.198 | I88: 342.536
A91: (*)Tipo de Superficie de mes/año solicitado

Sheet Ceb12rno-SRT
A1: AVANCES DE SUPERFICIE Y PRODUCCIÓN
A2: CEBADA DE INVIERNO S/R/T | K2: 2026 ENERO
A3: SUPERFICIE SEMBRADA(*)
A4: PROVINCIAS | B4: SUPERFICIES (HA) | E4: SUPERFICIES (HA) | H4: SUPERFICIES (HA) | L4: PRODUCCIONES (1000 TM) | O4: PRODUCCIONES (1000 TM) | R4: PRODUCCIONES (1000 TM)
A5: Y | B5: SECANO | E5: REGADIO | H5: TOTAL | L5: SECANO | O5: REGADIO | R5: TOTAL
A6: CC-AA | B6: =J6-2 -> 2024 | C6: =J6-1 -> 2025 | D6: =J6 -> 2026 | E6: =J6-2 -> 2024 | F6: =J6-1 -> 2025 | G6: =J6 -> 2026 | H6: =J6-2 -> 2024 | I6: =J6-1 -> 2025 | J6: 2026 | L6: =T6-2 -> 2024 | M6: =T6-1 -> 2025 | N6: =T6 -> 2026 | O6: =T6-2 -> 2024 | P6: =T6-1 -> 2025 | Q6: =T6 -> 2026 | R6: =T6-2 -> 2024 | S6: =T6-1 -> 2025 | T6: 2026
B7: DEFINITIVO | C7: PROVISIONAL | E7: DEFINITIVO | F7: PROVISIONAL | H7: DEFINITIVO | I7: PROVISIONAL | L7: DEFINITIVO | M7: PROVISIONAL | O7: DEFINITIVO | P7: PROVISIONAL | R7: DEFINITIVO | S7: PROVISIONAL
A10: 15 Coruña (La) | B10: 110 | C10: 31.35 | D10: 21.59 | H10: 110 | I10: 31.35 | J10: 21.59 | L10: 0.275 | M10: 0.158 | R10: 0.275 | S10: 0.158
A11: 27 Lugo | B11: 47 | C11: 73.1 | D11: 61.23 | H11: 47 | I11: 73.1 | J11: 61.23 | L11: 0.118 | M11: 0.26 | R11: 0.118 | S11: 0.26
A12: 32 Orense | B12: 588 | C12: 991.63 | D12: 1041.96 | H12: 588 | I12: 991.63 | J12: 1041.96 | L12: 2.593 | M12: 2.866 | R12: 2.593 | S12: 2.866
A13: 36 Pontevedra | B13: 27 | C13: 79.67 | D13: 43.44 | H13: 27 | I13: 79.67 | J13: 43.44 | L13: 0.119 | M13: 0.263 | R13: 0.119 | S13: 0.263
A14: GALICIA | B14: 772 | C14: 1175.75 | D14: 1168.22 | H14: 772 | I14: 1175.75 | J14: 1168.22 | L14: 3.105 | M14: 3.547 | R14: 3.105 | S14: 3.547
A16: 33 P. DE ASTURIAS
A18: 39 CANTABRIA
A20: 01 Alava | B20: 5462 | C20: 4133 | D20: 5000 | H20: 5462 | I20: 4133 | J20: 5000 | L20: 38.78 | M20: 22.732 | R20: 38.78 | S20: 22.732
A21: 20 Guipúzcoa
A22: 48 Vizcaya
A23: PAIS VASCO | B23: 5462 | C23: 4133 | D23: 5000 | H23: 5462 | I23: 4133 | J23: 5000 | L23: 38.78 | M23: 22.732 | R23: 38.78 | S23: 22.732
A25: 31 NAVARRA | B25: 59043 | C25: 57595 | D25: 58002 | E25: 11854 | F25: 11839 | G25: 11888 | H25: 70897 | I25: 69434 | J25: 69890 | L25: 276.91 | M25: 261.783 | O25: 77.571 | P25: 66.845 | R25: 354.501 | S25: 328.628
A27: 26 LA RIOJA | B27: 5239 | C27: 4295 | D27: 14400 | F27: 1451 | G27: 5150 | H27: 5239 | I27: 5746 | J27: 19550 | L27: 15.013 | M27: 24.446 | P27: 7.734 | R27: 15.013 | S27: 32.18
A29: 22 Huesca | B29: 89178 | C29: 92321.37 | D29: 92400 | E29: 53616 | F29: 55751.23 | G29: 56200 | H29: 142794 | I29: 148072.6 | J29: 148600 | L29: 295.093 | M29: 370.91 | O29: 311.586 | P29: 372.217 | R29: 606.694 | S29: 743.127
A30: 44 Teruel | B30: 80199 | C30: 81109 | D30: 86043 | E30: 8119 | F30: 8631 | G30: 8776 | H30: 88318 | I30: 89740 | J30: 94819 | L30: 49.202 | M30: 211.045 | O30: 22.237 | P30: 34.014 | R30: 71.44 | S30: 245.059
A31: 50 Zaragoza | B31: 131217 | C31: 124258.32 | D31: 136666.7 | E31: 29709 | F31: 21422.3 | G31: 23857.88 | H31: 160926 | I31: 145680.62 | J31: 160524.58 | L31: 208.931 | M31: 387.344 | O31: 147.9 | P31: 131.02 | R31: 356.874 | S31: 518.364
A32: ARAGON | B32: 300594 | C32: 297688.69 | D32: 315109.7 | E32: 91444 | F32: 85804.53 | G32: 88833.88 | H32: 392038 | I32: 383493.22 | J32: 403943.58 | L32: 553.226 | M32: 969.299 | O32: 481.723 | P32: 537.251 | R32: 1035.008 | S32: 1506.55
A34: 08 Barcelona | B34: 30703 | C34: 33243 | D34: 32025 | E34: 668 | F34: 1003 | G34: 1046 | H34: 31371 | I34: 34246 | J34: 33071 | L34: 61.56 | M34: 138.732 | O34: 3.403 | P34: 5.665 | R34: 64.968 | S34: 144.397
A35: 17 Girona | B35: 15825 | C35: 13274 | D35: 12174 | E35: 2499 | F35: 4451 | G35: 4277 | H35: 18324 | I35: 17725 | J35: 16451 | L35: 32.22 | M35: 44.329 | O35: 8.342 | P35: 17.523 | R35: 40.556 | S35: 61.852
A36: 25 Lleida | B36: 67284 | C36: 75977 | D36: 74572 | E36: 32385 | F36: 29980 | G36: 29800 | H36: 99669 | I36: 105957 | J36: 104372 | L36: 145.67 | M36: 334.299 | O36: 202.892 | P36: 206.872 | R36: 348.564 | S36: 541.171
A37: 43 Tarragona | B37: 11232 | C37: 12167 | D37: 12331 | E37: 336 | F37: 288 | G37: 224 | H37: 11568 | I37: 12455 | J37: 12555 | L37: 13.801 | M37: 44.412 | O37: 0.529 | P37: 1.354 | R37: 14.326 | S37: 45.766
A38: CATALUÑA | B38: 125044 | C38: 134661 | D38: 131102 | E38: 35888 | F38: 35722 | G38: 35347 | H38: 160932 | I38: 170383 | J38: 166449 | L38: 253.251 | M38: 561.772 | O38: 215.166 | P38: 231.414 | R38: 468.414 | S38: 793.186
A40: 07 BALEARES | B40: 10703 | C40: 10000 | D40: 10210 | H40: 10703 | I40: 10000 | J40: 10210 | L40: 11.952 | M40: 13.2 | R40: 11.953 | S40: 13.2
A42: 05 Avila | B42: 34444 | C42: 40190 | D42: 40100 | E42: 1765 | F42: 1447 | G42: 1470 | H42: 36209 | I42: 41637 | J42: 41570 | L42: 63.067 | M42: 156.462 | O42: 5.89 | P42: 6.533 | R42: 68.943 | S42: 162.995
A43: 09 Burgos | B43: 128146 | C43: 139293 | D43: 130906 | E43: 4790 | F43: 5207 | G43: 5109.67 | H43: 132936 | I43: 144500 | J43: 136015.67 | L43: 662.13 | M43: 735.049 | O43: 31.121 | P43: 34.272 | R43: 693.251 | S43: 769.321
A44: 24 León | B44: 13794 | C44: 18118 | D44: 16000 | E44: 3920 | F44: 4196 | G44: 4000 | H44: 17714 | I44: 22314 | J44: 20000 | L44: 52.541 | M44: 75.371 | O44: 20.384 | P44: 22.239 | R44: 72.925 | S44: 97.61
A45: 34 Palencia | B45: 89344 | C45: 96282 | D45: 90435 | E45: 8959 | F45: 10429 | G45: 9783 | H45: 98303 | I45: 106711 | J45: 100218 | L45: 401.869 | M45: 491.327 | O45: 52.374 | P45: 60.342 | R45: 454.244 | S45: 551.669
A46: 37 Salamanca | B46: 24112 | C46: 25237 | D46: 23350 | E46: 2958 | F46: 4604 | G46: 3600 | H46: 27070 | I46: 29841 | J46: 26950 | L46: 78.364 | M46: 113.567 | O46: 15.382 | P46: 23.941 | R46: 93.746 | S46: 137.508
A47: 40 Segovia | B47: 47414 | C47: 59677 | D47: 61500 | E47: 2883 | F47: 3553 | H47: 50297 | I47: 63230 | J47: 61500 | L47: 122.802 | M47: 237.753 | O47: 14.303 | P47: 17.765 | R47: 137.104 | S47: 255.518
A48: 42 Soria | B48: 69422 | C48: 74171 | D48: 60000 | E48: 2853 | F48: 3080 | G48: 3000 | H48: 72275 | I48: 77251 | J48: 63000 | L48: 240.408 | M48: 289.415 | O48: 13.694 | P48: 16.632 | R48: 254.102 | S48: 306.047
A49: 47 Valladolid | B49: 125443 | C49: 135366 | D49: 122500 | E49: 20779 | F49: 25287 | G49: 25175 | H49: 146222 | I49: 160653 | J49: 147675 | L49: 513.062 | M49: 673.446 | O49: 132.341 | P49: 177.009 | R49: 645.403 | S49: 850.455
A50: 49 Zamora | B50: 51957 | C50: 57472 | D50: 51750 | E50: 8433 | F50: 9654 | G50: 8640 | H50: 60390 | I50: 67126 | J50: 60390 | L50: 192.085 | M50: 251.095 | O50: 44.813 | P50: 67.578 | R50: 236.898 | S50: 318.673
A51: CASTILLA Y LEON | B51: 584076 | C51: 645806 | D51: 596541 | E51: 57340 | F51: 67457 | G51: 60777.67 | H51: 641416 | I51: 713263 | J51: 657318.67 | L51: 2326.328 | M51: 3023.485 | O51: 330.302 | P51: 426.311 | R51: 2656.616 | S51: 3449.796
A53: 28 MADRID | B53: 32781 | C53: 33573 | D53: 33569 | E53: 3699 | F53: 3026 | G53: 3026 | H53: 36480 | I53: 36599 | J53: 36595 | L53: 85.894 | M53: 94.11 | O53: 13.453 | P53: 11.446 | R53: 99.333 | S53: 105.555
A55: 02 Albacete | B55: 34300 | C55: 33895 | D55: 34340 | E55: 750 | F55: 750 | G55: 750 | H55: 35050 | I55: 34645 | J55: 35090 | L55: 37.034 | M55: 76 | O55: 4.95 | P55: 5.175 | R55: 41.978 | S55: 81.175
A56: 13 Ciudad Real | B56: 103049 | C56: 94021 | D56: 95700 | E56: 33738 | F56: 35343 | G56: 39000 | H56: 136787 | I56: 129364 | J56: 134700 | L56: 324.192 | M56: 306.508 | O56: 170.714 | P56: 195.447 | R56: 494.907 | S56: 501.955
A57: 16 Cuenca | B57: 224573 | C57: 211147 | D57: 233000 | E57: 7448 | F57: 7550 | G57: 8580 | H57: 232021 | I57: 218697 | J57: 241580 | L57: 680.401 | M57: 688.76 | O57: 40.955 | P57: 41.802 | R57: 721.318 | S57: 730.562
A58: 19 Guadalajara | B58: 75548 | C58: 75548 | D58: 80559 | E58: 2893 | F58: 2893 | G58: 116 | H58: 78441 | I58: 78441 | J58: 80675 | L58: 241.754 | M58: 264.419 | O58: 14.465 | P58: 14.465 | R58: 256.218 | S58: 278.884
A59: 45 Toledo | B59: 129600 | C59: 108648 | D59: 108648 | E59: 9704 | F59: 10876 | G59: 10876 | H59: 139304 | I59: 119524 | J59: 119524 | L59: 339.293 | M59: 328.095 | O59: 45.405 | P59: 60.379 | R59: 384.672 | S59: 388.474
A60: CASTILLA-MANCHA | B60: 567070 | C60: 523259 | D60: 552247 | E60: 54533 | F60: 57412 | G60: 59322 | H60: 621603 | I60: 580671 | J60: 611569 | L60: 1622.674 | M60: 1663.782 | O60: 276.489 | P60: 317.268 | R60: 1899.093 | S60: 1981.05
A62: 03 Alicante | B62: 1680 | C62: 1876 | D62: 1724 | E62: 587 | F62: 402 | G62: 365 | H62: 2267 | I62: 2278 | J62: 2089 | L62: 0.216 | M62: 2.426 | O62: 1.137 | P62: 1.575 | R62: 1.354 | S62: 4.001
A63: 12 Castellón | B63: 1432 | C63: 1874 | D63: 1874 | E63: 47 | F63: 47 | G63: 47 | H63: 1479 | I63: 1921 | J63: 1921 | L63: 0.186 | M63: 3.466 | O63: 0.183 | P63: 0.183 | R63: 0.369 | S63: 3.649
A64: 46 Valencia | B64: 6532 | C64: 5662 | D64: 6974 | E64: 472 | F64: 452 | G64: 586 | H64: 7004 | I64: 6114 | J64: 7560 | L64: 2.24 | M64: 16.703 | O64: 1.915 | P64: 1.892 | R64: 4.155 | S64: 18.595
A65: C. VALENCIANA | B65: 9644 | C65: 9412 | D65: 10572 | E65: 1106 | F65: 901 | G65: 998 | H65: 10750 | I65: 10313 | J65: 11570 | L65: 2.642 | M65: 22.595 | O65: 3.235 | P65: 3.65 | R65: 5.878 | S65: 26.245
A67: 30 R. DE MURCIA | B67: 15121 | C67: 15344 | D67: 18076 | E67: 1462 | F67: 1239 | G67: 1737 | H67: 16583 | I67: 16583 | J67: 19813 | L67: 15.812 | M67: 16.996 | O67: 5.689 | P67: 4.86 | R67: 21.498 | S67: 21.856
A69: 06 Badajoz | B69: 48205 | C69: 47560 | D69: 44650 | E69: 2710 | F69: 2674 | G69: 2850 | H69: 50915 | I69: 50234 | J69: 47500 | L69: 142.93 | M69: 112.595 | O69: 10.558 | P69: 8.18 | R69: 153.487 | S69: 120.775
A70: 10 Cáceres | B70: 309 | C70: 206 | D70: 500 | E70: 702 | F70: 351 | G70: 350 | H70: 1011 | I70: 557 | J70: 850 | L70: 0.444 | M70: 0.281 | O70: 1.328 | P70: 0.621 | R70: 1.772 | S70: 0.902
A71: EXTREMADURA | B71: 48514 | C71: 47766 | D71: 45150 | E71: 3412 | F71: 3025 | G71: 3200 | H71: 51926 | I71: 50791 | J71: 48350 | L71: 143.374 | M71: 112.876 | O71: 11.886 | P71: 8.801 | R71: 155.259 | S71: 121.677
A73: 04 Almería | B73: 8145 | C73: 6776 | D73: 6800 | E73: 206 | F73: 189 | G73: 200 | H73: 8351 | I73: 6965 | J73: 7000 | L73: 0.299 | M73: 17.398 | O73: 0.414 | P73: 0.708 | R73: 0.713 | S73: 18.106
A74: 11 Cádiz | B74: 8605 | C74: 10132.81 | D74: 8778.32 | E74: 616 | F74: 599.13 | G74: 595.86 | H74: 9221 | I74: 10731.94 | J74: 9374.18 | L74: 13.037 | M74: 29.472 | O74: 1.502 | P74: 1.742 | R74: 14.543 | S74: 31.214
A75: 14 Córdoba | B75: 18311 | C75: 18490 | D75: 18490 | E75: 1338 | F75: 780 | G75: 780 | H75: 19649 | I75: 19270 | J75: 19270 | L75: 61.159 | M75: 55.84 | O75: 4.159 | P75: 2.259 | R75: 65.325 | S75: 58.099
A76: 18 Granada | B76: 30223 | C76: 29857 | D76: 28753 | E76: 3749 | F76: 3561 | G76: 7308 | H76: 33972 | I76: 33418 | J76: 36061 | L76: 29.093 | M76: 60.749 | O76: 9.121 | P76: 10.311 | R76: 38.206 | S76: 71.06
A77: 21 Huelva | B77: 1117 | C77: 718 | D77: 718 | E77: 83 | F77: 32 | G77: 32 | H77: 1200 | I77: 750 | J77: 750 | L77: 3.312 | M77: 2.129 | O77: 0.258 | P77: 0.106 | R77: 3.57 | S77: 2.235
A78: 23 Jaén | B78: 5158 | C78: 4949 | D78: 4928 | E78: 551 | F78: 564 | G78: 564 | H78: 5709 | I78: 5513 | J78: 5492 | L78: 10.001 | M78: 9.596 | O78: 1.399 | P78: 1.41 | R78: 11.4 | S78: 11.006
A79: 29 Málaga | B79: 8785 | C79: 9494 | D79: 9707 | E79: 739 | F79: 968 | G79: 997 | H79: 9524 | I79: 10462 | J79: 10704 | L79: 26.32 | M79: 27.579 | O79: 3.037 | P79: 4.07 | R79: 29.358 | S79: 31.649
A80: 41 Sevilla | B80: 17400 | C80: 16180 | D80: 14300 | E80: 2580 | F80: 1320 | G80: 1100 | H80: 19980 | I80: 17500 | J80: 15400 | L80: 58.116 | M80: 44.98 | O80: 9.727 | P80: 4.196 | R80: 67.842 | S80: 49.176
A81: ANDALUCIA | B81: 97744 | C81: 96596.81 | D81: 92474.32 | E81: 9862 | F81: 8013.13 | G81: 11576.86 | H81: 107606 | I81: 104609.94 | J81: 104051.18 | L81: 201.337 | M81: 247.743 | O81: 29.617 | P81: 24.802 | R81: 230.957 | S81: 272.545
A83: 35 Palmas (Las) | B83: 22 | C83: 22 | D83: 22 | E83: 22 | F83: 22 | G83: 22 | H83: 44 | I83: 44 | J83: 44 | L83: 0.022 | M83: 0.022 | O83: 0.057 | P83: 0.057 | R83: 0.079 | S83: 0.079
A84: 38 S. C. Tenerife | B84: 47 | C84: 47 | D84: 47 | E84: 1 | F84: 1 | G84: 1 | H84: 48 | I84: 48 | J84: 48 | L84: 0.045 | M84: 0.045 | O84: 0.001 | P84: 0.001 | R84: 0.046 | S84: 0.046
A85: CANARIAS | B85: 69 | C85: 69 | D85: 69 | E85: 23 | F85: 23 | G85: 23 | H85: 92 | I85: 92 | J85: 92 | L85: 0.067 | M85: 0.067 | O85: 0.058 | P85: 0.058 | R85: 0.125 | S85: 0.125
A88: ESPAÑA | B88: 3723752 | C88: 1881374.25 | D88: 1883690.24 | E88: 270623 | F88: 275912.66 | G88: 281879.41 | H88: 2132499 | I88: 2157286.91 | J88: 2165569.65 | L88: 5550.365 | M88: 7038.433 | O88: 1445.189 | P88: 1640.44 | R88: 6995.533 | S88: 8678.872
B96: 221 | C96: 231 | E96: 221 | F96: 231 | H96: 221 | I96: 231

Sheet Ceb12rno
A1: AVANCES DE SUPERFICIE Y PRODUCCIÓN
A2: CEBADA DE INVIERNO | J2: 2026 ENERO
A3: SUPERFICIE SEMBRADA(*)
A4: PROVINCIAS | C4: SUPERFICIES (HA) | H4: PRODUCCIONES (1000 TM)
A5: Y
A6: CC-AA | C6: =E6-2 -> 2024 | D6: =E6-1 -> 2025 | E6: 2026 | F6: =E6 -> 2026 | H6: =J6-2 -> 2024 | I6: =J6-1 -> 2025 | J6: 2026 | K6: =J6 -> 2026
C7: DEFINITIVO | D7: PROVISIONAL | H7: DEFINITIVO | I7: PROVISIONAL
F8: =CONCATENATE(D6,"=100") -> 2025=100 | K8: =CONCATENATE(I6,"=100") -> 2025=100
A10: 15 A Coruña | C10: 110 | D10: 31.35 | E10: 21.59 | H10: 0.275 | I10: 0.158
A11: 27 Lugo | C11: 47 | D11: 73.1 | E11: 61.23 | H11: 0.118 | I11: 0.26
A12: 32 Ourense | C12: 588 | D12: 991.63 | E12: 1041.96 | H12: 2.593 | I12: 2.866
A13: 36 Pontevedra | C13: 27 | D13: 79.67 | E13: 43.44 | H13: 0.119 | I13: 0.263
A14: GALICIA | C14: 772 | D14: 1175.75 | E14: 1168.22 | F14: 99.35955773 | H14: 3.105 | I14: 3.547
A16: 33 P. DE ASTURIAS
A18: 39 CANTABRIA
A20: 1 Álava | C20: 5462 | D20: 4133 | E20: 5000 | H20: 38.78 | I20: 22.732
A21: 20 Guipúzcoa
A22: 48 Vizcaya
A23: PAIS VASCO | C23: 5462 | D23: 4133 | E23: 5000 | F23: 120.9774982 | H23: 38.78 | I23: 22.732
A25: 31 NAVARRA | C25: 70897 | D25: 69434 | E25: 69890 | F25: 100.6567388 | H25: 354.501 | I25: 328.628
A27: 26 LA RIOJA | C27: 5239 | D27: 5746 | E27: 19550 | F27: 340.2366864 | H27: 15.013 | I27: 32.18
A29: 22 Huesca | C29: 142794 | D29: 148072.6 | E29: 148600 | H29: 606.694 | I29: 743.127
A30: 44 Teruel | C30: 88318 | D30: 89740 | E30: 94819 | H30: 71.44 | I30: 245.059
A31: 50 Zaragoza | C31: 160926 | D31: 145680.62 | E31: 160524.58 | H31: 356.874 | I31: 518.364
A32: ARAGÓN | C32: 392038 | D32: 383493.22 | E32: 403943.58 | F32: 105.3326523 | H32: 1035.008 | I32: 1506.55
A34: 8 Barcelona | C34: 31371 | D34: 34246 | E34: 33071 | H34: 64.968 | I34: 144.397
A35: 17 Girona | C35: 18324 | D35: 17725 | E35: 16451 | H35: 40.556 | I35: 61.852
A36: 25 Lleida | C36: 99669 | D36: 105957 | E36: 104372 | H36: 348.564 | I36: 541.171
A37: 43 Tarragona | C37: 11568 | D37: 12455 | E37: 12555 | H37: 14.326 | I37: 45.766
A38: CATALUÑA | C38: 160932 | D38: 170383 | E38: 166449 | F38: 97.6910842 | H38: 468.414 | I38: 793.186
A40: 7 BALEARES | C40: 10703 | D40: 10000 | E40: 10210 | F40: 102.1 | H40: 11.953 | I40: 13.2
A42: 5 Ávila | C42: 36209 | D42: 41637 | E42: 41570 | H42: 68.943 | I42: 162.995
A43: 9 Burgos | C43: 132936 | D43: 144500 | E43: 136015.67 | H43: 693.251 | I43: 769.321
A44: 24 León | C44: 17714 | D44: 22314 | E44: 20000 | H44: 72.925 | I44: 97.61
A45: 34 Palencia | C45: 98303 | D45: 106711 | E45: 100218 | H45: 454.244 | I45: 551.669
A46: 37 Salamanca | C46: 27070 | D46: 29841 | E46: 26950 | H46: 93.746 | I46: 137.508
A47: 40 Segovia | C47: 50297 | D47: 63230 | E47: 61500 | H47: 137.104 | I47: 255.518
A48: 42 Soria | C48: 72275 | D48: 77251 | E48: 63000 | H48: 254.102 | I48: 306.047
A49: 47 Valladolid | C49: 146222 | D49: 160653 | E49: 147675 | H49: 645.403 | I49: 850.455
A50: 49 Zamora | C50: 60390 | D50: 67126 | E50: 60390 | H50: 236.898 | I50: 318.673
A51: CASTILLA Y LEÓN | C51: 641416 | D51: 713263 | E51: 657318.67 | F51: 92.15656357 | H51: 2656.616 | I51: 3449.796
A53: 28 MADRID | C53: 36480 | D53: 36599 | E53: 36595 | F53: 99.98907074 | H53: 99.333 | I53: 105.555
A55: 2 Albacete | C55: 35050 | D55: 34645 | E55: 35090 | H55: 41.978 | I55: 81.175
A56: 13 Ciudad Real | C56: 136787 | D56: 129364 | E56: 134700 | H56: 494.907 | I56: 501.955
A57: 16 Cuenca | C57: 232021 | D57: 218697 | E57: 241580 | H57: 721.318 | I57: 730.562
A58: 19 Guadalajara | C58: 78441 | D58: 78441 | E58: 80675 | H58: 256.218 | I58: 278.884
A59: 45 Toledo | C59: 139304 | D59: 119524 | E59: 119524 | H59: 384.672 | I59: 388.474
A60: CASTILLA-MANCHA | C60: 621603 | D60: 580671 | E60: 611569 | F60: 105.3210854 | H60: 1899.093 | I60: 1981.05
A62: 3 Alicante | C62: 2267 | D62: 2278 | E62: 2089 | H62: 1.354 | I62: 4.001
A63: 12 Castellón | C63: 1479 | D63: 1921 | E63: 1921 | H63: 0.369 | I63: 3.649
A64: 46 Valencia | C64: 7004 | D64: 6114 | E64: 7560 | H64: 4.155 | I64: 18.595
A65: C. VALENCIANA | C65: 10750 | D65: 10313 | E65: 11570 | F65: 112.1885 | H65: 5.878 | I65: 26.245
A67: 30 R. DE MURCIA | C67: 16583 | D67: 16583 | E67: 19813 | F67: 119.4777784 | H67: 21.498 | I67: 21.856
A69: 6 Badajoz | C69: 50915 | D69: 50234 | E69: 47500 | H69: 153.487 | I69: 120.775
A70: 10 Cáceres | C70: 1011 | D70: 557 | E70: 850 | H70: 1.772 | I70: 0.902
A71: EXTREMADURA | C71: 51926 | D71: 50791 | E71: 48350 | F71: 95.19403044 | H71: 155.259 | I71: 121.677
A73: 4 Almería | C73: 8351 | D73: 6965 | E73: 7000 | H73: 0.713 | I73: 18.106
A74: 11 Cádiz | C74: 9221 | D74: 10731.94 | E74: 9374.18 | H74: 14.543 | I74: 31.214
A75: 14 Córdoba | C75: 19649 | D75: 19270 | E75: 19270 | H75: 65.325 | I75: 58.099
A76: 18 Granada | C76: 33972 | D76: 33418 | E76: 36061 | H76: 38.206 | I76: 71.06
A77: 21 Huelva | C77: 1200 | D77: 750 | E77: 750 | H77: 3.57 | I77: 2.235
A78: 23 Jaén | C78: 5709 | D78: 5513 | E78: 5492 | H78: 11.4 | I78: 11.006
A79: 29 Málaga | C79: 9524 | D79: 10462 | E79: 10704 | H79: 29.358 | I79: 31.649
A80: 41 Sevilla | C80: 19980 | D80: 17500 | E80: 15400 | H80: 67.842 | I80: 49.176
A81: ANDALUCÍA | C81: 107606 | D81: 104609.94 | E81: 104051.18 | F81: 99.46586338 | H81: 230.957 | I81: 272.545
A83: 35 Palmas (Las) | C83: 44 | D83: 44 | E83: 44 | H83: 0.079 | I83: 0.079
A84: 38 S. C. Tenerife | C84: 48 | D84: 48 | E84: 48 | H84: 0.046 | I84: 0.046
A85: CANARIAS | C85: 92 | D85: 92 | E85: 92 | F85: 100 | H85: 0.125 | I85: 0.125
A88: ESPAÑA | C88: 2132499 | D88: 2157286.91 | E88: 2165569.65 | F88: 100.3839424 | H88: 6995.533 | I88: 8678.872
A91: (*)Tipo de Superficie de mes/año solicitado

Sheet Ceb13rno-SRT
A1: AVANCES DE SUPERFICIE Y PRODUCCIÓN
A2: CEBADA 2C DE INVIERNO S/R/T | K2: 2026 ENERO
A3: SUPERFICIE SEMBRADA(*)
A4: PROVINCIAS | B4: SUPERFICIES (HA) | E4: SUPERFICIES (HA) | H4: SUPERFICIES (HA) | L4: PRODUCCIONES (1000 TM) | O4: PRODUCCIONES (1000 TM) | R4: PRODUCCIONES (1000 TM)
A5: Y | B5: SECANO | E5: REGADIO | H5: TOTAL | L5: SECANO | O5: REGADIO | R5: TOTAL
A6: CC-AA | B6: =J6-2 -> 2024 | C6: =J6-1 -> 2025 | D6: =J6 -> 2026 | E6: =J6-2 -> 2024 | F6: =J6-1 -> 2025 | G6: =J6 -> 2026 | H6: =J6-2 -> 2024 | I6: =J6-1 -> 2025 | J6: 2026 | L6: =T6-2 -> 2024 | M6: =T6-1 -> 2025 | N6: =T6 -> 2026 | O6: =T6-2 -> 2024 | P6: =T6-1 -> 2025 | Q6: =T6 -> 2026 | R6: =T6-2 -> 2024 | S6: =T6-1 -> 2025 | T6: 2026
B7: DEFINITIVO | C7: PROVISIONAL | E7: DEFINITIVO | F7: PROVISIONAL | H7: DEFINITIVO | I7: PROVISIONAL | L7: DEFINITIVO | M7: PROVISIONAL | O7: DEFINITIVO | P7: PROVISIONAL | R7: DEFINITIVO | S7: PROVISIONAL
A10: 15 Coruña (La) | B10: 110 | C10: 31.35 | D10: 21.59 | H10: 110 | I10: 31.35 | J10: 21.59 | L10: 0.275 | M10: 0.158 | R10: 0.275 | S10: 0.158
A11: 27 Lugo | B11: 47 | C11: 73.1 | D11: 61.23 | H11: 47 | I11: 73.1 | J11: 61.23 | L11: 0.118 | M11: 0.26 | R11: 0.118 | S11: 0.26
A12: 32 Orense | B12: 578 | C12: 991.63 | D12: 1041.96 | H12: 578 | I12: 991.63 | J12: 1041.96 | L12: 2.549 | M12: 2.866 | R12: 2.549 | S12: 2.866
A13: 36 Pontevedra | B13: 27 | C13: 79.67 | D13: 43.44 | H13: 27 | I13: 79.67 | J13: 43.44 | L13: 0.119 | M13: 0.263 | R13: 0.119 | S13: 0.263
A14: GALICIA | B14: 762 | C14: 1175.75 | D14: 1168.22 | H14: 762 | I14: 1175.75 | J14: 1168.22 | L14: 3.061 | M14: 3.547 | R14: 3.061 | S14: 3.547
A16: 33 P. DE ASTURIAS
A18: 39 CANTABRIA
A20: 01 Alava | B20: 5462 | C20: 4133 | D20: 5000 | H20: 5462 | I20: 4133 | J20: 5000 | L20: 38.78 | M20: 22.732 | R20: 38.78 | S20: 22.732
A21: 20 Guipúzcoa
A22: 48 Vizcaya
A23: PAIS VASCO | B23: 5462 | C23: 4133 | D23: 5000 | H23: 5462 | I23: 4133 | J23: 5000 | L23: 38.78 | M23: 22.732 | R23: 38.78 | S23: 22.732
A25: 31 NAVARRA | B25: 58881 | C25: 57520 | D25: 57927 | E25: 11849 | F25: 11834 | G25: 11883 | H25: 70730 | I25: 69354 | J25: 69810 | L25: 276.209 | M25: 261.408 | O25: 77.539 | P25: 66.82 | R25: 353.748 | S25: 328.228
A27: 26 LA RIOJA | B27: 5239 | C27: 4295 | D27: 14400 | F27: 1451 | G27: 5150 | H27: 5239 | I27: 5746 | J27: 19550 | L27: 15.013 | M27: 24.446 | P27: 7.734 | R27: 15.013 | S27: 32.18
A29: 22 Huesca | B29: 87259 | C29: 90471.55 | D29: 90500 | E29: 52462 | F29: 54635.91 | G29: 55000 | H29: 139721 | I29: 145107.46 | J29: 145500 | L29: 289.04 | M29: 363.696 | O29: 304.879 | P29: 364.968 | R29: 593.92 | S29: 728.664
A30: 44 Teruel | B30: 78194 | C30: 79541 | D30: 84322 | E30: 7916 | F30: 8465 | G30: 8601 | H30: 86110 | I30: 88006 | J30: 92923 | L30: 47.401 | M30: 206.965 | O30: 21.686 | P30: 33.36 | R30: 69.087 | S30: 240.325
A31: 50 Zaragoza | B31: 126464 | C31: 121825.35 | D31: 134647.26 | E31: 28633 | F31: 20876.94 | G31: 23739.64 | H31: 155097 | I31: 142702.29 | J31: 158386.9 | L31: 203.803 | M31: 382.775 | O31: 143.276 | P31: 128.31 | R31: 347.08 | S31: 511.085
A32: ARAGON | B32: 291917 | C32: 291837.9 | D32: 309469.26 | E32: 89011 | F32: 83977.85 | G32: 87340.64 | H32: 380928 | I32: 375815.75 | J32: 396809.9 | L32: 540.244 | M32: 953.436 | O32: 469.841 | P32: 526.638 | R32: 1010.087 | S32: 1480.074
A34: 08 Barcelona | B34: 30608 | C34: 33133 | D34: 31925 | E34: 655 | F34: 1003 | G34: 1036 | H34: 31263 | I34: 34136 | J34: 32961 | L34: 61.338 | M34: 138.306 | O34: 3.34 | P34: 5.665 | R34: 64.678 | S34: 143.971
A35: 17 Girona | B35: 15780 | C35: 13234 | D35: 12135 | E35: 2487 | F35: 4438 | G35: 4265 | H35: 18267 | I35: 17672 | J35: 16400 | L35: 32.128 | M35: 44.209 | O35: 8.302 | P35: 17.481 | R35: 40.43 | S35: 61.69
A36: 25 Lleida | B36: 67224 | C36: 75917 | D36: 74500 | E36: 32239 | F36: 29880 | G36: 29710 | H36: 99463 | I36: 105797 | J36: 104210 | L36: 145.607 | M36: 334.035 | O36: 201.881 | P36: 206.172 | R36: 347.488 | S36: 540.207
A37: 43 Tarragona | B37: 11198 | C37: 12129 | D37: 12262 | E37: 335 | F37: 287 | G37: 223 | H37: 11533 | I37: 12416 | J37: 12485 | L37: 13.758 | M37: 44.27 | O37: 0.524 | P37: 1.349 | R37: 14.282 | S37: 45.619
A38: CATALUÑA | B38: 124810 | C38: 134413 | D38: 130822 | E38: 35716 | F38: 35608 | G38: 35234 | H38: 160526 | I38: 170021 | J38: 166056 | L38: 252.831 | M38: 560.82 | O38: 214.047 | P38: 230.667 | R38: 466.878 | S38: 791.487
A40: 07 BALEARES | B40: 750 | C40: 800 | D40: 710 | H40: 750 | I40: 800 | J40: 710 | L40: 0.473 | M40: 0.8 | R40: 0.473 | S40: 0.8
A42: 05 Avila | B42: 32834 | C42: 38370 | D42: 38300 | E42: 1717 | F42: 1429 | G42: 1450 | H42: 34551 | I42: 39799 | J42: 39750 | L42: 59.856 | M42: 149.95 | O42: 5.726 | P42: 6.459 | R42: 65.582 | S42: 156.409
A43: 09 Burgos | B43: 123415 | C43: 139293 | D43: 130906 | E43: 4790 | F43: 5207 | G43: 5109.67 | H43: 128205 | I43: 144500 | J43: 136015.67 | L43: 637.685 | M43: 735.049 | O43: 31.121 | P43: 34.272 | R43: 668.806 | S43: 769.321
A44: 24 León | B44: 12794 | C44: 16862 | D44: 14800 | E44: 3920 | F44: 4196 | G44: 4000 | H44: 16714 | I44: 21058 | J44: 18800 | L44: 48.732 | M44: 70.146 | O44: 20.384 | P44: 22.239 | R44: 69.116 | S44: 92.385
A45: 34 Palencia | B45: 86264 | C45: 95744 | D45: 89927 | E45: 8685 | F45: 10424 | G45: 9778 | H45: 94949 | I45: 106168 | J45: 99705 | L45: 388.015 | M45: 488.582 | O45: 51.276 | P45: 60.313 | R45: 439.292 | S45: 548.895
A46: 37 Salamanca | B46: 23512 | C46: 24887 | D46: 23000 | E46: 2958 | F46: 4604 | G46: 3600 | H46: 26470 | I46: 29491 | J46: 26600 | L46: 76.414 | M46: 111.992 | O46: 15.382 | P46: 23.941 | R46: 91.796 | S46: 135.933
A47: 40 Segovia | B47: 42714 | C47: 55677 | D47: 58500 | E47: 2583 | F47: 3553 | H47: 45297 | I47: 59230 | J47: 58500 | L47: 110.629 | M47: 221.817 | O47: 12.814 | P47: 17.765 | R47: 123.443 | S47: 239.582
A48: 42 Soria | B48: 64422 | C48: 71171 | D48: 57500 | E48: 2803 | F48: 3060 | G48: 2985 | H48: 67225 | I48: 74231 | J48: 60485 | L48: 223.093 | M48: 277.709 | O48: 13.454 | P48: 16.524 | R48: 236.547 | S48: 294.233
A49: 47 Valladolid | B49: 123943 | C49: 134366 | D49: 121500 | E49: 20529 | F49: 25112 | G49: 25000 | H49: 144472 | I49: 159478 | J49: 146500 | L49: 506.927 | M49: 668.471 | O49: 130.749 | P49: 175.784 | R49: 637.676 | S49: 844.255
A50: 49 Zamora | B50: 49431 | C50: 57472 | D50: 51750 | E50: 8021 | F50: 9654 | G50: 8640 | H50: 57452 | I50: 67126 | J50: 60390 | L50: 182.746 | M50: 251.095 | O50: 42.624 | P50: 67.578 | R50: 225.37 | S50: 318.673
A51: CASTILLA Y LEON | B51: 559329 | C51: 633842 | D51: 586183 | E51: 56006 | F51: 67239 | G51: 60562.67 | H51: 615335 | I51: 701081 | J51: 646745.67 | L51: 2234.097 | M51: 2974.811 | O51: 323.53 | P51: 424.875 | R51: 2557.628 | S51: 3399.686
A53: 28 MADRID | B53: 31785 | C53: 33238 | D53: 33234 | E53: 3587 | F53: 2996 | G53: 2996 | H53: 35372 | I53: 36234 | J53: 36230 | L53: 83.031 | M53: 93.132 | O53: 13.05 | P53: 11.302 | R53: 96.082 | S53: 104.434
A55: 02 Albacete | B55: 16300 | C55: 16115 | D55: 16483.2 | E55: 450 | F55: 450 | G55: 450 | H55: 16750 | I55: 16565 | J55: 16933.2 | L55: 16.508 | M55: 36.645 | O55: 2.97 | P55: 3.1 | R55: 19.478 | S55: 39.745
A56: 13 Ciudad Real | B56: 72134 | C56: 65815 | D56: 76560 | E56: 23617 | F56: 24740 | G56: 31200 | H56: 95751 | I56: 90555 | J56: 107760 | L56: 222.173 | M56: 210.608 | O56: 118.085 | P56: 136.07 | R56: 340.258 | S56: 346.678
A57: 16 Cuenca | B57: 208593 | C57: 194279 | D57: 211000 | E57: 6918 | F57: 6948 | G57: 7780 | H57: 215511 | I57: 201227 | J57: 218780 | L57: 630.491 | M57: 631.41 | O57: 37.968 | P57: 38.492 | R57: 668.459 | S57: 669.902
A58: 19 Guadalajara | B58: 72517 | C58: 72517 | D58: 75112 | E58: 2787 | F58: 2787 | G58: 6 | H58: 75304 | I58: 75304 | J58: 75118 | L58: 232.054 | M58: 253.81 | O58: 13.935 | P58: 13.935 | R58: 245.989 | S58: 267.745
A59: 45 Toledo | B59: 118055 | C59: 97891 | D59: 97891 | E59: 8671 | F59: 9681 | G59: 9681 | H59: 126726 | I59: 107572 | J59: 107572 | L59: 306.943 | M59: 293.673 | O59: 40.754 | P59: 56.555 | R59: 347.697 | S59: 350.228
A60: CASTILLA-MANCHA | B60: 487599 | C60: 446617 | D60: 477046.2 | E60: 42443 | F60: 44606 | G60: 49117 | H60: 530042 | I60: 491223 | J60: 526163.2 | L60: 1408.169 | M60: 1426.146 | O60: 213.712 | P60: 248.152 | R60: 1621.881 | S60: 1674.298
A62: 03 Alicante | B62: 1507 | C62: 1782 | D62: 1642 | E62: 526 | F62: 382 | G62: 347 | H62: 2033 | I62: 2164 | J62: 1989 | L62: 0.196 | M62: 2.305 | O62: 1.011 | P62: 1.496 | R62: 1.207 | S62: 3.801
A63: 12 Castellón | B63: 1408 | C63: 1850 | D63: 1850 | E63: 47 | F63: 47 | G63: 47 | H63: 1455 | I63: 1897 | J63: 1897 | L63: 0.183 | M63: 3.423 | O63: 0.183 | P63: 0.183 | R63: 0.366 | S63: 3.606
A64: 46 Valencia | B64: 6254 | C64: 5421 | D64: 6677 | E64: 457 | F64: 438 | G64: 568 | H64: 6711 | I64: 5859 | J64: 7245 | L64: 2.128 | M64: 15.992 | O64: 1.854 | P64: 1.833 | R64: 3.982 | S64: 17.825
A65: C. VALENCIANA | B65: 9169 | C65: 9053 | D65: 10169 | E65: 1030 | F65: 867 | G65: 962 | H65: 10199 | I65: 9920 | J65: 11131 | L65: 2.507 | M65: 21.72 | O65: 3.048 | P65: 3.512 | R65: 5.555 | S65: 25.232
A67: 30 R. DE MURCIA | B67: 6979 | C67: 7084 | D67: 7340 | E67: 516 | F67: 411 | G67: 629 | H67: 7495 | I67: 7495 | J67: 7969 | L67: 6.167 | M67: 6.588 | O67: 1.507 | P67: 1.2 | R67: 7.674 | S67: 7.788
A69: 06 Badajoz | B69: 45437 | C69: 45875 | D69: 43225 | E69: 2710 | F69: 2674 | G69: 2850 | H69: 48147 | I69: 48549 | J69: 46075 | L69: 135.89 | M69: 107.948 | O69: 10.558 | P69: 8.18 | R69: 146.448 | S69: 116.128
A70: 10 Cáceres | B70: 230 | C70: 121 | D70: 400 | E70: 702 | F70: 351 | G70: 350 | H70: 932 | I70: 472 | J70: 750 | L70: 0.347 | M70: 0.165 | O70: 1.328 | P70: 0.621 | R70: 1.675 | S70: 0.786
A71: EXTREMADURA | B71: 45667 | C71: 45996 | D71: 43625 | E71: 3412 | F71: 3025 | G71: 3200 | H71: 49079 | I71: 49021 | J71: 46825 | L71: 136.237 | M71: 108.113 | O71: 11.886 | P71: 8.801 | R71: 148.123 | S71: 116.914
A73: 04 Almería
A74: 11 Cádiz | B74: 8026 | C74: 9264.81 | D74: 8418.64 | E74: 580 | F74: 551 | G74: 595.86 | H74: 8606 | I74: 9815.81 | J74: 9014.5 | L74: 12.151 | M74: 26.868 | O74: 1.378 | P74: 1.598 | R74: 13.529 | S74: 28.466
A75: 14 Córdoba | B75: 5846 | C75: 4930 | D75: 4930 | E75: 1048 | F75: 530 | G75: 530 | H75: 6894 | I75: 5460 | J75: 5460 | L75: 17.538 | M75: 13.804 | O75: 3.144 | P75: 1.484 | R75: 20.682 | S75: 15.288
A76: 18 Granada | B76: 27335 | C76: 27004 | D76: 25814 | E76: 3517 | F76: 3534 | G76: 7280 | H76: 30852 | I76: 30538 | J76: 33094 | L76: 26.547 | M76: 56.925 | O76: 8.369 | P76: 10.284 | R76: 34.916 | S76: 67.209
A77: 21 Huelva | B77: 997 | C77: 668 | D77: 668 | E77: 83 | F77: 32 | G77: 32 | H77: 1080 | I77: 700 | J77: 700 | L77: 2.982 | M77: 1.994 | O77: 0.258 | P77: 0.106 | R77: 3.24 | S77: 2.1
A78: 23 Jaén | B78: 3146 | C78: 3019 | D78: 3006 | E78: 336 | F78: 344 | G78: 344 | H78: 3482 | I78: 3363 | J78: 3350 | L78: 5.977 | M78: 5.736 | O78: 0.84 | P78: 0.86 | R78: 6.817 | S78: 6.596
A79: 29 Málaga | B79: 8435 | C79: 9094 | D79: 9210 | E79: 589 | F79: 818 | G79: 847 | H79: 9024 | I79: 9912 | J79: 10057 | L79: 25.305 | M79: 26.339 | O79: 2.415 | P79: 3.44 | R79: 27.72 | S79: 29.779
A80: 41 Sevilla | B80: 15660 | C80: 14560 | D80: 13000 | E80: 2320 | F80: 1180 | G80: 1000 | H80: 17980 | I80: 15740 | J80: 14000 | L80: 53.244 | M80: 40.768 | O80: 8.816 | P80: 3.776 | R80: 62.06 | S80: 44.544
A81: ANDALUCIA | B81: 69445 | C81: 68539.81 | D81: 65046.64 | E81: 8473 | F81: 6989 | G81: 10628.86 | H81: 77918 | I81: 75528.81 | J81: 75675.5 | L81: 143.744 | M81: 172.434 | O81: 25.22 | P81: 21.548 | R81: 168.964 | S81: 193.982
A83: 35 Palmas (Las) | B83: 22 | C83: 22 | D83: 22 | E83: 22 | F83: 22 | G83: 22 | H83: 44 | I83: 44 | J83: 44 | L83: 0.022 | M83: 0.022 | O83: 0.057 | P83: 0.057 | R83: 0.079 | S83: 0.079
A84: 38 S. C. Tenerife | B84: 47 | C84: 47 | D84: 47 | E84: 1 | F84: 1 | G84: 1 | H84: 48 | I84: 48 | J84: 48 | L84: 0.045 | M84: 0.045 | O84: 0.001 | P84: 0.001 | R84: 0.046 | S84: 0.046
A85: CANARIAS | B85: 69 | C85: 69 | D85: 69 | E85: 23 | F85: 23 | G85: 23 | H85: 92 | I85: 92 | J85: 92 | L85: 0.067 | M85: 0.067 | O85: 0.058 | P85: 0.058 | R85: 0.125 | S85: 0.125
A88: ESPAÑA | B88: 3395726 | C88: 1738613.46 | D88: 1742209.32 | E88: 252066 | F88: 259026.85 | G88: 267726.17 | H88: 1949929 | I88: 1997640.31 | J88: 2009935.49 | L88: 5140.63 | M88: 6630.2 | O88: 1353.438 | P88: 1551.307 | R88: 6494.072 | S88: 8181.507
B96: 221 | C96: 231 | E96: 221 | F96: 231 | H96: 221 | I96: 231

Sheet Ceb13rno
A1: AVANCES DE SUPERFICIE Y PRODUCCIÓN
A2: CEBADA 2C DE INVIERNO | J2: 2026 ENERO
A3: SUPERFICIE SEMBRADA(*)
A4: PROVINCIAS | C4: SUPERFICIES (HA) | H4: PRODUCCIONES (1000 TM)
A5: Y
A6: CC-AA | C6: =E6-2 -> 2024 | D6: =E6-1 -> 2025 | E6: 2026 | F6: =E6 -> 2026 | H6: =J6-2 -> 2024 | I6: =J6-1 -> 2025 | J6: 2026 | K6: =J6 -> 2026
C7: DEFINITIVO | D7: PROVISIONAL | H7: DEFINITIVO | I7: PROVISIONAL
F8: =CONCATENATE(D6,"=100") -> 2025=100 | K8: =CONCATENATE(I6,"=100") -> 2025=100
A10: 15 A Coruña | C10: 110 | D10: 31.35 | E10: 21.59 | H10: 0.275 | I10: 0.158
A11: 27 Lugo | C11: 47 | D11: 73.1 | E11: 61.23 | H11: 0.118 | I11: 0.26
A12: 32 Ourense | C12: 578 | D12: 991.63 | E12: 1041.96 | H12: 2.549 | I12: 2.866
A13: 36 Pontevedra | C13: 27 | D13: 79.67 | E13: 43.44 | H13: 0.119 | I13: 0.263
A14: GALICIA | C14: 762 | D14: 1175.75 | E14: 1168.22 | F14: 99.35955773 | H14: 3.061 | I14: 3.547
A16: 33 P. DE ASTURIAS
A18: 39 CANTABRIA
A20: 1 Álava | C20: 5462 | D20: 4133 | E20: 5000 | H20: 38.78 | I20: 22.732
A21: 20 Guipúzcoa
A22: 48 Vizcaya
A23: PAIS VASCO | C23: 5462 | D23: 4133 | E23: 5000 | F23: 120.9774982 | H23: 38.78 | I23: 22.732
A25: 31 NAVARRA | C25: 70730 | D25: 69354 | E25: 69810 | F25: 100.6574963 | H25: 353.748 | I25: 328.228
A27: 26 LA RIOJA | C27: 5239 | D27: 5746 | E27: 19550 | F27: 340.2366864 | H27: 15.013 | I27: 32.18
A29: 22 Huesca | C29: 139721 | D29: 145107.46 | E29: 145500 | H29: 593.92 | I29: 728.664
A30: 44 Teruel | C30: 86110 | D30: 88006 | E30: 92923 | H30: 69.087 | I30: 240.325
A31: 50 Zaragoza | C31: 155097 | D31: 142702.29 | E31: 158386.9 | H31: 347.08 | I31: 511.085
A32: ARAGÓN | C32: 380928 | D32: 375815.75 | E32: 396809.9 | F32: 105.586288 | H32: 1010.087 | I32: 1480.074
A34: 8 Barcelona | C34: 31263 | D34: 34136 | E34: 32961 | H34: 64.678 | I34: 143.971
A35: 17 Girona | C35: 18267 | D35: 17672 | E35: 16400 | H35: 40.43 | I35: 61.69
A36: 25 Lleida | C36: 99463 | D36: 105797 | E36: 104210 | H36: 347.488 | I36: 540.207
A37: 43 Tarragona | C37: 11533 | D37: 12416 | E37: 12485 | H37: 14.282 | I37: 45.619
A38: CATALUÑA | C38: 160526 | D38: 170021 | E38: 166056 | F38: 97.66793514 | H38: 466.878 | I38: 791.487
A40: 7 BALEARES | C40: 750 | D40: 800 | E40: 710 | F40: 88.75 | H40: 0.473 | I40: 0.8
A42: 5 Ávila | C42: 34551 | D42: 39799 | E42: 39750 | H42: 65.582 | I42: 156.409
A43: 9 Burgos | C43: 128205 | D43: 144500 | E43: 136015.67 | H43: 668.806 | I43: 769.321
A44: 24 León | C44: 16714 | D44: 21058 | E44: 18800 | H44: 69.116 | I44: 92.385
A45: 34 Palencia | C45: 94949 | D45: 106168 | E45: 99705 | H45: 439.292 | I45: 548.895
A46: 37 Salamanca | C46: 26470 | D46: 29491 | E46: 26600 | H46: 91.796 | I46: 135.933
A47: 40 Segovia | C47: 45297 | D47: 59230 | E47: 58500 | H47: 123.443 | I47: 239.582
A48: 42 Soria | C48: 67225 | D48: 74231 | E48: 60485 | H48: 236.547 | I48: 294.233
A49: 47 Valladolid | C49: 144472 | D49: 159478 | E49: 146500 | H49: 637.676 | I49: 844.255
A50: 49 Zamora | C50: 57452 | D50: 67126 | E50: 60390 | H50: 225.37 | I50: 318.673
A51: CASTILLA Y LEÓN | C51: 615335 | D51: 701081 | E51: 646745.67 | F51: 92.24977856 | H51: 2557.628 | I51: 3399.686
A53: 28 MADRID | C53: 35372 | D53: 36234 | E53: 36230 | F53: 99.98896064 | H53: 96.082 | I53: 104.434
A55: 2 Albacete | C55: 16750 | D55: 16565 | E55: 16933.2 | H55: 19.478 | I55: 39.745
A56: 13 Ciudad Real | C56: 95751 | D56: 90555 | E56: 107760 | H56: 340.258 | I56: 346.678
A57: 16 Cuenca | C57: 215511 | D57: 201227 | E57: 218780 | H57: 668.459 | I57: 669.902
A58: 19 Guadalajara | C58: 75304 | D58: 75304 | E58: 75118 | H58: 245.989 | I58: 267.745
A59: 45 Toledo | C59: 126726 | D59: 107572 | E59: 107572 | H59: 347.697 | I59: 350.228
A60: CASTILLA-MANCHA | C60: 530042 | D60: 491223 | E60: 526163.2 | F60: 107.1128998 | H60: 1621.881 | I60: 1674.298
A62: 3 Alicante | C62: 2033 | D62: 2164 | E62: 1989 | H62: 1.207 | I62: 3.801
A63: 12 Castellón | C63: 1455 | D63: 1897 | E63: 1897 | H63: 0.366 | I63: 3.606
A64: 46 Valencia | C64: 6711 | D64: 5859 | E64: 7245 | H64: 3.982 | I64: 17.825
A65: C. VALENCIANA | C65: 10199 | D65: 9920 | E65: 11131 | F65: 112.2076613 | H65: 5.555 | I65: 25.232
A67: 30 R. DE MURCIA | C67: 7495 | D67: 7495 | E67: 7969 | F67: 106.3242161 | H67: 7.674 | I67: 7.788
A69: 6 Badajoz | C69: 48147 | D69: 48549 | E69: 46075 | H69: 146.448 | I69: 116.128
A70: 10 Cáceres | C70: 932 | D70: 472 | E70: 750 | H70: 1.675 | I70: 0.786
A71: EXTREMADURA | C71: 49079 | D71: 49021 | E71: 46825 | F71: 95.52028722 | H71: 148.123 | I71: 116.914
A73: 4 Almería
A74: 11 Cádiz | C74: 8606 | D74: 9815.81 | E74: 9014.5 | H74: 13.529 | I74: 28.466
A75: 14 Córdoba | C75: 6894 | D75: 5460 | E75: 5460 | H75: 20.682 | I75: 15.288
A76: 18 Granada | C76: 30852 | D76: 30538 | E76: 33094 | H76: 34.916 | I76: 67.209
A77: 21 Huelva | C77: 1080 | D77: 700 | E77: 700 | H77: 3.24 | I77: 2.1
A78: 23 Jaén | C78: 3482 | D78: 3363 | E78: 3350 | H78: 6.817 | I78: 6.596
A79: 29 Málaga | C79: 9024 | D79: 9912 | E79: 10057 | H79: 27.72 | I79: 29.779
A80: 41 Sevilla | C80: 17980 | D80: 15740 | E80: 14000 | H80: 62.06 | I80: 44.544
A81: ANDALUCÍA | C81: 77918 | D81: 75528.81 | E81: 75675.5 | F81: 100.1942173 | H81: 168.964 | I81: 193.982
A83: 35 Palmas (Las) | C83: 44 | D83: 44 | E83: 44 | H83: 0.079 | I83: 0.079
A84: 38 S. C. Tenerife | C84: 48 | D84: 48 | E84: 48 | H84: 0.046 | I84: 0.046
A85: CANARIAS | C85: 92 | D85: 92 | E85: 92 | F85: 100 | H85: 0.125 | I85: 0.125
A88: ESPAÑA | C88: 1949929 | D88: 1997640.31 | E88: 2009935.49 | F88: 100.6154852 | H88: 6494.072 | I88: 8181.507
A91: (*)Tipo de Superficie de mes/año solicitado

Sheet Ceb14rno-SRT
A1: AVANCES DE SUPERFICIE Y PRODUCCIÓN
A2: CEBADA 6C DE INVIERNO S/R/T | K2: 2026 ENERO
A3: SUPERFICIE SEMBRADA(*)
A4: PROVINCIAS | B4: SUPERFICIES (HA) | E4: SUPERFICIES (HA) | H4: SUPERFICIES (HA) | L4: PRODUCCIONES (1000 TM) | O4: PRODUCCIONES (1000 TM) | R4: PRODUCCIONES (1000 TM)
A5: Y | B5: SECANO | E5: REGADIO | H5: TOTAL | L5: SECANO | O5: REGADIO | R5: TOTAL
A6: CC-AA | B6: =J6-2 -> 2024 | C6: =J6-1 -> 2025 | D6: =J6 -> 2026 | E6: =J6-2 -> 2024 | F6: =J6-1 -> 2025 | G6: =J6 -> 2026 | H6: =J6-2 -> 2024 | I6: =J6-1 -> 2025 | J6: 2026 | L6: =T6-2 -> 2024 | M6: =T6-1 -> 2025 | N6: =T6 -> 2026 | O6: =T6-2 -> 2024 | P6: =T6-1 -> 2025 | Q6: =T6 -> 2026 | R6: =T6-2 -> 2024 | S6: =T6-1 -> 2025 | T6: 2026
B7: DEFINITIVO | C7: PROVISIONAL | E7: DEFINITIVO | F7: PROVISIONAL | H7: DEFINITIVO | I7: PROVISIONAL | L7: DEFINITIVO | M7: PROVISIONAL | O7: DEFINITIVO | P7: PROVISIONAL | R7: DEFINITIVO | S7: PROVISIONAL
A10: 15 Coruña (La)
A11: 27 Lugo
A12: 32 Orense | B12: 10 | H12: 10 | L12: 0.044 | R12: 0.044
A13: 36 Pontevedra
A14: GALICIA | B14: 10 | H14: 10 | L14: 0.044 | R14: 0.044
A16: 33 P. DE ASTURIAS
A18: 39 CANTABRIA
A20: 01 Alava
A21: 20 Guipúzcoa
A22: 48 Vizcaya
A23: PAIS VASCO
A25: 31 NAVARRA | B25: 162 | C25: 75 | D25: 75 | E25: 5 | F25: 5 | G25: 5 | H25: 167 | I25: 80 | J25: 80 | L25: 0.727 | M25: 0.375 | O25: 0.026 | P25: 0.025 | R25: 0.753 | S25: 0.4
A27: 26 LA RIOJA
A29: 22 Huesca | B29: 1919 | C29: 1849.82 | D29: 1900 | E29: 1154 | F29: 1115.32 | G29: 1200 | H29: 3073 | I29: 2965.14 | J29: 3100 | L29: 6.067 | M29: 7.214 | O29: 6.707 | P29: 7.25 | R29: 12.774 | S29: 14.464
A30: 44 Teruel | B30: 2005 | C30: 1568 | D30: 1721 | E30: 203 | F30: 166 | G30: 176 | H30: 2208 | I30: 1734 | J30: 1897 | L30: 1.801 | M30: 4.08 | O30: 0.552 | P30: 0.654 | R30: 2.353 | S30: 4.734
A31: 50 Zaragoza | B31: 4753 | C31: 2432.97 | D31: 2019.44 | E31: 1076 | F31: 545.36 | G31: 118.24 | H31: 5829 | I31: 2978.33 | J31: 2137.68 | L31: 5.183 | M31: 4.569 | O31: 4.611 | P31: 2.71 | R31: 9.794 | S31: 7.28
A32: ARAGON | B32: 8677 | C32: 5850.79 | D32: 5640.44 | E32: 2433 | F32: 1826.68 | G32: 1494.24 | H32: 11110 | I32: 7677.47 | J32: 7134.68 | L32: 13.051 | M32: 15.863 | O32: 11.87 | P32: 10.614 | R32: 24.921 | S32: 26.478
A34: 08 Barcelona | B34: 95 | C34: 110 | D34: 100 | E34: 13 | G34: 10 | H34: 108 | I34: 110 | J34: 110 | L34: 0.227 | M34: 0.426 | O34: 0.063 | R34: 0.29 | S34: 0.426
A35: 17 Girona | B35: 45 | C35: 40 | D35: 39 | E35: 12 | F35: 13 | G35: 12 | H35: 57 | I35: 53 | J35: 51 | L35: 0.086 | M35: 0.12 | O35: 0.039 | P35: 0.042 | R35: 0.126 | S35: 0.162
A36: 25 Lleida | B36: 60 | C36: 60 | D36: 72 | E36: 146 | F36: 100 | G36: 90 | H36: 206 | I36: 160 | J36: 162 | L36: 0.072 | M36: 0.264 | O36: 1.004 | P36: 0.7 | R36: 1.076 | S36: 0.964
A37: 43 Tarragona | B37: 34 | C37: 38 | D37: 69 | E37: 1 | F37: 1 | G37: 1 | H37: 35 | I37: 39 | J37: 70 | L37: 0.039 | M37: 0.142 | O37: 0.005 | P37: 0.005 | R37: 0.044 | S37: 0.147
A38: CATALUÑA | B38: 234 | C38: 248 | D38: 280 | E38: 172 | F38: 114 | G38: 113 | H38: 406 | I38: 362 | J38: 393 | L38: 0.424 | M38: 0.952 | O38: 1.111 | P38: 0.747 | R38: 1.536 | S38: 1.699
A40: 07 BALEARES | B40: 9953 | C40: 9200 | D40: 9500 | H40: 9953 | I40: 9200 | J40: 9500 | L40: 11.479 | M40: 12.4 | R40: 11.48 | S40: 12.4
A42: 05 Avila | B42: 1610 | C42: 1820 | D42: 1800 | E42: 48 | F42: 18 | G42: 20 | H42: 1658 | I42: 1838 | J42: 1820 | L42: 3.197 | M42: 6.512 | O42: 0.163 | P42: 0.074 | R42: 3.361 | S42: 6.586
A43: 09 Burgos | B43: 4731 | H43: 4731 | L43: 24.445 | R43: 24.445
A44: 24 León | B44: 1000 | C44: 1256 | D44: 1200 | H44: 1000 | I44: 1256 | J44: 1200 | L44: 3.809 | M44: 5.225 | R44: 3.809 | S44: 5.225
A45: 34 Palencia | B45: 3080 | C45: 538 | D45: 508 | E45: 274 | F45: 5 | G45: 5 | H45: 3354 | I45: 543 | J45: 513 | L45: 13.854 | M45: 2.745 | O45: 1.098 | P45: 0.029 | R45: 14.952 | S45: 2.774
A46: 37 Salamanca | B46: 600 | C46: 350 | D46: 350 | H46: 600 | I46: 350 | J46: 350 | L46: 1.95 | M46: 1.575 | R46: 1.95 | S46: 1.575
A47: 40 Segovia | B47: 4700 | C47: 4000 | D47: 3000 | E47: 300 | H47: 5000 | I47: 4000 | J47: 3000 | L47: 12.173 | M47: 15.936 | O47: 1.488 | R47: 13.661 | S47: 15.936
A48: 42 Soria | B48: 5000 | C48: 3000 | D48: 2500 | E48: 50 | F48: 20 | G48: 15 | H48: 5050 | I48: 3020 | J48: 2515 | L48: 17.315 | M48: 11.706 | O48: 0.24 | P48: 0.108 | R48: 17.555 | S48: 11.814
A49: 47 Valladolid | B49: 1500 | C49: 1000 | D49: 1000 | E49: 250 | F49: 175 | G49: 175 | H49: 1750 | I49: 1175 | J49: 1175 | L49: 6.135 | M49: 4.975 | O49: 1.592 | P49: 1.225 | R49: 7.727 | S49: 6.2
A50: 49 Zamora | B50: 2526 | E50: 412 | H50: 2938 | L50: 9.339 | O50: 2.189 | R50: 11.528
A51: CASTILLA Y LEON | B51: 24747 | C51: 11964 | D51: 10358 | E51: 1334 | F51: 218 | G51: 215 | H51: 26081 | I51: 12182 | J51: 10573 | L51: 92.217 | M51: 48.674 | O51: 6.77 | P51: 1.436 | R51: 98.988 | S51: 50.11
A53: 28 MADRID | B53: 996 | C53: 335 | D53: 335 | E53: 112 | F53: 30 | G53: 30 | H53: 1108 | I53: 365 | J53: 365 | L53: 2.848 | M53: 0.978 | O53: 0.403 | P53: 0.143 | R53: 3.251 | S53: 1.121
A55: 02 Albacete | B55: 18000 | C55: 17780 | D55: 17856.8 | E55: 300 | F55: 300 | G55: 300 | H55: 18300 | I55: 18080 | J55: 18156.8 | L55: 20.52 | M55: 39.355 | O55: 1.98 | P55: 2.075 | R55: 22.5 | S55: 41.43
A56: 13 Ciudad Real | B56: 30915 | C56: 28206 | D56: 19140 | E56: 10121 | F56: 10603 | G56: 7800 | H56: 41036 | I56: 38809 | J56: 26940 | L56: 102.02 | M56: 95.9 | O56: 52.629 | P56: 59.377 | R56: 154.649 | S56: 155.277
A57: 16 Cuenca | B57: 15980 | C57: 16868 | D57: 22000 | E57: 530 | F57: 602 | G57: 800 | H57: 16510 | I57: 17470 | J57: 22800 | L57: 49.875 | M57: 57.35 | O57: 2.984 | P57: 3.31 | R57: 52.859 | S57: 60.66
A58: 19 Guadalajara | B58: 3031 | C58: 3031 | D58: 5447 | E58: 106 | F58: 106 | G58: 110 | H58: 3137 | I58: 3137 | J58: 5557 | L58: 9.699 | M58: 10.609 | O58: 0.53 | P58: 0.53 | R58: 10.229 | S58: 11.139
A59: 45 Toledo | B59: 11545 | C59: 10757 | D59: 10757 | E59: 1033 | F59: 1195 | G59: 1195 | H59: 12578 | I59: 11952 | J59: 11952 | L59: 32.326 | M59: 34.422 | O59: 4.649 | P59: 3.824 | R59: 36.975 | S59: 38.246
A60: CASTILLA-MANCHA | B60: 79471 | C60: 76642 | D60: 75200.8 | E60: 12090 | F60: 12806 | G60: 10205 | H60: 91561 | I60: 89448 | J60: 85405.8 | L60: 214.44 | M60: 237.636 | O60: 62.772 | P60: 69.116 | R60: 277.212 | S60: 306.752
A62: 03 Alicante | B62: 173 | C62: 94 | D62: 82 | E62: 61 | F62: 20 | G62: 18 | H62: 234 | I62: 114 | J62: 100 | L62: 0.02 | M62: 0.121 | O62: 0.127 | P62: 0.079 | R62: 0.147 | S62: 0.2
A63: 12 Castellón | B63: 24 | C63: 24 | D63: 24 | H63: 24 | I63: 24 | J63: 24 | L63: 0.003 | M63: 0.043 | R63: 0.003 | S63: 0.043
A64: 46 Valencia | B64: 278 | C64: 241 | D64: 297 | E64: 15 | F64: 14 | G64: 18 | H64: 293 | I64: 255 | J64: 315 | L64: 0.112 | M64: 0.711 | O64: 0.061 | P64: 0.059 | R64: 0.173 | S64: 0.77
A65: C. VALENCIANA | B65: 475 | C65: 359 | D65: 403 | E65: 76 | F65: 34 | G65: 36 | H65: 551 | I65: 393 | J65: 439 | L65: 0.135 | M65: 0.875 | O65: 0.188 | P65: 0.138 | R65: 0.323 | S65: 1.013
A67: 30 R. DE MURCIA | B67: 8142 | C67: 8260 | D67: 10736 | E67: 946 | F67: 828 | G67: 1108 | H67: 9088 | I67: 9088 | J67: 11844 | L67: 9.643 | M67: 10.408 | O67: 4.181 | P67: 3.66 | R67: 13.824 | S67: 14.067
A69: 06 Badajoz | B69: 2768 | C69: 1685 | D69: 1425 | H69: 2768 | I69: 1685 | J69: 1425 | L69: 7.039 | M69: 4.647 | R69: 7.039 | S69: 4.647
A70: 10 Cáceres | B70: 79 | C70: 85 | D70: 100 | H70: 79 | I70: 85 | J70: 100 | L70: 0.097 | M70: 0.116 | R70: 0.097 | S70: 0.116
A71: EXTREMADURA | B71: 2847 | C71: 1770 | D71: 1525 | H71: 2847 | I71: 1770 | J71: 1525 | L71: 7.136 | M71: 4.763 | R71: 7.136 | S71: 4.763
A73: 04 Almería | B73: 8145 | C73: 6776 | D73: 6800 | E73: 206 | F73: 189 | G73: 200 | H73: 8351 | I73: 6965 | J73: 7000 | L73: 0.299 | M73: 17.398 | O73: 0.414 | P73: 0.708 | R73: 0.713 | S73: 18.106
A74: 11 Cádiz | B74: 579 | C74: 868 | D74: 359.68 | E74: 36 | F74: 48 | H74: 615 | I74: 916 | J74: 359.68 | L74: 0.889 | M74: 2.604 | O74: 0.125 | P74: 0.144 | R74: 1.014 | S74: 2.748
A75: 14 Córdoba | B75: 12465 | C75: 13560 | D75: 13560 | E75: 290 | F75: 250 | G75: 250 | H75: 12755 | I75: 13810 | J75: 13810 | L75: 43.628 | M75: 42.036 | O75: 1.015 | P75: 0.775 | R75: 44.643 | S75: 42.811
A76: 18 Granada | B76: 2888 | C76: 2853 | D76: 2939 | E76: 232 | F76: 27 | G76: 28 | H76: 3120 | I76: 2880 | J76: 2967 | L76: 2.54 | M76: 3.824 | O76: 0.75 | P76: 0.027 | R76: 3.29 | S76: 3.851
A77: 21 Huelva | B77: 120 | C77: 50 | D77: 50 | H77: 120 | I77: 50 | J77: 50 | L77: 0.33 | M77: 0.135 | R77: 0.33 | S77: 0.135
A78: 23 Jaén | B78: 2012 | C78: 1930 | D78: 1922 | E78: 215 | F78: 220 | G78: 220 | H78: 2227 | I78: 2150 | J78: 2142 | L78: 4.024 | M78: 3.86 | O78: 0.559 | P78: 0.55 | R78: 4.583 | S78: 4.41
A79: 29 Málaga | B79: 350 | C79: 400 | D79: 497 | E79: 150 | F79: 150 | G79: 150 | H79: 500 | I79: 550 | J79: 647 | L79: 1.015 | M79: 1.24 | O79: 0.623 | P79: 0.63 | R79: 1.638 | S79: 1.87
A80: 41 Sevilla | B80: 1740 | C80: 1620 | D80: 1300 | E80: 260 | F80: 140 | G80: 100 | H80: 2000 | I80: 1760 | J80: 1400 | L80: 4.872 | M80: 4.212 | O80: 0.91 | P80: 0.42 | R80: 5.782 | S80: 4.632
A81: ANDALUCIA | B81: 28299 | C81: 28057 | D81: 27427.68 | E81: 1389 | F81: 1024 | G81: 948 | H81: 29688 | I81: 29081 | J81: 28375.68 | L81: 57.597 | M81: 75.309 | O81: 4.396 | P81: 3.254 | R81: 61.993 | S81: 78.563
A83: 35 Palmas (Las)
A84: 38 S. C. Tenerife
A85: CANARIAS
A88: ESPAÑA | B88: 328026 | C88: 142760.79 | D88: 141480.92 | E88: 18557 | F88: 16885.68 | G88: 14154.24 | H88: 182570 | I88: 159646.47 | J88: 155635.16 | L88: 409.741 | M88: 408.233 | O88: 91.717 | P88: 89.133 | R88: 501.461 | S88: 497.366
B96: 221 | C96: 231 | E96: 221 | F96: 231 | H96: 221 | I96: 231

Sheet Ceb14rno
A1: AVANCES DE SUPERFICIE Y PRODUCCIÓN
A2: CEBADA 6C DE INVIERNO | J2: 2026 ENERO
A3: SUPERFICIE SEMBRADA(*)
A4: PROVINCIAS | C4: SUPERFICIES (HA) | H4: PRODUCCIONES (1000 TM)
A5: Y
A6: CC-AA | C6: =E6-2 -> 2024 | D6: =E6-1 -> 2025 | E6: 2026 | F6: =E6 -> 2026 | H6: =J6-2 -> 2024 | I6: =J6-1 -> 2025 | J6: 2026 | K6: =J6 -> 2026
C7: DEFINITIVO | D7: PROVISIONAL | H7: DEFINITIVO | I7: PROVISIONAL
F8: =CONCATENATE(D6,"=100") -> 2025=100 | K8: =CONCATENATE(I6,"=100") -> 2025=100
A10: 15 A Coruña
A11: 27 Lugo
A12: 32 Ourense | C12: 10 | H12: 0.044
A13: 36 Pontevedra
A14: GALICIA | C14: 10 | H14: 0.044
A16: 33 P. DE ASTURIAS
A18: 39 CANTABRIA
A20: 1 Álava
A21: 20 Guipúzcoa
A22: 48 Vizcaya
A23: PAIS VASCO
A25: 31 NAVARRA | C25: 167 | D25: 80 | E25: 80 | F25: 100 | H25: 0.753 | I25: 0.4
A27: 26 LA RIOJA
A29: 22 Huesca | C29: 3073 | D29: 2965.14 | E29: 3100 | H29: 12.774 | I29: 14.464
A30: 44 Teruel | C30: 2208 | D30: 1734 | E30: 1897 | H30: 2.353 | I30: 4.734
A31: 50 Zaragoza | C31: 5829 | D31: 2978.33 | E31: 2137.68 | H31: 9.794 | I31: 7.28
A32: ARAGÓN | C32: 11110 | D32: 7677.47 | E32: 7134.68 | F32: 92.93009286 | H32: 24.921 | I32: 26.478
A34: 8 Barcelona | C34: 108 | D34: 110 | E34: 110 | H34: 0.29 | I34: 0.426
A35: 17 Girona | C35: 57 | D35: 53 | E35: 51 | H35: 0.126 | I35: 0.162
A36: 25 Lleida | C36: 206 | D36: 160 | E36: 162 | H36: 1.076 | I36: 0.964
A37: 43 Tarragona | C37: 35 | D37: 39 | E37: 70 | H37: 0.044 | I37: 0.147
A38: CATALUÑA | C38: 406 | D38: 362 | E38: 393 | F38: 108.5635359 | H38: 1.536 | I38: 1.699
A40: 7 BALEARES | C40: 9953 | D40: 9200 | E40: 9500 | F40: 103.2608696 | H40: 11.48 | I40: 12.4
A42: 5 Ávila | C42: 1658 | D42: 1838 | E42: 1820 | H42: 3.361 | I42: 6.586
A43: 9 Burgos | C43: 4731 | H43: 24.445
A44: 24 León | C44: 1000 | D44: 1256 | E44: 1200 | H44: 3.809 | I44: 5.225
A45: 34 Palencia | C45: 3354 | D45: 543 | E45: 513 | H45: 14.952 | I45: 2.774
A46: 37 Salamanca | C46: 600 | D46: 350 | E46: 350 | H46: 1.95 | I46: 1.575
A47: 40 Segovia | C47: 5000 | D47: 4000 | E47: 3000 | H47: 13.661 | I47: 15.936
A48: 42 Soria | C48: 5050 | D48: 3020 | E48: 2515 | H48: 17.555 | I48: 11.814
A49: 47 Valladolid | C49: 1750 | D49: 1175 | E49: 1175 | H49: 7.727 | I49: 6.2
A50: 49 Zamora | C50: 2938 | H50: 11.528
A51: CASTILLA Y LEÓN | C51: 26081 | D51: 12182 | E51: 10573 | F51: 86.79198818 | H51: 98.988 | I51: 50.11
A53: 28 MADRID | C53: 1108 | D53: 365 | E53: 365 | F53: 100 | H53: 3.251 | I53: 1.121
A55: 2 Albacete | C55: 18300 | D55: 18080 | E55: 18156.8 | H55: 22.5 | I55: 41.43
A56: 13 Ciudad Real | C56: 41036 | D56: 38809 | E56: 26940 | H56: 154.649 | I56: 155.277
A57: 16 Cuenca | C57: 16510 | D57: 17470 | E57: 22800 | H57: 52.859 | I57: 60.66
A58: 19 Guadalajara | C58: 3137 | D58: 3137 | E58: 5557 | H58: 10.229 | I58: 11.139
A59: 45 Toledo | C59: 12578 | D59: 11952 | E59: 11952 | H59: 36.975 | I59: 38.246
A60: CASTILLA-MANCHA | C60: 91561 | D60: 89448 | E60: 85405.8 | F60: 95.48094983 | H60: 277.212 | I60: 306.752
A62: 3 Alicante | C62: 234 | D62: 114 | E62: 100 | H62: 0.147 | I62: 0.2
A63: 12 Castellón | C63: 24 | D63: 24 | E63: 24 | H63: 0.003 | I63: 0.043
A64: 46 Valencia | C64: 293 | D64: 255 | E64: 315 | H64: 0.173 | I64: 0.77
A65: C. VALENCIANA | C65: 551 | D65: 393 | E65: 439 | F65: 111.7048346 | H65: 0.323 | I65: 1.013
A67: 30 R. DE MURCIA | C67: 9088 | D67: 9088 | E67: 11844 | F67: 130.3257042 | H67: 13.824 | I67: 14.067
A69: 6 Badajoz | C69: 2768 | D69: 1685 | E69: 1425 | H69: 7.039 | I69: 4.647
A70: 10 Cáceres | C70: 79 | D70: 85 | E70: 100 | H70: 0.097 | I70: 0.116
A71: EXTREMADURA | C71: 2847 | D71: 1770 | E71: 1525 | F71: 86.15819209 | H71: 7.136 | I71: 4.763
A73: 4 Almería | C73: 8351 | D73: 6965 | E73: 7000 | H73: 0.713 | I73: 18.106
A74: 11 Cádiz | C74: 615 | D74: 916 | E74: 359.68 | H74: 1.014 | I74: 2.748
A75: 14 Córdoba | C75: 12755 | D75: 13810 | E75: 13810 | H75: 44.643 | I75: 42.811
A76: 18 Granada | C76: 3120 | D76: 2880 | E76: 2967 | H76: 3.29 | I76: 3.851
A77: 21 Huelva | C77: 120 | D77: 50 | E77: 50 | H77: 0.33 | I77: 0.135
A78: 23 Jaén | C78: 2227 | D78: 2150 | E78: 2142 | H78: 4.583 | I78: 4.41
A79: 29 Málaga | C79: 500 | D79: 550 | E79: 647 | H79: 1.638 | I79: 1.87
A80: 41 Sevilla | C80: 2000 | D80: 1760 | E80: 1400 | H80: 5.782 | I80: 4.632
A81: ANDALUCÍA | C81: 29688 | D81: 29081 | E81: 28375.68 | F81: 97.57463636 | H81: 61.993 | I81: 78.563
A83: 35 Palmas (Las)
A84: 38 S. C. Tenerife
A85: CANARIAS
A88: ESPAÑA | C88: 182570 | D88: 159646.47 | E88: 155635.16 | F88: 97.48737946 | H88: 501.461 | I88: 497.366
A91: (*)Tipo de Superficie de mes/año solicitado

Sheet Ceb15era-SRT
A1: AVANCES DE SUPERFICIE Y PRODUCCIÓN
A2: CEBADA DE PRIMAVERA S/R/T | K2: 2026 ENERO
A3: SUPERFICIE SEMBRADA(*)
A4: PROVINCIAS | B4: SUPERFICIES (HA) | E4: SUPERFICIES (HA) | H4: SUPERFICIES (HA) | L4: PRODUCCIONES (1000 TM) | O4: PRODUCCIONES (1000 TM) | R4: PRODUCCIONES (1000 TM)
A5: Y | B5: SECANO | E5: REGADIO | H5: TOTAL | L5: SECANO | O5: REGADIO | R5: TOTAL
A6: CC-AA | B6: =J6-2 -> 2024 | C6: =J6-1 -> 2025 | D6: =J6 -> 2026 | E6: =J6-2 -> 2024 | F6: =J6-1 -> 2025 | G6: =J6 -> 2026 | H6: =J6-2 -> 2024 | I6: =J6-1 -> 2025 | J6: 2026 | L6: =T6-2 -> 2024 | M6: =T6-1 -> 2025 | N6: =T6 -> 2026 | O6: =T6-2 -> 2024 | P6: =T6-1 -> 2025 | Q6: =T6 -> 2026 | R6: =T6-2 -> 2024 | S6: =T6-1 -> 2025 | T6: 2026
B7: DEFINITIVO | C7: PROVISIONAL | E7: DEFINITIVO | F7: PROVISIONAL | H7: DEFINITIVO | I7: PROVISIONAL | L7: DEFINITIVO | M7: PROVISIONAL | O7: DEFINITIVO | P7: PROVISIONAL | R7: DEFINITIVO | S7: PROVISIONAL
A10: 15 Coruña (La) | B10: 47 | C10: 71.23 | D10: 75.19 | H10: 47 | I10: 71.23 | J10: 75.19 | L10: 0.118 | M10: 0.519 | R10: 0.118 | S10: 0.519
A11: 27 Lugo | B11: 32 | C11: 64.51 | D11: 59.39 | H11: 32 | I11: 64.51 | J11: 59.39 | L11: 0.08 | M11: 0.083 | R11: 0.08 | S11: 0.083
A12: 32 Orense | B12: 105 | C12: 235.46 | D12: 258.28 | H12: 105 | I12: 235.46 | J12: 258.28 | L12: 0.463 | M12: 0.868 | R12: 0.463 | S12: 0.868
A13: 36 Pontevedra | C13: 27.18 | D13: 17.65 | I13: 27.18 | J13: 17.65 | M13: 0.084 | S13: 0.084
A14: GALICIA | B14: 184 | C14: 398.38 | D14: 410.51 | H14: 184 | I14: 398.38 | J14: 410.51 | L14: 0.661 | M14: 1.554 | R14: 0.661 | S14: 1.554
A16: 33 P. DE ASTURIAS
A18: 39 CANTABRIA | B18: 134 | C18: 135 | D18: 145 | E18: 10 | F18: 10 | G18: 10 | H18: 144 | I18: 145 | J18: 155 | L18: 0.111 | M18: 0.121 | O18: 0.04 | P18: 0.03 | R18: 0.151 | S18: 0.151
A20: 01 Alava | B20: 8192 | C20: 9645 | D20: 10000 | H20: 8192 | I20: 9645 | J20: 10000 | L20: 58.163 | M20: 53.048 | R20: 58.163 | S20: 53.048
A21: 20 Guipúzcoa
A22: 48 Vizcaya
A23: PAIS VASCO | B23: 8192 | C23: 9645 | D23: 10000 | H23: 8192 | I23: 9645 | J23: 10000 | L23: 58.163 | M23: 53.048 | R23: 58.163 | S23: 53.048
A25: 31 NAVARRA
A27: 26 LA RIOJA | B27: 7713 | C27: 7691 | E27: 4641 | F27: 2855 | H27: 12354 | I27: 10546 | L27: 19.956 | M27: 41.079 | O27: 18.1 | P27: 15.704 | R27: 38.056 | S27: 56.783
A29: 22 Huesca | B29: 10785 | C29: 11460.71 | D29: 11450 | E29: 6484 | F29: 6905.75 | G29: 6640 | H29: 17269 | I29: 18366.47 | J29: 18090 | L29: 34.101 | M29: 46.045 | O29: 36.345 | P29: 46.106 | R29: 70.446 | S29: 92.15
A30: 44 Teruel | B30: 16 | C30: 1661 | D30: 1756 | E30: 17 | F30: 169 | G30: 180 | H30: 33 | I30: 1830 | J30: 1936 | L30: 0.015 | M30: 4.322 | O30: 0.045 | P30: 0.666 | R30: 0.06 | S30: 4.988
A31: 50 Zaragoza | B31: 4587 | C31: 2587.98 | D31: 8971.3 | E31: 1039 | F31: 6981.64 | G31: 1566.12 | H31: 5626 | I31: 9569.62 | J31: 10537.42 | L31: 6.427 | M31: 8.003 | O31: 4.297 | P31: 42.882 | R31: 10.724 | S31: 50.885
A32: ARAGON | B32: 15388 | C32: 15709.69 | D32: 22177.3 | E32: 7540 | F32: 14056.39 | G32: 8386.12 | H32: 22928 | I32: 29766.09 | J32: 30563.42 | L32: 40.543 | M32: 58.37 | O32: 40.687 | P32: 89.654 | R32: 81.23 | S32: 148.023
A34: 08 Barcelona
A35: 17 Girona
A36: 25 Lleida
A37: 43 Tarragona
A38: CATALUÑA
A40: 07 BALEARES | B40: 4610 | C40: 4700 | D40: 4400 | H40: 4610 | I40: 4700 | J40: 4400 | L40: 5.531 | M40: 6.4 | R40: 5.531 | S40: 6.4
A42: 05 Avila
A43: 09 Burgos
A44: 24 León
A45: 34 Palencia
A46: 37 Salamanca
A47: 40 Segovia
A48: 42 Soria
A49: 47 Valladolid
A50: 49 Zamora
A51: CASTILLA Y LEON
A53: 28 MADRID | B53: 1673 | C53: 1767 | D53: 1767 | E53: 189 | F53: 160 | G53: 160 | H53: 1862 | I53: 1927 | J53: 1927 | L53: 4.427 | M53: 4.953 | O53: 0.688 | P53: 0.602 | R53: 5.115 | S53: 5.556
A55: 02 Albacete | B55: 67335 | C55: 66564 | D55: 66660 | E55: 13791 | F55: 14243 | G55: 14250 | H55: 81126 | I55: 80807 | J55: 80910 | L55: 72.64 | M55: 150.033 | O55: 93.2 | P55: 98.277 | R55: 165.829 | S55: 248.31
A56: 13 Ciudad Real
A57: 16 Cuenca
A58: 19 Guadalajara
A59: 45 Toledo
A60: CASTILLA-MANCHA | B60: 67335 | C60: 66564 | D60: 66660 | E60: 13791 | F60: 14243 | G60: 14250 | H60: 81126 | I60: 80807 | J60: 80910 | L60: 72.64 | M60: 150.033 | O60: 93.2 | P60: 98.277 | R60: 165.829 | S60: 248.31
A62: 03 Alicante
A63: 12 Castellón | B63: 358 | C63: 358 | D63: 326 | E63: 8 | F63: 8 | G63: 8 | H63: 366 | I63: 366 | J63: 334 | L63: 0.047 | M63: 0.662 | O63: 0.031 | P63: 0.031 | R63: 0.078 | S63: 0.693
A64: 46 Valencia
A65: C. VALENCIANA | B65: 358 | C65: 358 | D65: 326 | E65: 8 | F65: 8 | G65: 8 | H65: 366 | I65: 366 | J65: 334 | L65: 0.047 | M65: 0.662 | O65: 0.031 | P65: 0.031 | R65: 0.078 | S65: 0.693
A67: 30 R. DE MURCIA
A69: 06 Badajoz
A70: 10 Cáceres
A71: EXTREMADURA
A73: 04 Almería
A74: 11 Cádiz
A75: 14 Córdoba
A76: 18 Granada
A77: 21 Huelva
A78: 23 Jaén
A79: 29 Málaga
A80: 41 Sevilla
A81: ANDALUCIA
A83: 35 Palmas (Las)
A84: 38 S. C. Tenerife
A85: CANARIAS
A88: ESPAÑA | B88: 211174 | C88: 106968.07 | D88: 105885.81 | E88: 26179 | F88: 31332.39 | G88: 22814.12 | H88: 131766 | I88: 138300.47 | J88: 128699.93 | L88: 202.079 | M88: 316.22 | O88: 152.746 | P88: 204.298 | R88: 354.814 | S88: 520.518
B96: 221 | C96: 231 | E96: 221 | F96: 231 | H96: 221 | I96: 231

Sheet Ceb15era
A1: AVANCES DE SUPERFICIE Y PRODUCCIÓN
A2: CEBADA DE PRIMAVERA | J2: 2026 ENERO
A3: SUPERFICIE SEMBRADA(*)
A4: PROVINCIAS | C4: SUPERFICIES (HA) | H4: PRODUCCIONES (1000 TM)
A5: Y
A6: CC-AA | C6: =E6-2 -> 2024 | D6: =E6-1 -> 2025 | E6: 2026 | F6: =E6 -> 2026 | H6: =J6-2 -> 2024 | I6: =J6-1 -> 2025 | J6: 2026 | K6: =J6 -> 2026
C7: DEFINITIVO | D7: PROVISIONAL | H7: DEFINITIVO | I7: PROVISIONAL
F8: =CONCATENATE(D6,"=100") -> 2025=100 | K8: =CONCATENATE(I6,"=100") -> 2025=100
A10: 15 A Coruña | C10: 47 | D10: 71.23 | E10: 75.19 | H10: 0.118 | I10: 0.519
A11: 27 Lugo | C11: 32 | D11: 64.51 | E11: 59.39 | H11: 0.08 | I11: 0.083
A12: 32 Ourense | C12: 105 | D12: 235.46 | E12: 258.28 | H12: 0.463 | I12: 0.868
A13: 36 Pontevedra | D13: 27.18 | E13: 17.65 | I13: 0.084
A14: GALICIA | C14: 184 | D14: 398.38 | E14: 410.51 | F14: 103.0448316 | H14: 0.661 | I14: 1.554
A16: 33 P. DE ASTURIAS
A18: 39 CANTABRIA | C18: 144 | D18: 145 | E18: 155 | F18: 106.8965517 | H18: 0.151 | I18: 0.151
A20: 1 Álava | C20: 8192 | D20: 9645 | E20: 10000 | H20: 58.163 | I20: 53.048
A21: 20 Guipúzcoa
A22: 48 Vizcaya
A23: PAIS VASCO | C23: 8192 | D23: 9645 | E23: 10000 | F23: 103.6806636 | H23: 58.163 | I23: 53.048
A25: 31 NAVARRA
A27: 26 LA RIOJA | C27: 12354 | D27: 10546 | H27: 38.056 | I27: 56.783
A29: 22 Huesca | C29: 17269 | D29: 18366.47 | E29: 18090 | H29: 70.446 | I29: 92.15
A30: 44 Teruel | C30: 33 | D30: 1830 | E30: 1936 | H30: 0.06 | I30: 4.988
A31: 50 Zaragoza | C31: 5626 | D31: 9569.62 | E31: 10537.42 | H31: 10.724 | I31: 50.885
A32: ARAGÓN | C32: 22928 | D32: 29766.09 | E32: 30563.42 | F32: 102.6786521 | H32: 81.23 | I32: 148.023
A34: 8 Barcelona
A35: 17 Girona
A36: 25 Lleida
A37: 43 Tarragona
A38: CATALUÑA
A40: 7 BALEARES | C40: 4610 | D40: 4700 | E40: 4400 | F40: 93.61702128 | H40: 5.531 | I40: 6.4
A42: 5 Ávila
A43: 9 Burgos
A44: 24 León
A45: 34 Palencia
A46: 37 Salamanca
A47: 40 Segovia
A48: 42 Soria
A49: 47 Valladolid
A50: 49 Zamora
A51: CASTILLA Y LEÓN
A53: 28 MADRID | C53: 1862 | D53: 1927 | E53: 1927 | F53: 100 | H53: 5.115 | I53: 5.556
A55: 2 Albacete | C55: 81126 | D55: 80807 | E55: 80910 | H55: 165.829 | I55: 248.31
A56: 13 Ciudad Real
A57: 16 Cuenca
A58: 19 Guadalajara
A59: 45 Toledo
A60: CASTILLA-MANCHA | C60: 81126 | D60: 80807 | E60: 80910 | F60: 100.1274642 | H60: 165.829 | I60: 248.31
A62: 3 Alicante
A63: 12 Castellón | C63: 366 | D63: 366 | E63: 334 | H63: 0.078 | I63: 0.693
A64: 46 Valencia
A65: C. VALENCIANA | C65: 366 | D65: 366 | E65: 334 | F65: 91.2568306 | H65: 0.078 | I65: 0.693
A67: 30 R. DE MURCIA
A69: 6 Badajoz
A70: 10 Cáceres
A71: EXTREMADURA
A73: 4 Almería
A74: 11 Cádiz
A75: 14 Córdoba
A76: 18 Granada
A77: 21 Huelva
A78: 23 Jaén
A79: 29 Málaga
A80: 41 Sevilla
A81: ANDALUCÍA
A83: 35 Palmas (Las)
A84: 38 S. C. Tenerife
A85: CANARIAS
A88: ESPAÑA | C88: 131766 | D88: 138300.47 | E88: 128699.93 | F88: 93.05820147 | H88: 354.814 | I88: 520.518
A91: (*)Tipo de Superficie de mes/año solicitado

Sheet Ceb16era-SRT
A1: AVANCES DE SUPERFICIE Y PRODUCCIÓN
A2: CEBADA 2C DE PRIMAVERA S/R/T | K2: 2026 ENERO
A3: SUPERFICIE SEMBRADA(*)
A4: PROVINCIAS | B4: SUPERFICIES (HA) | E4: SUPERFICIES (HA) | H4: SUPERFICIES (HA) | L4: PRODUCCIONES (1000 TM) | O4: PRODUCCIONES (1000 TM) | R4: PRODUCCIONES (1000 TM)
A5: Y | B5: SECANO | E5: REGADIO | H5: TOTAL | L5: SECANO | O5: REGADIO | R5: TOTAL
A6: CC-AA | B6: =J6-2 -> 2024 | C6: =J6-1 -> 2025 | D6: =J6 -> 2026 | E6: =J6-2 -> 2024 | F6: =J6-1 -> 2025 | G6: =J6 -> 2026 | H6: =J6-2 -> 2024 | I6: =J6-1 -> 2025 | J6: 2026 | L6: =T6-2 -> 2024 | M6: =T6-1 -> 2025 | N6: =T6 -> 2026 | O6: =T6-2 -> 2024 | P6: =T6-1 -> 2025 | Q6: =T6 -> 2026 | R6: =T6-2 -> 2024 | S6: =T6-1 -> 2025 | T6: 2026
B7: DEFINITIVO | C7: PROVISIONAL | E7: DEFINITIVO | F7: PROVISIONAL | H7: DEFINITIVO | I7: PROVISIONAL | L7: DEFINITIVO | M7: PROVISIONAL | O7: DEFINITIVO | P7: PROVISIONAL | R7: DEFINITIVO | S7: PROVISIONAL
A10: 15 Coruña (La) | B10: 47 | C10: 7.55 | D10: 5.18 | H10: 47 | I10: 7.55 | J10: 5.18 | L10: 0.118 | M10: 0.028 | R10: 0.118 | S10: 0.028
A11: 27 Lugo | B11: 32 | C11: 11.02 | D11: 9.21 | H11: 32 | I11: 11.02 | J11: 9.21 | L11: 0.08 | M11: 0.028 | R11: 0.08 | S11: 0.028
A12: 32 Orense | B12: 105 | C12: 110.04 | D12: 137.58 | H12: 105 | I12: 110.04 | J12: 137.58 | L12: 0.463 | M12: 0.318 | R12: 0.463 | S12: 0.318
A13: 36 Pontevedra | C13: 8.85 | D13: 3.92 | I13: 8.85 | J13: 3.92 | M13: 0.029 | S13: 0.029
A14: GALICIA | B14: 184 | C14: 137.46 | D14: 155.89 | H14: 184 | I14: 137.46 | J14: 155.89 | L14: 0.661 | M14: 0.403 | R14: 0.661 | S14: 0.403
A16: 33 P. DE ASTURIAS
A18: 39 CANTABRIA | B18: 134 | C18: 135 | D18: 145 | E18: 10 | F18: 10 | G18: 10 | H18: 144 | I18: 145 | J18: 155 | L18: 0.111 | M18: 0.121 | O18: 0.04 | P18: 0.03 | R18: 0.151 | S18: 0.151
A20: 01 Alava | B20: 8192 | C20: 9645 | D20: 10000 | H20: 8192 | I20: 9645 | J20: 10000 | L20: 58.163 | M20: 53.048 | R20: 58.163 | S20: 53.048
A21: 20 Guipúzcoa
A22: 48 Vizcaya
A23: PAIS VASCO | B23: 8192 | C23: 9645 | D23: 10000 | H23: 8192 | I23: 9645 | J23: 10000 | L23: 58.163 | M23: 53.048 | R23: 58.163 | S23: 53.048
A25: 31 NAVARRA
A27: 26 LA RIOJA | B27: 7713 | C27: 7691 | E27: 4641 | F27: 2855 | H27: 12354 | I27: 10546 | L27: 19.956 | M27: 41.079 | O27: 18.1 | P27: 15.704 | R27: 38.056 | S27: 56.783
A29: 22 Huesca | B29: 10785 | C29: 11231.56 | D29: 11200 | E29: 6484 | F29: 6767.87 | G29: 6500 | H29: 17269 | I29: 17999.43 | J29: 17700 | L29: 34.101 | M29: 45.151 | O29: 36.345 | P29: 45.209 | R29: 70.446 | S29: 90.36
A30: 44 Teruel | B30: 16 | C30: 1628 | D30: 1721 | E30: 17 | F30: 166 | G30: 176 | H30: 33 | I30: 1794 | J30: 1897 | L30: 0.015 | M30: 4.236 | O30: 0.045 | P30: 0.654 | R30: 0.06 | S30: 4.89
A31: 50 Zaragoza | B31: 4587 | C31: 2486.23 | D31: 8838.74 | E31: 1039 | F31: 6958.91 | G31: 1558.36 | H31: 5626 | I31: 9445.14 | J31: 10397.1 | L31: 6.427 | M31: 7.812 | O31: 4.297 | P31: 42.769 | R31: 10.724 | S31: 50.581
A32: ARAGON | B32: 15388 | C32: 15345.79 | D32: 21759.74 | E32: 7540 | F32: 13892.78 | G32: 8234.36 | H32: 22928 | I32: 29238.57 | J32: 29994.1 | L32: 40.543 | M32: 57.199 | O32: 40.687 | P32: 88.632 | R32: 81.23 | S32: 145.831
A34: 08 Barcelona
A35: 17 Girona
A36: 25 Lleida
A37: 43 Tarragona
A38: CATALUÑA
A40: 07 BALEARES | B40: 4610 | C40: 4700 | D40: 4400 | H40: 4610 | I40: 4700 | J40: 4400 | L40: 5.531 | M40: 6.4 | R40: 5.531 | S40: 6.4
A42: 05 Avila
A43: 09 Burgos
A44: 24 León
A45: 34 Palencia
A46: 37 Salamanca
A47: 40 Segovia
A48: 42 Soria
A49: 47 Valladolid
A50: 49 Zamora
A51: CASTILLA Y LEON
A53: 28 MADRID | B53: 1673 | C53: 1749 | D53: 1749 | E53: 189 | F53: 158 | G53: 158 | H53: 1862 | I53: 1907 | J53: 1907 | L53: 4.427 | M53: 4.902 | O53: 0.688 | P53: 0.595 | R53: 5.115 | S53: 5.497
A55: 02 Albacete | B55: 66800 | C55: 66035 | D55: 65993.4 | E55: 13550 | F55: 14000 | G55: 13965 | H55: 80350 | I55: 80035 | J55: 79958.4 | L55: 72.073 | M55: 148.7 | O55: 91.639 | P55: 96.6 | R55: 163.712 | S55: 245.3
A56: 13 Ciudad Real
A57: 16 Cuenca
A58: 19 Guadalajara
A59: 45 Toledo
A60: CASTILLA-MANCHA | B60: 66800 | C60: 66035 | D60: 65993.4 | E60: 13550 | F60: 14000 | G60: 13965 | H60: 80350 | I60: 80035 | J60: 79958.4 | L60: 72.073 | M60: 148.7 | O60: 91.639 | P60: 96.6 | R60: 163.712 | S60: 245.3
A62: 03 Alicante
A63: 12 Castellón | B63: 352 | C63: 352 | D63: 320 | E63: 8 | F63: 8 | G63: 8 | H63: 360 | I63: 360 | J63: 328 | L63: 0.046 | M63: 0.651 | O63: 0.031 | P63: 0.031 | R63: 0.077 | S63: 0.682
A64: 46 Valencia
A65: C. VALENCIANA | B65: 352 | C65: 352 | D65: 320 | E65: 8 | F65: 8 | G65: 8 | H65: 360 | I65: 360 | J65: 328 | L65: 0.046 | M65: 0.651 | O65: 0.031 | P65: 0.031 | R65: 0.077 | S65: 0.682
A67: 30 R. DE MURCIA
A69: 06 Badajoz
A70: 10 Cáceres
A71: EXTREMADURA
A73: 04 Almería
A74: 11 Cádiz
A75: 14 Córdoba
A76: 18 Granada
A77: 21 Huelva
A78: 23 Jaén
A79: 29 Málaga
A80: 41 Sevilla
A81: ANDALUCIA
A83: 35 Palmas (Las)
A84: 38 S. C. Tenerife
A85: CANARIAS
A88: ESPAÑA | B88: 210092 | C88: 105790.25 | D88: 104523.03 | E88: 25938 | F88: 30923.78 | G88: 22375.36 | H88: 130984 | I88: 136714.03 | J88: 126898.39 | L88: 201.511 | M88: 312.503 | O88: 151.185 | P88: 201.592 | R88: 352.696 | S88: 514.095
B96: 221 | C96: 231 | E96: 221 | F96: 231 | H96: 221 | I96: 231

Sheet Ceb16era
A1: AVANCES DE SUPERFICIE Y PRODUCCIÓN
A2: CEBADA 2C DE PRIMAVERA | J2: 2026 ENERO
A3: SUPERFICIE SEMBRADA(*)
A4: PROVINCIAS | C4: SUPERFICIES (HA) | H4: PRODUCCIONES (1000 TM)
A5: Y
A6: CC-AA | C6: =E6-2 -> 2024 | D6: =E6-1 -> 2025 | E6: 2026 | F6: =E6 -> 2026 | H6: =J6-2 -> 2024 | I6: =J6-1 -> 2025 | J6: 2026 | K6: =J6 -> 2026
C7: DEFINITIVO | D7: PROVISIONAL | H7: DEFINITIVO | I7: PROVISIONAL
F8: =CONCATENATE(D6,"=100") -> 2025=100 | K8: =CONCATENATE(I6,"=100") -> 2025=100
A10: 15 A Coruña | C10: 47 | D10: 7.55 | E10: 5.18 | H10: 0.118 | I10: 0.028
A11: 27 Lugo | C11: 32 | D11: 11.02 | E11: 9.21 | H11: 0.08 | I11: 0.028
A12: 32 Ourense | C12: 105 | D12: 110.04 | E12: 137.58 | H12: 0.463 | I12: 0.318
A13: 36 Pontevedra | D13: 8.85 | E13: 3.92 | I13: 0.029
A14: GALICIA | C14: 184 | D14: 137.46 | E14: 155.89 | F14: 113.4075367 | H14: 0.661 | I14: 0.403
A16: 33 P. DE ASTURIAS
A18: 39 CANTABRIA | C18: 144 | D18: 145 | E18: 155 | F18: 106.8965517 | H18: 0.151 | I18: 0.151
A20: 1 Álava | C20: 8192 | D20: 9645 | E20: 10000 | H20: 58.163 | I20: 53.048
A21: 20 Guipúzcoa
A22: 48 Vizcaya
A23: PAIS VASCO | C23: 8192 | D23: 9645 | E23: 10000 | F23: 103.6806636 | H23: 58.163 | I23: 53.048
A25: 31 NAVARRA
A27: 26 LA RIOJA | C27: 12354 | D27: 10546 | H27: 38.056 | I27: 56.783
A29: 22 Huesca | C29: 17269 | D29: 17999.43 | E29: 17700 | H29: 70.446 | I29: 90.36
A30: 44 Teruel | C30: 33 | D30: 1794 | E30: 1897 | H30: 0.06 | I30: 4.89
A31: 50 Zaragoza | C31: 5626 | D31: 9445.14 | E31: 10397.1 | H31: 10.724 | I31: 50.581
A32: ARAGÓN | C32: 22928 | D32: 29238.57 | E32: 29994.1 | F32: 102.5840183 | H32: 81.23 | I32: 145.831
A34: 8 Barcelona
A35: 17 Girona
A36: 25 Lleida
A37: 43 Tarragona
A38: CATALUÑA
A40: 7 BALEARES | C40: 4610 | D40: 4700 | E40: 4400 | F40: 93.61702128 | H40: 5.531 | I40: 6.4
A42: 5 Ávila
A43: 9 Burgos
A44: 24 León
A45: 34 Palencia
A46: 37 Salamanca
A47: 40 Segovia
A48: 42 Soria
A49: 47 Valladolid
A50: 49 Zamora
A51: CASTILLA Y LEÓN
A53: 28 MADRID | C53: 1862 | D53: 1907 | E53: 1907 | F53: 100 | H53: 5.115 | I53: 5.497
A55: 2 Albacete | C55: 80350 | D55: 80035 | E55: 79958.4 | H55: 163.712 | I55: 245.3
A56: 13 Ciudad Real
A57: 16 Cuenca
A58: 19 Guadalajara
A59: 45 Toledo
A60: CASTILLA-MANCHA | C60: 80350 | D60: 80035 | E60: 79958.4 | F60: 99.90429187 | H60: 163.712 | I60: 245.3
A62: 3 Alicante
A63: 12 Castellón | C63: 360 | D63: 360 | E63: 328 | H63: 0.077 | I63: 0.682
A64: 46 Valencia
A65: C. VALENCIANA | C65: 360 | D65: 360 | E65: 328 | F65: 91.11111111 | H65: 0.077 | I65: 0.682
A67: 30 R. DE MURCIA
A69: 6 Badajoz
A70: 10 Cáceres
A71: EXTREMADURA
A73: 4 Almería
A74: 11 Cádiz
A75: 14 Córdoba
A76: 18 Granada
A77: 21 Huelva
A78: 23 Jaén
A79: 29 Málaga
A80: 41 Sevilla
A81: ANDALUCÍA
A83: 35 Palmas (Las)
A84: 38 S. C. Tenerife
A85: CANARIAS
A88: ESPAÑA | C88: 130984 | D88: 136714.03 | E88: 126898.39 | F88: 92.82031259 | H88: 352.696 | I88: 514.095
A91: (*)Tipo de Superficie de mes/año solicitado

Sheet Ceb17era-SRT
A1: AVANCES DE SUPERFICIE Y PRODUCCIÓN
A2: CEBADA 6C DE PRIMAVERA S/R/T | K2: 2026 ENERO
A3: SUPERFICIE SEMBRADA(*)
A4: PROVINCIAS | B4: SUPERFICIES (HA) | E4: SUPERFICIES (HA) | H4: SUPERFICIES (HA) | L4: PRODUCCIONES (1000 TM) | O4: PRODUCCIONES (1000 TM) | R4: PRODUCCIONES (1000 TM)
A5: Y | B5: SECANO | E5: REGADIO | H5: TOTAL | L5: SECANO | O5: REGADIO | R5: TOTAL
A6: CC-AA | B6: =J6-2 -> 2024 | C6: =J6-1 -> 2025 | D6: =J6 -> 2026 | E6: =J6-2 -> 2024 | F6: =J6-1 -> 2025 | G6: =J6 -> 2026 | H6: =J6-2 -> 2024 | I6: =J6-1 -> 2025 | J6: 2026 | L6: =T6-2 -> 2024 | M6: =T6-1 -> 2025 | N6: =T6 -> 2026 | O6: =T6-2 -> 2024 | P6: =T6-1 -> 2025 | Q6: =T6 -> 2026 | R6: =T6-2 -> 2024 | S6: =T6-1 -> 2025 | T6: 2026
B7: DEFINITIVO | C7: PROVISIONAL | E7: DEFINITIVO | F7: PROVISIONAL | H7: DEFINITIVO | I7: PROVISIONAL | L7: DEFINITIVO | M7: PROVISIONAL | O7: DEFINITIVO | P7: PROVISIONAL | R7: DEFINITIVO | S7: PROVISIONAL
A10: 15 Coruña (La) | C10: 63.68 | D10: 70.01 | I10: 63.68 | J10: 70.01 | M10: 0.49 | S10: 0.49
A11: 27 Lugo | C11: 53.49 | D11: 50.18 | I11: 53.49 | J11: 50.18 | M11: 0.056 | S11: 0.056
A12: 32 Orense | C12: 125.42 | D12: 120.7 | I12: 125.42 | J12: 120.7 | M12: 0.55 | S12: 0.55
A13: 36 Pontevedra | C13: 18.33 | D13: 13.73 | I13: 18.33 | J13: 13.73 | M13: 0.056 | S13: 0.056
A14: GALICIA | C14: 260.92 | D14: 254.62 | I14: 260.92 | J14: 254.62 | M14: 1.152 | S14: 1.152
A16: 33 P. DE ASTURIAS
A18: 39 CANTABRIA
A20: 01 Alava
A21: 20 Guipúzcoa
A22: 48 Vizcaya
A23: PAIS VASCO
A25: 31 NAVARRA
A27: 26 LA RIOJA
A29: 22 Huesca | C29: 229.16 | D29: 250 | F29: 137.88 | G29: 140 | I29: 367.04 | J29: 390 | M29: 0.894 | P29: 0.896 | S29: 1.79
A30: 44 Teruel | C30: 33 | D30: 35 | F30: 3 | G30: 4 | I30: 36 | J30: 39 | M30: 0.086 | P30: 0.012 | S30: 0.098
A31: 50 Zaragoza | C31: 101.75 | D31: 132.56 | F31: 22.73 | G31: 7.76 | I31: 124.48 | J31: 140.32 | M31: 0.191 | P31: 0.113 | S31: 0.304
A32: ARAGON | C32: 363.91 | D32: 417.56 | F32: 163.61 | G32: 151.76 | I32: 527.52 | J32: 569.32 | M32: 1.171 | P32: 1.021 | S32: 2.192
A34: 08 Barcelona
A35: 17 Girona
A36: 25 Lleida
A37: 43 Tarragona
A38: CATALUÑA
A40: 07 BALEARES
A42: 05 Avila
A43: 09 Burgos
A44: 24 León
A45: 34 Palencia
A46: 37 Salamanca
A47: 40 Segovia
A48: 42 Soria
A49: 47 Valladolid
A50: 49 Zamora
A51: CASTILLA Y LEON
A53: 28 MADRID | C53: 18 | D53: 18 | F53: 2 | G53: 2 | I53: 20 | J53: 20 | M53: 0.051 | P53: 0.008 | S53: 0.059
A55: 02 Albacete | B55: 535 | C55: 529 | D55: 666.6 | E55: 241 | F55: 243 | G55: 285 | H55: 776 | I55: 772 | J55: 951.6 | L55: 0.55 | M55: 1.333 | O55: 1.567 | P55: 1.677 | R55: 2.117 | S55: 3.01
A56: 13 Ciudad Real
A57: 16 Cuenca
A58: 19 Guadalajara
A59: 45 Toledo
A60: CASTILLA-MANCHA | B60: 535 | C60: 529 | D60: 666.6 | E60: 241 | F60: 243 | G60: 285 | H60: 776 | I60: 772 | J60: 951.6 | L60: 0.55 | M60: 1.333 | O60: 1.567 | P60: 1.677 | R60: 2.117 | S60: 3.01
A62: 03 Alicante
A63: 12 Castellón | B63: 6 | C63: 6 | D63: 6 | H63: 6 | I63: 6 | J63: 6 | L63: 0.001 | M63: 0.011 | R63: 0.001 | S63: 0.011
A64: 46 Valencia
A65: C. VALENCIANA | B65: 6 | C65: 6 | D65: 6 | H65: 6 | I65: 6 | J65: 6 | L65: 0.001 | M65: 0.011 | R65: 0.001 | S65: 0.011
A67: 30 R. DE MURCIA
A69: 06 Badajoz
A70: 10 Cáceres
A71: EXTREMADURA
A73: 04 Almería
A74: 11 Cádiz
A75: 14 Córdoba
A76: 18 Granada
A77: 21 Huelva
A78: 23 Jaén
A79: 29 Málaga
A80: 41 Sevilla
A81: ANDALUCIA
A83: 35 Palmas (Las)
A84: 38 S. C. Tenerife
A85: CANARIAS
A88: ESPAÑA | B88: 1082 | C88: 1177.83 | D88: 1362.78 | E88: 241 | F88: 408.61 | G88: 438.76 | H88: 782 | I88: 1586.44 | J88: 1801.54 | L88: 0.551 | M88: 3.718 | O88: 1.567 | P88: 2.706 | R88: 2.118 | S88: 6.424
B96: 221 | C96: 231 | E96: 221 | F96: 231 | H96: 221 | I96: 231

Sheet Ceb17era
A1: AVANCES DE SUPERFICIE Y PRODUCCIÓN
A2: CEBADA 6C DE PRIMAVERA | J2: 2026 ENERO
A3: SUPERFICIE SEMBRADA(*)
A4: PROVINCIAS | C4: SUPERFICIES (HA) | H4: PRODUCCIONES (1000 TM)
A5: Y
A6: CC-AA | C6: =E6-2 -> 2024 | D6: =E6-1 -> 2025 | E6: 2026 | F6: =E6 -> 2026 | H6: =J6-2 -> 2024 | I6: =J6-1 -> 2025 | J6: 2026 | K6: =J6 -> 2026
C7: DEFINITIVO | D7: PROVISIONAL | H7: DEFINITIVO | I7: PROVISIONAL
F8: =CONCATENATE(D6,"=100") -> 2025=100 | K8: =CONCATENATE(I6,"=100") -> 2025=100
A10: 15 A Coruña | D10: 63.68 | E10: 70.01 | I10: 0.49
A11: 27 Lugo | D11: 53.49 | E11: 50.18 | I11: 0.056
A12: 32 Ourense | D12: 125.42 | E12: 120.7 | I12: 0.55
A13: 36 Pontevedra | D13: 18.33 | E13: 13.73 | I13: 0.056
A14: GALICIA | D14: 260.92 | E14: 254.62 | F14: 97.58546681 | I14: 1.152
A16: 33 P. DE ASTURIAS
A18: 39 CANTABRIA
A20: 1 Álava
A21: 20 Guipúzcoa
A22: 48 Vizcaya
A23: PAIS VASCO
A25: 31 NAVARRA
A27: 26 LA RIOJA
A29: 22 Huesca | D29: 367.04 | E29: 390 | I29: 1.79
A30: 44 Teruel | D30: 36 | E30: 39 | I30: 0.098
A31: 50 Zaragoza | D31: 124.48 | E31: 140.32 | I31: 0.304
A32: ARAGÓN | D32: 527.52 | E32: 569.32 | F32: 107.9238702 | I32: 2.192
A34: 8 Barcelona
A35: 17 Girona
A36: 25 Lleida
A37: 43 Tarragona
A38: CATALUÑA
A40: 7 BALEARES
A42: 5 Ávila
A43: 9 Burgos
A44: 24 León
A45: 34 Palencia
A46: 37 Salamanca
A47: 40 Segovia
A48: 42 Soria
A49: 47 Valladolid
A50: 49 Zamora
A51: CASTILLA Y LEÓN
A53: 28 MADRID | D53: 20 | E53: 20 | F53: 100 | I53: 0.059
A55: 2 Albacete | C55: 776 | D55: 772 | E55: 951.6 | H55: 2.117 | I55: 3.01
A56: 13 Ciudad Real
A57: 16 Cuenca
A58: 19 Guadalajara
A59: 45 Toledo
A60: CASTILLA-MANCHA | C60: 776 | D60: 772 | E60: 951.6 | F60: 123.2642487 | H60: 2.117 | I60: 3.01
A62: 3 Alicante
A63: 12 Castellón | C63: 6 | D63: 6 | E63: 6 | H63: 0.001 | I63: 0.011
A64: 46 Valencia
A65: C. VALENCIANA | C65: 6 | D65: 6 | E65: 6 | F65: 100 | H65: 0.001 | I65: 0.011
A67: 30 R. DE MURCIA
A69: 6 Badajoz
A70: 10 Cáceres
A71: EXTREMADURA
A73: 4 Almería
A74: 11 Cádiz
A75: 14 Córdoba
A76: 18 Granada
A77: 21 Huelva
A78: 23 Jaén
A79: 29 Málaga
A80: 41 Sevilla
A81: ANDALUCÍA
A83: 35 Palmas (Las)
A84: 38 S. C. Tenerife
A85: CANARIAS
A88: ESPAÑA | C88: 782 | D88: 1586.44 | E88: 1801.54 | F88: 113.5586596 | H88: 2.118 | I88: 6.424
A91: (*)Tipo de Superficie de mes/año solicitado

Sheet Ceb18tal-SRT
A1: AVANCES DE SUPERFICIE Y PRODUCCIÓN
A2: CEBADA TOTAL S/R/T | K2: 2026 ENERO
A3: SUPERFICIE SEMBRADA(*)
A4: PROVINCIAS | B4: SUPERFICIES (HA) | E4: SUPERFICIES (HA) | H4: SUPERFICIES (HA) | L4: PRODUCCIONES (1000 TM) | O4: PRODUCCIONES (1000 TM) | R4: PRODUCCIONES (1000 TM)
A5: Y | B5: SECANO | E5: REGADIO | H5: TOTAL | L5: SECANO | O5: REGADIO | R5: TOTAL
A6: CC-AA | B6: =J6-2 -> 2024 | C6: =J6-1 -> 2025 | D6: =J6 -> 2026 | E6: =J6-2 -> 2024 | F6: =J6-1 -> 2025 | G6: =J6 -> 2026 | H6: =J6-2 -> 2024 | I6: =J6-1 -> 2025 | J6: 2026 | L6: =T6-2 -> 2024 | M6: =T6-1 -> 2025 | N6: =T6 -> 2026 | O6: =T6-2 -> 2024 | P6: =T6-1 -> 2025 | Q6: =T6 -> 2026 | R6: =T6-2 -> 2024 | S6: =T6-1 -> 2025 | T6: 2026
B7: DEFINITIVO | C7: PROVISIONAL | E7: DEFINITIVO | F7: PROVISIONAL | H7: DEFINITIVO | I7: PROVISIONAL | L7: DEFINITIVO | M7: PROVISIONAL | O7: DEFINITIVO | P7: PROVISIONAL | R7: DEFINITIVO | S7: PROVISIONAL
A10: 15 Coruña (La) | B10: 157 | C10: 102.58 | D10: 96.78 | H10: 157 | I10: 102.58 | J10: 96.78 | L10: 0.393 | M10: 0.677 | R10: 0.393 | S10: 0.677
A11: 27 Lugo | B11: 79 | C11: 137.62 | D11: 120.62 | H11: 79 | I11: 137.62 | J11: 120.62 | L11: 0.198 | M11: 0.454 | R11: 0.198 | S11: 0.454
A12: 32 Orense | B12: 693 | C12: 1227.09 | D12: 1300.24 | H12: 693 | I12: 1227.09 | J12: 1300.24 | L12: 3.056 | M12: 3.734 | R12: 3.056 | S12: 3.734
A13: 36 Pontevedra | B13: 27 | C13: 106.85 | D13: 61.1 | H13: 27 | I13: 106.85 | J13: 61.1 | L13: 0.119 | M13: 0.347 | R13: 0.119 | S13: 0.347
A14: GALICIA | B14: 956 | C14: 1574.14 | D14: 1578.74 | H14: 956 | I14: 1574.14 | J14: 1578.74 | L14: 3.766 | M14: 5.212 | R14: 3.766 | S14: 5.212
A16: 33 P. DE ASTURIAS
A18: 39 CANTABRIA | B18: 134 | C18: 135 | D18: 145 | E18: 10 | F18: 10 | G18: 10 | H18: 144 | I18: 145 | J18: 155 | L18: 0.111 | M18: 0.121 | O18: 0.04 | P18: 0.03 | R18: 0.151 | S18: 0.151
A20: 01 Alava | B20: 13654 | C20: 13778 | D20: 15000 | H20: 13654 | I20: 13778 | J20: 15000 | L20: 96.943 | M20: 75.779 | R20: 96.943 | S20: 75.779
A21: 20 Guipúzcoa
A22: 48 Vizcaya
A23: PAIS VASCO | B23: 13654 | C23: 13778 | D23: 15000 | H23: 13654 | I23: 13778 | J23: 15000 | L23: 96.943 | M23: 75.779 | R23: 96.943 | S23: 75.779
A25: 31 NAVARRA | B25: 59043 | C25: 57595 | D25: 58002 | E25: 11854 | F25: 11839 | G25: 11888 | H25: 70897 | I25: 69434 | J25: 69890 | L25: 276.91 | M25: 261.783 | O25: 77.571 | P25: 66.845 | R25: 354.501 | S25: 328.628
A27: 26 LA RIOJA | B27: 12952 | C27: 11986 | D27: 14400 | E27: 4641 | F27: 4306 | G27: 5150 | H27: 17593 | I27: 16292 | J27: 19550 | L27: 34.969 | M27: 65.525 | O27: 18.1 | P27: 23.438 | R27: 53.069 | S27: 88.963
A29: 22 Huesca | B29: 99963 | C29: 103782.09 | D29: 103850 | E29: 60100 | F29: 62656.98 | G29: 62840 | H29: 160063 | I29: 166439.06 | J29: 166690 | L29: 329.166 | M29: 416.955 | O29: 347.91 | P29: 418.323 | R29: 677.14 | S29: 835.278
A30: 44 Teruel | B30: 80215 | C30: 82770 | D30: 87799 | E30: 8136 | F30: 8800 | G30: 8956 | H30: 88351 | I30: 91570 | J30: 96755 | L30: 49.217 | M30: 215.367 | O30: 22.284 | P30: 34.68 | R30: 71.5 | S30: 250.047
A31: 50 Zaragoza | B31: 135804 | C31: 126846.3 | D31: 145638 | E31: 30748 | F31: 28403.94 | G31: 25424 | H31: 166552 | I31: 155250.24 | J31: 171062 | L31: 215.317 | M31: 395.347 | O31: 152.192 | P31: 173.903 | R31: 367.598 | S31: 569.25
A32: ARAGON | B32: 315982 | C32: 313398.39 | D32: 337287 | E32: 98984 | F32: 99860.92 | G32: 97220 | H32: 414966 | I32: 413259.3 | J32: 434507 | L32: 593.7 | M32: 1027.669 | O32: 522.386 | P32: 626.906 | R32: 1116.238 | S32: 1654.575
A34: 08 Barcelona | B34: 30703 | C34: 33243 | D34: 32025 | E34: 668 | F34: 1003 | G34: 1046 | H34: 31371 | I34: 34246 | J34: 33071 | L34: 61.56 | M34: 138.732 | O34: 3.403 | P34: 5.665 | R34: 64.968 | S34: 144.397
A35: 17 Girona | B35: 15825 | C35: 13274 | D35: 12174 | E35: 2499 | F35: 4451 | G35: 4277 | H35: 18324 | I35: 17725 | J35: 16451 | L35: 32.22 | M35: 44.329 | O35: 8.342 | P35: 17.523 | R35: 40.556 | S35: 61.852
A36: 25 Lleida | B36: 67284 | C36: 75977 | D36: 74572 | E36: 32385 | F36: 29980 | G36: 29800 | H36: 99669 | I36: 105957 | J36: 104372 | L36: 145.67 | M36: 334.299 | O36: 202.892 | P36: 206.872 | R36: 348.564 | S36: 541.171
A37: 43 Tarragona | B37: 11232 | C37: 12167 | D37: 12331 | E37: 336 | F37: 288 | G37: 224 | H37: 11568 | I37: 12455 | J37: 12555 | L37: 13.801 | M37: 44.412 | O37: 0.529 | P37: 1.354 | R37: 14.326 | S37: 45.766
A38: CATALUÑA | B38: 125044 | C38: 134661 | D38: 131102 | E38: 35888 | F38: 35722 | G38: 35347 | H38: 160932 | I38: 170383 | J38: 166449 | L38: 253.251 | M38: 561.772 | O38: 215.166 | P38: 231.414 | R38: 468.414 | S38: 793.186
A40: 07 BALEARES | B40: 15313 | C40: 14700 | D40: 14610 | H40: 15313 | I40: 14700 | J40: 14610 | L40: 17.483 | M40: 19.6 | R40: 17.484 | S40: 19.6
A42: 05 Avila | B42: 34444 | C42: 40190 | D42: 40100 | E42: 1765 | F42: 1447 | G42: 1470 | H42: 36209 | I42: 41637 | J42: 41570 | L42: 63.067 | M42: 156.462 | O42: 5.89 | P42: 6.533 | R42: 68.943 | S42: 162.995
A43: 09 Burgos | B43: 128146 | C43: 139293 | D43: 130906 | E43: 4790 | F43: 5207 | G43: 5109.67 | H43: 132936 | I43: 144500 | J43: 136015.67 | L43: 662.13 | M43: 735.049 | O43: 31.121 | P43: 34.272 | R43: 693.251 | S43: 769.321
A44: 24 León | B44: 13794 | C44: 18118 | D44: 16000 | E44: 3920 | F44: 4196 | G44: 4000 | H44: 17714 | I44: 22314 | J44: 20000 | L44: 52.541 | M44: 75.371 | O44: 20.384 | P44: 22.239 | R44: 72.925 | S44: 97.61
A45: 34 Palencia | B45: 89344 | C45: 96282 | D45: 90435 | E45: 8959 | F45: 10429 | G45: 9783 | H45: 98303 | I45: 106711 | J45: 100218 | L45: 401.869 | M45: 491.327 | O45: 52.374 | P45: 60.342 | R45: 454.244 | S45: 551.669
A46: 37 Salamanca | B46: 24112 | C46: 25237 | D46: 23350 | E46: 2958 | F46: 4604 | G46: 3600 | H46: 27070 | I46: 29841 | J46: 26950 | L46: 78.364 | M46: 113.567 | O46: 15.382 | P46: 23.941 | R46: 93.746 | S46: 137.508
A47: 40 Segovia | B47: 47414 | C47: 59677 | D47: 61500 | E47: 2883 | F47: 3553 | H47: 50297 | I47: 63230 | J47: 61500 | L47: 122.802 | M47: 237.753 | O47: 14.303 | P47: 17.765 | R47: 137.104 | S47: 255.518
A48: 42 Soria | B48: 69422 | C48: 74171 | D48: 60000 | E48: 2853 | F48: 3080 | G48: 3000 | H48: 72275 | I48: 77251 | J48: 63000 | L48: 240.408 | M48: 289.415 | O48: 13.694 | P48: 16.632 | R48: 254.102 | S48: 306.047
A49: 47 Valladolid | B49: 125443 | C49: 135366 | D49: 122500 | E49: 20779 | F49: 25287 | G49: 25175 | H49: 146222 | I49: 160653 | J49: 147675 | L49: 513.062 | M49: 673.446 | O49: 132.341 | P49: 177.009 | R49: 645.403 | S49: 850.455
A50: 49 Zamora | B50: 51957 | C50: 57472 | D50: 51750 | E50: 8433 | F50: 9654 | G50: 8640 | H50: 60390 | I50: 67126 | J50: 60390 | L50: 192.085 | M50: 251.095 | O50: 44.813 | P50: 67.578 | R50: 236.898 | S50: 318.673
A51: CASTILLA Y LEON | B51: 584076 | C51: 645806 | D51: 596541 | E51: 57340 | F51: 67457 | G51: 60777.67 | H51: 641416 | I51: 713263 | J51: 657318.67 | L51: 2326.328 | M51: 3023.485 | O51: 330.302 | P51: 426.311 | R51: 2656.616 | S51: 3449.796
A53: 28 MADRID | B53: 34454 | C53: 35340 | D53: 35336 | E53: 3888 | F53: 3186 | G53: 3186 | H53: 38342 | I53: 38526 | J53: 38522 | L53: 90.332 | M53: 99.063 | O53: 14.141 | P53: 12.048 | R53: 104.448 | S53: 111.111
A55: 02 Albacete | B55: 101635 | C55: 100459 | D55: 101000 | E55: 14541 | F55: 14993 | G55: 15000 | H55: 116176 | I55: 115452 | J55: 116000 | L55: 109.641 | M55: 226.033 | O55: 98.152 | P55: 103.452 | R55: 207.807 | S55: 329.485
A56: 13 Ciudad Real | B56: 103049 | C56: 94021 | D56: 95700 | E56: 33738 | F56: 35343 | G56: 39000 | H56: 136787 | I56: 129364 | J56: 134700 | L56: 324.192 | M56: 306.508 | O56: 170.714 | P56: 195.447 | R56: 494.907 | S56: 501.955
A57: 16 Cuenca | B57: 224573 | C57: 211147 | D57: 233000 | E57: 7448 | F57: 7550 | G57: 8580 | H57: 232021 | I57: 218697 | J57: 241580 | L57: 680.401 | M57: 688.76 | O57: 40.955 | P57: 41.802 | R57: 721.318 | S57: 730.562
A58: 19 Guadalajara | B58: 75548 | C58: 75548 | D58: 80559 | E58: 2893 | F58: 2893 | G58: 116 | H58: 78441 | I58: 78441 | J58: 80675 | L58: 241.754 | M58: 264.419 | O58: 14.465 | P58: 14.465 | R58: 256.218 | S58: 278.884
A59: 45 Toledo | B59: 129600 | C59: 110503 | D59: 108648 | E59: 9704 | F59: 10876 | G59: 10876 | H59: 139304 | I59: 121379 | J59: 119524 | L59: 339.293 | M59: 328.095 | O59: 45.405 | P59: 60.379 | R59: 384.672 | S59: 388.474
A60: CASTILLA-MANCHA | B60: 634405 | C60: 591678 | D60: 618907 | E60: 68324 | F60: 71655 | G60: 73572 | H60: 702729 | I60: 663333 | J60: 692479 | L60: 1695.281 | M60: 1813.815 | O60: 369.691 | P60: 415.545 | R60: 2064.922 | S60: 2229.36
A62: 03 Alicante | B62: 1680 | C62: 1876 | D62: 1724 | E62: 587 | F62: 402 | G62: 365 | H62: 2267 | I62: 2278 | J62: 2089 | L62: 0.216 | M62: 2.426 | O62: 1.137 | P62: 1.575 | R62: 1.354 | S62: 4.001
A63: 12 Castellón | B63: 1790 | C63: 2232 | D63: 2200 | E63: 55 | F63: 55 | G63: 55 | H63: 1845 | I63: 2287 | J63: 2255 | L63: 0.233 | M63: 4.128 | O63: 0.215 | P63: 0.214 | R63: 0.447 | S63: 4.342
A64: 46 Valencia | B64: 6532 | C64: 5662 | D64: 6974 | E64: 472 | F64: 452 | G64: 586 | H64: 7004 | I64: 6114 | J64: 7560 | L64: 2.24 | M64: 16.703 | O64: 1.915 | P64: 1.892 | R64: 4.155 | S64: 18.595
A65: C. VALENCIANA | B65: 10002 | C65: 9770 | D65: 10898 | E65: 1114 | F65: 909 | G65: 1006 | H65: 11116 | I65: 10679 | J65: 11904 | L65: 2.689 | M65: 23.257 | O65: 3.267 | P65: 3.681 | R65: 5.956 | S65: 26.938
A67: 30 R. DE MURCIA | B67: 15121 | C67: 15344 | D67: 18076 | E67: 1462 | F67: 1239 | G67: 1737 | H67: 16583 | I67: 16583 | J67: 19813 | L67: 15.812 | M67: 16.996 | O67: 5.689 | P67: 4.86 | R67: 21.498 | S67: 21.856
A69: 06 Badajoz | B69: 48205 | C69: 47560 | D69: 44650 | E69: 2710 | F69: 2674 | G69: 2850 | H69: 50915 | I69: 50234 | J69: 47500 | L69: 142.93 | M69: 112.595 | O69: 10.558 | P69: 8.18 | R69: 153.487 | S69: 120.775
A70: 10 Cáceres | B70: 309 | C70: 206 | D70: 500 | E70: 702 | F70: 351 | G70: 350 | H70: 1011 | I70: 557 | J70: 850 | L70: 0.444 | M70: 0.281 | O70: 1.328 | P70: 0.621 | R70: 1.772 | S70: 0.902
A71: EXTREMADURA | B71: 48514 | C71: 47766 | D71: 45150 | E71: 3412 | F71: 3025 | G71: 3200 | H71: 51926 | I71: 50791 | J71: 48350 | L71: 143.374 | M71: 112.876 | O71: 11.886 | P71: 8.801 | R71: 155.259 | S71: 121.677
A73: 04 Almería | B73: 8145 | C73: 6776 | D73: 6800 | E73: 206 | F73: 189 | G73: 200 | H73: 8351 | I73: 6965 | J73: 7000 | L73: 0.299 | M73: 17.398 | O73: 0.414 | P73: 0.708 | R73: 0.713 | S73: 18.106
